Workbook

Sheet MainDisplay
A1: =IF(RTD("cqg.rtd",,"StudyData","ZSE", "Bar",, "Close", "D","-5")="",NA(),RTD("cqg.rtd",,"StudyData","ZSE", "Bar",, "Close", "D","-5")) -> 8972 | AM1: 1 | AN1: =INDIRECT("Corn!H"&AM1) -> 2020-01-28 | AO1: =INDIRECT("Corn!I"&AM1) -> 73420 | AP1: =INDIRECT("Corn!J"&AM1) -> 2020-01-28 | AQ1: =INDIRECT("Corn!K"&AM1) -> -139821 | AR1: =INDIRECT("Corn!L"&AM1) -> 2020-01-28 | AS1: =INDIRECT("Corn!M"&AM1) -> 66401 | AT1: 1 | AU1: =INDIRECT("Soybeans!H"&AT1) -> 2020-01-28 | AV1: =INDIRECT("Soybeans!I"&AT1) -> -6296 | AW1: =INDIRECT("Soybeans!J"&AT1) -> 2020-01-28 | AX1: =INDIRECT("Soybeans!K"&AT1) -> 15938 | AY1: =INDIRECT("Soybeans!L"&AT1) -> 2020-01-28 | AZ1: =INDIRECT("Soybeans!M"&AT1) -> -9642 | BA1: 1 | BB1: =INDIRECT("Wheat_SRW!H"&BA1) -> 2020-01-28 | BC1: =INDIRECT("Wheat_SRW!I"&BA1) -> 41141 | BD1: =INDIRECT("Wheat_SRW!J"&BA1) -> 2020-01-28 | BE1: =INDIRECT("Wheat_SRW!K"&BA1) -> -23938 | BF1: =INDIRECT("Wheat_SRW!L"&BA1) -> 2020-01-28 | BG1: =INDIRECT("Wheat_SRW!M"&BA1) -> -17203 | BH1: 1 | BI1: =INDIRECT("Soybean_Oil!H"&BH1) -> 2020-01-28 | BJ1: =INDIRECT("Soybean_Oil!I"&BH1) -> 112718 | BK1: =INDIRECT("Soybean_Oil!J"&BH1) -> 2020-01-28 | BL1: =INDIRECT("Soybean_Oil!K"&BH1) -> -118662 | BM1: =INDIRECT("Soybean_Oil!L"&BH1) -> 2020-01-28 | BN1: =INDIRECT("Soybean_Oil!M"&BH1) -> 5944 | BO1: 1 | BP1: =INDIRECT("Soybean_Meal!H"&BO1) -> 2020-01-28 | BQ1: =INDIRECT("Soybean_Meal!I"&BO1) -> -9724 | BR1: =INDIRECT("Soybean_Meal!J"&BO1) -> 2020-01-28 | BS1: =INDIRECT("Soybean_Meal!K"&BO1) -> -6121 | BT1: =INDIRECT("Soybean_Meal!L"&BO1) -> 2020-01-28 | BU1: =INDIRECT("Soybean_Meal!M"&BO1) -> 15845 | BV1: 1 | BW1: =INDIRECT("Wheat_HRW!H"&BV1) -> 2020-01-28 | BX1: =INDIRECT("Wheat_HRW!I"&BV1) -> 11152 | BY1: =INDIRECT("Wheat_HRW!J"&BV1) -> 2020-01-28 | BZ1: =INDIRECT("Wheat_HRW!K"&BV1) -> -18552 | CA1: =INDIRECT("Wheat_HRW!L"&BV1) -> 2020-01-28 | CB1: =INDIRECT("Wheat_HRW!M"&BV1) -> 7400 | CC1: 1 | CD1: =INDIRECT("Rough_Rice!H"&CC1) -> 2020-01-28 | CE1: =INDIRECT("Rough_Rice!I"&CC1) -> 3442 | CF1: =INDIRECT("Rough_Rice!J"&CC1) -> 2020-01-28 | CG1: =INDIRECT("Rough_Rice!K"&CC1) -> -4319 | CH1: =INDIRECT("Rough_Rice!L"&CC1) -> 2020-01-28 | CI1: =INDIRECT("Rough_Rice!M"&CC1) -> 877 | CJ1: 1 | CK1: =INDIRECT("Oats!H"&CJ1) -> 2020-01-28 | CL1: =INDIRECT("Oats!I"&CJ1) -> 2667 | CM1: =INDIRECT("Oats!J"&CJ1) -> 2020-01-28 | CN1: =INDIRECT("Oats!K"&CJ1) -> -3071 | CO1: =INDIRECT("Oats!L"&CJ1) -> 2020-01-28 | CP1: =INDIRECT("Oats!M"&CJ1) -> 404 | CQ1: 1 | CR1: =INDIRECT("Bloomberg_Cmdy_Index!H"&CQ1) -> 2020-01-28 | CS1: =INDIRECT("Bloomberg_Cmdy_Index!I"&CQ1) -> -6855 | CT1: =INDIRECT("Bloomberg_Cmdy_Index!J"&CQ1) -> 2020-01-28 | CU1: =INDIRECT("Bloomberg_Cmdy_Index!K"&CQ1) -> 6616 | CV1: =INDIRECT("Bloomberg_Cmdy_Index!L"&CQ1) -> 2020-01-28 | CW1: =INDIRECT("Bloomberg_Cmdy_Index!M"&CQ1) -> 239 | CX1: 1 | CY1: =INDIRECT("'30_Day_Fed_Funds'!H"&CX1) -> 2020-01-28 | CZ1: =INDIRECT("'30_Day_Fed_Funds'!I"&CX1) -> 364870 | DA1: =INDIRECT("'30_Day_Fed_Funds'!J"&CX1) -> 2020-01-28 | DB1: =INDIRECT("'30_Day_Fed_Funds'!K"&CX1) -> -368578 | DC1: =INDIRECT("'30_Day_Fed_Funds'!L"&CX1) -> 2020-01-28 | DD1: =INDIRECT("'30_Day_Fed_Funds'!M"&CX1) -> 3708 | DE1: 1 | DF1: =INDIRECT("'2_Yr_TNotes'!H"&DE1) -> 2020-01-28 | DG1: =INDIRECT("'2_Yr_TNotes'!I"&DE1) -> -175967 | DH1: =INDIRECT("'2_Yr_TNotes'!J"&DE1) -> 2020-01-28 | DI1: =INDIRECT("'2_Yr_TNotes'!K"&DE1) -> 78329 | DJ1: =INDIRECT("'2_Yr_TNotes'!L"&DE1) -> 2020-01-28 | DK1: =INDIRECT("'2_Yr_TNotes'!M"&DE1) -> 97638 | DL1: 1 | DM1: =INDIRECT("'5_Yr_TNotes'!H"&DL1) -> 2020-01-28 | DN1: =INDIRECT("'5_Yr_TNotes'!I"&DL1) -> -160222 | DO1: =INDIRECT("'5_Yr_TNotes'!J"&DL1) -> 2020-01-28 | DP1: =INDIRECT("'5_Yr_TNotes'!K"&DL1) -> 131689 | DQ1: =INDIRECT("'5_Yr_TNotes'!L"&DL1) -> 2020-01-28 | DR1: =INDIRECT("'5_Yr_TNotes'!M"&DL1) -> 28533 | DS1: 1 | DT1: =INDIRECT("'5_Yr_IR_Swaps'!H"&DS1) -> 2020-01-28 | DU1: =INDIRECT("'5_Yr_IR_Swaps'!I"&DS1) ->  | DV1: =INDIRECT("'5_Yr_IR_Swaps'!J"&DS1) -> 2020-01-28 | DW1: =INDIRECT("'5_Yr_IR_Swaps'!K"&DS1) ->  | DX1: =INDIRECT("'5_Yr_IR_Swaps'!L"&DS1) -> 2020-01-28 | DY1: =INDIRECT("'5_Yr_IR_Swaps'!M"&DS1) ->  | DZ1: 1 | EA1: =INDIRECT("'10_Yr_TNotes'!H"&DZ1) -> 2020-01-28 | EB1: =INDIRECT("'10_Yr_TNotes'!I"&DZ1) -> -270472 | EC1: =INDIRECT("'10_Yr_TNotes'!J"&DZ1) -> 2020-01-28 | ED1: =INDIRECT("'10_Yr_TNotes'!K"&DZ1) -> 270523 | EE1: =INDIRECT("'10_Yr_TNotes'!L"&DZ1) -> 2020-01-28 | EF1: =INDIRECT("'10_Yr_TNotes'!M"&DZ1) -> -51 | EG1: 1 | EH1: =INDIRECT("Ultra_10_Yr_TNotes!H"&EG1) -> 2020-01-28 | EI1: =INDIRECT("Ultra_10_Yr_TNotes!I"&EG1) -> -56055 | EJ1: =INDIRECT("Ultra_10_Yr_TNotes!J"&EG1) -> 2020-01-28 | EK1: =INDIRECT("Ultra_10_Yr_TNotes!K"&EG1) -> 118013 | EL1: =INDIRECT("Ultra_10_Yr_TNotes!L"&EG1) -> 2020-01-28 | EM1: =INDIRECT("Ultra_10_Yr_TNotes!M"&EG1) -> -61958 | EN1: 1 | EO1: =INDIRECT("'10_Yr_IR_Swaps'!H"&EN1) -> 2020-01-28 | EP1: =INDIRECT("'10_Yr_IR_Swaps'!I"&EN1) ->  | EQ1: =INDIRECT("'10_Yr_IR_Swaps'!J"&EN1) -> 2020-01-28 | ER1: =INDIRECT("'10_Yr_IR_Swaps'!K"&EN1) ->  | ES1: =INDIRECT("'10_Yr_IR_Swaps'!L"&EN1) -> 2020-01-28 | ET1: =INDIRECT("'10_Yr_IR_Swaps'!M"&EN1) ->  | EU1: 1 | EV1: =INDIRECT("US_Treasury_Bonds!H"&EU1) -> 2020-01-28 | EW1: =INDIRECT("US_Treasury_Bonds!I"&EU1) -> -54973 | EX1: =INDIRECT("US_Treasury_Bonds!J"&EU1) -> 2020-01-28 | EY1: =INDIRECT("US_Treasury_Bonds!K"&EU1) -> 12287 | EZ1: =INDIRECT("US_Treasury_Bonds!L"&EU1) -> 2020-01-28 | FA1: =INDIRECT("US_Treasury_Bonds!M"&EU1) -> 42686 | FB1: 1 | FC1: =INDIRECT("Ultra_Treasury_Bonds!H"&FB1) -> 2020-01-28 | FD1: =INDIRECT("Ultra_Treasury_Bonds!I"&FB1) -> -438004 | FE1: =INDIRECT("Ultra_Treasury_Bonds!J"&FB1) -> 2020-01-28 | FF1: =INDIRECT("Ultra_Treasury_Bonds!K"&FB1) -> 375883 | FG1: =INDIRECT("Ultra_Treasury_Bonds!L"&FB1) -> 2020-01-28 | FH1: =INDIRECT("Ultra_Treasury_Bonds!M"&FB1) -> 62121 | FI1: 1 | FJ1: =INDIRECT("DJI_5!H"&FI1) -> 2020-01-28 | FK1: =INDIRECT("DJI_5!I"&FI1) -> 38244 | FL1: =INDIRECT("DJI_5!J"&FI1) -> 2020-01-28 | FM1: =INDIRECT("DJI_5!K"&FI1) -> -39425 | FN1: =INDIRECT("DJI_5!L"&FI1) -> 2020-01-28 | FO1: =INDIRECT("DJI_5!M"&FI1) -> 1181
B2: =RTD("cqg.rtd", ,"SystemInfo", "Linetime") -> 43864.48196 | I2: CQG CFTC Commitments of Traders Reports (CBOT) | AH2: =RTD("cqg.rtd", ,"SystemInfo", "Linetime") -> 43864.48196 | AM2: =AM1+1 -> 2 | AN2: =INDIRECT("Corn!H"&AM2) -> 2020-01-21 | AO2: =INDIRECT("Corn!I"&AM2) -> 48023 | AP2: =INDIRECT("Corn!J"&AM2) -> 2020-01-21 | AQ2: =INDIRECT("Corn!K"&AM2) -> -124320 | AR2: =INDIRECT("Corn!L"&AM2) -> 2020-01-21 | AS2: =INDIRECT("Corn!M"&AM2) -> 76297 | AT2: =AT1+1 -> 2 | AU2: =INDIRECT("Soybeans!H"&AT2) -> 2020-01-21 | AV2: =INDIRECT("Soybeans!I"&AT2) -> 17644 | AW2: =INDIRECT("Soybeans!J"&AT2) -> 2020-01-21 | AX2: =INDIRECT("Soybeans!K"&AT2) -> -8400 | AY2: =INDIRECT("Soybeans!L"&AT2) -> 2020-01-21 | AZ2: =INDIRECT("Soybeans!M"&AT2) -> -9244 | BA2: =BA1+1 -> 2 | BB2: =INDIRECT("Wheat_SRW!H"&BA2) -> 2020-01-21 | BC2: =INDIRECT("Wheat_SRW!I"&BA2) -> 47725 | BD2: =INDIRECT("Wheat_SRW!J"&BA2) -> 2020-01-21 | BE2: =INDIRECT("Wheat_SRW!K"&BA2) -> -30023 | BF2: =INDIRECT("Wheat_SRW!L"&BA2) -> 2020-01-21 | BG2: =INDIRECT("Wheat_SRW!M"&BA2) -> -17702 | BH2: =BH1+1 -> 2 | BI2: =INDIRECT("Soybean_Oil!H"&BH2) -> 2020-01-21 | BJ2: =INDIRECT("Soybean_Oil!I"&BH2) -> 115751 | BK2: =INDIRECT("Soybean_Oil!J"&BH2) -> 2020-01-21 | BL2: =INDIRECT("Soybean_Oil!K"&BH2) -> -126998 | BM2: =INDIRECT("Soybean_Oil!L"&BH2) -> 2020-01-21 | BN2: =INDIRECT("Soybean_Oil!M"&BH2) -> 11247 | BO2: =BO1+1 -> 2 | BP2: =INDIRECT("Soybean_Meal!H"&BO2) -> 2020-01-21 | BQ2: =INDIRECT("Soybean_Meal!I"&BO2) -> -6758 | BR2: =INDIRECT("Soybean_Meal!J"&BO2) -> 2020-01-21 | BS2: =INDIRECT("Soybean_Meal!K"&BO2) -> -8348 | BT2: =INDIRECT("Soybean_Meal!L"&BO2) -> 2020-01-21 | BU2: =INDIRECT("Soybean_Meal!M"&BO2) -> 15106 | BV2: =BV1+1 -> 2 | BW2: =INDIRECT("Wheat_HRW!H"&BV2) -> 2020-01-21 | BX2: =INDIRECT("Wheat_HRW!I"&BV2) -> 13380 | BY2: =INDIRECT("Wheat_HRW!J"&BV2) -> 2020-01-21 | BZ2: =INDIRECT("Wheat_HRW!K"&BV2) -> -20090 | CA2: =INDIRECT("Wheat_HRW!L"&BV2) -> 2020-01-21 | CB2: =INDIRECT("Wheat_HRW!M"&BV2) -> 6710 | CC2: =CC1+1 -> 2 | CD2: =INDIRECT("Rough_Rice!H"&CC2) -> 2020-01-21 | CE2: =INDIRECT("Rough_Rice!I"&CC2) -> 3162 | CF2: =INDIRECT("Rough_Rice!J"&CC2) -> 2020-01-21 | CG2: =INDIRECT("Rough_Rice!K"&CC2) -> -4248 | CH2: =INDIRECT("Rough_Rice!L"&CC2) -> 2020-01-21 | CI2: =INDIRECT("Rough_Rice!M"&CC2) -> 1086 | CJ2: =CJ1+1 -> 2 | CK2: =INDIRECT("Oats!H"&CJ2) -> 2020-01-21 | CL2: =INDIRECT("Oats!I"&CJ2) -> 2225 | CM2: =INDIRECT("Oats!J"&CJ2) -> 2020-01-21 | CN2: =INDIRECT("Oats!K"&CJ2) -> -2796 | CO2: =INDIRECT("Oats!L"&CJ2) -> 2020-01-21 | CP2: =INDIRECT("Oats!M"&CJ2) -> 571 | CQ2: =CQ1+1 -> 2 | CR2: =INDIRECT("Bloomberg_Cmdy_Index!H"&CQ2) -> 2020-01-21 | CS2: =INDIRECT("Bloomberg_Cmdy_Index!I"&CQ2) -> -6790 | CT2: =INDIRECT("Bloomberg_Cmdy_Index!J"&CQ2) -> 2020-01-21 | CU2: =INDIRECT("Bloomberg_Cmdy_Index!K"&CQ2) -> 6541 | CV2: =INDIRECT("Bloomberg_Cmdy_Index!L"&CQ2) -> 2020-01-21 | CW2: =INDIRECT("Bloomberg_Cmdy_Index!M"&CQ2) -> 249 | CX2: =CX1+1 -> 2 | CY2: =INDIRECT("'30_Day_Fed_Funds'!H"&CX2) -> 2020-01-21 | CZ2: =INDIRECT("'30_Day_Fed_Funds'!I"&CX2) -> 355945 | DA2: =INDIRECT("'30_Day_Fed_Funds'!J"&CX2) -> 2020-01-21 | DB2: =INDIRECT("'30_Day_Fed_Funds'!K"&CX2) -> -364005 | DC2: =INDIRECT("'30_Day_Fed_Funds'!L"&CX2) -> 2020-01-21 | DD2: =INDIRECT("'30_Day_Fed_Funds'!M"&CX2) -> 8060 | DE2: =DE1+1 -> 2 | DF2: =INDIRECT("'2_Yr_TNotes'!H"&DE2) -> 2020-01-21 | DG2: =INDIRECT("'2_Yr_TNotes'!I"&DE2) -> -321377 | DH2: =INDIRECT("'2_Yr_TNotes'!J"&DE2) -> 2020-01-21 | DI2: =INDIRECT("'2_Yr_TNotes'!K"&DE2) -> 237923 | DJ2: =INDIRECT("'2_Yr_TNotes'!L"&DE2) -> 2020-01-21 | DK2: =INDIRECT("'2_Yr_TNotes'!M"&DE2) -> 83454 | DL2: =DL1+1 -> 2 | DM2: =INDIRECT("'5_Yr_TNotes'!H"&DL2) -> 2020-01-21 | DN2: =INDIRECT("'5_Yr_TNotes'!I"&DL2) -> -266432 | DO2: =INDIRECT("'5_Yr_TNotes'!J"&DL2) -> 2020-01-21 | DP2: =INDIRECT("'5_Yr_TNotes'!K"&DL2) -> 242889 | DQ2: =INDIRECT("'5_Yr_TNotes'!L"&DL2) -> 2020-01-21 | DR2: =INDIRECT("'5_Yr_TNotes'!M"&DL2) -> 23543 | DS2: =DS1+1 -> 2 | DT2: =INDIRECT("'5_Yr_IR_Swaps'!H"&DS2) -> 2020-01-21 | DU2: =INDIRECT("'5_Yr_IR_Swaps'!I"&DS2) ->  | DV2: =INDIRECT("'5_Yr_IR_Swaps'!J"&DS2) -> 2020-01-21 | DW2: =INDIRECT("'5_Yr_IR_Swaps'!K"&DS2) ->  | DX2: =INDIRECT("'5_Yr_IR_Swaps'!L"&DS2) -> 2020-01-21 | DY2: =INDIRECT("'5_Yr_IR_Swaps'!M"&DS2) ->  | DZ2: =DZ1+1 -> 2 | EA2: =INDIRECT("'10_Yr_TNotes'!H"&DZ2) -> 2020-01-21 | EB2: =INDIRECT("'10_Yr_TNotes'!I"&DZ2) -> -302532 | EC2: =INDIRECT("'10_Yr_TNotes'!J"&DZ2) -> 2020-01-21 | ED2: =INDIRECT("'10_Yr_TNotes'!K"&DZ2) -> 302156 | EE2: =INDIRECT("'10_Yr_TNotes'!L"&DZ2) -> 2020-01-21 | EF2: =INDIRECT("'10_Yr_TNotes'!M"&DZ2) -> 376 | EG2: =EG1+1 -> 2 | EH2: =INDIRECT("Ultra_10_Yr_TNotes!H"&EG2) -> 2020-01-21 | EI2: =INDIRECT("Ultra_10_Yr_TNotes!I"&EG2) -> -40386 | EJ2: =INDIRECT("Ultra_10_Yr_TNotes!J"&EG2) -> 2020-01-21 | EK2: =INDIRECT("Ultra_10_Yr_TNotes!K"&EG2) -> 100885 | EL2: =INDIRECT("Ultra_10_Yr_TNotes!L"&EG2) -> 2020-01-21 | EM2: =INDIRECT("Ultra_10_Yr_TNotes!M"&EG2) -> -60499 | EN2: =EN1+1 -> 2 | EO2: =INDIRECT("'10_Yr_IR_Swaps'!H"&EN2) -> 2020-01-21 | EP2: =INDIRECT("'10_Yr_IR_Swaps'!I"&EN2) ->  | EQ2: =INDIRECT("'10_Yr_IR_Swaps'!J"&EN2) -> 2020-01-21 | ER2: =INDIRECT("'10_Yr_IR_Swaps'!K"&EN2) ->  | ES2: =INDIRECT("'10_Yr_IR_Swaps'!L"&EN2) -> 2020-01-21 | ET2: =INDIRECT("'10_Yr_IR_Swaps'!M"&EN2) ->  | EU2: =EU1+1 -> 2 | EV2: =INDIRECT("US_Treasury_Bonds!H"&EU2) -> 2020-01-21 | EW2: =INDIRECT("US_Treasury_Bonds!I"&EU2) -> -60412 | EX2: =INDIRECT("US_Treasury_Bonds!J"&EU2) -> 2020-01-21 | EY2: =INDIRECT("US_Treasury_Bonds!K"&EU2) -> 34034 | EZ2: =INDIRECT("US_Treasury_Bonds!L"&EU2) -> 2020-01-21 | FA2: =INDIRECT("US_Treasury_Bonds!M"&EU2) -> 26378 | FB2: =FB1+1 -> 2 | FC2: =INDIRECT("Ultra_Treasury_Bonds!H"&FB2) -> 2020-01-21 | FD2: =INDIRECT("Ultra_Treasury_Bonds!I"&FB2) -> -453959 | FE2: =INDIRECT("Ultra_Treasury_Bonds!J"&FB2) -> 2020-01-21 | FF2: =INDIRECT("Ultra_Treasury_Bonds!K"&FB2) -> 377925 | FG2: =INDIRECT("Ultra_Treasury_Bonds!L"&FB2) -> 2020-01-21 | FH2: =INDIRECT("Ultra_Treasury_Bonds!M"&FB2) -> 76034 | FI2: =FI1+1 -> 2 | FJ2: =INDIRECT("DJI_5!H"&FI2) -> 2020-01-21 | FK2: =INDIRECT("DJI_5!I"&FI2) -> 32061 | FL2: =INDIRECT("DJI_5!J"&FI2) -> 2020-01-21 | FM2: =INDIRECT("DJI_5!K"&FI2) -> -32530 | FN2: =INDIRECT("DJI_5!L"&FI2) -> 2020-01-21 | FO2: =INDIRECT("DJI_5!M"&FI2) -> 469
AM3: =AM2+1 -> 3 | AN3: 2020-01-14 | AO3: 35915 | AP3: 2020-01-14 | AQ3: -114310 | AR3: 2020-01-14 | AS3: 78395 | AT3: =AT2+1 -> 3 | AU3: 2020-01-14 | AV3: 34661 | AW3: 2020-01-14 | AX3: -25877 | AY3: 2020-01-14 | AZ3: -8784 | BA3: =BA2+1 -> 3 | BB3: 2020-01-14 | BC3: 38205 | BD3: 2020-01-14 | BE3: -22481 | BF3: 2020-01-14 | BG3: -15724 | BH3: =BH2+1 -> 3 | BI3: 2020-01-14 | BJ3: 133277 | BK3: 2020-01-14 | BL3: -145814 | BM3: 2020-01-14 | BN3: 12537 | BO3: =BO2+1 -> 3 | BP3: 2020-01-14 | BQ3: -5654 | BR3: 2020-01-14 | BS3: -11823 | BT3: 2020-01-14 | BU3: 17477 | BV3: =BV2+1 -> 3 | BW3: 2020-01-14 | BX3: 11805 | BY3: 2020-01-14 | BZ3: -18574 | CA3: 2020-01-14 | CB3: 6769 | CC3: =CC2+1 -> 3 | CD3: 2020-01-14 | CE3: 3124 | CF3: 2020-01-14 | CG3: -3998 | CH3: 2020-01-14 | CI3: 874 | CJ3: =CJ2+1 -> 3 | CK3: 2020-01-14 | CL3: 2034 | CM3: 2020-01-14 | CN3: -2660 | CO3: 2020-01-14 | CP3: 626 | CQ3: =CQ2+1 -> 3 | CR3: 2020-01-14 | CS3: -7050 | CT3: 2020-01-14 | CU3: 6838 | CV3: 2020-01-14 | CW3: 212 | CX3: =CX2+1 -> 3 | CY3: 2020-01-14 | CZ3: 397050 | DA3: 2020-01-14 | DB3: -412906 | DC3: 2020-01-14 | DD3: 15856 | DE3: =DE2+1 -> 3 | DF3: 2020-01-14 | DG3: -281692 | DH3: 2020-01-14 | DI3: 203743 | DJ3: 2020-01-14 | DK3: 77949 | DL3: =DL2+1 -> 3 | DM3: 2020-01-14 | DN3: -299441 | DO3: 2020-01-14 | DP3: 285010 | DQ3: 2020-01-14 | DR3: 14431 | DS3: =DS2+1 -> 3 | DT3: 2020-01-14 | DV3: 2020-01-14 | DX3: 2020-01-14 | DZ3: =DZ2+1 -> 3 | EA3: 2020-01-14 | EB3: -223573 | EC3: 2020-01-14 | ED3: 217766 | EE3: 2020-01-14 | EF3: 5807 | EG3: =EG2+1 -> 3 | EH3: 2020-01-14 | EI3: -30237 | EJ3: 2020-01-14 | EK3: 86448 | EL3: 2020-01-14 | EM3: -56211 | EN3: =EN2+1 -> 3 | EO3: 2020-01-14 | EQ3: 2020-01-14 | ES3: 2020-01-14 | EU3: =EU2+1 -> 3 | EV3: 2020-01-14 | EW3: -57177 | EX3: 2020-01-14 | EY3: 22219 | EZ3: 2020-01-14 | FA3: 34958 | FB3: =FB2+1 -> 3 | FC3: 2020-01-14 | FD3: -444310 | FE3: 2020-01-14 | FF3: 377105 | FG3: 2020-01-14 | FH3: 67205 | FI3: =FI2+1 -> 3 | FJ3: 2020-01-14 | FK3: 26746 | FL3: 2020-01-14 | FM3: -26869 | FN3: 2020-01-14 | FO3: 123
AM4: 4 | AN4: 2020-01-07 | AO4: 40231 | AP4: 2020-01-07 | AQ4: -128356 | AR4: 2020-01-07 | AS4: 88125 | AT4: 4 | AU4: 2020-01-07 | AV4: 28451 | AW4: 2020-01-07 | AX4: -19910 | AY4: 2020-01-07 | AZ4: -8541 | BA4: 4 | BB4: 2020-01-07 | BC4: 34326 | BD4: 2020-01-07 | BE4: -18707 | BF4: 2020-01-07 | BG4: -15619 | BH4: 4 | BI4: 2020-01-07 | BJ4: 129396 | BK4: 2020-01-07 | BL4: -139224 | BM4: 2020-01-07 | BN4: 9828 | BO4: 4 | BP4: 2020-01-07 | BQ4: 98 | BR4: 2020-01-07 | BS4: -17049 | BT4: 2020-01-07 | BU4: 16951 | BV4: 4 | BW4: 2020-01-07 | BX4: 8473 | BY4: 2020-01-07 | BZ4: -16971 | CA4: 2020-01-07 | CB4: 8498 | CC4: 4 | CD4: 2020-01-07 | CE4: 3484 | CF4: 2020-01-07 | CG4: -3984 | CH4: 2020-01-07 | CI4: 500 | CJ4: 4 | CK4: 2020-01-07 | CL4: 1687 | CM4: 2020-01-07 | CN4: -2444 | CO4: 2020-01-07 | CP4: 757 | CQ4: 4 | CR4: 2020-01-07 | CS4: -6399 | CT4: 2020-01-07 | CU4: 6171 | CV4: 2020-01-07 | CW4: 228 | CX4: 4 | CY4: 2020-01-07 | CZ4: 365613 | DA4: 2020-01-07 | DB4: -374882 | DC4: 2020-01-07 | DD4: 9269 | DE4: 4 | DF4: 2020-01-07 | DG4: -329579 | DH4: 2020-01-07 | DI4: 252765 | DJ4: 2020-01-07 | DK4: 76814 | DL4: 4 | DM4: 2020-01-07 | DN4: -298374 | DO4: 2020-01-07 | DP4: 276572 | DQ4: 2020-01-07 | DR4: 21802 | DS4: 4 | DT4: 2020-01-07 | DV4: 2020-01-07 | DX4: 2020-01-07 | DZ4: 4 | EA4: 2020-01-07 | EB4: -179230 | EC4: 2020-01-07 | ED4: 186487 | EE4: 2020-01-07 | EF4: -7257 | EG4: 4 | EH4: 2020-01-07 | EI4: -22601 | EJ4: 2020-01-07 | EK4: 82680 | EL4: 2020-01-07 | EM4: -60079 | EN4: 4 | EO4: 2020-01-07 | EQ4: 2020-01-07 | ES4: 2020-01-07 | EU4: 4 | EV4: 2020-01-07 | EW4: -98688 | EX4: 2020-01-07 | EY4: 47169 | EZ4: 2020-01-07 | FA4: 51519 | FB4: 4 | FC4: 2020-01-07 | FD4: -437432 | FE4: 2020-01-07 | FF4: 368294 | FG4: 2020-01-07 | FH4: 69138 | FI4: 4 | FJ4: 2020-01-07 | FK4: 23068 | FL4: 2020-01-07 | FM4: -23833 | FN4: 2020-01-07 | FO4: 765
AM5: 5 | AN5: 2019-12-31 | AO5: 36249 | AP5: 2019-12-31 | AQ5: -123145 | AR5: 2019-12-31 | AS5: 86896 | AT5: 5 | AU5: 2019-12-31 | AV5: 29579 | AW5: 2019-12-31 | AX5: -20251 | AY5: 2019-12-31 | AZ5: -9328 | BA5: 5 | BB5: 2019-12-31 | BC5: 34051 | BD5: 2019-12-31 | BE5: -19206 | BF5: 2019-12-31 | BG5: -14845 | BH5: 5 | BI5: 2019-12-31 | BJ5: 132986 | BK5: 2019-12-31 | BL5: -145179 | BM5: 2019-12-31 | BN5: 12193 | BO5: 5 | BP5: 2019-12-31 | BQ5: 4246 | BR5: 2019-12-31 | BS5: -20474 | BT5: 2019-12-31 | BU5: 16228 | BV5: 5 | BW5: 2019-12-31 | BX5: 8448 | BY5: 2019-12-31 | BZ5: -16448 | CA5: 2019-12-31 | CB5: 8000 | CC5: 5 | CD5: 2019-12-31 | CE5: 2977 | CF5: 2019-12-31 | CG5: -3879 | CH5: 2019-12-31 | CI5: 902 | CJ5: 5 | CK5: 2019-12-31 | CM5: 2019-12-31 | CO5: 2019-12-31 | CQ5: 5 | CR5: 2019-12-31 | CS5: -5934 | CT5: 2019-12-31 | CU5: 5559 | CV5: 2019-12-31 | CW5: 375 | CX5: 5 | CY5: 2019-12-31 | CZ5: 336074 | DA5: 2019-12-31 | DB5: -346991 | DC5: 2019-12-31 | DD5: 10917 | DE5: 5 | DF5: 2019-12-31 | DG5: -319327 | DH5: 2019-12-31 | DI5: 257182 | DJ5: 2019-12-31 | DK5: 62145 | DL5: 5 | DM5: 2019-12-31 | DN5: -297890 | DO5: 2019-12-31 | DP5: 316587 | DQ5: 2019-12-31 | DR5: -18697 | DS5: 5 | DT5: 2019-12-31 | DV5: 2019-12-31 | DX5: 2019-12-31 | DZ5: 5 | EA5: 2019-12-31 | EB5: -234750 | EC5: 2019-12-31 | ED5: 253088 | EE5: 2019-12-31 | EF5: -18338 | EG5: 5 | EH5: 2019-12-31 | EI5: -3575 | EJ5: 2019-12-31 | EK5: 80572 | EL5: 2019-12-31 | EM5: -76997 | EN5: 5 | EO5: 2019-12-31 | EQ5: 2019-12-31 | ES5: 2019-12-31 | EU5: 5 | EV5: 2019-12-31 | EW5: -97086 | EX5: 2019-12-31 | EY5: 59369 | EZ5: 2019-12-31 | FA5: 37717 | FB5: 5 | FC5: 2019-12-31 | FD5: -420514 | FE5: 2019-12-31 | FF5: 353219 | FG5: 2019-12-31 | FH5: 67295 | FI5: 5 | FJ5: 2019-12-31 | FK5: 26184 | FL5: 2019-12-31 | FM5: -26596 | FN5: 2019-12-31 | FO5: 412
AM6: 6 | AN6: 2019-12-24 | AO6: 26634 | AP6: 2019-12-24 | AQ6: -120459 | AR6: 2019-12-24 | AS6: 93825 | AT6: 6 | AU6: 2019-12-24 | AV6: 19241 | AW6: 2019-12-24 | AX6: -15478 | AY6: 2019-12-24 | AZ6: -3763 | BA6: 6 | BB6: 2019-12-24 | BC6: 28076 | BD6: 2019-12-24 | BE6: -14529 | BF6: 2019-12-24 | BG6: -13547 | BH6: 6 | BI6: 2019-12-24 | BJ6: 138675 | BK6: 2019-12-24 | BL6: -149228 | BM6: 2019-12-24 | BN6: 10553 | BO6: 6 | BP6: 2019-12-24 | BQ6: 6211 | BR6: 2019-12-24 | BS6: -24017 | BT6: 2019-12-24 | BU6: 17806 | BV6: 6 | BW6: 2019-12-24 | BX6: 5268 | BY6: 2019-12-24 | BZ6: -13343 | CA6: 2019-12-24 | CB6: 8075 | CC6: 6 | CD6: 2019-12-24 | CE6: 2430 | CF6: 2019-12-24 | CG6: -3318 | CH6: 2019-12-24 | CI6: 888 | CJ6: 6 | CK6: 2019-12-24 | CL6: 1789 | CM6: 2019-12-24 | CN6: -2613 | CO6: 2019-12-24 | CP6: 824 | CQ6: 6 | CR6: 2019-12-24 | CS6: -5699 | CT6: 2019-12-24 | CU6: 5477 | CV6: 2019-12-24 | CW6: 222 | CX6: 6 | CY6: 2019-12-24 | CZ6: 343874 | DA6: 2019-12-24 | DB6: -351855 | DC6: 2019-12-24 | DD6: 7981 | DE6: 6 | DF6: 2019-12-24 | DG6: -272214 | DH6: 2019-12-24 | DI6: 205653 | DJ6: 2019-12-24 | DK6: 66561 | DL6: 6 | DM6: 2019-12-24 | DN6: -325982 | DO6: 2019-12-24 | DP6: 344251 | DQ6: 2019-12-24 | DR6: -18269 | DS6: 6 | DT6: 2019-12-24 | DV6: 2019-12-24 | DX6: 2019-12-24 | DZ6: 6 | EA6: 2019-12-24 | EB6: -268686 | EC6: 2019-12-24 | ED6: 266190 | EE6: 2019-12-24 | EF6: 2496 | EG6: 6 | EH6: 2019-12-24 | EI6: 4634 | EJ6: 2019-12-24 | EK6: 75841 | EL6: 2019-12-24 | EM6: -80475 | EN6: 6 | EO6: 2019-12-24 | EQ6: 2019-12-24 | ES6: 2019-12-24 | EU6: 6 | EV6: 2019-12-24 | EW6: -110123 | EX6: 2019-12-24 | EY6: 70124 | EZ6: 2019-12-24 | FA6: 39999 | FB6: 6 | FC6: 2019-12-24 | FD6: -409502 | FE6: 2019-12-24 | FF6: 339107 | FG6: 2019-12-24 | FH6: 70395 | FI6: 6 | FJ6: 2019-12-24 | FK6: 25751 | FL6: 2019-12-24 | FM6: -23506 | FN6: 2019-12-24 | FO6: -2245
B7: =IF(ISTEXT(Sheet4!D4),"",IFERROR(Sheet4!D4,"Symbol")) ->  | D7: =IFERROR(Sheet4!D4,"") -> Total | F7: =IFERROR(Sheet4!E4,"") -> Reportable Positions | N7: =IFERROR(Sheet4!L4,"") -> Nonreportable | Q7: 7 | R7: 3 | S7: 2018 | U7: =IF(ISTEXT(Sheet5!D4),"",IFERROR(Sheet5!D4,"Symbol")) ->  | W7: =IFERROR(Sheet5!D4,"") -> Total | Y7: =IFERROR(Sheet5!E4,"") -> Reportable Positions | AG7: =IFERROR(Sheet5!L4,"") -> Nonreportable | AJ7: 11 | AK7: 6 | AL7: 2018 | AM7: 7 | AN7: 2019-12-17 | AO7: 2668 | AP7: 2019-12-17 | AQ7: -97714 | AR7: 2019-12-17 | AS7: 95046 | AT7: 7 | AU7: 2019-12-17 | AV7: -16995 | AW7: 2019-12-17 | AX7: 16356 | AY7: 2019-12-17 | AZ7: 639 | BA7: 7 | BB7: 2019-12-17 | BC7: 40119 | BD7: 2019-12-17 | BE7: -24652 | BF7: 2019-12-17 | BG7: -15467 | BH7: 7 | BI7: 2019-12-17 | BJ7: 128147 | BK7: 2019-12-17 | BL7: -141214 | BM7: 2019-12-17 | BN7: 13067 | BO7: 7 | BP7: 2019-12-17 | BQ7: -739 | BR7: 2019-12-17 | BS7: -21127 | BT7: 2019-12-17 | BU7: 21866 | BV7: 7 | BW7: 2019-12-17 | BX7: 7325 | BY7: 2019-12-17 | BZ7: -15935 | CA7: 2019-12-17 | CB7: 8610 | CC7: 7 | CD7: 2019-12-17 | CE7: 1440 | CF7: 2019-12-17 | CG7: -2467 | CH7: 2019-12-17 | CI7: 1027 | CJ7: 7 | CK7: 2019-12-17 | CL7: 2572 | CM7: 2019-12-17 | CN7: -3332 | CO7: 2019-12-17 | CP7: 760 | CQ7: 7 | CR7: 2019-12-17 | CS7: -4929 | CT7: 2019-12-17 | CU7: 5093 | CV7: 2019-12-17 | CW7: -164 | CX7: 7 | CY7: 2019-12-17 | CZ7: 332942 | DA7: 2019-12-17 | DB7: -342855 | DC7: 2019-12-17 | DD7: 9913 | DE7: 7 | DF7: 2019-12-17 | DG7: -326747 | DH7: 2019-12-17 | DI7: 252642 | DJ7: 2019-12-17 | DK7: 74105 | DL7: 7 | DM7: 2019-12-17 | DN7: -390323 | DO7: 2019-12-17 | DP7: 402694 | DQ7: 2019-12-17 | DR7: -12371 | DS7: 7 | DT7: 2019-12-17 | DV7: 2019-12-17 | DX7: 2019-12-17 | DZ7: 7 | EA7: 2019-12-17 | EB7: -245337 | EC7: 2019-12-17 | ED7: 253862 | EE7: 2019-12-17 | EF7: -8525 | EG7: 7 | EH7: 2019-12-17 | EI7: 6988 | EJ7: 2019-12-17 | EK7: 73036 | EL7: 2019-12-17 | EM7: -80024 | EN7: 7 | EO7: 2019-12-17 | EQ7: 2019-12-17 | ES7: 2019-12-17 | EU7: 7 | EV7: 2019-12-17 | EW7: -100119 | EX7: 2019-12-17 | EY7: 51731 | EZ7: 2019-12-17 | FA7: 48388 | FB7: 7 | FC7: 2019-12-17 | FD7: -405043 | FE7: 2019-12-17 | FF7: 329046 | FG7: 2019-12-17 | FH7: 75997 | FI7: 7 | FJ7: 2019-12-17 | FK7: 21914 | FL7: 2019-12-17 | FM7: -20818 | FN7: 2019-12-17 | FO7: -1096
B8: =IF(ISTEXT(Sheet4!D4),"",IFERROR(Sheet4!D4,"Error")) ->  | N8: =IFERROR(Sheet4!L5,"") -> Positions | Q8: SOYBEANS | U8: =IF(ISTEXT(Sheet5!D4),"",IFERROR(Sheet5!D4,"Error")) ->  | AG8: =IFERROR(Sheet5!L5,"") -> Positions | AJ8: SOYBEANS | AM8: 8 | AN8: 2019-12-10 | AO8: -17821 | AP8: 2019-12-10 | AQ8: -80699 | AR8: 2019-12-10 | AS8: 98520 | AT8: 8 | AU8: 2019-12-10 | AV8: -43497 | AW8: 2019-12-10 | AX8: 42418 | AY8: 2019-12-10 | AZ8: 1079 | BA8: 8 | BB8: 2019-12-10 | BC8: 24237 | BD8: 2019-12-10 | BE8: -11656 | BF8: 2019-12-10 | BG8: -12581 | BH8: 8 | BI8: 2019-12-10 | BJ8: 98383 | BK8: 2019-12-10 | BL8: -112921 | BM8: 2019-12-10 | BN8: 14538 | BO8: 8 | BP8: 2019-12-10 | BQ8: -5999 | BR8: 2019-12-10 | BS8: -13428 | BT8: 2019-12-10 | BU8: 19427 | BV8: 8 | BW8: 2019-12-10 | BX8: -7203 | BY8: 2019-12-10 | BZ8: -1742 | CA8: 2019-12-10 | CB8: 8945 | CC8: 8 | CD8: 2019-12-10 | CE8: 1238 | CF8: 2019-12-10 | CG8: -2144 | CH8: 2019-12-10 | CI8: 906 | CJ8: 8 | CK8: 2019-12-10 | CL8: 2687 | CM8: 2019-12-10 | CN8: -3446 | CO8: 2019-12-10 | CP8: 759 | CQ8: 8 | CR8: 2019-12-10 | CS8: -5200 | CT8: 2019-12-10 | CU8: 4993 | CV8: 2019-12-10 | CW8: 207 | CX8: 8 | CY8: 2019-12-10 | CZ8: 269093 | DA8: 2019-12-10 | DB8: -274032 | DC8: 2019-12-10 | DD8: 4939 | DE8: 8 | DF8: 2019-12-10 | DG8: -341164 | DH8: 2019-12-10 | DI8: 260521 | DJ8: 2019-12-10 | DK8: 80643 | DL8: 8 | DM8: 2019-12-10 | DN8: -307800 | DO8: 2019-12-10 | DP8: 316338 | DQ8: 2019-12-10 | DR8: -8538 | DS8: 8 | DT8: 2019-12-10 | DV8: 2019-12-10 | DX8: 2019-12-10 | DZ8: 8 | EA8: 2019-12-10 | EB8: -178921 | EC8: 2019-12-10 | ED8: 217135 | EE8: 2019-12-10 | EF8: -38214 | EG8: 8 | EH8: 2019-12-10 | EI8: 33907 | EJ8: 2019-12-10 | EK8: 34150 | EL8: 2019-12-10 | EM8: -68057 | EN8: 8 | EO8: 2019-12-10 | EQ8: 2019-12-10 | ES8: 2019-12-10 | EU8: 8 | EV8: 2019-12-10 | EW8: -107054 | EX8: 2019-12-10 | EY8: 65880 | EZ8: 2019-12-10 | FA8: 41174 | FB8: 8 | FC8: 2019-12-10 | FD8: -384666 | FE8: 2019-12-10 | FF8: 309962 | FG8: 2019-12-10 | FH8: 74704 | FI8: 8 | FJ8: 2019-12-10 | FK8: 20754 | FL8: 2019-12-10 | FM8: -20686 | FN8: 2019-12-10 | FO8: -68
D9: =IFERROR(Sheet4!D6,"") -> Open | F9: =IFERROR(Sheet4!E6,"") -> Non-Commercial | I9: =IFERROR(Sheet4!H6,"") -> Commercial | K9: =IFERROR(Sheet4!J6,"") -> Total | Q9: =IFERROR(LEFT(B14,23),"") -> Changes in Commitments | W9: =IFERROR(Sheet5!D6,"") -> Open | Y9: =IFERROR(Sheet5!E6,"") -> Non-Commercial | AB9: =IFERROR(Sheet5!H6,"") -> Commercial | AD9: =IFERROR(Sheet5!J6,"") -> Total | AJ9: =IFERROR(LEFT(U14,23),"") -> Changes in Commitments | AM9: 9 | AN9: 2019-12-03 | AO9: -1936 | AP9: 2019-12-03 | AQ9: -86245 | AR9: 2019-12-03 | AS9: 88181 | AT9: 9 | AU9: 2019-12-03 | AV9: -26143 | AW9: 2019-12-03 | AX9: 28263 | AY9: 2019-12-03 | AZ9: -2120 | BA9: 9 | BB9: 2019-12-03 | BC9: 27740 | BD9: 2019-12-03 | BE9: -15782 | BF9: 2019-12-03 | BG9: -11958 | BH9: 9 | BI9: 2019-12-03 | BJ9: 79997 | BK9: 2019-12-03 | BL9: -89860 | BM9: 2019-12-03 | BN9: 9863 | BO9: 9 | BP9: 2019-12-03 | BQ9: -18504 | BR9: 2019-12-03 | BS9: 1026 | BT9: 2019-12-03 | BU9: 17478 | BV9: 9 | BW9: 2019-12-03 | BX9: 1341 | BY9: 2019-12-03 | BZ9: -8447 | CA9: 2019-12-03 | CB9: 7106 | CC9: 9 | CD9: 2019-12-03 | CE9: 916 | CF9: 2019-12-03 | CG9: -1709 | CH9: 2019-12-03 | CI9: 793 | CJ9: 9 | CK9: 2019-12-03 | CL9: 3213 | CM9: 2019-12-03 | CN9: -3885 | CO9: 2019-12-03 | CP9: 672 | CQ9: 9 | CR9: 2019-12-03 | CS9: -4594 | CT9: 2019-12-03 | CU9: 4326 | CV9: 2019-12-03 | CW9: 268 | CX9: 9 | CY9: 2019-12-03 | CZ9: 244326 | DA9: 2019-12-03 | DB9: -255067 | DC9: 2019-12-03 | DD9: 10741 | DE9: 9 | DF9: 2019-12-03 | DG9: -368806 | DH9: 2019-12-03 | DI9: 288352 | DJ9: 2019-12-03 | DK9: 80454 | DL9: 9 | DM9: 2019-12-03 | DN9: -292462 | DO9: 2019-12-03 | DP9: 299555 | DQ9: 2019-12-03 | DR9: -7093 | DS9: 9 | DT9: 2019-12-03 | DV9: 2019-12-03 | DX9: 2019-12-03 | DZ9: 9 | EA9: 2019-12-03 | EB9: -221895 | EC9: 2019-12-03 | ED9: 241919 | EE9: 2019-12-03 | EF9: -20024 | EG9: 9 | EH9: 2019-12-03 | EI9: 16483 | EJ9: 2019-12-03 | EK9: 45435 | EL9: 2019-12-03 | EM9: -61918 | EN9: 9 | EO9: 2019-12-03 | EQ9: 2019-12-03 | ES9: 2019-12-03 | EU9: 9 | EV9: 2019-12-03 | EW9: -90445 | EX9: 2019-12-03 | EY9: 56274 | EZ9: 2019-12-03 | FA9: 34171 | FB9: 9 | FC9: 2019-12-03 | FD9: -362546 | FE9: 2019-12-03 | FF9: 296133 | FG9: 2019-12-03 | FH9: 66413 | FI9: 9 | FJ9: 2019-12-03 | FK9: 25390 | FL9: 2019-12-03 | FM9: -25255 | FN9: 2019-12-03 | FO9: -135
D10: =IFERROR(Sheet4!D7,"") -> Interest | F10: =IFERROR(Sheet4!E7,"") -> Long | G10: =IFERROR(Sheet4!F7,"") -> Short | H10: =IFERROR(LEFT(Sheet4!G7,7),"") -> Spread | I10: =IFERROR(Sheet4!H7,"") -> Long | J10: =IFERROR(Sheet4!I7,"") -> Short | K10: =IFERROR(Sheet4!J7,"") -> Long | L10: =IFERROR(Sheet4!K7,"") -> Short | N10: =IFERROR(Sheet4!L7,"") -> Long | O10: =IFERROR(Sheet4!M7,"") -> Short | Q10: =IFERROR((RIGHT(B14,LEN(B14)-FIND("~",SUBSTITUTE(B14,"nts","~",1))-3)),"") -> from: January 21, 2020 | W10: =IFERROR(Sheet5!D7,"") -> Interest | Y10: =IFERROR(Sheet5!E7,"") -> Long | Z10: =IFERROR(Sheet5!F7,"") -> Short | AA10: =IFERROR(LEFT(Sheet5!G7,7),"") -> Spread | AB10: =IFERROR(Sheet5!H7,"") -> Long | AC10: =IFERROR(Sheet5!I7,"") -> Short | AD10: =IFERROR(Sheet5!J7,"") -> Long | AE10: =IFERROR(Sheet5!K7,"") -> Short | AG10: =IFERROR(Sheet5!L7,"") -> Long | AH10: =IFERROR(Sheet5!M7,"") -> Short | AJ10: =IFERROR((RIGHT(U14,LEN(U14)-FIND("~",SUBSTITUTE(U14,"nts","~",1))-3)),"") -> from: October 30, 2018 | AM10: 10 | AN10: 2019-11-26 | AO10: -37462 | AP10: 2019-11-26 | AQ10: -50520 | AR10: 2019-11-26 | AS10: 87982 | AT10: 10 | AU10: 2019-11-26 | AV10: 13867 | AW10: 2019-11-26 | AX10: -12217 | AY10: 2019-11-26 | AZ10: -1650 | BA10: 10 | BB10: 2019-11-26 | BC10: 20438 | BD10: 2019-11-26 | BE10: -5996 | BF10: 2019-11-26 | BG10: -14442 | BH10: 10 | BI10: 2019-11-26 | BJ10: 86624 | BK10: 2019-11-26 | BL10: -98102 | BM10: 2019-11-26 | BN10: 11478 | BO10: 10 | BP10: 2019-11-26 | BQ10: -7174 | BR10: 2019-11-26 | BS10: -8515 | BT10: 2019-11-26 | BU10: 15689 | BV10: 10 | BW10: 2019-11-26 | BX10: -1482 | BY10: 2019-11-26 | BZ10: -4059 | CA10: 2019-11-26 | CB10: 5541 | CC10: 10 | CD10: 2019-11-26 | CE10: -231 | CF10: 2019-11-26 | CG10: -301 | CH10: 2019-11-26 | CI10: 532 | CJ10: 10 | CK10: 2019-11-26 | CL10: 3264 | CM10: 2019-11-26 | CN10: -3457 | CO10: 2019-11-26 | CP10: 193 | CQ10: 10 | CR10: 2019-11-26 | CS10: -4304 | CT10: 2019-11-26 | CU10: 4059 | CV10: 2019-11-26 | CW10: 245 | CX10: 10 | CY10: 2019-11-26 | CZ10: 312416 | DA10: 2019-11-26 | DB10: -318007 | DC10: 2019-11-26 | DD10: 5591 | DE10: 10 | DF10: 2019-11-26 | DG10: -279069 | DH10: 2019-11-26 | DI10: 284153 | DJ10: 2019-11-26 | DK10: -5084 | DL10: 10 | DM10: 2019-11-26 | DN10: -262443 | DO10: 2019-11-26 | DP10: 248832 | DQ10: 2019-11-26 | DR10: 13611 | DS10: 10 | DT10: 2019-11-26 | DV10: 2019-11-26 | DX10: 2019-11-26 | DZ10: 10 | EA10: 2019-11-26 | EB10: -145745 | EC10: 2019-11-26 | ED10: 125305 | EE10: 2019-11-26 | EF10: 20440 | EG10: 10 | EH10: 2019-11-26 | EI10: 19336 | EJ10: 2019-11-26 | EK10: 32776 | EL10: 2019-11-26 | EM10: -52112 | EN10: 10 | EO10: 2019-11-26 | EQ10: 2019-11-26 | ES10: 2019-11-26 | EU10: 10 | EV10: 2019-11-26 | EW10: -71388 | EX10: 2019-11-26 | EY10: 38792 | EZ10: 2019-11-26 | FA10: 32596 | FB10: 10 | FC10: 2019-11-26 | FD10: -346996 | FE10: 2019-11-26 | FF10: 268842 | FG10: 2019-11-26 | FH10: 78154 | FI10: 10 | FJ10: 2019-11-26 | FK10: 30729 | FL10: 2019-11-26 | FM10: -30144 | FN10: 2019-11-26 | FO10: -585
B11: =IFERROR(Sheet4!C11,"") -> All | D11: =IFERROR(Sheet4!D11,"") -> 818168 | F11: =IFERROR(Sheet4!E11,"") -> 134,873 | G11: =IFERROR(Sheet4!F11,"") -> 141,169 | H11: =IFERROR(Sheet4!G11,"") -> 184,694 | I11: =IFERROR(Sheet4!H11,"") -> 441,346 | J11: =IFERROR(Sheet4!I11,"") -> 425,408 | K11: =IFERROR(Sheet4!J11,"") -> 760,913 | L11: =IFERROR(Sheet4!K11,"") -> 751,271 | N11: =IFERROR(Sheet4!L11,"") -> 57,255 | O11: =IFERROR(Sheet4!M11,"") -> 66,897 | Q11: =F9 -> Non-Commercial | U11: =IFERROR(Sheet5!C11,"") -> All | W11: =IFERROR(Sheet5!D11,"") -> 749701 | Y11: =IFERROR(Sheet5!E11,"") -> 135,508 | Z11: =IFERROR(Sheet5!F11,"") -> 169,521 | AA11: =IFERROR(Sheet5!G11,"") -> 165,237 | AB11: =IFERROR(Sheet5!H11,"") -> 394,362 | AC11: =IFERROR(Sheet5!I11,"") -> 326,165 | AD11: =IFERROR(Sheet5!J11,"") -> 695,107 | AE11: =IFERROR(Sheet5!K11,"") -> 660,923 | AG11: =IFERROR(Sheet5!L11,"") -> 54,594 | AH11: =IFERROR(Sheet5!M11,"") -> 88,778 | AJ11: =Y9 -> Non-Commercial | AM11: 11 | AN11: 2019-11-19 | AO11: -26494 | AP11: 2019-11-19 | AQ11: -55156 | AR11: 2019-11-19 | AS11: 81650 | AT11: 11 | AU11: 2019-11-19 | AV11: 59914 | AW11: 2019-11-19 | AX11: -55283 | AY11: 2019-11-19 | AZ11: -4631 | BA11: 11 | BB11: 2019-11-19 | BC11: 13379 | BD11: 2019-11-19 | BE11: 3578 | BF11: 2019-11-19 | BG11: -16957 | BH11: 11 | BI11: 2019-11-19 | BJ11: 92793 | BK11: 2019-11-19 | BL11: -105665 | BM11: 2019-11-19 | BN11: 12872 | BO11: 11 | BP11: 2019-11-19 | BQ11: 8576 | BR11: 2019-11-19 | BS11: -28568 | BT11: 2019-11-19 | BU11: 19992 | BV11: 11 | BW11: 2019-11-19 | BX11: -6789 | BY11: 2019-11-19 | BZ11: -1384 | CA11: 2019-11-19 | CB11: 8173 | CC11: 11 | CD11: 2019-11-19 | CE11: -398 | CF11: 2019-11-19 | CG11: -35 | CH11: 2019-11-19 | CI11: 433 | CJ11: 11 | CK11: 2019-11-19 | CL11: 2580 | CM11: 2019-11-19 | CN11: -3048 | CO11: 2019-11-19 | CP11: 468 | CQ11: 11 | CR11: 2019-11-19 | CS11: -4113 | CT11: 2019-11-19 | CU11: 3915 | CV11: 2019-11-19 | CW11: 198 | CX11: 11 | CY11: 2019-11-19 | CZ11: 293457 | DA11: 2019-11-19 | DB11: -294272 | DC11: 2019-11-19 | DD11: 815 | DE11: 11 | DF11: 2019-11-19 | DG11: -263061 | DH11: 2019-11-19 | DI11: 180039 | DJ11: 2019-11-19 | DK11: 83022 | DL11: 11 | DM11: 2019-11-19 | DN11: -250861 | DO11: 2019-11-19 | DP11: 249310 | DQ11: 2019-11-19 | DR11: 1551 | DS11: 11 | DT11: 2019-11-19 | DV11: 2019-11-19 | DX11: 2019-11-19 | DZ11: 11 | EA11: 2019-11-19 | EB11: -183524 | EC11: 2019-11-19 | ED11: 182638 | EE11: 2019-11-19 | EF11: 886 | EG11: 11 | EH11: 2019-11-19 | EI11: 928 | EJ11: 2019-11-19 | EK11: 57207 | EL11: 2019-11-19 | EM11: -58135 | EN11: 11 | EO11: 2019-11-19 | EQ11: 2019-11-19 | ES11: 2019-11-19 | EU11: 11 | EV11: 2019-11-19 | EW11: -47732 | EX11: 2019-11-19 | EY11: 24102 | EZ11: 2019-11-19 | FA11: 23630 | FB11: 11 | FC11: 2019-11-19 | FD11: -340142 | FE11: 2019-11-19 | FF11: 274688 | FG11: 2019-11-19 | FH11: 65454 | FI11: 11 | FJ11: 2019-11-19 | FK11: 31129 | FL11: 2019-11-19 | FM11: -30288 | FN11: 2019-11-19 | FO11: -841
B12: =IFERROR(Sheet4!C12,"") -> Old | D12: =IFERROR(Sheet4!D12,"") -> 660248 | F12: =IFERROR(Sheet4!E12,"") -> 133,574 | G12: =IFERROR(Sheet4!F12,"") -> 153,243 | H12: =IFERROR(Sheet4!G12,"") -> 109,150 | I12: =IFERROR(Sheet4!H12,"") -> 369,645 | J12: =IFERROR(Sheet4!I12,"") -> 345,935 | K12: =IFERROR(Sheet4!J12,"") -> 612,369 | L12: =IFERROR(Sheet4!K12,"") -> 608,328 | N12: =IFERROR(Sheet4!L12,"") -> 47,879 | O12: =IFERROR(Sheet4!M12,"") -> 51,920 | Q12: =F10 -> Long | R12: =F15 -> 10178 | S12: =R12 -> 10178 | U12: =IFERROR(Sheet5!C12,"") -> Old | W12: =IFERROR(Sheet5!D12,"") -> 705884 | Y12: =IFERROR(Sheet5!E12,"") -> 139,806 | Z12: =IFERROR(Sheet5!F12,"") -> 157,996 | AA12: =IFERROR(Sheet5!G12,"") -> 148,515 | AB12: =IFERROR(Sheet5!H12,"") -> 368,285 | AC12: =IFERROR(Sheet5!I12,"") -> 319,121 | AD12: =IFERROR(Sheet5!J12,"") -> 656,606 | AE12: =IFERROR(Sheet5!K12,"") -> 625,632 | AG12: =IFERROR(Sheet5!L12,"") -> 49,278 | AH12: =IFERROR(Sheet5!M12,"") -> 80,252 | AJ12: =Y10 -> Long | AK12: =Y15 -> 261 | AL12: =AK12 -> 261 | AM12: 12 | AN12: 2019-11-12 | AO12: -31986 | AP12: 2019-11-12 | AQ12: -49552 | AR12: 2019-11-12 | AS12: 81538 | AT12: 12 | AU12: 2019-11-12 | AV12: 68334 | AW12: 2019-11-12 | AX12: -60950 | AY12: 2019-11-12 | AZ12: -7384 | BA12: 12 | BB12: 2019-11-12 | BC12: 11379 | BD12: 2019-11-12 | BE12: 2694 | BF12: 2019-11-12 | BG12: -14073 | BH12: 12 | BI12: 2019-11-12 | BJ12: 95586 | BK12: 2019-11-12 | BL12: -108320 | BM12: 2019-11-12 | BN12: 12734 | BO12: 12 | BP12: 2019-11-12 | BQ12: 3174 | BR12: 2019-11-12 | BS12: -23428 | BT12: 2019-11-12 | BU12: 20254 | BV12: 12 | BW12: 2019-11-12 | BX12: -2476 | BY12: 2019-11-12 | BZ12: -5091 | CA12: 2019-11-12 | CB12: 7567 | CC12: 12 | CD12: 2019-11-12 | CE12: -37 | CF12: 2019-11-12 | CG12: -427 | CH12: 2019-11-12 | CI12: 464 | CJ12: 12 | CK12: 2019-11-12 | CL12: 2570 | CM12: 2019-11-12 | CN12: -3160 | CO12: 2019-11-12 | CP12: 590 | CQ12: 12 | CR12: 2019-11-12 | CS12: -4062 | CT12: 2019-11-12 | CU12: 3829 | CV12: 2019-11-12 | CW12: 233 | CX12: 12 | CY12: 2019-11-12 | CZ12: 258319 | DA12: 2019-11-12 | DB12: -262708 | DC12: 2019-11-12 | DD12: 4389 | DE12: 12 | DF12: 2019-11-12 | DG12: -149775 | DH12: 2019-11-12 | DI12: 75095 | DJ12: 2019-11-12 | DK12: 74680 | DL12: 12 | DM12: 2019-11-12 | DN12: -296342 | DO12: 2019-11-12 | DP12: 305177 | DQ12: 2019-11-12 | DR12: -8835 | DS12: 12 | DT12: 2019-11-12 | DV12: 2019-11-12 | DX12: 2019-11-12 | DZ12: 12 | EA12: 2019-11-12 | EB12: -148794 | EC12: 2019-11-12 | ED12: 188050 | EE12: 2019-11-12 | EF12: -39256 | EG12: 12 | EH12: 2019-11-12 | EI12: 27987 | EJ12: 2019-11-12 | EK12: 26310 | EL12: 2019-11-12 | EM12: -54297 | EN12: 12 | EO12: 2019-11-12 | EQ12: 2019-11-12 | ES12: 2019-11-12 | EU12: 12 | EV12: 2019-11-12 | EW12: -45397 | EX12: 2019-11-12 | EY12: 19865 | EZ12: 2019-11-12 | FA12: 25532 | FB12: 12 | FC12: 2019-11-12 | FD12: -326477 | FE12: 2019-11-12 | FF12: 262183 | FG12: 2019-11-12 | FH12: 64294 | FI12: 12 | FJ12: 2019-11-12 | FK12: 37800 | FL12: 2019-11-12 | FM12: -36174 | FN12: 2019-11-12 | FO12: -1626
B13: =IFERROR(Sheet4!C13,"") -> Other | D13: =IFERROR(Sheet4!D13,"") -> 157,920 | F13: =IFERROR(Sheet4!E13,"") -> 38,292 | G13: =IFERROR(Sheet4!F13,"") -> 24,919 | H13: =IFERROR(Sheet4!G13,"") -> 38,551 | I13: =IFERROR(Sheet4!H13,"") -> 71,701 | J13: =IFERROR(Sheet4!I13,"") -> 79,473 | K13: =IFERROR(Sheet4!J13,"") -> 148,544 | L13: =IFERROR(Sheet4!K13,"") -> 142,943 | N13: =IFERROR(Sheet4!L13,"") -> 9,376 | O13: =IFERROR(Sheet4!M13,"") -> 14,977 | Q13: =G10 -> Short | R13: =G15 -> 34118 | S13: =R13 -> 34118 | U13: =IFERROR(Sheet5!C13,"") -> Other | W13: =IFERROR(Sheet5!D13,"") -> 43,817 | Y13: =IFERROR(Sheet5!E13,"") -> 10,075 | Z13: =IFERROR(Sheet5!F13,"") -> 25,898 | AA13: =IFERROR(Sheet5!G13,"") -> 2,349 | AB13: =IFERROR(Sheet5!H13,"") -> 26,077 | AC13: =IFERROR(Sheet5!I13,"") -> 7,044 | AD13: =IFERROR(Sheet5!J13,"") -> 38,501 | AE13: =IFERROR(Sheet5!K13,"") -> 35,291 | AG13: =IFERROR(Sheet5!L13,"") -> 5,316 | AH13: =IFERROR(Sheet5!M13,"") -> 8,526 | AJ13: =Z10 -> Short | AK13: =Z15 -> -29941 | AL13: =AK13 -> -29941 | AM13: 13 | AN13: 2019-11-05 | AO13: -25987 | AP13: 2019-11-05 | AQ13: -54017 | AR13: 2019-11-05 | AS13: 80004 | AT13: 13 | AU13: 2019-11-05 | AV13: 91933 | AW13: 2019-11-05 | AX13: -86627 | AY13: 2019-11-05 | AZ13: -5306 | BA13: 13 | BB13: 2019-11-05 | BC13: 11118 | BD13: 2019-11-05 | BE13: 1062 | BF13: 2019-11-05 | BG13: -12180 | BH13: 13 | BI13: 2019-11-05 | BJ13: 94719 | BK13: 2019-11-05 | BL13: -106457 | BM13: 2019-11-05 | BN13: 11738 | BO13: 13 | BP13: 2019-11-05 | BQ13: -12136 | BR13: 2019-11-05 | BS13: -6572 | BT13: 2019-11-05 | BU13: 18708 | BV13: 13 | BW13: 2019-11-05 | BX13: -13987 | BY13: 2019-11-05 | BZ13: 4569 | CA13: 2019-11-05 | CB13: 9418 | CC13: 13 | CD13: 2019-11-05 | CE13: -18 | CF13: 2019-11-05 | CG13: -399 | CH13: 2019-11-05 | CI13: 417 | CJ13: 13 | CK13: 2019-11-05 | CL13: 2473 | CM13: 2019-11-05 | CN13: -3084 | CO13: 2019-11-05 | CP13: 611 | CQ13: 13 | CR13: 2019-11-05 | CS13: -4034 | CT13: 2019-11-05 | CU13: 4120 | CV13: 2019-11-05 | CW13: -86 | CX13: 13 | CY13: 2019-11-05 | CZ13: 158636 | DA13: 2019-11-05 | DB13: -162412 | DC13: 2019-11-05 | DD13: 3776 | DE13: 13 | DF13: 2019-11-05 | DG13: -148441 | DH13: 2019-11-05 | DI13: 52806 | DJ13: 2019-11-05 | DK13: 95635 | DL13: 13 | DM13: 2019-11-05 | DN13: -308244 | DO13: 2019-11-05 | DP13: 331529 | DQ13: 2019-11-05 | DR13: -23285 | DS13: 13 | DT13: 2019-11-05 | DV13: 2019-11-05 | DX13: 2019-11-05 | DZ13: 13 | EA13: 2019-11-05 | EB13: -231456 | EC13: 2019-11-05 | ED13: 240121 | EE13: 2019-11-05 | EF13: -8665 | EG13: 13 | EH13: 2019-11-05 | EI13: 41847 | EJ13: 2019-11-05 | EK13: 7484 | EL13: 2019-11-05 | EM13: -49331 | EN13: 13 | EO13: 2019-11-05 | EQ13: 2019-11-05 | ES13: 2019-11-05 | EU13: 13 | EV13: 2019-11-05 | EW13: -54567 | EX13: 2019-11-05 | EY13: 31915 | EZ13: 2019-11-05 | FA13: 22652 | FB13: 13 | FC13: 2019-11-05 | FD13: -299828 | FE13: 2019-11-05 | FF13: 230810 | FG13: 2019-11-05 | FH13: 69018 | FI13: 13 | FJ13: 2019-11-05 | FK13: 39087 | FL13: 2019-11-05 | FM13: -38840 | FN13: 2019-11-05 | FO13: -247
B14: =IFERROR(Sheet4!C15,"") -> Changes in Commitments from: January 21, 2020 | Q14: =H10 -> Spread | R14: =H15 -> 13315 | S14: 13315 | U14: =IFERROR(Sheet5!C15,"") -> Changes in Commitments from: October 30, 2018 | AJ14: =AA10 -> Spread | AK14: =AA15 -> 1354 | AL14: 1354 | AM14: 14 | AN14: 2019-10-29 | AO14: -8053 | AP14: 2019-10-29 | AQ14: -70398 | AR14: 2019-10-29 | AS14: 78451 | AT14: 14 | AU14: 2019-10-29 | AV14: 102683 | AW14: 2019-10-29 | AX14: -101927 | AY14: 2019-10-29 | AZ14: -756 | BA14: 14 | BB14: 2019-10-29 | BC14: 16857 | BD14: 2019-10-29 | BE14: -4239 | BF14: 2019-10-29 | BG14: -12618 | BH14: 14 | BI14: 2019-10-29 | BJ14: 89979 | BK14: 2019-10-29 | BL14: -101380 | BM14: 2019-10-29 | BN14: 11401 | BO14: 14 | BP14: 2019-10-29 | BQ14: -4096 | BR14: 2019-10-29 | BS14: -15772 | BT14: 2019-10-29 | BU14: 19868 | BV14: 14 | BW14: 2019-10-29 | BX14: -8823 | BY14: 2019-10-29 | BZ14: -641 | CA14: 2019-10-29 | CB14: 9464 | CC14: 14 | CD14: 2019-10-29 | CE14: -535 | CF14: 2019-10-29 | CG14: 87 | CH14: 2019-10-29 | CI14: 448 | CJ14: 14 | CK14: 2019-10-29 | CL14: 2524 | CM14: 2019-10-29 | CN14: -3096 | CO14: 2019-10-29 | CP14: 572 | CQ14: 14 | CR14: 2019-10-29 | CS14: -4224 | CT14: 2019-10-29 | CU14: 4010 | CV14: 2019-10-29 | CW14: 214 | CX14: 14 | CY14: 2019-10-29 | CZ14: 191049 | DA14: 2019-10-29 | DB14: -183851 | DC14: 2019-10-29 | DD14: -7198 | DE14: 14 | DF14: 2019-10-29 | DG14: -182701 | DH14: 2019-10-29 | DI14: 100250 | DJ14: 2019-10-29 | DK14: 82451 | DL14: 14 | DM14: 2019-10-29 | DN14: -129310 | DO14: 2019-10-29 | DP14: 116101 | DQ14: 2019-10-29 | DR14: 13209 | DS14: 14 | DT14: 2019-10-29 | DV14: 2019-10-29 | DX14: 2019-10-29 | DZ14: 14 | EA14: 2019-10-29 | EB14: -116066 | EC14: 2019-10-29 | ED14: 125228 | EE14: 2019-10-29 | EF14: -9162 | EG14: 14 | EH14: 2019-10-29 | EI14: 44581 | EJ14: 2019-10-29 | EK14: 4926 | EL14: 2019-10-29 | EM14: -49507 | EN14: 14 | EO14: 2019-10-29 | EQ14: 2019-10-29 | ES14: 2019-10-29 | EU14: 14 | EV14: 2019-10-29 | EW14: -23123 | EX14: 2019-10-29 | EY14: -15624 | EZ14: 2019-10-29 | FA14: 38747 | FB14: 14 | FC14: 2019-10-29 | FD14: -283206 | FE14: 2019-10-29 | FF14: 204090 | FG14: 2019-10-29 | FH14: 79116 | FI14: 14 | FJ14: 2019-10-29 | FK14: 40358 | FL14: 2019-10-29 | FM14: -40836 | FN14: 2019-10-29 | FO14: 478
D15: =IFERROR(Sheet4!D16*1,"") -> 45492 | F15: =IFERROR(Sheet4!E16*1,"") -> 10178 | G15: =IFERROR(Sheet4!F16*1,"") -> 34118 | H15: =IFERROR(Sheet4!G16*1,"") -> 13315 | I15: =IFERROR(Sheet4!H16*1,"") -> 24319 | J15: =IFERROR(Sheet4!I16*1,"") -> -19 | K15: =IFERROR(Sheet4!J16*1,"") -> 47812 | L15: =IFERROR(Sheet4!K16*1,"") -> 47414 | N15: =IFERROR(Sheet4!L16*1,"") -> -2320 | O15: =IFERROR(Sheet4!M16*1,"") -> -1922 | Q15: =I9 -> Commercial | W15: =IFERROR(Sheet5!D16*1,"") -> -8645 | Y15: =IFERROR(Sheet5!E16*1,"") -> 261 | Z15: =IFERROR(Sheet5!F16*1,"") -> -29941 | AA15: =IFERROR(Sheet5!G16*1,"") -> 1354 | AB15: =IFERROR(Sheet5!H16*1,"") -> -9543 | AC15: =IFERROR(Sheet5!I16*1,"") -> 20881 | AD15: =IFERROR(Sheet5!J16*1,"") -> -7928 | AE15: =IFERROR(Sheet5!K16*1,"") -> -7706 | AG15: =IFERROR(Sheet5!L16*1,"") -> -717 | AH15: =IFERROR(Sheet5!M16*1,"") -> -939 | AJ15: =AB9 -> Commercial | AM15: 15 | AN15: 2019-10-22 | AO15: -11379 | AP15: 2019-10-22 | AQ15: -66608 | AR15: 2019-10-22 | AS15: 77987 | AT15: 15 | AU15: 2019-10-22 | AV15: 91456 | AW15: 2019-10-22 | AX15: -89450 | AY15: 2019-10-22 | AZ15: -2006 | BA15: 15 | BB15: 2019-10-22 | BC15: 21831 | BD15: 2019-10-22 | BE15: -10126 | BF15: 2019-10-22 | BG15: -11705 | BH15: 15 | BI15: 2019-10-22 | BJ15: 84888 | BK15: 2019-10-22 | BL15: -96592 | BM15: 2019-10-22 | BN15: 11704 | BO15: 15 | BP15: 2019-10-22 | BQ15: 2816 | BR15: 2019-10-22 | BS15: -19010 | BT15: 2019-10-22 | BU15: 16194 | BV15: 15 | BW15: 2019-10-22 | BX15: -4084 | BY15: 2019-10-22 | BZ15: -3880 | CA15: 2019-10-22 | CB15: 7964 | CC15: 15 | CD15: 2019-10-22 | CE15: 762 | CF15: 2019-10-22 | CG15: -1519 | CH15: 2019-10-22 | CI15: 757 | CJ15: 15 | CK15: 2019-10-22 | CL15: 2599 | CM15: 2019-10-22 | CN15: -3217 | CO15: 2019-10-22 | CP15: 618 | CQ15: 15 | CR15: 2019-10-22 | CS15: -4171 | CT15: 2019-10-22 | CU15: 3983 | CV15: 2019-10-22 | CW15: 188 | CX15: 15 | CY15: 2019-10-22 | CZ15: 220139 | DA15: 2019-10-22 | DB15: -215341 | DC15: 2019-10-22 | DD15: -4798 | DE15: 15 | DF15: 2019-10-22 | DG15: -224187 | DH15: 2019-10-22 | DI15: 132622 | DJ15: 2019-10-22 | DK15: 91565 | DL15: 15 | DM15: 2019-10-22 | DN15: -218746 | DO15: 2019-10-22 | DP15: 148909 | DQ15: 2019-10-22 | DR15: 69837 | DS15: 15 | DT15: 2019-10-22 | DV15: 2019-10-22 | DX15: 2019-10-22 | DZ15: 15 | EA15: 2019-10-22 | EB15: -84353 | EC15: 2019-10-22 | ED15: 63012 | EE15: 2019-10-22 | EF15: 21341 | EG15: 15 | EH15: 2019-10-22 | EI15: 43370 | EJ15: 2019-10-22 | EK15: 7420 | EL15: 2019-10-22 | EM15: -50790 | EN15: 15 | EO15: 2019-10-22 | EQ15: 2019-10-22 | ES15: 2019-10-22 | EU15: 15 | EV15: 2019-10-22 | EW15: -46269 | EX15: 2019-10-22 | EY15: 8719 | EZ15: 2019-10-22 | FA15: 37550 | FB15: 15 | FC15: 2019-10-22 | FD15: -274758 | FE15: 2019-10-22 | FF15: 174889 | FG15: 2019-10-22 | FH15: 99869 | FI15: 15 | FJ15: 2019-10-22 | FK15: 39809 | FL15: 2019-10-22 | FM15: -40728 | FN15: 2019-10-22 | FO15: 919
B16: =IFERROR(Sheet4!C18,"") -> Percent of Open Interest Represented by Each Category of Trader | Q16: =I10 -> Long | R16: =I15 -> 24319 | S16: 24319 | U16: =IFERROR(Sheet5!C18,"") -> Percent of Open Interest Represented by Each Category of Trader | AJ16: =AB10 -> Long | AK16: =AB15 -> -9543 | AL16: =AK16 -> -9543 | AM16: 16 | AN16: 2019-10-15 | AO16: 3347 | AP16: 2019-10-15 | AQ16: -78103 | AR16: 2019-10-15 | AS16: 74756 | AT16: 16 | AU16: 2019-10-15 | AV16: 81798 | AW16: 2019-10-15 | AX16: -87843 | AY16: 2019-10-15 | AZ16: 6045 | BA16: 16 | BB16: 2019-10-15 | BC16: 5048 | BD16: 2019-10-15 | BE16: 8911 | BF16: 2019-10-15 | BG16: -13959 | BH16: 16 | BI16: 2019-10-15 | BJ16: 64782 | BK16: 2019-10-15 | BL16: -39590 | BM16: 2019-10-15 | BN16: -25192 | BO16: 16 | BP16: 2019-10-15 | BQ16: 3089 | BR16: 2019-10-15 | BS16: -832 | BT16: 2019-10-15 | BU16: -2257 | BV16: 16 | BW16: 2019-10-15 | BX16: 248 | BY16: 2019-10-15 | BZ16: -10500 | CA16: 2019-10-15 | CB16: 10252 | CC16: 16 | CD16: 2019-10-15 | CE16: 593 | CF16: 2019-10-15 | CG16: -1485 | CH16: 2019-10-15 | CI16: 892 | CJ16: 16 | CK16: 2019-10-15 | CL16: 2493 | CM16: 2019-10-15 | CN16: -3332 | CO16: 2019-10-15 | CP16: 839 | CQ16: 16 | CR16: 2019-10-15 | CS16: -4112 | CT16: 2019-10-15 | CU16: 3931 | CV16: 2019-10-15 | CW16: 181 | CX16: 16 | CY16: 2019-10-15 | CZ16: 204876 | DA16: 2019-10-15 | DB16: -200426 | DC16: 2019-10-15 | DD16: -4450 | DE16: 16 | DF16: 2019-10-15 | DG16: -240746 | DH16: 2019-10-15 | DI16: 145108 | DJ16: 2019-10-15 | DK16: 95638 | DL16: 16 | DM16: 2019-10-15 | DN16: -209851 | DO16: 2019-10-15 | DP16: 145289 | DQ16: 2019-10-15 | DR16: 64562 | DS16: 16 | DT16: 2019-10-15 | DV16: 2019-10-15 | DX16: 2019-10-15 | DZ16: 16 | EA16: 2019-10-15 | EB16: -99692 | EC16: 2019-10-15 | ED16: 39989 | EE16: 2019-10-15 | EF16: 59703 | EG16: 16 | EH16: 2019-10-15 | EI16: 40048 | EJ16: 2019-10-15 | EK16: 6505 | EL16: 2019-10-15 | EM16: -46553 | EN16: 16 | EO16: 2019-10-15 | EQ16: 2019-10-15 | ES16: 2019-10-15 | EU16: 16 | EV16: 2019-10-15 | EW16: -55025 | EX16: 2019-10-15 | EY16: 16891 | EZ16: 2019-10-15 | FA16: 38134 | FB16: 16 | FC16: 2019-10-15 | FD16: -280908 | FE16: 2019-10-15 | FF16: 187131 | FG16: 2019-10-15 | FH16: 93777 | FI16: 16 | FJ16: 2019-10-15 | FK16: 38516 | FL16: 2019-10-15 | FM16: -38348 | FN16: 2019-10-15 | FO16: -168
B17: =IFERROR(Sheet4!C19,"") -> All | D17: =IFERROR(Sheet4!D19,"") -> 100 | F17: =IFERROR(Sheet4!E19,"") -> 16.5 | G17: =IFERROR(Sheet4!F19,"") -> 17.3 | H17: =IFERROR(Sheet4!G19,"") -> 22.6 | I17: =IFERROR(Sheet4!H19,"") -> 53.9 | J17: =IFERROR(Sheet4!I19,"") -> 52.0 | K17: =IFERROR(Sheet4!J19,"") -> 93.0 | L17: =IFERROR(Sheet4!K19,"") -> 91.8 | N17: =IFERROR(Sheet4!L19,"") -> 7.0 | O17: =IFERROR(Sheet4!M19,"") -> 8.2 | Q17: =J10 -> Short | R17: =J15 -> -19 | S17: -19 | U17: =IFERROR(Sheet5!C19,"") -> All | W17: =IFERROR(Sheet5!D19,"") -> 100 | Y17: =IFERROR(Sheet5!E19,"") -> 18.1 | Z17: =IFERROR(Sheet5!F19,"") -> 22.6 | AA17: =IFERROR(Sheet5!G19,"") -> 22.0 | AB17: =IFERROR(Sheet5!H19,"") -> 52.6 | AC17: =IFERROR(Sheet5!I19,"") -> 43.5 | AD17: =IFERROR(Sheet5!J19,"") -> 92.7 | AE17: =IFERROR(Sheet5!K19,"") -> 88.2 | AG17: =IFERROR(Sheet5!L19,"") -> 7.3 | AH17: =IFERROR(Sheet5!M19,"") -> 11.8 | AJ17: =AC10 -> Short | AK17: =AC15 -> 20881 | AL17: 20881 | AM17: 17 | AN17: 2019-10-08 | AO17: -4262 | AP17: 2019-10-08 | AQ17: -82924 | AR17: 2019-10-08 | AS17: 87186 | AT17: 17 | AU17: 2019-10-08 | AV17: 41421 | AW17: 2019-10-08 | AX17: -40606 | AY17: 2019-10-08 | AZ17: -815 | BA17: 17 | BB17: 2019-10-08 | BC17: -3399 | BD17: 2019-10-08 | BE17: 16026 | BF17: 2019-10-08 | BG17: -12627 | BH17: 17 | BI17: 2019-10-08 | BJ17: 45295 | BK17: 2019-10-08 | BL17: -54740 | BM17: 2019-10-08 | BN17: 9445 | BO17: 17 | BP17: 2019-10-08 | BQ17: -6371 | BR17: 2019-10-08 | BS17: -16893 | BT17: 2019-10-08 | BU17: 23264 | BV17: 17 | BW17: 2019-10-08 | BX17: -11731 | BY17: 2019-10-08 | BZ17: 748 | CA17: 2019-10-08 | CB17: 10983 | CC17: 17 | CD17: 2019-10-08 | CE17: 751 | CF17: 2019-10-08 | CG17: -1666 | CH17: 2019-10-08 | CI17: 915 | CJ17: 17 | CK17: 2019-10-08 | CL17: 2071 | CM17: 2019-10-08 | CN17: -3094 | CO17: 2019-10-08 | CP17: 1023 | CQ17: 17 | CR17: 2019-10-08 | CS17: -3278 | CT17: 2019-10-08 | CU17: 3095 | CV17: 2019-10-08 | CW17: 183 | CX17: 17 | CY17: 2019-10-08 | CZ17: 137028 | DA17: 2019-10-08 | DB17: -134736 | DC17: 2019-10-08 | DD17: -2292 | DE17: 17 | DF17: 2019-10-08 | DG17: -262856 | DH17: 2019-10-08 | DI17: 150392 | DJ17: 2019-10-08 | DK17: 112464 | DL17: 17 | DM17: 2019-10-08 | DN17: -152975 | DO17: 2019-10-08 | DP17: 127175 | DQ17: 2019-10-08 | DR17: 25800 | DS17: 17 | DT17: 2019-10-08 | DV17: 2019-10-08 | DX17: 2019-10-08 | DZ17: 17 | EA17: 2019-10-08 | EB17: -122560 | EC17: 2019-10-08 | ED17: 68361 | EE17: 2019-10-08 | EF17: 54199 | EG17: 17 | EH17: 2019-10-08 | EI17: 49562 | EJ17: 2019-10-08 | EK17: -5 | EL17: 2019-10-08 | EM17: -49557 | EN17: 17 | EO17: 2019-10-08 | EQ17: 2019-10-08 | ES17: 2019-10-08 | EU17: 17 | EV17: 2019-10-08 | EW17: -76699 | EX17: 2019-10-08 | EY17: 32939 | EZ17: 2019-10-08 | FA17: 43760 | FB17: 17 | FC17: 2019-10-08 | FD17: -278324 | FE17: 2019-10-08 | FF17: 183927 | FG17: 2019-10-08 | FH17: 94397 | FI17: 17 | FJ17: 2019-10-08 | FK17: 37824 | FL17: 2019-10-08 | FM17: -38122 | FN17: 2019-10-08 | FO17: 298
B18: =IFERROR(Sheet4!C20,"") -> Old | D18: =IFERROR(Sheet4!D20,"") -> 100 | F18: =IFERROR(Sheet4!E20,"") -> 20.2 | G18: =IFERROR(Sheet4!F20,"") -> 23.2 | H18: =IFERROR(Sheet4!G20,"") -> 16.5 | I18: =IFERROR(Sheet4!H20,"") -> 56.0 | J18: =IFERROR(Sheet4!I20,"") -> 52.4 | K18: =IFERROR(Sheet4!J20,"") -> 92.7 | L18: =IFERROR(Sheet4!K20,"") -> 92.1 | N18: =IFERROR(Sheet4!L20,"") -> 7.3 | O18: =IFERROR(Sheet4!M20,"") -> 7.9 | Q18: =K9 -> Total | U18: =IFERROR(Sheet5!C20,"") -> Old | W18: =IFERROR(Sheet5!D20,"") -> 100 | Y18: =IFERROR(Sheet5!E20,"") -> 19.8 | Z18: =IFERROR(Sheet5!F20,"") -> 22.4 | AA18: =IFERROR(Sheet5!G20,"") -> 21.0 | AB18: =IFERROR(Sheet5!H20,"") -> 52.2 | AC18: =IFERROR(Sheet5!I20,"") -> 45.2 | AD18: =IFERROR(Sheet5!J20,"") -> 93.0 | AE18: =IFERROR(Sheet5!K20,"") -> 88.6 | AG18: =IFERROR(Sheet5!L20,"") -> 7.0 | AH18: =IFERROR(Sheet5!M20,"") -> 11.4 | AJ18: =AD9 -> Total | AM18: 18 | AN18: 2019-10-01 | AO18: -14006 | AP18: 2019-10-01 | AQ18: -74904 | AR18: 2019-10-01 | AS18: 88910 | AT18: 18 | AU18: 2019-10-01 | AV18: 38765 | AW18: 2019-10-01 | AX18: -33401 | AY18: 2019-10-01 | AZ18: -5364 | BA18: 18 | BB18: 2019-10-01 | BC18: 3724 | BD18: 2019-10-01 | BE18: 9694 | BF18: 2019-10-01 | BG18: -13418 | BH18: 18 | BI18: 2019-10-01 | BJ18: 40323 | BK18: 2019-10-01 | BL18: -50615 | BM18: 2019-10-01 | BN18: 10292 | BO18: 18 | BP18: 2019-10-01 | BQ18: -7238 | BR18: 2019-10-01 | BS18: -15706 | BT18: 2019-10-01 | BU18: 22944 | BV18: 18 | BW18: 2019-10-01 | BX18: -6053 | BY18: 2019-10-01 | BZ18: -3610 | CA18: 2019-10-01 | CB18: 9663 | CC18: 18 | CD18: 2019-10-01 | CE18: 1429 | CF18: 2019-10-01 | CG18: -2145 | CH18: 2019-10-01 | CI18: 716 | CJ18: 18 | CK18: 2019-10-01 | CL18: 1716 | CM18: 2019-10-01 | CN18: -2743 | CO18: 2019-10-01 | CP18: 1027 | CQ18: 18 | CR18: 2019-10-01 | CS18: -3087 | CT18: 2019-10-01 | CU18: 2845 | CV18: 2019-10-01 | CW18: 242 | CX18: 18 | CY18: 2019-10-01 | CZ18: 192345 | DA18: 2019-10-01 | DB18: -185468 | DC18: 2019-10-01 | DD18: -6877 | DE18: 18 | DF18: 2019-10-01 | DG18: -32814 | DH18: 2019-10-01 | DI18: -90586 | DJ18: 2019-10-01 | DK18: 123400 | DL18: 18 | DM18: 2019-10-01 | DN18: -9539 | DO18: 2019-10-01 | DP18: 2871 | DQ18: 2019-10-01 | DR18: 6668 | DS18: 18 | DT18: 2019-10-01 | DV18: 2019-10-01 | DX18: 2019-10-01 | DZ18: 18 | EA18: 2019-10-01 | EB18: -163610 | EC18: 2019-10-01 | ED18: 91721 | EE18: 2019-10-01 | EF18: 71889 | EG18: 18 | EH18: 2019-10-01 | EI18: -8728 | EJ18: 2019-10-01 | EK18: 55935 | EL18: 2019-10-01 | EM18: -47207 | EN18: 18 | EO18: 2019-10-01 | EQ18: 2019-10-01 | ES18: 2019-10-01 | EU18: 18 | EV18: 2019-10-01 | EW18: -72037 | EX18: 2019-10-01 | EY18: 39948 | EZ18: 2019-10-01 | FA18: 32089 | FB18: 18 | FC18: 2019-10-01 | FD18: -272242 | FE18: 2019-10-01 | FF18: 190931 | FG18: 2019-10-01 | FH18: 81311 | FI18: 18 | FJ18: 2019-10-01 | FK18: 45884 | FL18: 2019-10-01 | FM18: -43870 | FN18: 2019-10-01 | FO18: -2014
B19: =IFERROR(Sheet4!C21,"") -> Other | D19: =IFERROR(Sheet4!D21,"") -> 100 | F19: =IFERROR(Sheet4!E21,"") -> 24.2 | G19: =IFERROR(Sheet4!F21,"") -> 15.8 | H19: =IFERROR(Sheet4!G21,"") -> 24.4 | I19: =IFERROR(Sheet4!H21,"") -> 45.4 | J19: =IFERROR(Sheet4!I21,"") -> 50.3 | K19: =IFERROR(Sheet4!J21,"") -> 94.1 | L19: =IFERROR(Sheet4!K21,"") -> 90.5 | N19: =IFERROR(Sheet4!L21,"") -> 5.9 | O19: =IFERROR(Sheet4!M21,"") -> 9.5 | Q19: =K10 -> Long | R19: =K15 -> 47812 | S19: 47812 | U19: =IFERROR(Sheet5!C21,"") -> Other | W19: =IFERROR(Sheet5!D21,"") -> 100 | Y19: =IFERROR(Sheet5!E21,"") -> 23.0 | Z19: =IFERROR(Sheet5!F21,"") -> 59.1 | AA19: =IFERROR(Sheet5!G21,"") -> 5.4 | AB19: =IFERROR(Sheet5!H21,"") -> 59.5 | AC19: =IFERROR(Sheet5!I21,"") -> 16.1 | AD19: =IFERROR(Sheet5!J21,"") -> 87.9 | AE19: =IFERROR(Sheet5!K21,"") -> 80.5 | AG19: =IFERROR(Sheet5!L21,"") -> 12.1 | AH19: =IFERROR(Sheet5!M21,"") -> 19.5 | AJ19: =AD10 -> Long | AK19: =AD15 -> -7928 | AL19: =AK19 -> -7928 | AM19: 19 | AN19: 2019-09-24 | AO19: -41921 | AP19: 2019-09-24 | AQ19: -51962 | AR19: 2019-09-24 | AS19: 93883 | AT19: 19 | AU19: 2019-09-24 | AV19: 1235 | AW19: 2019-09-24 | AX19: 5253 | AY19: 2019-09-24 | AZ19: -6488 | BA19: 19 | BB19: 2019-09-24 | BC19: 8811 | BD19: 2019-09-24 | BE19: 4176 | BF19: 2019-09-24 | BG19: -12987 | BH19: 19 | BI19: 2019-09-24 | BJ19: 48133 | BK19: 2019-09-24 | BL19: -56909 | BM19: 2019-09-24 | BN19: 8776 | BO19: 19 | BP19: 2019-09-24 | BQ19: -19007 | BR19: 2019-09-24 | BS19: -2884 | BT19: 2019-09-24 | BU19: 21891 | BV19: 19 | BW19: 2019-09-24 | BX19: -11677 | BY19: 2019-09-24 | BZ19: 3091 | CA19: 2019-09-24 | CB19: 8586 | CC19: 19 | CD19: 2019-09-24 | CE19: 1298 | CF19: 2019-09-24 | CG19: -1927 | CH19: 2019-09-24 | CI19: 629 | CJ19: 19 | CK19: 2019-09-24 | CL19: 1919 | CM19: 2019-09-24 | CN19: -2908 | CO19: 2019-09-24 | CP19: 989 | CQ19: 19 | CR19: 2019-09-24 | CS19: -3015 | CT19: 2019-09-24 | CU19: 2876 | CV19: 2019-09-24 | CW19: 139 | CX19: 19 | CY19: 2019-09-24 | CZ19: 200078 | DA19: 2019-09-24 | DB19: -176590 | DC19: 2019-09-24 | DD19: -23488 | DE19: 19 | DF19: 2019-09-24 | DG19: -126907 | DH19: 2019-09-24 | DI19: 38459 | DJ19: 2019-09-24 | DK19: 88448 | DL19: 19 | DM19: 2019-09-24 | DN19: -72968 | DO19: 2019-09-24 | DP19: 79093 | DQ19: 2019-09-24 | DR19: -6125 | DS19: 19 | DT19: 2019-09-24 | DV19: 2019-09-24 | DX19: 2019-09-24 | DZ19: 19 | EA19: 2019-09-24 | EB19: -196306 | EC19: 2019-09-24 | ED19: 127868 | EE19: 2019-09-24 | EF19: 68438 | EG19: 19 | EH19: 2019-09-24 | EI19: -16716 | EJ19: 2019-09-24 | EK19: 58750 | EL19: 2019-09-24 | EM19: -42034 | EN19: 19 | EO19: 2019-09-24 | EQ19: 2019-09-24 | ES19: 2019-09-24 | EU19: 19 | EV19: 2019-09-24 | EW19: -58314 | EX19: 2019-09-24 | EY19: 31141 | EZ19: 2019-09-24 | FA19: 27173 | FB19: 19 | FC19: 2019-09-24 | FD19: -272541 | FE19: 2019-09-24 | FF19: 174078 | FG19: 2019-09-24 | FH19: 98463 | FI19: 19 | FJ19: 2019-09-24 | FK19: 46338 | FL19: 2019-09-24 | FM19: -44070 | FN19: 2019-09-24 | FO19: -2268
B20: =IFERROR(Sheet4!C23,"") -> Number of Traders in Each Category | Q20: =L10 -> Short | R20: =L15 -> 47414 | S20: 47414 | U20: =IFERROR(Sheet5!C23,"") -> Number of Traders in Each Category | AJ20: =AE10 -> Short | AK20: =AE15 -> -7706 | AL20: -7706 | AM20: 20 | AN20: 2019-09-17 | AO20: -38740 | AP20: 2019-09-17 | AQ20: -60653 | AR20: 2019-09-17 | AS20: 99393 | AT20: 20 | AU20: 2019-09-17 | AV20: -9796 | AW20: 2019-09-17 | AX20: 18033 | AY20: 2019-09-17 | AZ20: -8237 | BA20: 20 | BB20: 2019-09-17 | BC20: 13003 | BD20: 2019-09-17 | BE20: 996 | BF20: 2019-09-17 | BG20: -13999 | BH20: 20 | BI20: 2019-09-17 | BJ20: 46549 | BK20: 2019-09-17 | BL20: -58049 | BM20: 2019-09-17 | BN20: 11500 | BO20: 20 | BP20: 2019-09-17 | BQ20: -23000 | BR20: 2019-09-17 | BS20: 4984 | BT20: 2019-09-17 | BU20: 18016 | BV20: 20 | BW20: 2019-09-17 | BX20: -13246 | BY20: 2019-09-17 | BZ20: 4772 | CA20: 2019-09-17 | CB20: 8474 | CC20: 20 | CD20: 2019-09-17 | CE20: 337 | CF20: 2019-09-17 | CG20: -1224 | CH20: 2019-09-17 | CI20: 887 | CJ20: 20 | CK20: 2019-09-17 | CL20: 1998 | CM20: 2019-09-17 | CN20: -3008 | CO20: 2019-09-17 | CP20: 1010 | CQ20: 20 | CR20: 2019-09-17 | CS20: -4318 | CT20: 2019-09-17 | CU20: 4370 | CV20: 2019-09-17 | CW20: -52 | CX20: 20 | CY20: 2019-09-17 | CZ20: 195358 | DA20: 2019-09-17 | DB20: -194173 | DC20: 2019-09-17 | DD20: -1185 | DE20: 20 | DF20: 2019-09-17 | DG20: -159535 | DH20: 2019-09-17 | DI20: 66076 | DJ20: 2019-09-17 | DK20: 93459 | DL20: 20 | DM20: 2019-09-17 | DN20: -165377 | DO20: 2019-09-17 | DP20: 190012 | DQ20: 2019-09-17 | DR20: -24635 | DS20: 20 | DT20: 2019-09-17 | DV20: 2019-09-17 | DX20: 2019-09-17 | DZ20: 20 | EA20: 2019-09-17 | EB20: -229963 | EC20: 2019-09-17 | ED20: 197395 | EE20: 2019-09-17 | EF20: 32568 | EG20: 20 | EH20: 2019-09-17 | EI20: -13870 | EJ20: 2019-09-17 | EK20: 58380 | EL20: 2019-09-17 | EM20: -44510 | EN20: 20 | EO20: 2019-09-17 | EQ20: 2019-09-17 | ES20: 2019-09-17 | EU20: 20 | EV20: 2019-09-17 | EW20: -46240 | EX20: 2019-09-17 | EY20: 11102 | EZ20: 2019-09-17 | FA20: 35138 | FB20: 20 | FC20: 2019-09-17 | FD20: -293709 | FE20: 2019-09-17 | FF20: 195949 | FG20: 2019-09-17 | FH20: 97760 | FI20: 20 | FJ20: 2019-09-17 | FK20: 43809 | FL20: 2019-09-17 | FM20: -42722 | FN20: 2019-09-17 | FO20: -1087
B21: =IFERROR(Sheet4!C24,"") -> All | D21: =IFERROR(Sheet4!D24,"") -> 575 | F21: =IFERROR(Sheet4!E24,"") -> 161 | G21: =IFERROR(Sheet4!F24,"") -> 119 | H21: =IFERROR(Sheet4!G24,"") -> 172 | I21: =IFERROR(Sheet4!H24,"") -> 176 | J21: =IFERROR(Sheet4!I24,"") -> 210 | K21: =IFERROR(Sheet4!J24,"") -> 425 | L21: =IFERROR(Sheet4!K24,"") -> 441 | Q21: =N7 -> Nonreportable | U21: =IFERROR(Sheet5!C24,"") -> All | W21: =IFERROR(Sheet5!D24,"") -> 573 | Y21: =IFERROR(Sheet5!E24,"") -> 127 | Z21: =IFERROR(Sheet5!F24,"") -> 168 | AA21: =IFERROR(Sheet5!G24,"") -> 159 | AB21: =IFERROR(Sheet5!H24,"") -> 169 | AC21: =IFERROR(Sheet5!I24,"") -> 209 | AD21: =IFERROR(Sheet5!J24,"") -> 405 | AE21: =IFERROR(Sheet5!K24,"") -> 445 | AJ21: =AG7 -> Nonreportable | AM21: 21 | AN21: 2019-09-10 | AO21: -7478 | AP21: 2019-09-10 | AQ21: -82153 | AR21: 2019-09-10 | AS21: 89631 | AT21: 21 | AU21: 2019-09-10 | AV21: -46627 | AW21: 2019-09-10 | AX21: 55163 | AY21: 2019-09-10 | AZ21: -8536 | BA21: 21 | BB21: 2019-09-10 | BC21: 9329 | BD21: 2019-09-10 | BE21: 4879 | BF21: 2019-09-10 | BG21: -14208 | BH21: 21 | BI21: 2019-09-10 | BJ21: 17153 | BK21: 2019-09-10 | BL21: -27573 | BM21: 2019-09-10 | BN21: 10420 | BO21: 21 | BP21: 2019-09-10 | BQ21: -17015 | BR21: 2019-09-10 | BS21: -809 | BT21: 2019-09-10 | BU21: 17824 | BV21: 21 | BW21: 2019-09-10 | BX21: -17246 | BY21: 2019-09-10 | BZ21: 7840 | CA21: 2019-09-10 | CB21: 9406 | CC21: 21 | CD21: 2019-09-10 | CE21: -481 | CF21: 2019-09-10 | CG21: -160 | CH21: 2019-09-10 | CI21: 641 | CJ21: 21 | CK21: 2019-09-10 | CL21: 1640 | CM21: 2019-09-10 | CN21: -2448 | CO21: 2019-09-10 | CP21: 808 | CQ21: 21 | CR21: 2019-09-10 | CS21: -4491 | CT21: 2019-09-10 | CU21: 4340 | CV21: 2019-09-10 | CW21: 151 | CX21: 21 | CY21: 2019-09-10 | CZ21: 115949 | DA21: 2019-09-10 | DB21: -110500 | DC21: 2019-09-10 | DD21: -5449 | DE21: 21 | DF21: 2019-09-10 | DG21: -143259 | DH21: 2019-09-10 | DI21: 23138 | DJ21: 2019-09-10 | DK21: 120121 | DL21: 21 | DM21: 2019-09-10 | DN21: -97886 | DO21: 2019-09-10 | DP21: 113766 | DQ21: 2019-09-10 | DR21: -15880 | DS21: 21 | DT21: 2019-09-10 | DV21: 2019-09-10 | DX21: 2019-09-10 | DZ21: 21 | EA21: 2019-09-10 | EB21: -300433 | EC21: 2019-09-10 | ED21: 243084 | EE21: 2019-09-10 | EF21: 57349 | EG21: 21 | EH21: 2019-09-10 | EI21: -23429 | EJ21: 2019-09-10 | EK21: 63652 | EL21: 2019-09-10 | EM21: -40223 | EN21: 21 | EO21: 2019-09-10 | EQ21: 2019-09-10 | ES21: 2019-09-10 | EU21: 21 | EV21: 2019-09-10 | EW21: -51743 | EX21: 2019-09-10 | EY21: 13953 | EZ21: 2019-09-10 | FA21: 37790 | FB21: 21 | FC21: 2019-09-10 | FD21: -301276 | FE21: 2019-09-10 | FF21: 208451 | FG21: 2019-09-10 | FH21: 92825 | FI21: 21 | FJ21: 2019-09-10 | FK21: 39922 | FL21: 2019-09-10 | FM21: -37483 | FN21: 2019-09-10 | FO21: -2439
B22: =IFERROR(Sheet4!C25,"") -> Old | D22: =IFERROR(Sheet4!D25,"") -> 561 | F22: =IFERROR(Sheet4!E25,"") -> 152 | G22: =IFERROR(Sheet4!F25,"") -> 131 | H22: =IFERROR(Sheet4!G25,"") -> 136 | I22: =IFERROR(Sheet4!H25,"") -> 167 | J22: =IFERROR(Sheet4!I25,"") -> 196 | K22: =IFERROR(Sheet4!J25,"") -> 391 | L22: =IFERROR(Sheet4!K25,"") -> 406 | Q22: =N10 -> Long | R22: =N15 -> -2320 | S22: -2320 | U22: =IFERROR(Sheet5!C25,"") -> Old | W22: =IFERROR(Sheet5!D25,"") -> 571 | Y22: =IFERROR(Sheet5!E25,"") -> 134 | Z22: =IFERROR(Sheet5!F25,"") -> 167 | AA22: =IFERROR(Sheet5!G25,"") -> 149 | AB22: =IFERROR(Sheet5!H25,"") -> 162 | AC22: =IFERROR(Sheet5!I25,"") -> 205 | AD22: =IFERROR(Sheet5!J25,"") -> 393 | AE22: =IFERROR(Sheet5!K25,"") -> 435 | AJ22: =AG10 -> Long | AK22: =AG15 -> -717 | AL22: =AK22 -> -717 | AM22: 22 | AN22: 2019-09-03 | AO22: 21012 | AP22: 2019-09-03 | AQ22: -110781 | AR22: 2019-09-03 | AS22: 89769 | AT22: 22 | AU22: 2019-09-03 | AV22: -24984 | AW22: 2019-09-03 | AX22: 37203 | AY22: 2019-09-03 | AZ22: -12219 | BA22: 22 | BB22: 2019-09-03 | BC22: -64 | BD22: 2019-09-03 | BE22: 13839 | BF22: 2019-09-03 | BG22: -13775 | BH22: 22 | BI22: 2019-09-03 | BJ22: 24755 | BK22: 2019-09-03 | BL22: -32754 | BM22: 2019-09-03 | BN22: 7999 | BO22: 22 | BP22: 2019-09-03 | BQ22: -15343 | BR22: 2019-09-03 | BS22: -552 | BT22: 2019-09-03 | BU22: 15895 | BV22: 22 | BW22: 2019-09-03 | BX22: -22128 | BY22: 2019-09-03 | BZ22: 14802 | CA22: 2019-09-03 | CB22: 7326 | CC22: 22 | CD22: 2019-09-03 | CE22: -846 | CF22: 2019-09-03 | CG22: 581 | CH22: 2019-09-03 | CI22: 265 | CJ22: 22 | CK22: 2019-09-03 | CL22: 1696 | CM22: 2019-09-03 | CN22: -2285 | CO22: 2019-09-03 | CP22: 589 | CQ22: 22 | CR22: 2019-09-03 | CS22: -5431 | CT22: 2019-09-03 | CU22: 5235 | CV22: 2019-09-03 | CW22: 196 | CX22: 22 | CY22: 2019-09-03 | CZ22: -16610 | DA22: 2019-09-03 | DB22: 16964 | DC22: 2019-09-03 | DD22: -354 | DE22: 22 | DF22: 2019-09-03 | DG22: -173197 | DH22: 2019-09-03 | DI22: 93571 | DJ22: 2019-09-03 | DK22: 79626 | DL22: 22 | DM22: 2019-09-03 | DN22: -132444 | DO22: 2019-09-03 | DP22: 128603 | DQ22: 2019-09-03 | DR22: 3841 | DS22: 22 | DT22: 2019-09-03 | DV22: 2019-09-03 | DX22: 2019-09-03 | DZ22: 22 | EA22: 2019-09-03 | EB22: -377867 | EC22: 2019-09-03 | ED22: 348610 | EE22: 2019-09-03 | EF22: 29257 | EG22: 22 | EH22: 2019-09-03 | EI22: -54489 | EJ22: 2019-09-03 | EK22: 98561 | EL22: 2019-09-03 | EM22: -44072 | EN22: 22 | EO22: 2019-09-03 | EQ22: 2019-09-03 | ES22: 2019-09-03 | EU22: 22 | EV22: 2019-09-03 | EW22: -67243 | EX22: 2019-09-03 | EY22: 38270 | EZ22: 2019-09-03 | FA22: 28973 | FB22: 22 | FC22: 2019-09-03 | FD22: -305602 | FE22: 2019-09-03 | FF22: 221216 | FG22: 2019-09-03 | FH22: 84386 | FI22: 22 | FJ22: 2019-09-03 | FK22: 37669 | FL22: 2019-09-03 | FM22: -34780 | FN22: 2019-09-03 | FO22: -2889
B23: =IFERROR(Sheet4!C26,"") -> Other | D23: =IFERROR(Sheet4!D26,"") -> 338 | F23: =IFERROR(Sheet4!E26,"") -> 67 | G23: =IFERROR(Sheet4!F26,"") -> 60 | H23: =IFERROR(Sheet4!G26,"") -> 65 | I23: =IFERROR(Sheet4!H26,"") -> 77 | J23: =IFERROR(Sheet4!I26,"") -> 165 | K23: =IFERROR(Sheet4!J26,"") -> 186 | L23: =IFERROR(Sheet4!K26,"") -> 258 | Q23: =O10 -> Short | R23: =O15 -> -1922 | S23: -1922 | U23: =IFERROR(Sheet5!C26,"") -> Other | W23: =IFERROR(Sheet5!D26,"") -> 231 | Y23: =IFERROR(Sheet5!E26,"") -> 29 | Z23: =IFERROR(Sheet5!F26,"") -> 57 | AA23: =IFERROR(Sheet5!G26,"") -> 23 | AB23: =IFERROR(Sheet5!H26,"") -> 54 | AC23: =IFERROR(Sheet5!I26,"") -> 108 | AD23: =IFERROR(Sheet5!J26,"") -> 99 | AE23: =IFERROR(Sheet5!K26,"") -> 176 | AJ23: =AH10 -> Short | AK23: =AH15 -> -939 | AL23: -939 | AM23: 23 | AN23: 2019-08-27 | AO23: 38944 | AP23: 2019-08-27 | AQ23: -123528 | AR23: 2019-08-27 | AS23: 84584 | AT23: 23 | AU23: 2019-08-27 | AV23: -29967 | AW23: 2019-08-27 | AX23: 42659 | AY23: 2019-08-27 | AZ23: -12692 | BA23: 23 | BB23: 2019-08-27 | BC23: 16754 | BD23: 2019-08-27 | BE23: -1030 | BF23: 2019-08-27 | BG23: -15724 | BH23: 23 | BI23: 2019-08-27 | BJ23: 20252 | BK23: 2019-08-27 | BL23: -28841 | BM23: 2019-08-27 | BN23: 8589 | BO23: 23 | BP23: 2019-08-27 | BQ23: -5842 | BR23: 2019-08-27 | BS23: -10601 | BT23: 2019-08-27 | BU23: 16443 | BV23: 23 | BW23: 2019-08-27 | BX23: -16150 | BY23: 2019-08-27 | BZ23: 9505 | CA23: 2019-08-27 | CB23: 6645 | CC23: 23 | CD23: 2019-08-27 | CE23: -1053 | CF23: 2019-08-27 | CG23: 748 | CH23: 2019-08-27 | CI23: 305 | CJ23: 23 | CK23: 2019-08-27 | CL23: 1714 | CM23: 2019-08-27 | CN23: -2276 | CO23: 2019-08-27 | CP23: 562 | CQ23: 23 | CR23: 2019-08-27 | CS23: -3768 | CT23: 2019-08-27 | CU23: 3599 | CV23: 2019-08-27 | CW23: 169 | CX23: 23 | CY23: 2019-08-27 | CZ23: -45606 | DA23: 2019-08-27 | DB23: 51823 | DC23: 2019-08-27 | DD23: -6217 | DE23: 23 | DF23: 2019-08-27 | DG23: -271062 | DH23: 2019-08-27 | DI23: 194538 | DJ23: 2019-08-27 | DK23: 76524 | DL23: 23 | DM23: 2019-08-27 | DN23: -105168 | DO23: 2019-08-27 | DP23: 159174 | DQ23: 2019-08-27 | DR23: -54006 | DS23: 23 | DT23: 2019-08-27 | DV23: 2019-08-27 | DX23: 2019-08-27 | DZ23: 23 | EA23: 2019-08-27 | EB23: -309904 | EC23: 2019-08-27 | ED23: 221938 | EE23: 2019-08-27 | EF23: 87966 | EG23: 23 | EH23: 2019-08-27 | EI23: -24382 | EJ23: 2019-08-27 | EK23: 77192 | EL23: 2019-08-27 | EM23: -52810 | EN23: 23 | EO23: 2019-08-27 | EQ23: 2019-08-27 | ES23: 2019-08-27 | EU23: 23 | EV23: 2019-08-27 | EW23: -51131 | EX23: 2019-08-27 | EY23: 24718 | EZ23: 2019-08-27 | FA23: 26413 | FB23: 23 | FC23: 2019-08-27 | FD23: -303626 | FE23: 2019-08-27 | FF23: 217744 | FG23: 2019-08-27 | FH23: 85882 | FI23: 23 | FJ23: 2019-08-27 | FK23: 35147 | FL23: 2019-08-27 | FM23: -31944 | FN23: 2019-08-27 | FO23: -3203
D24: =RIGHT(IFERROR(Sheet4!A28,""),78) -> Percent of Open Interest Held by the Indicated Number of the Largest Traders | W24: =RIGHT(IFERROR(Sheet5!A28,""),78) -> Percent of Open Interest Held by the Indicated Number of the Largest Traders | AM24: 24 | AN24: 2019-08-20 | AO24: 94084 | AP24: 2019-08-20 | AQ24: -181602 | AR24: 2019-08-20 | AS24: 87518 | AT24: 24 | AU24: 2019-08-20 | AV24: -21740 | AW24: 2019-08-20 | AX24: 37204 | AY24: 2019-08-20 | AZ24: -15464 | BA24: 24 | BB24: 2019-08-20 | BC24: 7757 | BD24: 2019-08-20 | BE24: 7522 | BF24: 2019-08-20 | BG24: -15279 | BH24: 24 | BI24: 2019-08-20 | BJ24: 33252 | BK24: 2019-08-20 | BL24: -41805 | BM24: 2019-08-20 | BN24: 8553 | BO24: 24 | BP24: 2019-08-20 | BQ24: -3922 | BR24: 2019-08-20 | BS24: -13221 | BT24: 2019-08-20 | BU24: 17143 | BV24: 24 | BW24: 2019-08-20 | BX24: -16187 | BY24: 2019-08-20 | BZ24: 9633 | CA24: 2019-08-20 | CB24: 6554 | CC24: 24 | CD24: 2019-08-20 | CE24: 27 | CF24: 2019-08-20 | CG24: -662 | CH24: 2019-08-20 | CI24: 635 | CJ24: 24 | CK24: 2019-08-20 | CL24: 1698 | CM24: 2019-08-20 | CN24: -2339 | CO24: 2019-08-20 | CP24: 641 | CQ24: 24 | CR24: 2019-08-20 | CS24: -3215 | CT24: 2019-08-20 | CU24: 3077 | CV24: 2019-08-20 | CW24: 138 | CX24: 24 | CY24: 2019-08-20 | CZ24: -40925 | DA24: 2019-08-20 | DB24: 47006 | DC24: 2019-08-20 | DD24: -6081 | DE24: 24 | DF24: 2019-08-20 | DG24: -332426 | DH24: 2019-08-20 | DI24: 232675 | DJ24: 2019-08-20 | DK24: 99751 | DL24: 24 | DM24: 2019-08-20 | DN24: -115472 | DO24: 2019-08-20 | DP24: 122545 | DQ24: 2019-08-20 | DR24: -7073 | DS24: 24 | DT24: 2019-08-20 | DV24: 2019-08-20 | DX24: 2019-08-20 | DZ24: 24 | EA24: 2019-08-20 | EB24: -401804 | EC24: 2019-08-20 | ED24: 334999 | EE24: 2019-08-20 | EF24: 66805 | EG24: 24 | EH24: 2019-08-20 | EI24: -27413 | EJ24: 2019-08-20 | EK24: 66809 | EL24: 2019-08-20 | EM24: -39396 | EN24: 24 | EO24: 2019-08-20 | EQ24: 2019-08-20 | ES24: 2019-08-20 | EU24: 24 | EV24: 2019-08-20 | EW24: -65076 | EX24: 2019-08-20 | EY24: 39757 | EZ24: 2019-08-20 | FA24: 25319 | FB24: 24 | FC24: 2019-08-20 | FD24: -306100 | FE24: 2019-08-20 | FF24: 215455 | FG24: 2019-08-20 | FH24: 90645 | FI24: 24 | FJ24: 2019-08-20 | FK24: 36633 | FL24: 2019-08-20 | FM24: -34933 | FN24: 2019-08-20 | FO24: -1700
F25: =Sheet4!D29 -> By Gross Position | J25: =Sheet4!H29 -> By Net Position | Y25: =Sheet5!D29 -> By Gross Position | AC25: =Sheet5!H29 -> By Net Position | AM25: 25 | AN25: 2019-08-13 | AO25: 161639 | AP25: 2019-08-13 | AQ25: -238428 | AR25: 2019-08-13 | AS25: 76789 | AT25: 25 | AU25: 2019-08-13 | AV25: -17647 | AW25: 2019-08-13 | AX25: 33575 | AY25: 2019-08-13 | AZ25: -15928 | BA25: 25 | BB25: 2019-08-13 | BC25: 16315 | BD25: 2019-08-13 | BE25: -2515 | BF25: 2019-08-13 | BG25: -13800 | BH25: 25 | BI25: 2019-08-13 | BJ25: 38299 | BK25: 2019-08-13 | BL25: -45569 | BM25: 2019-08-13 | BN25: 7270 | BO25: 25 | BP25: 2019-08-13 | BQ25: -4005 | BR25: 2019-08-13 | BS25: -12499 | BT25: 2019-08-13 | BU25: 16504 | BV25: 25 | BW25: 2019-08-13 | BX25: -12453 | BY25: 2019-08-13 | BZ25: 6060 | CA25: 2019-08-13 | CB25: 6393 | CC25: 25 | CD25: 2019-08-13 | CE25: 724 | CF25: 2019-08-13 | CG25: -1286 | CH25: 2019-08-13 | CI25: 562 | CJ25: 25 | CK25: 2019-08-13 | CL25: 1668 | CM25: 2019-08-13 | CN25: -2242 | CO25: 2019-08-13 | CP25: 574 | CQ25: 25 | CR25: 2019-08-13 | CS25: -3190 | CT25: 2019-08-13 | CU25: 3071 | CV25: 2019-08-13 | CW25: 119 | CX25: 25 | CY25: 2019-08-13 | CZ25: -65702 | DA25: 2019-08-13 | DB25: 75056 | DC25: 2019-08-13 | DD25: -9354 | DE25: 25 | DF25: 2019-08-13 | DG25: -325363 | DH25: 2019-08-13 | DI25: 238696 | DJ25: 2019-08-13 | DK25: 86667 | DL25: 25 | DM25: 2019-08-13 | DN25: -103857 | DO25: 2019-08-13 | DP25: 53664 | DQ25: 2019-08-13 | DR25: 50193 | DS25: 25 | DT25: 2019-08-13 | DV25: 2019-08-13 | DX25: 2019-08-13 | DZ25: 25 | EA25: 2019-08-13 | EB25: -414346 | EC25: 2019-08-13 | ED25: 331680 | EE25: 2019-08-13 | EF25: 82666 | EG25: 25 | EH25: 2019-08-13 | EI25: -4468 | EJ25: 2019-08-13 | EK25: 47868 | EL25: 2019-08-13 | EM25: -43400 | EN25: 25 | EO25: 2019-08-13 | EQ25: 2019-08-13 | ES25: 2019-08-13 | EU25: 25 | EV25: 2019-08-13 | EW25: -67301 | EX25: 2019-08-13 | EY25: 27117 | EZ25: 2019-08-13 | FA25: 40184 | FB25: 25 | FC25: 2019-08-13 | FD25: -296930 | FE25: 2019-08-13 | FF25: 204608 | FG25: 2019-08-13 | FH25: 92322 | FI25: 25 | FJ25: 2019-08-13 | FK25: 43601 | FL25: 2019-08-13 | FM25: -42325 | FN25: 2019-08-13 | FO25: -1276
F26: =Sheet4!D30 -> 4 or Less Traders | H26: =Sheet4!F30 -> 8 or Less Traders | J26: =Sheet4!H30 -> 4 or Less Traders | L26: =Sheet4!J30 -> 8 or Less Traders | Y26: =Sheet5!D30 -> 4 or Less Traders | AA26: =Sheet5!F30 -> 8 or Less Traders | AC26: =Sheet5!H30 -> 4 or Less Traders | AE26: =Sheet5!J30 -> 8 or Less Traders | AM26: 26 | AN26: 2019-08-06 | AO26: 221620 | AP26: 2019-08-06 | AQ26: -297826 | AR26: 2019-08-06 | AS26: 76206 | AT26: 26 | AU26: 2019-08-06 | AV26: -25477 | AW26: 2019-08-06 | AX26: 42744 | AY26: 2019-08-06 | AZ26: -17267 | BA26: 26 | BB26: 2019-08-06 | BC26: 21460 | BD26: 2019-08-06 | BE26: -7353 | BF26: 2019-08-06 | BG26: -14107 | BH26: 26 | BI26: 2019-08-06 | BJ26: -8785 | BK26: 2019-08-06 | BL26: 5527 | BM26: 2019-08-06 | BN26: 3258 | BO26: 26 | BP26: 2019-08-06 | BQ26: -9724 | BR26: 2019-08-06 | BS26: -5816 | BT26: 2019-08-06 | BU26: 15540 | BV26: 26 | BW26: 2019-08-06 | BX26: -3922 | BY26: 2019-08-06 | BZ26: -750 | CA26: 2019-08-06 | CB26: 4672 | CC26: 26 | CD26: 2019-08-06 | CE26: 1454 | CF26: 2019-08-06 | CG26: -1881 | CH26: 2019-08-06 | CI26: 427 | CJ26: 26 | CK26: 2019-08-06 | CL26: 1597 | CM26: 2019-08-06 | CN26: -2342 | CO26: 2019-08-06 | CP26: 745 | CQ26: 26 | CR26: 2019-08-06 | CS26: -3126 | CT26: 2019-08-06 | CU26: 2978 | CV26: 2019-08-06 | CW26: 148 | CX26: 26 | CY26: 2019-08-06 | CZ26: -199844 | DA26: 2019-08-06 | DB26: 211723 | DC26: 2019-08-06 | DD26: -11879 | DE26: 26 | DF26: 2019-08-06 | DG26: -308867 | DH26: 2019-08-06 | DI26: 200146 | DJ26: 2019-08-06 | DK26: 108721 | DL26: 26 | DM26: 2019-08-06 | DN26: -131314 | DO26: 2019-08-06 | DP26: 89596 | DQ26: 2019-08-06 | DR26: 41718 | DS26: 26 | DT26: 2019-08-06 | DV26: 2019-08-06 | DX26: 2019-08-06 | DZ26: 26 | EA26: 2019-08-06 | EB26: -390886 | EC26: 2019-08-06 | ED26: 321413 | EE26: 2019-08-06 | EF26: 69473 | EG26: 26 | EH26: 2019-08-06 | EI26: 18411 | EJ26: 2019-08-06 | EK26: 28640 | EL26: 2019-08-06 | EM26: -47051 | EN26: 26 | EO26: 2019-08-06 | EQ26: 2019-08-06 | ES26: 2019-08-06 | EU26: 26 | EV26: 2019-08-06 | EW26: -56273 | EX26: 2019-08-06 | EY26: 22034 | EZ26: 2019-08-06 | FA26: 34239 | FB26: 26 | FC26: 2019-08-06 | FD26: -280624 | FE26: 2019-08-06 | FF26: 190502 | FG26: 2019-08-06 | FH26: 90122 | FI26: 26 | FJ26: 2019-08-06 | FK26: 51421 | FL26: 2019-08-06 | FM26: -50794 | FN26: 2019-08-06 | FO26: -627
F27: =IFERROR(Sheet4!D31,"") -> Long | G27: =IFERROR(Sheet4!E31,"") -> Short | H27: =IFERROR(Sheet4!F31,"") -> Long | I27: =IFERROR(Sheet4!G31,"") -> Short | J27: =IFERROR(Sheet4!H31,"") -> Long | K27: =IFERROR(Sheet4!I31,"") -> Short | L27: =IFERROR(Sheet4!J31,"") -> Long | M27: =IFERROR(Sheet4!K31,"") -> Short | Y27: =IFERROR(Sheet5!D31,"") -> Long | Z27: =IFERROR(Sheet5!E31,"") -> Short | AA27: =IFERROR(Sheet5!F31,"") -> Long | AB27: =IFERROR(Sheet5!G31,"") -> Short | AC27: =IFERROR(Sheet5!H31,"") -> Long | AD27: =IFERROR(Sheet5!I31,"") -> Short | AE27: =IFERROR(Sheet5!J31,"") -> Long | AF27: =IFERROR(Sheet5!K31,"") -> Short | AM27: 27 | AN27: 2019-07-30 | AO27: 241659 | AP27: 2019-07-30 | AQ27: -317030 | AR27: 2019-07-30 | AS27: 75371 | AT27: 27 | AU27: 2019-07-30 | AV27: -11283 | AW27: 2019-07-30 | AX27: 28124 | AY27: 2019-07-30 | AZ27: -16841 | BA27: 27 | BB27: 2019-07-30 | BC27: 29858 | BD27: 2019-07-30 | BE27: -16224 | BF27: 2019-07-30 | BG27: -13634 | BH27: 27 | BI27: 2019-07-30 | BJ27: -1067 | BK27: 2019-07-30 | BL27: -1374 | BM27: 2019-07-30 | BN27: 2441 | BO27: 27 | BP27: 2019-07-30 | BQ27: -7333 | BR27: 2019-07-30 | BS27: -6620 | BT27: 2019-07-30 | BU27: 13953 | BV27: 27 | BW27: 2019-07-30 | BX27: 1368 | BY27: 2019-07-30 | BZ27: -8445 | CA27: 2019-07-30 | CB27: 7077 | CC27: 27 | CD27: 2019-07-30 | CE27: 1474 | CF27: 2019-07-30 | CG27: -2303 | CH27: 2019-07-30 | CI27: 829 | CJ27: 27 | CK27: 2019-07-30 | CL27: 1761 | CM27: 2019-07-30 | CN27: -2446 | CO27: 2019-07-30 | CP27: 685 | CQ27: 27 | CR27: 2019-07-30 | CS27: -4024 | CT27: 2019-07-30 | CU27: 3892 | CV27: 2019-07-30 | CW27: 132 | CX27: 27 | CY27: 2019-07-30 | CZ27: -145014 | DA27: 2019-07-30 | DB27: 162183 | DC27: 2019-07-30 | DD27: -17169 | DE27: 27 | DF27: 2019-07-30 | DG27: -314415 | DH27: 2019-07-30 | DI27: 209601 | DJ27: 2019-07-30 | DK27: 104814 | DL27: 27 | DM27: 2019-07-30 | DN27: -115941 | DO27: 2019-07-30 | DP27: 61102 | DQ27: 2019-07-30 | DR27: 54839 | DS27: 27 | DT27: 2019-07-30 | DV27: 2019-07-30 | DX27: 2019-07-30 | DZ27: 27 | EA27: 2019-07-30 | EB27: -383842 | EC27: 2019-07-30 | ED27: 311918 | EE27: 2019-07-30 | EF27: 71924 | EG27: 27 | EH27: 2019-07-30 | EI27: 43396 | EJ27: 2019-07-30 | EK27: -4923 | EL27: 2019-07-30 | EM27: -38473 | EN27: 27 | EO27: 2019-07-30 | EQ27: 2019-07-30 | ES27: 2019-07-30 | EU27: 27 | EV27: 2019-07-30 | EW27: -32525 | EX27: 2019-07-30 | EY27: 2125 | EZ27: 2019-07-30 | FA27: 30400 | FB27: 27 | FC27: 2019-07-30 | FD27: -287072 | FE27: 2019-07-30 | FF27: 198289 | FG27: 2019-07-30 | FH27: 88783 | FI27: 27 | FJ27: 2019-07-30 | FK27: 46559 | FL27: 2019-07-30 | FM27: -43741 | FN27: 2019-07-30 | FO27: -2818
D28: =IFERROR(Sheet4!C33,"") -> All | F28: =IFERROR(Sheet4!D33*1,"") -> 11.5 | G28: =IFERROR(Sheet4!E33*1,"") -> 14.7 | H28: =IFERROR(Sheet4!F33*1,"") -> 18.7 | I28: =IFERROR(Sheet4!G33*1,"") -> 22.1 | J28: =IFERROR(Sheet4!H33*1,"") -> 8.7 | K28: =IFERROR(Sheet4!I33*1,"") -> 11.9 | L28: =IFERROR(Sheet4!J33*1,"") -> 14.8 | M28: =IFERROR(Sheet4!K33*1,"") -> 18.2 | W28: =IFERROR(Sheet5!C33,"") -> All | Y28: =IFERROR(Sheet5!D33*1,"") -> 18.4 | Z28: =IFERROR(Sheet5!E33*1,"") -> 11 | AA28: =IFERROR(Sheet5!F33*1,"") -> 27 | AB28: =IFERROR(Sheet5!G33*1,"") -> 17.8 | AC28: =IFERROR(Sheet5!H33*1,"") -> 15.8 | AD28: =IFERROR(Sheet5!I33*1,"") -> 10.2 | AE28: =IFERROR(Sheet5!J33*1,"") -> 23.5 | AG28: =IFERROR(Sheet5!K33*1,"") -> 15.3 | AM28: 28 | AN28: 2019-07-23 | AO28: 287036 | AP28: 2019-07-23 | AQ28: -348709 | AR28: 2019-07-23 | AS28: 61673 | AT28: 28 | AU28: 2019-07-23 | AV28: 4120 | AW28: 2019-07-23 | AX28: 13355 | AY28: 2019-07-23 | AZ28: -17475 | BA28: 28 | BB28: 2019-07-23 | BC28: 19284 | BD28: 2019-07-23 | BE28: -6630 | BF28: 2019-07-23 | BG28: -12654 | BH28: 28 | BI28: 2019-07-23 | BJ28: -8916 | BK28: 2019-07-23 | BL28: 7357 | BM28: 2019-07-23 | BN28: 1559 | BO28: 28 | BP28: 2019-07-23 | BQ28: 3194 | BR28: 2019-07-23 | BS28: -15833 | BT28: 2019-07-23 | BU28: 12639 | BV28: 28 | BW28: 2019-07-23 | BX28: -3593 | BY28: 2019-07-23 | BZ28: -3405 | CA28: 2019-07-23 | CB28: 6998 | CC28: 28 | CD28: 2019-07-23 | CE28: 397 | CF28: 2019-07-23 | CG28: -817 | CH28: 2019-07-23 | CI28: 420 | CJ28: 28 | CK28: 2019-07-23 | CL28: 2204 | CM28: 2019-07-23 | CN28: -2798 | CO28: 2019-07-23 | CP28: 594 | CQ28: 28 | CR28: 2019-07-23 | CS28: -4725 | CT28: 2019-07-23 | CU28: 4606 | CV28: 2019-07-23 | CW28: 119 | CX28: 28 | CY28: 2019-07-23 | CZ28: -144059 | DA28: 2019-07-23 | DB28: 162272 | DC28: 2019-07-23 | DD28: -18213 | DE28: 28 | DF28: 2019-07-23 | DG28: -260646 | DH28: 2019-07-23 | DI28: 145154 | DJ28: 2019-07-23 | DK28: 115492 | DL28: 28 | DM28: 2019-07-23 | DN28: -98795 | DO28: 2019-07-23 | DP28: 75852 | DQ28: 2019-07-23 | DR28: 22943 | DS28: 28 | DT28: 2019-07-23 | DV28: 2019-07-23 | DX28: 2019-07-23 | DZ28: 28 | EA28: 2019-07-23 | EB28: -380169 | EC28: 2019-07-23 | ED28: 311782 | EE28: 2019-07-23 | EF28: 68387 | EG28: 28 | EH28: 2019-07-23 | EI28: 32145 | EJ28: 2019-07-23 | EK28: 6979 | EL28: 2019-07-23 | EM28: -39124 | EN28: 28 | EO28: 2019-07-23 | EQ28: 2019-07-23 | ES28: 2019-07-23 | EU28: 28 | EV28: 2019-07-23 | EW28: -41646 | EX28: 2019-07-23 | EY28: 3847 | EZ28: 2019-07-23 | FA28: 37799 | FB28: 28 | FC28: 2019-07-23 | FD28: -288972 | FE28: 2019-07-23 | FF28: 203012 | FG28: 2019-07-23 | FH28: 85960 | FI28: 28 | FJ28: 2019-07-23 | FK28: 44442 | FL28: 2019-07-23 | FM28: -41708 | FN28: 2019-07-23 | FO28: -2734
D29: =IFERROR(Sheet4!C34,"") -> Old | F29: =IFERROR(Sheet4!D34*1,"") -> 12.8 | G29: =IFERROR(Sheet4!E34*1,"") -> 16.8 | H29: =IFERROR(Sheet4!F34*1,"") -> 20.7 | I29: =IFERROR(Sheet4!G34*1,"") -> 24.8 | J29: =IFERROR(Sheet4!H34*1,"") -> 11.4 | K29: =IFERROR(Sheet4!I34*1,"") -> 13.7 | L29: =IFERROR(Sheet4!J34*1,"") -> 18.7 | M29: =IFERROR(Sheet4!K34*1,"") -> 20 | W29: =IFERROR(Sheet5!C34,"") -> Old | Y29: =IFERROR(Sheet5!D34*1,"") -> 18.9 | Z29: =IFERROR(Sheet5!E34*1,"") -> 11.6 | AA29: =IFERROR(Sheet5!F34*1,"") -> 27.3 | AB29: =IFERROR(Sheet5!G34*1,"") -> 18.8 | AC29: =IFERROR(Sheet5!H34*1,"") -> 16.3 | AD29: =IFERROR(Sheet5!I34*1,"") -> 10.8 | AE29: =IFERROR(Sheet5!J34*1,"") -> 23.7 | AG29: =IFERROR(Sheet5!K34*1,"") -> 16.2 | AM29: 29 | AN29: 2019-07-16 | AO29: 318221 | AP29: 2019-07-16 | AQ29: -375540 | AR29: 2019-07-16 | AS29: 57319 | AT29: 29 | AU29: 2019-07-16 | AV29: 5184 | AW29: 2019-07-16 | AX29: 12380 | AY29: 2019-07-16 | AZ29: -17564 | BA29: 29 | BB29: 2019-07-16 | BC29: 27969 | BD29: 2019-07-16 | BE29: -16419 | BF29: 2019-07-16 | BG29: -11550 | BH29: 29 | BI29: 2019-07-16 | BJ29: -3811 | BK29: 2019-07-16 | BL29: 809 | BM29: 2019-07-16 | BN29: 3002 | BO29: 29 | BP29: 2019-07-16 | BQ29: 4487 | BR29: 2019-07-16 | BS29: -18555 | BT29: 2019-07-16 | BU29: 14068 | BV29: 29 | BW29: 2019-07-16 | BX29: 376 | BY29: 2019-07-16 | BZ29: -5886 | CA29: 2019-07-16 | CB29: 5510 | CC29: 29 | CD29: 2019-07-16 | CE29: -135 | CF29: 2019-07-16 | CG29: -364 | CH29: 2019-07-16 | CI29: 499 | CJ29: 29 | CK29: 2019-07-16 | CL29: 2125 | CM29: 2019-07-16 | CN29: -2799 | CO29: 2019-07-16 | CP29: 674 | CQ29: 29 | CR29: 2019-07-16 | CS29: -5092 | CT29: 2019-07-16 | CU29: 4862 | CV29: 2019-07-16 | CW29: 230 | CX29: 29 | CY29: 2019-07-16 | CZ29: -34591 | DA29: 2019-07-16 | DB29: 57024 | DC29: 2019-07-16 | DD29: -22433 | DE29: 29 | DF29: 2019-07-16 | DG29: -306840 | DH29: 2019-07-16 | DI29: 211730 | DJ29: 2019-07-16 | DK29: 95110 | DL29: 29 | DM29: 2019-07-16 | DN29: -100588 | DO29: 2019-07-16 | DP29: 43403 | DQ29: 2019-07-16 | DR29: 57185 | DS29: 29 | DT29: 2019-07-16 | DV29: 2019-07-16 | DX29: 2019-07-16 | DZ29: 29 | EA29: 2019-07-16 | EB29: -347222 | EC29: 2019-07-16 | ED29: 289324 | EE29: 2019-07-16 | EF29: 57898 | EG29: 29 | EH29: 2019-07-16 | EI29: 44244 | EJ29: 2019-07-16 | EK29: -13562 | EL29: 2019-07-16 | EM29: -30682 | EN29: 29 | EO29: 2019-07-16 | EQ29: 2019-07-16 | ES29: 2019-07-16 | EU29: 29 | EV29: 2019-07-16 | EW29: -21747 | EX29: 2019-07-16 | EY29: -15802 | EZ29: 2019-07-16 | FA29: 37549 | FB29: 29 | FC29: 2019-07-16 | FD29: -294242 | FE29: 2019-07-16 | FF29: 213648 | FG29: 2019-07-16 | FH29: 80594 | FI29: 29 | FJ29: 2019-07-16 | FK29: 45060 | FL29: 2019-07-16 | FM29: -41807 | FN29: 2019-07-16 | FO29: -3253
D30: =IFERROR(Sheet4!C35,"") -> Other | F30: =IFERROR(Sheet4!D35*1,"") -> 15.8 | G30: =IFERROR(Sheet4!E35*1,"") -> 17.6 | H30: =IFERROR(Sheet4!F35*1,"") -> 27.4 | I30: =IFERROR(Sheet4!G35*1,"") -> 31.1 | J30: =IFERROR(Sheet4!H35*1,"") -> 11.8 | K30: =IFERROR(Sheet4!I35*1,"") -> 14.2 | L30: =IFERROR(Sheet4!J35*1,"") -> 20 | M30: =IFERROR(Sheet4!K35*1,"") -> 23.6 | W30: =IFERROR(Sheet5!C35,"") -> Other | Y30: =IFERROR(Sheet5!D35*1,"") -> 33.1 | Z30: =IFERROR(Sheet5!E35*1,"") -> 40.2 | AA30: =IFERROR(Sheet5!F35*1,"") -> 45.4 | AB30: =IFERROR(Sheet5!G35*1,"") -> 50.4 | AC30: =IFERROR(Sheet5!H35*1,"") -> 33 | AD30: =IFERROR(Sheet5!I35*1,"") -> 40 | AE30: =IFERROR(Sheet5!J35*1,"") -> 45.2 | AG30: =IFERROR(Sheet5!K35*1,"") -> 49.9 | AM30: 30 | AN30: 2019-07-09 | AO30: 303206 | AP30: 2019-07-09 | AQ30: -362971 | AR30: 2019-07-09 | AS30: 59765 | AT30: 30 | AU30: 2019-07-09 | AV30: -1238 | AW30: 2019-07-09 | AX30: 18164 | AY30: 2019-07-09 | AZ30: -16926 | BA30: 30 | BB30: 2019-07-09 | BC30: 34080 | BD30: 2019-07-09 | BE30: -20075 | BF30: 2019-07-09 | BG30: -14005 | BH30: 30 | BI30: 2019-07-09 | BJ30: -3132 | BK30: 2019-07-09 | BL30: -602 | BM30: 2019-07-09 | BN30: 3734 | BO30: 30 | BP30: 2019-07-09 | BQ30: 6145 | BR30: 2019-07-09 | BS30: -21601 | BT30: 2019-07-09 | BU30: 15456 | BV30: 30 | BW30: 2019-07-09 | BX30: -2665 | BY30: 2019-07-09 | BZ30: -303 | CA30: 2019-07-09 | CB30: 2968 | CC30: 30 | CD30: 2019-07-09 | CE30: -723 | CF30: 2019-07-09 | CG30: 5 | CH30: 2019-07-09 | CI30: 718 | CJ30: 30 | CK30: 2019-07-09 | CL30: 2232 | CM30: 2019-07-09 | CN30: -2944 | CO30: 2019-07-09 | CP30: 712 | CQ30: 30 | CR30: 2019-07-09 | CS30: -4885 | CT30: 2019-07-09 | CU30: 4636 | CV30: 2019-07-09 | CW30: 249 | CX30: 30 | CY30: 2019-07-09 | CZ30: -3251 | DA30: 2019-07-09 | DB30: 15202 | DC30: 2019-07-09 | DD30: -11951 | DE30: 30 | DF30: 2019-07-09 | DG30: -312954 | DH30: 2019-07-09 | DI30: 227799 | DJ30: 2019-07-09 | DK30: 85155 | DL30: 30 | DM30: 2019-07-09 | DN30: -94042 | DO30: 2019-07-09 | DP30: 63578 | DQ30: 2019-07-09 | DR30: 30464 | DS30: 30 | DT30: 2019-07-09 | DV30: 2019-07-09 | DX30: 2019-07-09 | DZ30: 30 | EA30: 2019-07-09 | EB30: -288836 | EC30: 2019-07-09 | ED30: 215177 | EE30: 2019-07-09 | EF30: 73659 | EG30: 30 | EH30: 2019-07-09 | EI30: 30617 | EJ30: 2019-07-09 | EK30: -6 | EL30: 2019-07-09 | EM30: -30611 | EN30: 30 | EO30: 2019-07-09 | EQ30: 2019-07-09 | ES30: 2019-07-09 | EU30: 30 | EV30: 2019-07-09 | EW30: -11188 | EX30: 2019-07-09 | EY30: -30439 | EZ30: 2019-07-09 | FA30: 41627 | FB30: 30 | FC30: 2019-07-09 | FD30: -295562 | FE30: 2019-07-09 | FF30: 213724 | FG30: 2019-07-09 | FH30: 81838 | FI30: 30 | FJ30: 2019-07-09 | FK30: 32718 | FL30: 2019-07-09 | FM30: -32692 | FN30: 2019-07-09 | FO30: -26
AM31: 31 | AN31: 2019-07-02 | AO31: 300799 | AP31: 2019-07-02 | AQ31: -361020 | AR31: 2019-07-02 | AS31: 60221 | AT31: 31 | AU31: 2019-07-02 | AV31: 3152 | AW31: 2019-07-02 | AX31: 17169 | AY31: 2019-07-02 | AZ31: -20321 | BA31: 31 | BB31: 2019-07-02 | BC31: 42059 | BD31: 2019-07-02 | BE31: -29887 | BF31: 2019-07-02 | BG31: -12172 | BH31: 31 | BI31: 2019-07-02 | BJ31: -7966 | BK31: 2019-07-02 | BL31: 6956 | BM31: 2019-07-02 | BN31: 1010 | BO31: 31 | BP31: 2019-07-02 | BQ31: 13025 | BR31: 2019-07-02 | BS31: -27720 | BT31: 2019-07-02 | BU31: 14695 | BV31: 31 | BW31: 2019-07-02 | BX31: -3192 | BY31: 2019-07-02 | BZ31: 637 | CA31: 2019-07-02 | CB31: 2555 | CC31: 31 | CD31: 2019-07-02 | CE31: -458 | CF31: 2019-07-02 | CG31: -314 | CH31: 2019-07-02 | CI31: 772 | CJ31: 31 | CK31: 2019-07-02 | CL31: 2207 | CM31: 2019-07-02 | CN31: -3013 | CO31: 2019-07-02 | CP31: 806 | CQ31: 31 | CR31: 2019-07-02 | CS31: -6354 | CT31: 2019-07-02 | CU31: 6904 | CV31: 2019-07-02 | CW31: -550 | CX31: 31 | CY31: 2019-07-02 | CZ31: -6399 | DA31: 2019-07-02 | DB31: 29550 | DC31: 2019-07-02 | DD31: -23151 | DE31: 31 | DF31: 2019-07-02 | DG31: -305068 | DH31: 2019-07-02 | DI31: 202128 | DJ31: 2019-07-02 | DK31: 102940 | DL31: 31 | DM31: 2019-07-02 | DN31: -86931 | DO31: 2019-07-02 | DP31: 91122 | DQ31: 2019-07-02 | DR31: -4191 | DS31: 31 | DT31: 2019-07-02 | DV31: 2019-07-02 | DX31: 2019-07-02 | DZ31: 31 | EA31: 2019-07-02 | EB31: -288884 | EC31: 2019-07-02 | ED31: 259443 | EE31: 2019-07-02 | EF31: 29441 | EG31: 31 | EH31: 2019-07-02 | EI31: 24390 | EJ31: 2019-07-02 | EK31: 9441 | EL31: 2019-07-02 | EM31: -33831 | EN31: 31 | EO31: 2019-07-02 | EQ31: 2019-07-02 | ES31: 2019-07-02 | EU31: 31 | EV31: 2019-07-02 | EW31: 635 | EX31: 2019-07-02 | EY31: -38701 | EZ31: 2019-07-02 | FA31: 38066 | FB31: 31 | FC31: 2019-07-02 | FD31: -298174 | FE31: 2019-07-02 | FF31: 208611 | FG31: 2019-07-02 | FH31: 89563 | FI31: 31 | FJ31: 2019-07-02 | FK31: 38401 | FL31: 2019-07-02 | FM31: -39179 | FN31: 2019-07-02 | FO31: 778
F32: =IFERROR("Net Positions "&Sheet4!F37,"") -> Net Positions January 28, 2020 | Y32: =IFERROR("Net Positions "&Sheet5!F37,"") -> Net Positions November 06, 2018 | AM32: =AM31+1 -> 32 | AN32: 2019-06-25 | AO32: 307201 | AP32: 2019-06-25 | AQ32: -353674 | AR32: 2019-06-25 | AS32: 46473 | AT32: =AT31+1 -> 32 | AU32: 2019-06-25 | AV32: -1868 | AW32: 2019-06-25 | AX32: 16929 | AY32: 2019-06-25 | AZ32: -15061 | BA32: =BA31+1 -> 32 | BB32: 2019-06-25 | BC32: 30204 | BD32: 2019-06-25 | BE32: -19231 | BF32: 2019-06-25 | BG32: -10973 | BH32: =BH31+1 -> 32 | BI32: 2019-06-25 | BJ32: -6522 | BK32: 2019-06-25 | BL32: 3367 | BM32: 2019-06-25 | BN32: 3155 | BO32: =BO31+1 -> 32 | BP32: 2019-06-25 | BQ32: 24180 | BR32: 2019-06-25 | BS32: -39807 | BT32: 2019-06-25 | BU32: 15627 | BV32: =BV31+1 -> 32 | BW32: 2019-06-25 | BX32: -3202 | BY32: 2019-06-25 | BZ32: 302 | CA32: 2019-06-25 | CB32: 2900 | CC32: =CC31+1 -> 32 | CD32: 2019-06-25 | CE32: 149 | CF32: 2019-06-25 | CG32: -760 | CH32: 2019-06-25 | CI32: 611 | CJ32: =CJ31+1 -> 32 | CK32: 2019-06-25 | CL32: 2196 | CM32: 2019-06-25 | CN32: -3019 | CO32: 2019-06-25 | CP32: 823 | CQ32: =CQ31+1 -> 32 | CR32: 2019-06-25 | CS32: -6608 | CT32: 2019-06-25 | CU32: 7149 | CV32: 2019-06-25 | CW32: -541 | CX32: =CX31+1 -> 32 | CY32: 2019-06-25 | CZ32: -49802 | DA32: 2019-06-25 | DB32: 71050 | DC32: 2019-06-25 | DD32: -21248 | DE32: =DE31+1 -> 32 | DF32: 2019-06-25 | DG32: -269742 | DH32: 2019-06-25 | DI32: 186973 | DJ32: 2019-06-25 | DK32: 82769 | DL32: =DL31+1 -> 32 | DM32: 2019-06-25 | DN32: -41843 | DO32: 2019-06-25 | DP32: 12564 | DQ32: 2019-06-25 | DR32: 29279 | DS32: =DS31+1 -> 32 | DT32: 2019-06-25 | DV32: 2019-06-25 | DX32: 2019-06-25 | DZ32: =DZ31+1 -> 32 | EA32: 2019-06-25 | EB32: -281099 | EC32: 2019-06-25 | ED32: 219912 | EE32: 2019-06-25 | EF32: 61187 | EG32: =EG31+1 -> 32 | EH32: 2019-06-25 | EI32: 22446 | EJ32: 2019-06-25 | EK32: 14600 | EL32: 2019-06-25 | EM32: -37046 | EN32: =EN31+1 -> 32 | EO32: 2019-06-25 | EQ32: 2019-06-25 | ES32: 2019-06-25 | EU32: =EU31+1 -> 32 | EV32: 2019-06-25 | EW32: 16190 | EX32: 2019-06-25 | EY32: -54631 | EZ32: 2019-06-25 | FA32: 38441 | FB32: =FB31+1 -> 32 | FC32: 2019-06-25 | FD32: -302257 | FE32: 2019-06-25 | FF32: 214333 | FG32: 2019-06-25 | FH32: 87924 | FI32: =FI31+1 -> 32 | FJ32: 2019-06-25 | FK32: 36464 | FL32: 2019-06-25 | FM32: -33185 | FN32: 2019-06-25 | FO32: -3279
F33: =F9 -> Non-Commercial | I33: =I9 -> Commercial | K33: =N7 -> Nonreportable | Y33: =Y9 -> Non-Commercial | AB33: =AB9 -> Commercial | AD33: =AG7 -> Nonreportable | AM33: 33 | AN33: 2019-06-18 | AO33: 270346 | AP33: 2019-06-18 | AQ33: -305085 | AR33: 2019-06-18 | AS33: 34739 | AT33: 33 | AU33: 2019-06-18 | AV33: -2734 | AW33: 2019-06-18 | AX33: 21712 | AY33: 2019-06-18 | AZ33: -18978 | BA33: 33 | BB33: 2019-06-18 | BC33: 29303 | BD33: 2019-06-18 | BE33: -20087 | BF33: 2019-06-18 | BG33: -9216 | BH33: 33 | BI33: 2019-06-18 | BJ33: -770 | BK33: 2019-06-18 | BL33: -5339 | BM33: 2019-06-18 | BN33: 6109 | BO33: 33 | BP33: 2019-06-18 | BQ33: 26289 | BR33: 2019-06-18 | BS33: -42260 | BT33: 2019-06-18 | BU33: 15971 | BV33: 33 | BW33: 2019-06-18 | BX33: -4088 | BY33: 2019-06-18 | BZ33: -512 | CA33: 2019-06-18 | CB33: 4600 | CC33: 33 | CD33: 2019-06-18 | CE33: 342 | CF33: 2019-06-18 | CG33: -1131 | CH33: 2019-06-18 | CI33: 789 | CJ33: 33 | CK33: 2019-06-18 | CL33: 3006 | CM33: 2019-06-18 | CN33: -3990 | CO33: 2019-06-18 | CP33: 984 | CQ33: 33 | CR33: 2019-06-18 | CS33: -4052 | CT33: 2019-06-18 | CU33: 4588 | CV33: 2019-06-18 | CW33: -536 | CX33: 33 | CY33: 2019-06-18 | CZ33: -73619 | DA33: 2019-06-18 | DB33: 94476 | DC33: 2019-06-18 | DD33: -20857 | DE33: 33 | DF33: 2019-06-18 | DG33: -153826 | DH33: 2019-06-18 | DI33: 73810 | DJ33: 2019-06-18 | DK33: 80016 | DL33: 33 | DM33: 2019-06-18 | DN33: -39873 | DO33: 2019-06-18 | DP33: 15923 | DQ33: 2019-06-18 | DR33: 23950 | DS33: 33 | DT33: 2019-06-18 | DV33: 2019-06-18 | DX33: 2019-06-18 | DZ33: 33 | EA33: 2019-06-18 | EB33: -402984 | EC33: 2019-06-18 | ED33: 340399 | EE33: 2019-06-18 | EF33: 62585 | EG33: 33 | EH33: 2019-06-18 | EI33: 22122 | EJ33: 2019-06-18 | EK33: 4817 | EL33: 2019-06-18 | EM33: -26939 | EN33: 33 | EO33: 2019-06-18 | EQ33: 2019-06-18 | ES33: 2019-06-18 | EU33: 33 | EV33: 2019-06-18 | EW33: 18290 | EX33: 2019-06-18 | EY33: -63181 | EZ33: 2019-06-18 | FA33: 44891 | FB33: 33 | FC33: 2019-06-18 | FD33: -304330 | FE33: 2019-06-18 | FF33: 217723 | FG33: 2019-06-18 | FH33: 86607 | FI33: 33 | FJ33: 2019-06-18 | FK33: 16539 | FL33: 2019-06-18 | FM33: -12610 | FN33: 2019-06-18 | FO33: -3929
F34: =IFERROR(F11-G11,"") -> -6296 | I34: =IFERROR(I11-J11,"") -> 15938 | K34: =IFERROR(N11-O11,"") -> -9642 | Y34: =IFERROR(Y11-Z11,"") -> -34013 | AB34: =IFERROR(AB11-AC11,"") -> 68197 | AD34: =IFERROR(AG11-AH11,"") -> -34184 | AM34: 34 | AN34: 2019-06-11 | AO34: 239375 | AP34: 2019-06-11 | AQ34: -266070 | AR34: 2019-06-11 | AS34: 26695 | AT34: 34 | AU34: 2019-06-11 | AV34: -47669 | AW34: 2019-06-11 | AX34: 71790 | AY34: 2019-06-11 | AZ34: -24121 | BA34: 34 | BB34: 2019-06-11 | BC34: 9710 | BD34: 2019-06-11 | BE34: 893 | BF34: 2019-06-11 | BG34: -10603 | BH34: 34 | BI34: 2019-06-11 | BJ34: -15291 | BK34: 2019-06-11 | BL34: 7720 | BM34: 2019-06-11 | BN34: 7571 | BO34: 34 | BP34: 2019-06-11 | BQ34: 32378 | BR34: 2019-06-11 | BS34: -47447 | BT34: 2019-06-11 | BU34: 15069 | BV34: 34 | BW34: 2019-06-11 | BX34: -5244 | BY34: 2019-06-11 | BZ34: -429 | CA34: 2019-06-11 | CB34: 5673 | CC34: 34 | CD34: 2019-06-11 | CE34: 170 | CF34: 2019-06-11 | CG34: -1030 | CH34: 2019-06-11 | CI34: 860 | CJ34: 34 | CK34: 2019-06-11 | CL34: 3179 | CM34: 2019-06-11 | CN34: -4148 | CO34: 2019-06-11 | CP34: 969 | CQ34: 34 | CR34: 2019-06-11 | CS34: -4372 | CT34: 2019-06-11 | CU34: 4853 | CV34: 2019-06-11 | CW34: -481 | CX34: 34 | CY34: 2019-06-11 | CZ34: -118952 | DA34: 2019-06-11 | DB34: 138996 | DC34: 2019-06-11 | DD34: -20044 | DE34: 34 | DF34: 2019-06-11 | DG34: -175614 | DH34: 2019-06-11 | DI34: 101573 | DJ34: 2019-06-11 | DK34: 74041 | DL34: 34 | DM34: 2019-06-11 | DN34: -61730 | DO34: 2019-06-11 | DP34: 41400 | DQ34: 2019-06-11 | DR34: 20330 | DS34: 34 | DT34: 2019-06-11 | DV34: 2019-06-11 | DX34: 2019-06-11 | DZ34: 34 | EA34: 2019-06-11 | EB34: -365988 | EC34: 2019-06-11 | ED34: 311124 | EE34: 2019-06-11 | EF34: 54864 | EG34: 34 | EH34: 2019-06-11 | EI34: 37020 | EJ34: 2019-06-11 | EK34: -835 | EL34: 2019-06-11 | EM34: -36185 | EN34: 34 | EO34: 2019-06-11 | EQ34: 2019-06-11 | ES34: 2019-06-11 | EU34: 34 | EV34: 2019-06-11 | EW34: 18189 | EX34: 2019-06-11 | EY34: -58100 | EZ34: 2019-06-11 | FA34: 39911 | FB34: 34 | FC34: 2019-06-11 | FD34: -300126 | FE34: 2019-06-11 | FF34: 214298 | FG34: 2019-06-11 | FH34: 85828 | FI34: 34 | FJ34: 2019-06-11 | FK34: 6253 | FL34: 2019-06-11 | FM34: -2936 | FN34: 2019-06-11 | FO34: -3317
AM35: =AM34+1 -> 35 | AN35: 2019-06-04 | AO35: 224015 | AP35: 2019-06-04 | AQ35: -250705 | AR35: 2019-06-04 | AS35: 26690 | AT35: =AT34+1 -> 35 | AU35: 2019-06-04 | AV35: -47893 | AW35: 2019-06-04 | AX35: 71470 | AY35: 2019-06-04 | AZ35: -23577 | BA35: =BA34+1 -> 35 | BB35: 2019-06-04 | BC35: -3685 | BD35: 2019-06-04 | BE35: 11983 | BF35: 2019-06-04 | BG35: -8298 | BH35: =BH34+1 -> 35 | BI35: 2019-06-04 | BJ35: -13137 | BK35: 2019-06-04 | BL35: 8695 | BM35: 2019-06-04 | BN35: 4442 | BO35: =BO34+1 -> 35 | BP35: 2019-06-04 | BQ35: 33436 | BR35: 2019-06-04 | BS35: -50125 | BT35: 2019-06-04 | BU35: 16689 | BV35: =BV34+1 -> 35 | BW35: 2019-06-04 | BX35: -6112 | BY35: 2019-06-04 | BZ35: 1901 | CA35: 2019-06-04 | CB35: 4211 | CC35: =CC34+1 -> 35 | CD35: 2019-06-04 | CE35: -223 | CF35: 2019-06-04 | CG35: -388 | CH35: 2019-06-04 | CI35: 611 | CJ35: =CJ34+1 -> 35 | CK35: 2019-06-04 | CL35: 3409 | CM35: 2019-06-04 | CN35: -4240 | CO35: 2019-06-04 | CP35: 831 | CQ35: =CQ34+1 -> 35 | CR35: 2019-06-04 | CS35: -3550 | CT35: 2019-06-04 | CU35: 4021 | CV35: 2019-06-04 | CW35: -471 | CX35: =CX34+1 -> 35 | CY35: 2019-06-04 | CZ35: -167561 | DA35: 2019-06-04 | DB35: 185007 | DC35: 2019-06-04 | DD35: -17446 | DE35: =DE34+1 -> 35 | DF35: 2019-06-04 | DG35: -46058 | DH35: 2019-06-04 | DI35: -9940 | DJ35: 2019-06-04 | DK35: 55998 | DL35: =DL34+1 -> 35 | DM35: 2019-06-04 | DN35: -164084 | DO35: 2019-06-04 | DP35: 135900 | DQ35: 2019-06-04 | DR35: 28184 | DS35: =DS34+1 -> 35 | DT35: 2019-06-04 | DV35: 2019-06-04 | DX35: 2019-06-04 | DZ35: =DZ34+1 -> 35 | EA35: 2019-06-04 | EB35: -467702 | EC35: 2019-06-04 | ED35: 418961 | EE35: 2019-06-04 | EF35: 48741 | EG35: =EG34+1 -> 35 | EH35: 2019-06-04 | EI35: 25423 | EJ35: 2019-06-04 | EK35: 16546 | EL35: 2019-06-04 | EM35: -41969 | EN35: =EN34+1 -> 35 | EO35: 2019-06-04 | EQ35: 2019-06-04 | ES35: 2019-06-04 | EU35: =EU34+1 -> 35 | EV35: 2019-06-04 | EW35: -9512 | EX35: 2019-06-04 | EY35: -32456 | EZ35: 2019-06-04 | FA35: 41968 | FB35: =FB34+1 -> 35 | FC35: 2019-06-04 | FD35: -319594 | FE35: 2019-06-04 | FF35: 229925 | FG35: 2019-06-04 | FH35: 89669 | FI35: =FI34+1 -> 35 | FJ35: 2019-06-04 | FK35: 2131 | FL35: 2019-06-04 | FM35: 2218 | FN35: 2019-06-04 | FO35: -4349
G36: =TRIM(Sheet4!B1)&" Versus "&TRIM(Sheet5!B1) -> SOYBEANS - CHICAGO BOARD OF TRADE Code-005602 Versus SOYBEANS - CHICAGO BOARD OF TRADE Code-005602 | AM36: 36 | AN36: 2019-05-28 | AO36: 109994 | AP36: 2019-05-28 | AQ36: -156537 | AR36: 2019-05-28 | AS36: 46543 | AT36: 36 | AU36: 2019-05-28 | AV36: -76983 | AW36: 2019-05-28 | AX36: 92136 | AY36: 2019-05-28 | AZ36: -15153 | BA36: 36 | BB36: 2019-05-28 | BC36: -5371 | BD36: 2019-05-28 | BE36: 13659 | BF36: 2019-05-28 | BG36: -8288 | BH36: 36 | BI36: 2019-05-28 | BJ36: -22234 | BK36: 2019-05-28 | BL36: 15925 | BM36: 2019-05-28 | BN36: 6309 | BO36: 36 | BP36: 2019-05-28 | BQ36: 11029 | BR36: 2019-05-28 | BS36: -30131 | BT36: 2019-05-28 | BU36: 19102 | BV36: 36 | BW36: 2019-05-28 | BX36: -18071 | BY36: 2019-05-28 | BZ36: 8761 | CA36: 2019-05-28 | CB36: 9310 | CC36: 36 | CD36: 2019-05-28 | CE36: -1137 | CF36: 2019-05-28 | CG36: 570 | CH36: 2019-05-28 | CI36: 567 | CJ36: 36 | CK36: 2019-05-28 | CL36: 3164 | CM36: 2019-05-28 | CN36: -4056 | CO36: 2019-05-28 | CP36: 892 | CQ36: 36 | CR36: 2019-05-28 | CS36: -5470 | CT36: 2019-05-28 | CU36: 5332 | CV36: 2019-05-28 | CW36: 138 | CX36: 36 | CY36: 2019-05-28 | CZ36: -190550 | DA36: 2019-05-28 | DB36: 205506 | DC36: 2019-05-28 | DD36: -14956 | DE36: 36 | DF36: 2019-05-28 | DG36: -102797 | DH36: 2019-05-28 | DI36: 31508 | DJ36: 2019-05-28 | DK36: 71289 | DL36: 36 | DM36: 2019-05-28 | DN36: -111437 | DO36: 2019-05-28 | DP36: 64772 | DQ36: 2019-05-28 | DR36: 46665 | DS36: 36 | DT36: 2019-05-28 | DV36: 2019-05-28 | DX36: 2019-05-28 | DZ36: 36 | EA36: 2019-05-28 | EB36: -376173 | EC36: 2019-05-28 | ED36: 306309 | EE36: 2019-05-28 | EF36: 69864 | EG36: 36 | EH36: 2019-05-28 | EI36: -3501 | EJ36: 2019-05-28 | EK36: 42056 | EL36: 2019-05-28 | EM36: -38555 | EN36: 36 | EO36: 2019-05-28 | EQ36: 2019-05-28 | ES36: 2019-05-28 | EU36: 36 | EV36: 2019-05-28 | EW36: -9331 | EX36: 2019-05-28 | EY36: -50221 | EZ36: 2019-05-28 | FA36: 59552 | FB36: 36 | FC36: 2019-05-28 | FD36: -325223 | FE36: 2019-05-28 | FF36: 243190 | FG36: 2019-05-28 | FH36: 82033 | FI36: 36 | FJ36: 2019-05-28 | FK36: 8626 | FL36: 2019-05-28 | FM36: -9593 | FN36: 2019-05-28 | FO36: 967
AM37: 37 | AN37: 2019-05-21 | AO37: 3245 | AP37: 2019-05-21 | AQ37: -46482 | AR37: 2019-05-21 | AS37: 43237 | AT37: 37 | AU37: 2019-05-21 | AV37: -99941 | AW37: 2019-05-21 | AX37: 119045 | AY37: 2019-05-21 | AZ37: -19104 | BA37: 37 | BB37: 2019-05-21 | BC37: -16131 | BD37: 2019-05-21 | BE37: 24926 | BF37: 2019-05-21 | BG37: -8795 | BH37: 37 | BI37: 2019-05-21 | BJ37: -32251 | BK37: 2019-05-21 | BL37: 26907 | BM37: 2019-05-21 | BN37: 5344 | BO37: 37 | BP37: 2019-05-21 | BQ37: -3177 | BR37: 2019-05-21 | BS37: -12604 | BT37: 2019-05-21 | BU37: 15781 | BV37: 37 | BW37: 2019-05-21 | BX37: -25716 | BY37: 2019-05-21 | BZ37: 14091 | CA37: 2019-05-21 | CB37: 11625 | CC37: 37 | CD37: 2019-05-21 | CE37: -2190 | CF37: 2019-05-21 | CG37: 2040 | CH37: 2019-05-21 | CI37: 150 | CJ37: 37 | CK37: 2019-05-21 | CL37: 2787 | CM37: 2019-05-21 | CN37: -3559 | CO37: 2019-05-21 | CP37: 772 | CQ37: 37 | CR37: 2019-05-21 | CS37: -5463 | CT37: 2019-05-21 | CU37: 5330 | CV37: 2019-05-21 | CW37: 133 | CX37: 37 | CY37: 2019-05-21 | CZ37: -152578 | DA37: 2019-05-21 | DB37: 168547 | DC37: 2019-05-21 | DD37: -15969 | DE37: 37 | DF37: 2019-05-21 | DG37: -33815 | DH37: 2019-05-21 | DI37: -53318 | DJ37: 2019-05-21 | DK37: 87133 | DL37: 37 | DM37: 2019-05-21 | DN37: -168676 | DO37: 2019-05-21 | DP37: 178675 | DQ37: 2019-05-21 | DR37: -9999 | DS37: 37 | DT37: 2019-05-21 | DV37: 2019-05-21 | DX37: 2019-05-21 | DZ37: 37 | EA37: 2019-05-21 | EB37: -423351 | EC37: 2019-05-21 | ED37: 331218 | EE37: 2019-05-21 | EF37: 92133 | EG37: 37 | EH37: 2019-05-21 | EI37: -17970 | EJ37: 2019-05-21 | EK37: 61933 | EL37: 2019-05-21 | EM37: -43963 | EN37: 37 | EO37: 2019-05-21 | EQ37: 2019-05-21 | ES37: 2019-05-21 | EU37: 37 | EV37: 2019-05-21 | EW37: -44010 | EX37: 2019-05-21 | EY37: -3623 | EZ37: 2019-05-21 | FA37: 47633 | FB37: 37 | FC37: 2019-05-21 | FD37: -327346 | FE37: 2019-05-21 | FF37: 237664 | FG37: 2019-05-21 | FH37: 89682 | FI37: 37 | FJ37: 2019-05-21 | FK37: 17107 | FL37: 2019-05-21 | FM37: -14764 | FN37: 2019-05-21 | FO37: -2343
K38: =D7 -> Total | M38: =F7 -> Reportable Positions | AE38: =N7 -> Nonreportable | AM38: 38 | AN38: 2019-05-14 | AO38: -183889 | AP38: 2019-05-14 | AQ38: 115579 | AR38: 2019-05-14 | AS38: 68310 | AT38: 38 | AU38: 2019-05-14 | AV38: -123395 | AW38: 2019-05-14 | AX38: 142665 | AY38: 2019-05-14 | AZ38: -19270 | BA38: 38 | BB38: 2019-05-14 | BC38: -43405 | BD38: 2019-05-14 | BE38: 49499 | BF38: 2019-05-14 | BG38: -6094 | BH38: 38 | BI38: 2019-05-14 | BJ38: -44236 | BK38: 2019-05-14 | BL38: 39018 | BM38: 2019-05-14 | BN38: 5218 | BO38: 38 | BP38: 2019-05-14 | BQ38: -11295 | BR38: 2019-05-14 | BS38: -3578 | BT38: 2019-05-14 | BU38: 14873 | BV38: 38 | BW38: 2019-05-14 | BX38: -32712 | BY38: 2019-05-14 | BZ38: 20885 | CA38: 2019-05-14 | CB38: 11827 | CC38: 38 | CD38: 2019-05-14 | CE38: -2551 | CF38: 2019-05-14 | CG38: 2420 | CH38: 2019-05-14 | CI38: 131 | CJ38: 38 | CK38: 2019-05-14 | CL38: 2441 | CM38: 2019-05-14 | CN38: -3335 | CO38: 2019-05-14 | CP38: 894 | CQ38: 38 | CR38: 2019-05-14 | CS38: -5492 | CT38: 2019-05-14 | CU38: 5332 | CV38: 2019-05-14 | CW38: 160 | CX38: 38 | CY38: 2019-05-14 | CZ38: -113557 | DA38: 2019-05-14 | DB38: 135347 | DC38: 2019-05-14 | DD38: -21790 | DE38: 38 | DF38: 2019-05-14 | DG38: -33305 | DH38: 2019-05-14 | DI38: -32579 | DJ38: 2019-05-14 | DK38: 65884 | DL38: 38 | DM38: 2019-05-14 | DN38: -137903 | DO38: 2019-05-14 | DP38: 120825 | DQ38: 2019-05-14 | DR38: 17078 | DS38: 38 | DT38: 2019-05-14 | DV38: 2019-05-14 | DX38: 2019-05-14 | DZ38: 38 | EA38: 2019-05-14 | EB38: -352817 | EC38: 2019-05-14 | ED38: 300975 | EE38: 2019-05-14 | EF38: 51842 | EG38: 38 | EH38: 2019-05-14 | EI38: -12793 | EJ38: 2019-05-14 | EK38: 47566 | EL38: 2019-05-14 | EM38: -34773 | EN38: 38 | EO38: 2019-05-14 | EQ38: 2019-05-14 | ES38: 2019-05-14 | EU38: 38 | EV38: 2019-05-14 | EW38: -45943 | EX38: 2019-05-14 | EY38: 3593 | EZ38: 2019-05-14 | FA38: 42350 | FB38: 38 | FC38: 2019-05-14 | FD38: -333509 | FE38: 2019-05-14 | FF38: 245439 | FG38: 2019-05-14 | FH38: 88070 | FI38: 38 | FJ38: 2019-05-14 | FK38: 22360 | FL38: 2019-05-14 | FM38: -22340 | FN38: 2019-05-14 | FO38: -20
K39: =D9 -> Open | M39: =F9 -> Non-Commercial | U39: =I9 -> Commercial | AA39: =K9 -> Total | AE39: =N8 -> Positions | AM39: 39 | AN39: 2019-05-07 | AO39: -191048 | AP39: 2019-05-07 | AQ39: 118765 | AR39: 2019-05-07 | AS39: 72283 | AT39: 39 | AU39: 2019-05-07 | AV39: -117511 | AW39: 2019-05-07 | AX39: 139026 | AY39: 2019-05-07 | AZ39: -21515 | BA39: 39 | BB39: 2019-05-07 | BC39: -48697 | BD39: 2019-05-07 | BE39: 53593 | BF39: 2019-05-07 | BG39: -4896 | BH39: 39 | BI39: 2019-05-07 | BJ39: -43575 | BK39: 2019-05-07 | BL39: 40377 | BM39: 2019-05-07 | BN39: 3198 | BO39: 39 | BP39: 2019-05-07 | BQ39: -5584 | BR39: 2019-05-07 | BS39: -4037 | BT39: 2019-05-07 | BU39: 9621 | BV39: 39 | BW39: 2019-05-07 | BX39: -35965 | BY39: 2019-05-07 | BZ39: 23455 | CA39: 2019-05-07 | CB39: 12510 | CC39: 39 | CD39: 2019-05-07 | CE39: -3154 | CF39: 2019-05-07 | CG39: 3103 | CH39: 2019-05-07 | CI39: 51 | CJ39: 39 | CK39: 2019-05-07 | CL39: 2478 | CM39: 2019-05-07 | CN39: -3460 | CO39: 2019-05-07 | CP39: 982 | CQ39: 39 | CR39: 2019-05-07 | CS39: -8585 | CT39: 2019-05-07 | CU39: 8425 | CV39: 2019-05-07 | CW39: 160 | CX39: 39 | CY39: 2019-05-07 | CZ39: -155724 | DA39: 2019-05-07 | DB39: 166288 | DC39: 2019-05-07 | DD39: -10564 | DE39: 39 | DF39: 2019-05-07 | DG39: -67889 | DH39: 2019-05-07 | DI39: -8642 | DJ39: 2019-05-07 | DK39: 76531 | DL39: 39 | DM39: 2019-05-07 | DN39: -132761 | DO39: 2019-05-07 | DP39: 134397 | DQ39: 2019-05-07 | DR39: -1636 | DS39: 39 | DT39: 2019-05-07 | DV39: 2019-05-07 | DX39: 2019-05-07 | DZ39: 39 | EA39: 2019-05-07 | EB39: -330562 | EC39: 2019-05-07 | ED39: 292190 | EE39: 2019-05-07 | EF39: 38372 | EG39: 39 | EH39: 2019-05-07 | EI39: -35007 | EJ39: 2019-05-07 | EK39: 61211 | EL39: 2019-05-07 | EM39: -26204 | EN39: 39 | EO39: 2019-05-07 | EQ39: 2019-05-07 | ES39: 2019-05-07 | EU39: 39 | EV39: 2019-05-07 | EW39: -35025 | EX39: 2019-05-07 | EY39: 12481 | EZ39: 2019-05-07 | FA39: 22544 | FB39: 39 | FC39: 2019-05-07 | FD39: -314147 | FE39: 2019-05-07 | FF39: 245250 | FG39: 2019-05-07 | FH39: 68897 | FI39: 39 | FJ39: 2019-05-07 | FK39: 30700 | FL39: 2019-05-07 | FM39: -30025 | FN39: 2019-05-07 | FO39: -675
K40: =D10 -> Interest | M40: =F10 -> Long | P40: =G10 -> Short | S40: =H10 -> Spread | U40: =I10 -> Long | Y40: =J10 -> Short | AA40: =K10 -> Long | AC40: =L10 -> Short | AE40: =N10 -> Long | AH40: =O10 -> Short | AM40: 40 | AN40: 2019-04-30 | AO40: -208292 | AP40: 2019-04-30 | AQ40: 142912 | AR40: 2019-04-30 | AS40: 65380 | AT40: 40 | AU40: 2019-04-30 | AV40: -118335 | AW40: 2019-04-30 | AX40: 145279 | AY40: 2019-04-30 | AZ40: -26944 | BA40: 40 | BB40: 2019-04-30 | BC40: -55178 | BD40: 2019-04-30 | BE40: 60765 | BF40: 2019-04-30 | BG40: -5587 | BH40: 40 | BI40: 2019-04-30 | BJ40: -34201 | BK40: 2019-04-30 | BL40: 32468 | BM40: 2019-04-30 | BN40: 1733 | BO40: 40 | BP40: 2019-04-30 | BQ40: 16724 | BR40: 2019-04-30 | BS40: -25226 | BT40: 2019-04-30 | BU40: 8502 | BV40: 40 | BW40: 2019-04-30 | BX40: -36041 | BY40: 2019-04-30 | BZ40: 24868 | CA40: 2019-04-30 | CB40: 11173 | CC40: 40 | CD40: 2019-04-30 | CE40: -3129 | CF40: 2019-04-30 | CG40: 3216 | CH40: 2019-04-30 | CI40: -87 | CJ40: 40 | CK40: 2019-04-30 | CL40: 2525 | CM40: 2019-04-30 | CN40: -3386 | CO40: 2019-04-30 | CP40: 861 | CQ40: 40 | CR40: 2019-04-30 | CS40: -13941 | CT40: 2019-04-30 | CU40: 13779 | CV40: 2019-04-30 | CW40: 162 | CX40: 40 | CY40: 2019-04-30 | CZ40: -222037 | DA40: 2019-04-30 | DB40: 231101 | DC40: 2019-04-30 | DD40: -9064 | DE40: 40 | DF40: 2019-04-30 | DG40: -47497 | DH40: 2019-04-30 | DI40: -19191 | DJ40: 2019-04-30 | DK40: 66688 | DL40: 40 | DM40: 2019-04-30 | DN40: -106876 | DO40: 2019-04-30 | DP40: 99820 | DQ40: 2019-04-30 | DR40: 7056 | DS40: 40 | DT40: 2019-04-30 | DV40: 2019-04-30 | DX40: 2019-04-30 | DZ40: 40 | EA40: 2019-04-30 | EB40: -287921 | EC40: 2019-04-30 | ED40: 249014 | EE40: 2019-04-30 | EF40: 38907 | EG40: 40 | EH40: 2019-04-30 | EI40: -17804 | EJ40: 2019-04-30 | EK40: 53284 | EL40: 2019-04-30 | EM40: -35480 | EN40: 40 | EO40: 2019-04-30 | EQ40: 2019-04-30 | ES40: 2019-04-30 | EU40: 40 | EV40: 2019-04-30 | EW40: -38071 | EX40: 2019-04-30 | EY40: 16992 | EZ40: 2019-04-30 | FA40: 21079 | FB40: 40 | FC40: 2019-04-30 | FD40: -323880 | FE40: 2019-04-30 | FF40: 255885 | FG40: 2019-04-30 | FH40: 67995 | FI40: 40 | FJ40: 2019-04-30 | FK40: 24217 | FL40: 2019-04-30 | FM40: -24135 | FN40: 2019-04-30 | FO40: -82
G41: =IFERROR(Sheet4!C3,"") -> Futures Only, January 28, 2020 | K41: =D11 -> 818168 | M41: =F11 -> 134,873 | P41: =G11 -> 141,169 | S41: =H11 -> 184,694 | U41: =I11 -> 441,346 | Y41: =J11 -> 425,408 | AA41: =K11 -> 760,913 | AC41: =L11 -> 751,271 | AE41: =N11 -> 57,255 | AH41: =O11 -> 66,897 | AM41: 41 | AN41: 2019-04-23 | AO41: -173142 | AP41: 2019-04-23 | AQ41: 112463 | AR41: 2019-04-23 | AS41: 60679 | AT41: 41 | AU41: 2019-04-23 | AV41: -86500 | AW41: 2019-04-23 | AX41: 114541 | AY41: 2019-04-23 | AZ41: -28041 | BA41: 41 | BB41: 2019-04-23 | BC41: -47073 | BD41: 2019-04-23 | BE41: 54727 | BF41: 2019-04-23 | BG41: -7654 | BH41: 41 | BI41: 2019-04-23 | BJ41: -22981 | BK41: 2019-04-23 | BL41: 16984 | BM41: 2019-04-23 | BN41: 5997 | BO41: 41 | BP41: 2019-04-23 | BQ41: 10328 | BR41: 2019-04-23 | BS41: -19238 | BT41: 2019-04-23 | BU41: 8910 | BV41: 41 | BW41: 2019-04-23 | BX41: -31193 | BY41: 2019-04-23 | BZ41: 20435 | CA41: 2019-04-23 | CB41: 10758 | CC41: 41 | CD41: 2019-04-23 | CE41: -2421 | CF41: 2019-04-23 | CG41: 2169 | CH41: 2019-04-23 | CI41: 252 | CJ41: 41 | CK41: 2019-04-23 | CL41: 2062 | CM41: 2019-04-23 | CN41: -2789 | CO41: 2019-04-23 | CP41: 727 | CQ41: 41 | CR41: 2019-04-23 | CS41: -13907 | CT41: 2019-04-23 | CU41: 13779 | CV41: 2019-04-23 | CW41: 128 | CX41: 41 | CY41: 2019-04-23 | CZ41: -200113 | DA41: 2019-04-23 | DB41: 215069 | DC41: 2019-04-23 | DD41: -14956 | DE41: 41 | DF41: 2019-04-23 | DG41: -130846 | DH41: 2019-04-23 | DI41: 65797 | DJ41: 2019-04-23 | DK41: 65049 | DL41: 41 | DM41: 2019-04-23 | DN41: -46822 | DO41: 2019-04-23 | DP41: 51388 | DQ41: 2019-04-23 | DR41: -4566 | DS41: 41 | DT41: 2019-04-23 | DV41: 2019-04-23 | DX41: 2019-04-23 | DZ41: 41 | EA41: 2019-04-23 | EB41: -323791 | EC41: 2019-04-23 | ED41: 311601 | EE41: 2019-04-23 | EF41: 12190 | EG41: 41 | EH41: 2019-04-23 | EI41: -27410 | EJ41: 2019-04-23 | EK41: 56433 | EL41: 2019-04-23 | EM41: -29023 | EN41: 41 | EO41: 2019-04-23 | EQ41: 2019-04-23 | ES41: 2019-04-23 | EU41: 41 | EV41: 2019-04-23 | EW41: -40045 | EX41: 2019-04-23 | EY41: 16762 | EZ41: 2019-04-23 | FA41: 23283 | FB41: 41 | FC41: 2019-04-23 | FD41: -322831 | FE41: 2019-04-23 | FF41: 247731 | FG41: 2019-04-23 | FH41: 75100 | FI41: 41 | FJ41: 2019-04-23 | FK41: 24665 | FL41: 2019-04-23 | FM41: -26139 | FN41: 2019-04-23 | FO41: 1474
G42: =Sheet5!C3 -> Futures Only, November 06, 2018 | K42: =W11 -> 749701 | M42: =Y11 -> 135,508 | P42: =Z11 -> 169,521 | S42: =AA11 -> 165,237 | U42: =AB11 -> 394,362 | Y42: =AC11 -> 326,165 | AA42: =AD11 -> 695,107 | AC42: =AE11 -> 660,923 | AE42: =AG11 -> 54,594 | AH42: =AH11 -> 88,778 | AM42: 42 | AN42: 2019-04-16 | AO42: -154491 | AP42: 2019-04-16 | AQ42: 94462 | AR42: 2019-04-16 | AS42: 60029 | AT42: 42 | AU42: 2019-04-16 | AV42: -56906 | AW42: 2019-04-16 | AX42: 88307 | AY42: 2019-04-16 | AZ42: -31401 | BA42: 42 | BB42: 2019-04-16 | BC42: -41550 | BD42: 2019-04-16 | BE42: 48611 | BF42: 2019-04-16 | BG42: -7061 | BH42: 42 | BI42: 2019-04-16 | BJ42: -6892 | BK42: 2019-04-16 | BL42: 4795 | BM42: 2019-04-16 | BN42: 2097 | BO42: 42 | BP42: 2019-04-16 | BQ42: 11383 | BR42: 2019-04-16 | BS42: -23522 | BT42: 2019-04-16 | BU42: 12139 | BV42: 42 | BW42: 2019-04-16 | BX42: -32767 | BY42: 2019-04-16 | BZ42: 19731 | CA42: 2019-04-16 | CB42: 13036 | CC42: 42 | CD42: 2019-04-16 | CE42: -2426 | CF42: 2019-04-16 | CG42: 2213 | CH42: 2019-04-16 | CI42: 213 | CJ42: 42 | CK42: 2019-04-16 | CL42: 1611 | CM42: 2019-04-16 | CN42: -2439 | CO42: 2019-04-16 | CP42: 828 | CQ42: 42 | CR42: 2019-04-16 | CS42: -14114 | CT42: 2019-04-16 | CU42: 13899 | CV42: 2019-04-16 | CW42: 215 | CX42: 42 | CY42: 2019-04-16 | CZ42: -182331 | DA42: 2019-04-16 | DB42: 186517 | DC42: 2019-04-16 | DD42: -4186 | DE42: 42 | DF42: 2019-04-16 | DG42: -171622 | DH42: 2019-04-16 | DI42: 110674 | DJ42: 2019-04-16 | DK42: 60948 | DL42: 42 | DM42: 2019-04-16 | DN42: -62911 | DO42: 2019-04-16 | DP42: 57042 | DQ42: 2019-04-16 | DR42: 5869 | DS42: 42 | DT42: 2019-04-16 | DV42: 2019-04-16 | DX42: 2019-04-16 | DZ42: 42 | EA42: 2019-04-16 | EB42: -275650 | EC42: 2019-04-16 | ED42: 263707 | EE42: 2019-04-16 | EF42: 11943 | EG42: 42 | EH42: 2019-04-16 | EI42: -26512 | EJ42: 2019-04-16 | EK42: 51818 | EL42: 2019-04-16 | EM42: -25306 | EN42: 42 | EO42: 2019-04-16 | EQ42: 2019-04-16 | ES42: 2019-04-16 | EU42: 42 | EV42: 2019-04-16 | EW42: -24589 | EX42: 2019-04-16 | EY42: 3903 | EZ42: 2019-04-16 | FA42: 20686 | FB42: 42 | FC42: 2019-04-16 | FD42: -313415 | FE42: 2019-04-16 | FF42: 236624 | FG42: 2019-04-16 | FH42: 76791 | FI42: 42 | FJ42: 2019-04-16 | FK42: 27459 | FL42: 2019-04-16 | FM42: -30265 | FN42: 2019-04-16 | FO42: 2806
H43: Difference: | K43: =IFERROR(K41-K42,"") -> 68467 | M43: =IFERROR(M41-M42,"") -> -635 | P43: =IFERROR(P41-P42,"") -> -28352 | S43: =IFERROR(S41-S42,"") -> 19457 | U43: =IFERROR(U41-U42,"") -> 46984 | Y43: =IFERROR(Y41-Y42,"") -> 99243 | AA43: =IFERROR(AA41-AA42,"") -> 65806 | AC43: =IFERROR(AC41-AC42,"") -> 90348 | AE43: =IFERROR(AE41-AE42,"") -> 2661 | AH43: =IFERROR(AH41-AH42,"") -> -21881 | AM43: 43 | AN43: 2019-04-09 | AO43: -129238 | AP43: 2019-04-09 | AQ43: 73926 | AR43: 2019-04-09 | AS43: 55312 | AT43: 43 | AU43: 2019-04-09 | AV43: -38643 | AW43: 2019-04-09 | AX43: 68121 | AY43: 2019-04-09 | AZ43: -29478 | BA43: 43 | BB43: 2019-04-09 | BC43: -26266 | BD43: 2019-04-09 | BE43: 33805 | BF43: 2019-04-09 | BG43: -7539 | BH43: 43 | BI43: 2019-04-09 | BJ43: -3257 | BK43: 2019-04-09 | BL43: -696 | BM43: 2019-04-09 | BN43: 3953 | BO43: 43 | BP43: 2019-04-09 | BQ43: 13427 | BR43: 2019-04-09 | BS43: -26824 | BT43: 2019-04-09 | BU43: 13397 | BV43: 43 | BW43: 2019-04-09 | BX43: -29483 | BY43: 2019-04-09 | BZ43: 13699 | CA43: 2019-04-09 | CB43: 15784 | CC43: 43 | CD43: 2019-04-09 | CE43: -2028 | CF43: 2019-04-09 | CG43: 2010 | CH43: 2019-04-09 | CI43: 18 | CJ43: 43 | CK43: 2019-04-09 | CL43: 812 | CM43: 2019-04-09 | CN43: -1439 | CO43: 2019-04-09 | CP43: 627 | CQ43: 43 | CR43: 2019-04-09 | CS43: -13520 | CT43: 2019-04-09 | CU43: 13903 | CV43: 2019-04-09 | CW43: -383 | CX43: 43 | CY43: 2019-04-09 | CZ43: -152039 | DA43: 2019-04-09 | DB43: 162878 | DC43: 2019-04-09 | DD43: -10839 | DE43: 43 | DF43: 2019-04-09 | DG43: -129458 | DH43: 2019-04-09 | DI43: 50901 | DJ43: 2019-04-09 | DK43: 78557 | DL43: 43 | DM43: 2019-04-09 | DN43: -53575 | DO43: 2019-04-09 | DP43: 60746 | DQ43: 2019-04-09 | DR43: -7171 | DS43: 43 | DT43: 2019-04-09 | DV43: 2019-04-09 | DX43: 2019-04-09 | DZ43: 43 | EA43: 2019-04-09 | EB43: -261564 | EC43: 2019-04-09 | ED43: 217234 | EE43: 2019-04-09 | EF43: 44330 | EG43: 43 | EH43: 2019-04-09 | EI43: -7495 | EJ43: 2019-04-09 | EK43: 34483 | EL43: 2019-04-09 | EM43: -26988 | EN43: 43 | EO43: 2019-04-09 | EQ43: 2019-04-09 | ES43: 2019-04-09 | EU43: 43 | EV43: 2019-04-09 | EW43: -25332 | EX43: 2019-04-09 | EY43: 8632 | EZ43: 2019-04-09 | FA43: 16700 | FB43: 43 | FC43: 2019-04-09 | FD43: -304433 | FE43: 2019-04-09 | FF43: 221481 | FG43: 2019-04-09 | FH43: 82952 | FI43: 43 | FJ43: 2019-04-09 | FK43: 27121 | FL43: 2019-04-09 | FM43: -26860 | FN43: 2019-04-09 | FO43: -261
AM44: 44 | AN44: 2019-04-02 | AO44: -105111 | AP44: 2019-04-02 | AQ44: 49331 | AR44: 2019-04-02 | AS44: 55780 | AT44: 44 | AU44: 2019-04-02 | AV44: -44040 | AW44: 2019-04-02 | AX44: 76260 | AY44: 2019-04-02 | AZ44: -32220 | BA44: 44 | BB44: 2019-04-02 | BC44: -27404 | BD44: 2019-04-02 | BE44: 34752 | BF44: 2019-04-02 | BG44: -7348 | BH44: 44 | BI44: 2019-04-02 | BJ44: -3794 | BK44: 2019-04-02 | BL44: 254 | BM44: 2019-04-02 | BN44: 3540 | BO44: 44 | BP44: 2019-04-02 | BQ44: 8595 | BR44: 2019-04-02 | BS44: -20073 | BT44: 2019-04-02 | BU44: 11478 | BV44: 44 | BW44: 2019-04-02 | BX44: -32441 | BY44: 2019-04-02 | BZ44: 18242 | CA44: 2019-04-02 | CB44: 14199 | CC44: 44 | CD44: 2019-04-02 | CE44: -1578 | CF44: 2019-04-02 | CG44: 1188 | CH44: 2019-04-02 | CI44: 390 | CJ44: 44 | CK44: 2019-04-02 | CL44: 563 | CM44: 2019-04-02 | CN44: -1014 | CO44: 2019-04-02 | CP44: 451 | CQ44: 44 | CR44: 2019-04-02 | CS44: -14422 | CT44: 2019-04-02 | CU44: 14629 | CV44: 2019-04-02 | CW44: -207 | CX44: 44 | CY44: 2019-04-02 | CZ44: -167983 | DA44: 2019-04-02 | DB44: 185769 | DC44: 2019-04-02 | DD44: -17786 | DE44: 44 | DF44: 2019-04-02 | DG44: -86567 | DH44: 2019-04-02 | DI44: 22757 | DJ44: 2019-04-02 | DK44: 63810 | DL44: 44 | DM44: 2019-04-02 | DN44: -39916 | DO44: 2019-04-02 | DP44: 10900 | DQ44: 2019-04-02 | DR44: 29016 | DS44: 44 | DT44: 2019-04-02 | DV44: 2019-04-02 | DX44: 2019-04-02 | DZ44: 44 | EA44: 2019-04-02 | EB44: -224223 | EC44: 2019-04-02 | ED44: 164266 | EE44: 2019-04-02 | EF44: 59957 | EG44: 44 | EH44: 2019-04-02 | EI44: 3304 | EJ44: 2019-04-02 | EK44: 26747 | EL44: 2019-04-02 | EM44: -30051 | EN44: 44 | EO44: 2019-04-02 | EQ44: 2019-04-02 | ES44: 2019-04-02 | EU44: 44 | EV44: 2019-04-02 | EW44: -18958 | EX44: 2019-04-02 | EY44: 2465 | EZ44: 2019-04-02 | FA44: 16493 | FB44: 44 | FC44: 2019-04-02 | FD44: -300193 | FE44: 2019-04-02 | FF44: 228632 | FG44: 2019-04-02 | FH44: 71561 | FI44: 44 | FJ44: 2019-04-02 | FK44: 24534 | FL44: 2019-04-02 | FM44: -24701 | FN44: 2019-04-02 | FO44: 167
AM45: 45 | AN45: 2019-03-26 | AO45: -61848 | AP45: 2019-03-26 | AQ45: 15386 | AR45: 2019-03-26 | AS45: 46462 | AT45: 45 | AU45: 2019-03-26 | AV45: -27511 | AW45: 2019-03-26 | AX45: 63602 | AY45: 2019-03-26 | AZ45: -36091 | BA45: 45 | BB45: 2019-03-26 | BC45: -36076 | BD45: 2019-03-26 | BE45: 41628 | BF45: 2019-03-26 | BG45: -5552 | BH45: 45 | BI45: 2019-03-26 | BJ45: 8854 | BK45: 2019-03-26 | BL45: -13970 | BM45: 2019-03-26 | BN45: 5116 | BO45: 45 | BP45: 2019-03-26 | BQ45: 18122 | BR45: 2019-03-26 | BS45: -32175 | BT45: 2019-03-26 | BU45: 14053 | BV45: 45 | BW45: 2019-03-26 | BX45: -27002 | BY45: 2019-03-26 | BZ45: 13699 | CA45: 2019-03-26 | CB45: 13303 | CC45: 45 | CD45: 2019-03-26 | CE45: -2124 | CF45: 2019-03-26 | CG45: 1839 | CH45: 2019-03-26 | CI45: 285 | CJ45: 45 | CK45: 2019-03-26 | CL45: 633 | CM45: 2019-03-26 | CN45: -1013 | CO45: 2019-03-26 | CP45: 380 | CQ45: 45 | CR45: 2019-03-26 | CS45: -10565 | CT45: 2019-03-26 | CU45: 10549 | CV45: 2019-03-26 | CW45: 16 | CX45: 45 | CY45: 2019-03-26 | CZ45: -158214 | DA45: 2019-03-26 | DB45: 177505 | DC45: 2019-03-26 | DD45: -19291 | DE45: 45 | DF45: 2019-03-26 | DG45: -154014 | DH45: 2019-03-26 | DI45: 84221 | DJ45: 2019-03-26 | DK45: 69793 | DL45: 45 | DM45: 2019-03-26 | DN45: -165750 | DO45: 2019-03-26 | DP45: 109701 | DQ45: 2019-03-26 | DR45: 56049 | DS45: 45 | DT45: 2019-03-26 | DV45: 2019-03-26 | DX45: 2019-03-26 | DZ45: 45 | EA45: 2019-03-26 | EB45: -166518 | EC45: 2019-03-26 | ED45: 112102 | EE45: 2019-03-26 | EF45: 54416 | EG45: 45 | EH45: 2019-03-26 | EI45: -6934 | EJ45: 2019-03-26 | EK45: 47679 | EL45: 2019-03-26 | EM45: -40745 | EN45: 45 | EO45: 2019-03-26 | EQ45: 2019-03-26 | ES45: 2019-03-26 | EU45: 45 | EV45: 2019-03-26 | EW45: -17955 | EX45: 2019-03-26 | EY45: -9760 | EZ45: 2019-03-26 | FA45: 27715 | FB45: 45 | FC45: 2019-03-26 | FD45: -300062 | FE45: 2019-03-26 | FF45: 237616 | FG45: 2019-03-26 | FH45: 62446 | FI45: 45 | FJ45: 2019-03-26 | FK45: 26206 | FL45: 2019-03-26 | FM45: -25322 | FN45: 2019-03-26 | FO45: -884
AM46: 46 | AN46: 2019-03-19 | AO46: -100695 | AP46: 2019-03-19 | AQ46: 56534 | AR46: 2019-03-19 | AS46: 44161 | AT46: 46 | AU46: 2019-03-19 | AV46: -40480 | AW46: 2019-03-19 | AX46: 76205 | AY46: 2019-03-19 | AZ46: -35725 | BA46: 46 | BB46: 2019-03-19 | BC46: -42961 | BD46: 2019-03-19 | BE46: 44531 | BF46: 2019-03-19 | BG46: -1570 | BH46: 46 | BI46: 2019-03-19 | BJ46: 27645 | BK46: 2019-03-19 | BL46: -30679 | BM46: 2019-03-19 | BN46: 3034 | BO46: 46 | BP46: 2019-03-19 | BQ46: 1290 | BR46: 2019-03-19 | BS46: -12599 | BT46: 2019-03-19 | BU46: 11309 | BV46: 46 | BW46: 2019-03-19 | BX46: -29394 | BY46: 2019-03-19 | BZ46: 18541 | CA46: 2019-03-19 | CB46: 10853 | CC46: 46 | CD46: 2019-03-19 | CE46: -3438 | CF46: 2019-03-19 | CG46: 3149 | CH46: 2019-03-19 | CI46: 289 | CJ46: 46 | CK46: 2019-03-19 | CL46: 870 | CM46: 2019-03-19 | CN46: -1032 | CO46: 2019-03-19 | CP46: 162 | CQ46: 46 | CR46: 2019-03-19 | CS46: -10169 | CT46: 2019-03-19 | CU46: 10019 | CV46: 2019-03-19 | CW46: 150 | CX46: 46 | CY46: 2019-03-19 | CZ46: -120380 | DA46: 2019-03-19 | DB46: 144799 | DC46: 2019-03-19 | DD46: -24419 | DE46: 46 | DF46: 2019-03-19 | DG46: -126219 | DH46: 2019-03-19 | DI46: 53110 | DJ46: 2019-03-19 | DK46: 73109 | DL46: 46 | DM46: 2019-03-19 | DN46: -219673 | DO46: 2019-03-19 | DP46: 167517 | DQ46: 2019-03-19 | DR46: 52156 | DS46: 46 | DT46: 2019-03-19 | DV46: 2019-03-19 | DX46: 2019-03-19 | DZ46: 46 | EA46: 2019-03-19 | EB46: -163974 | EC46: 2019-03-19 | ED46: 101027 | EE46: 2019-03-19 | EF46: 62947 | EG46: 46 | EH46: 2019-03-19 | EI46: -34837 | EJ46: 2019-03-19 | EK46: 65823 | EL46: 2019-03-19 | EM46: -30986 | EN46: 46 | EO46: 2019-03-19 | EQ46: 2019-03-19 | ES46: 2019-03-19 | EU46: 46 | EV46: 2019-03-19 | EW46: -30218 | EX46: 2019-03-19 | EY46: 4132 | EZ46: 2019-03-19 | FA46: 26086 | FB46: 46 | FC46: 2019-03-19 | FD46: -277042 | FE46: 2019-03-19 | FF46: 212830 | FG46: 2019-03-19 | FH46: 64212 | FI46: 46 | FJ46: 2019-03-19 | FK46: 19173 | FL46: 2019-03-19 | FM46: -17780 | FN46: 2019-03-19 | FO46: -1393
G47: Copyright © 2018 | J47: Designed by Thom Hartle | AM47: 47 | AN47: 2019-03-12 | AO47: -102317 | AP47: 2019-03-12 | AQ47: 66192 | AR47: 2019-03-12 | AS47: 36125 | AT47: 47 | AU47: 2019-03-12 | AV47: -65967 | AW47: 2019-03-12 | AX47: 103279 | AY47: 2019-03-12 | AZ47: -37312 | BA47: 47 | BB47: 2019-03-12 | BC47: -43650 | BD47: 2019-03-12 | BE47: 43978 | BF47: 2019-03-12 | BG47: -328 | BH47: 47 | BI47: 2019-03-12 | BJ47: 46981 | BK47: 2019-03-12 | BL47: -51879 | BM47: 2019-03-12 | BN47: 4898 | BO47: 47 | BP47: 2019-03-12 | BQ47: -15791 | BR47: 2019-03-12 | BS47: 8465 | BT47: 2019-03-12 | BU47: 7326 | BV47: 47 | BW47: 2019-03-12 | BX47: -28622 | BY47: 2019-03-12 | BZ47: 16208 | CA47: 2019-03-12 | CB47: 12414 | CC47: 47 | CD47: 2019-03-12 | CE47: -3498 | CF47: 2019-03-12 | CG47: 3161 | CH47: 2019-03-12 | CI47: 337 | CJ47: 47 | CK47: 2019-03-12 | CL47: 883 | CM47: 2019-03-12 | CN47: -1227 | CO47: 2019-03-12 | CP47: 344 | CQ47: 47 | CR47: 2019-03-12 | CS47: -10179 | CT47: 2019-03-12 | CU47: 10019 | CV47: 2019-03-12 | CW47: 160 | CX47: 47 | CY47: 2019-03-12 | CZ47: -61174 | DA47: 2019-03-12 | DB47: 86177 | DC47: 2019-03-12 | DD47: -25003 | DE47: 47 | DF47: 2019-03-12 | DG47: -133391 | DH47: 2019-03-12 | DI47: 82949 | DJ47: 2019-03-12 | DK47: 50442 | DL47: 47 | DM47: 2019-03-12 | DN47: -203008 | DO47: 2019-03-12 | DP47: 151682 | DQ47: 2019-03-12 | DR47: 51326 | DS47: 47 | DT47: 2019-03-12 | DV47: 2019-03-12 | DX47: 2019-03-12 | DZ47: 47 | EA47: 2019-03-12 | EB47: -176434 | EC47: 2019-03-12 | ED47: 124729 | EE47: 2019-03-12 | EF47: 51705 | EG47: 47 | EH47: 2019-03-12 | EI47: -42576 | EJ47: 2019-03-12 | EK47: 85736 | EL47: 2019-03-12 | EM47: -43160 | EN47: 47 | EO47: 2019-03-12 | EQ47: 2019-03-12 | ES47: 2019-03-12 | EU47: 47 | EV47: 2019-03-12 | EW47: -22600 | EX47: 2019-03-12 | EY47: -9940 | EZ47: 2019-03-12 | FA47: 32540 | FB47: 47 | FC47: 2019-03-12 | FD47: -281523 | FE47: 2019-03-12 | FF47: 216671 | FG47: 2019-03-12 | FH47: 64852 | FI47: 47 | FJ47: 2019-03-12 | FK47: 22692 | FL47: 2019-03-12 | FM47: -23523 | FN47: 2019-03-12 | FO47: 831
AM48: 48 | AN48: 2019-03-05 | AO48: -46317 | AP48: 2019-03-05 | AQ48: 24139 | AR48: 2019-03-05 | AS48: 22178 | AT48: 48 | AU48: 2019-03-05 | AV48: -30931 | AW48: 2019-03-05 | AX48: 68491 | AY48: 2019-03-05 | AZ48: -37560 | BA48: 48 | BB48: 2019-03-05 | BC48: -51607 | BD48: 2019-03-05 | BE48: 54296 | BF48: 2019-03-05 | BG48: -2689 | BH48: 48 | BI48: 2019-03-05 | BJ48: 43288 | BK48: 2019-03-05 | BL48: -49423 | BM48: 2019-03-05 | BN48: 6135 | BO48: 48 | BP48: 2019-03-05 | BQ48: -13011 | BR48: 2019-03-05 | BS48: 3424 | BT48: 2019-03-05 | BU48: 9587 | BV48: 48 | BW48: 2019-03-05 | BX48: -26239 | BY48: 2019-03-05 | BZ48: 12836 | CA48: 2019-03-05 | CB48: 13403 | CC48: 48 | CD48: 2019-03-05 | CE48: -4000 | CF48: 2019-03-05 | CG48: 3612 | CH48: 2019-03-05 | CI48: 388 | CJ48: 48 | CK48: 2019-03-05 | CL48: 1056 | CM48: 2019-03-05 | CN48: -1454 | CO48: 2019-03-05 | CP48: 398 | CQ48: 48 | CR48: 2019-03-05 | CS48: -6393 | CT48: 2019-03-05 | CU48: 6239 | CV48: 2019-03-05 | CW48: 154 | CX48: 48 | CY48: 2019-03-05 | CZ48: -79498 | DA48: 2019-03-05 | DB48: 98393 | DC48: 2019-03-05 | DD48: -18895 | DE48: 48 | DF48: 2019-03-05 | DG48: -180062 | DH48: 2019-03-05 | DI48: 99871 | DJ48: 2019-03-05 | DK48: 80191 | DL48: 48 | DM48: 2019-03-05 | DN48: -220220 | DO48: 2019-03-05 | DP48: 209320 | DQ48: 2019-03-05 | DR48: 10900 | DS48: 48 | DT48: 2019-03-05 | DV48: 2019-03-05 | DX48: 2019-03-05 | DZ48: 48 | EA48: 2019-03-05 | EB48: -233376 | EC48: 2019-03-05 | ED48: 202112 | EE48: 2019-03-05 | EF48: 31264 | EG48: 48 | EH48: 2019-03-05 | EI48: -54819 | EJ48: 2019-03-05 | EK48: 92580 | EL48: 2019-03-05 | EM48: -37761 | EN48: 48 | EO48: 2019-03-05 | EQ48: 2019-03-05 | ES48: 2019-03-05 | EU48: 48 | EV48: 2019-03-05 | EW48: -30237 | EX48: 2019-03-05 | EY48: 22464 | EZ48: 2019-03-05 | FA48: 7773 | FB48: 48 | FC48: 2019-03-05 | FD48: -302833 | FE48: 2019-03-05 | FF48: 237463 | FG48: 2019-03-05 | FH48: 65370 | FI48: 48 | FJ48: 2019-03-05 | FK48: 20464 | FL48: 2019-03-05 | FM48: -16356 | FN48: 2019-03-05 | FO48: -4108
AM49: 49 | AN49: 2019-02-26 | AO49: 14943 | AP49: 2019-02-26 | AQ49: -27248 | AR49: 2019-02-26 | AS49: 12305 | AT49: 49 | AU49: 2019-02-26 | AV49: -22972 | AW49: 2019-02-26 | AX49: 64016 | AY49: 2019-02-26 | AZ49: -41044 | BA49: 49 | BB49: 2019-02-26 | BC49: -43663 | BD49: 2019-02-26 | BE49: 51286 | BF49: 2019-02-26 | BG49: -7623 | BH49: 49 | BI49: 2019-02-26 | BJ49: 44562 | BK49: 2019-02-26 | BL49: -53080 | BM49: 2019-02-26 | BN49: 8518 | BO49: 49 | BP49: 2019-02-26 | BQ49: -22700 | BR49: 2019-02-26 | BS49: 13622 | BT49: 2019-02-26 | BU49: 9078 | BV49: 49 | BW49: 2019-02-26 | BX49: -27071 | BY49: 2019-02-26 | BZ49: 13919 | CA49: 2019-02-26 | CB49: 13152 | CC49: 49 | CD49: 2019-02-26 | CE49: -3888 | CF49: 2019-02-26 | CG49: 3497 | CH49: 2019-02-26 | CI49: 391 | CJ49: 49 | CK49: 2019-02-26 | CL49: 1392 | CM49: 2019-02-26 | CN49: -1969 | CO49: 2019-02-26 | CP49: 577 | CQ49: 49 | CR49: 2019-02-26 | CS49: -6631 | CT49: 2019-02-26 | CU49: 6490 | CV49: 2019-02-26 | CW49: 141 | CX49: 49 | CY49: 2019-02-26 | CZ49: -185523 | DA49: 2019-02-26 | DB49: 203111 | DC49: 2019-02-26 | DD49: -17588 | DE49: 49 | DF49: 2019-02-26 | DG49: -144747 | DH49: 2019-02-26 | DI49: 84456 | DJ49: 2019-02-26 | DK49: 60291 | DL49: 49 | DM49: 2019-02-26 | DN49: -185125 | DO49: 2019-02-26 | DP49: 223632 | DQ49: 2019-02-26 | DR49: -38507 | DS49: 49 | DT49: 2019-02-26 | DV49: 2019-02-26 | DX49: 2019-02-26 | DZ49: 49 | EA49: 2019-02-26 | EB49: -233995 | EC49: 2019-02-26 | ED49: 178045 | EE49: 2019-02-26 | EF49: 55950 | EG49: 49 | EH49: 2019-02-26 | EI49: -62565 | EJ49: 2019-02-26 | EK49: 119570 | EL49: 2019-02-26 | EM49: -57005 | EN49: 49 | EO49: 2019-02-26 | EQ49: 2019-02-26 | ES49: 2019-02-26 | EU49: 49 | EV49: 2019-02-26 | EW49: -34702 | EX49: 2019-02-26 | EY49: 10792 | EZ49: 2019-02-26 | FA49: 23910 | FB49: 49 | FC49: 2019-02-26 | FD49: -319137 | FE49: 2019-02-26 | FF49: 228709 | FG49: 2019-02-26 | FH49: 90428 | FI49: 49 | FJ49: 2019-02-26 | FK49: 21032 | FL49: 2019-02-26 | FM49: -15609 | FN49: 2019-02-26 | FO49: -5423
AM50: 50 | AN50: 2019-02-19 | AO50: 35832 | AP50: 2019-02-19 | AQ50: -28489 | AR50: 2019-02-19 | AS50: -7343 | AT50: 50 | AU50: 2019-02-19 | AV50: -28319 | AW50: 2019-02-19 | AX50: 70488 | AY50: 2019-02-19 | AZ50: -42169 | BA50: 50 | BB50: 2019-02-19 | BC50: -19177 | BD50: 2019-02-19 | BE50: 29182 | BF50: 2019-02-19 | BG50: -10005 | BH50: 50 | BI50: 2019-02-19 | BJ50: 47838 | BK50: 2019-02-19 | BL50: -56489 | BM50: 2019-02-19 | BN50: 8651 | BO50: 50 | BP50: 2019-02-19 | BQ50: -7609 | BR50: 2019-02-19 | BS50: -2299 | BT50: 2019-02-19 | BU50: 9908 | BV50: 50 | BW50: 2019-02-19 | BX50: -14034 | BY50: 2019-02-19 | BZ50: 2337 | CA50: 2019-02-19 | CB50: 11697 | CC50: 50 | CD50: 2019-02-19 | CE50: -3213 | CF50: 2019-02-19 | CG50: 3024 | CH50: 2019-02-19 | CI50: 189 | CJ50: 50 | CK50: 2019-02-19 | CL50: 1899 | CM50: 2019-02-19 | CN50: -2737 | CO50: 2019-02-19 | CP50: 838 | CQ50: 50 | CR50: 2019-02-19 | CS50: -5934 | CT50: 2019-02-19 | CU50: 5768 | CV50: 2019-02-19 | CW50: 166 | CX50: 50 | CY50: 2019-02-19 | CZ50: -190103 | DA50: 2019-02-19 | DB50: 212613 | DC50: 2019-02-19 | DD50: -22510 | DE50: 50 | DF50: 2019-02-19 | DG50: -334844 | DH50: 2019-02-19 | DI50: 279417 | DJ50: 2019-02-19 | DK50: 55427 | DL50: 50 | DM50: 2019-02-19 | DN50: -178599 | DO50: 2019-02-19 | DP50: 167591 | DQ50: 2019-02-19 | DR50: 11008 | DS50: 50 | DT50: 2019-02-19 | DV50: 2019-02-19 | DX50: 2019-02-19 | DZ50: 50 | EA50: 2019-02-19 | EB50: -215091 | EC50: 2019-02-19 | ED50: 191580 | EE50: 2019-02-19 | EF50: 23511 | EG50: 50 | EH50: 2019-02-19 | EI50: -87954 | EJ50: 2019-02-19 | EK50: 130101 | EL50: 2019-02-19 | EM50: -42147 | EN50: 50 | EO50: 2019-02-19 | EQ50: 2019-02-19 | ES50: 2019-02-19 | EU50: 50 | EV50: 2019-02-19 | EW50: 1368 | EX50: 2019-02-19 | EY50: 1377 | EZ50: 2019-02-19 | FA50: -2745 | FB50: 50 | FC50: 2019-02-19 | FD50: -309722 | FE50: 2019-02-19 | FF50: 230533 | FG50: 2019-02-19 | FH50: 79189 | FI50: 50 | FJ50: 2019-02-19 | FK50: 15580 | FL50: 2019-02-19 | FM50: -8885 | FN50: 2019-02-19 | FO50: -6695
AM51: 51 | AN51: 2019-02-12 | AO51: 98302 | AP51: 2019-02-12 | AQ51: -82489 | AR51: 2019-02-12 | AS51: -15813 | AT51: 51 | AU51: 2019-02-12 | AV51: -5322 | AW51: 2019-02-12 | AX51: 48504 | AY51: 2019-02-12 | AZ51: -43182 | BA51: 51 | BB51: 2019-02-12 | BC51: 8848 | BD51: 2019-02-12 | BE51: 1403 | BF51: 2019-02-12 | BG51: -10251 | BH51: 51 | BI51: 2019-02-12 | BJ51: 54977 | BK51: 2019-02-12 | BL51: -64217 | BM51: 2019-02-12 | BN51: 9240 | BO51: 51 | BP51: 2019-02-12 | BQ51: 5398 | BR51: 2019-02-12 | BS51: -20430 | BT51: 2019-02-12 | BU51: 15032 | BV51: 51 | BW51: 2019-02-12 | BX51: -8715 | BY51: 2019-02-12 | BZ51: -1928 | CA51: 2019-02-12 | CB51: 10643 | CC51: 51 | CD51: 2019-02-12 | CE51: -2549 | CF51: 2019-02-12 | CG51: 2516 | CH51: 2019-02-12 | CI51: 33 | CJ51: 51 | CK51: 2019-02-12 | CL51: 2205 | CM51: 2019-02-12 | CN51: -3450 | CO51: 2019-02-12 | CP51: 1245 | CQ51: 51 | CR51: 2019-02-12 | CS51: -5970 | CT51: 2019-02-12 | CU51: 5814 | CV51: 2019-02-12 | CW51: 156 | CX51: 51 | CY51: 2019-02-12 | CZ51: -196285 | DA51: 2019-02-12 | DB51: 218856 | DC51: 2019-02-12 | DD51: -22571 | DE51: 51 | DF51: 2019-02-12 | DG51: -351964 | DH51: 2019-02-12 | DI51: 280019 | DJ51: 2019-02-12 | DK51: 71945 | DL51: 51 | DM51: 2019-02-12 | DN51: -230894 | DO51: 2019-02-12 | DP51: 234924 | DQ51: 2019-02-12 | DR51: -4030 | DS51: 51 | DT51: 2019-02-12 | DV51: 2019-02-12 | DX51: 2019-02-12 | DZ51: 51 | EA51: 2019-02-12 | EB51: -165489 | EC51: 2019-02-12 | ED51: 126603 | EE51: 2019-02-12 | EF51: 38886 | EG51: 51 | EH51: 2019-02-12 | EI51: -92561 | EJ51: 2019-02-12 | EK51: 135317 | EL51: 2019-02-12 | EM51: -42756 | EN51: 51 | EO51: 2019-02-12 | EQ51: 2019-02-12 | ES51: 2019-02-12 | EU51: 51 | EV51: 2019-02-12 | EW51: -26678 | EX51: 2019-02-12 | EY51: 31780 | EZ51: 2019-02-12 | FA51: -5102 | FB51: 51 | FC51: 2019-02-12 | FD51: -315331 | FE51: 2019-02-12 | FF51: 245413 | FG51: 2019-02-12 | FH51: 69918 | FI51: 51 | FJ51: 2019-02-12 | FK51: 12093 | FL51: 2019-02-12 | FM51: -8354 | FN51: 2019-02-12 | FO51: -3739
AM52: 52 | AN52: 2019-02-05 | AO52: 128217 | AP52: 2019-02-05 | AQ52: -111131 | AR52: 2019-02-05 | AS52: -17086 | AT52: 52 | AU52: 2019-02-05 | AV52: 6892 | AW52: 2019-02-05 | AX52: 32003 | AY52: 2019-02-05 | AZ52: -38895 | BA52: 52 | BB52: 2019-02-05 | BC52: 18441 | BD52: 2019-02-05 | BE52: -8958 | BF52: 2019-02-05 | BG52: -9483 | BH52: 52 | BI52: 2019-02-05 | BJ52: 58133 | BK52: 2019-02-05 | BL52: -67837 | BM52: 2019-02-05 | BN52: 9704 | BO52: 52 | BP52: 2019-02-05 | BQ52: 21702 | BR52: 2019-02-05 | BS52: -38059 | BT52: 2019-02-05 | BU52: 16357 | BV52: 52 | BW52: 2019-02-05 | BX52: -119 | BY52: 2019-02-05 | BZ52: -9104 | CA52: 2019-02-05 | CB52: 9223 | CC52: 52 | CD52: 2019-02-05 | CE52: -2386 | CF52: 2019-02-05 | CG52: 2172 | CH52: 2019-02-05 | CI52: 214 | CJ52: 52 | CK52: 2019-02-05 | CL52: 2184 | CM52: 2019-02-05 | CN52: -3554 | CO52: 2019-02-05 | CP52: 1370 | CQ52: 52 | CR52: 2019-02-05 | CS52: -6576 | CT52: 2019-02-05 | CU52: 6056 | CV52: 2019-02-05 | CW52: 520 | CX52: 52 | CY52: 2019-02-05 | CZ52: -143607 | DA52: 2019-02-05 | DB52: 165206 | DC52: 2019-02-05 | DD52: -21599 | DE52: 52 | DF52: 2019-02-05 | DG52: -383605 | DH52: 2019-02-05 | DI52: 336029 | DJ52: 2019-02-05 | DK52: 47576 | DL52: 52 | DM52: 2019-02-05 | DN52: -204560 | DO52: 2019-02-05 | DP52: 185643 | DQ52: 2019-02-05 | DR52: 18917 | DS52: 52 | DT52: 2019-02-05 | DV52: 2019-02-05 | DX52: 2019-02-05 | DZ52: 52 | EA52: 2019-02-05 | EB52: -162950 | EC52: 2019-02-05 | ED52: 119063 | EE52: 2019-02-05 | EF52: 43887 | EG52: 52 | EH52: 2019-02-05 | EI52: -77699 | EJ52: 2019-02-05 | EK52: 125460 | EL52: 2019-02-05 | EM52: -47761 | EN52: 52 | EO52: 2019-02-05 | EQ52: 2019-02-05 | ES52: 2019-02-05 | EU52: 52 | EV52: 2019-02-05 | EW52: -33779 | EX52: 2019-02-05 | EY52: 43232 | EZ52: 2019-02-05 | FA52: -9453 | FB52: 52 | FC52: 2019-02-05 | FD52: -291770 | FE52: 2019-02-05 | FF52: 233991 | FG52: 2019-02-05 | FH52: 57779 | FI52: 52 | FJ52: 2019-02-05 | FK52: 6803 | FL52: 2019-02-05 | FM52: -2935 | FN52: 2019-02-05 | FO52: -3868
AM53: 53 | AN53: 2019-01-29 | AO53: 114872 | AP53: 2019-01-29 | AQ53: -100838 | AR53: 2019-01-29 | AS53: -14034 | AT53: 53 | AU53: 2019-01-29 | AV53: 8572 | AW53: 2019-01-29 | AX53: 29898 | AY53: 2019-01-29 | AZ53: -38470 | BA53: 53 | BB53: 2019-01-29 | BC53: 5763 | BD53: 2019-01-29 | BE53: 3123 | BF53: 2019-01-29 | BG53: -8886 | BH53: 53 | BI53: 2019-01-29 | BJ53: 38721 | BK53: 2019-01-29 | BL53: -49567 | BM53: 2019-01-29 | BN53: 10846 | BO53: 53 | BP53: 2019-01-29 | BQ53: 34919 | BR53: 2019-01-29 | BS53: -50081 | BT53: 2019-01-29 | BU53: 15162 | BV53: 53 | BW53: 2019-01-29 | BX53: 5875 | BY53: 2019-01-29 | BZ53: -13838 | CA53: 2019-01-29 | CB53: 7963 | CC53: 53 | CD53: 2019-01-29 | CE53: -2346 | CF53: 2019-01-29 | CG53: 2341 | CH53: 2019-01-29 | CI53: 5 | CJ53: 53 | CK53: 2019-01-29 | CL53: 2261 | CM53: 2019-01-29 | CN53: -3298 | CO53: 2019-01-29 | CP53: 1037 | CQ53: 53 | CR53: 2019-01-29 | CS53: -4374 | CT53: 2019-01-29 | CU53: 3901 | CV53: 2019-01-29 | CW53: 473 | CX53: 53 | CY53: 2019-01-29 | CZ53: -40348 | DA53: 2019-01-29 | DB53: 51878 | DC53: 2019-01-29 | DD53: -11530 | DE53: 53 | DF53: 2019-01-29 | DG53: -262732 | DH53: 2019-01-29 | DI53: 233002 | DJ53: 2019-01-29 | DK53: 29730 | DL53: 53 | DM53: 2019-01-29 | DN53: -182834 | DO53: 2019-01-29 | DP53: 191049 | DQ53: 2019-01-29 | DR53: -8215 | DS53: 53 | DT53: 2019-01-29 | DV53: 2019-01-29 | DX53: 2019-01-29 | DZ53: 53 | EA53: 2019-01-29 | EB53: -134447 | EC53: 2019-01-29 | ED53: 109314 | EE53: 2019-01-29 | EF53: 25133 | EG53: 53 | EH53: 2019-01-29 | EI53: -47247 | EJ53: 2019-01-29 | EK53: 94599 | EL53: 2019-01-29 | EM53: -47352 | EN53: 53 | EO53: 2019-01-29 | EQ53: 2019-01-29 | ES53: 2019-01-29 | EU53: 53 | EV53: 2019-01-29 | EW53: -16830 | EX53: 2019-01-29 | EY53: 3371 | EZ53: 2019-01-29 | FA53: 13459 | FB53: 53 | FC53: 2019-01-29 | FD53: -312093 | FE53: 2019-01-29 | FF53: 244242 | FG53: 2019-01-29 | FH53: 67851 | FI53: 53 | FJ53: 2019-01-29 | FK53: 13783 | FL53: 2019-01-29 | FM53: -8553 | FN53: 2019-01-29 | FO53: -5230
AM54: 54 | AN54: 2019-01-22 | AO54: 148002 | AP54: 2019-01-22 | AQ54: -129597 | AR54: 2019-01-22 | AS54: -18405 | AT54: 54 | AU54: 2019-01-22 | AV54: -11837 | AW54: 2019-01-22 | AX54: 49493 | AY54: 2019-01-22 | AZ54: -37656 | BA54: 54 | BB54: 2019-01-22 | BC54: 19242 | BD54: 2019-01-22 | BE54: -9801 | BF54: 2019-01-22 | BG54: -9441 | BH54: 54 | BI54: 2019-01-22 | BJ54: 17411 | BK54: 2019-01-22 | BL54: -25534 | BM54: 2019-01-22 | BN54: 8123 | BO54: 54 | BP54: 2019-01-22 | BQ54: 42900 | BR54: 2019-01-22 | BS54: -57561 | BT54: 2019-01-22 | BU54: 14661 | BV54: 54 | BW54: 2019-01-22 | BX54: 9548 | BY54: 2019-01-22 | BZ54: -18960 | CA54: 2019-01-22 | CB54: 9412 | CC54: 54 | CD54: 2019-01-22 | CE54: -2737 | CF54: 2019-01-22 | CG54: 2746 | CH54: 2019-01-22 | CI54: -9 | CJ54: 54 | CK54: 2019-01-22 | CL54: 2035 | CM54: 2019-01-22 | CN54: -3098 | CO54: 2019-01-22 | CP54: 1063 | CQ54: 54 | CR54: 2019-01-22 | CS54: -4292 | CT54: 2019-01-22 | CU54: 3901 | CV54: 2019-01-22 | CW54: 391 | CX54: 54 | CY54: 2019-01-22 | CZ54: -86818 | DA54: 2019-01-22 | DB54: 104615 | DC54: 2019-01-22 | DD54: -17797 | DE54: 54 | DF54: 2019-01-22 | DG54: -258445 | DH54: 2019-01-22 | DI54: 228000 | DJ54: 2019-01-22 | DK54: 30445 | DL54: 54 | DM54: 2019-01-22 | DN54: -175529 | DO54: 2019-01-22 | DP54: 199206 | DQ54: 2019-01-22 | DR54: -23677 | DS54: 54 | DT54: 2019-01-22 | DV54: 2019-01-22 | DX54: 2019-01-22 | DZ54: 54 | EA54: 2019-01-22 | EB54: -125752 | EC54: 2019-01-22 | ED54: 112854 | EE54: 2019-01-22 | EF54: 12898 | EG54: 54 | EH54: 2019-01-22 | EI54: -44223 | EJ54: 2019-01-22 | EK54: 103810 | EL54: 2019-01-22 | EM54: -59587 | EN54: 54 | EO54: 2019-01-22 | EQ54: 2019-01-22 | ES54: 2019-01-22 | EU54: 54 | EV54: 2019-01-22 | EW54: -21036 | EX54: 2019-01-22 | EY54: 9417 | EZ54: 2019-01-22 | FA54: 11619 | FB54: 54 | FC54: 2019-01-22 | FD54: -313532 | FE54: 2019-01-22 | FF54: 244827 | FG54: 2019-01-22 | FH54: 68705 | FI54: 54 | FJ54: 2019-01-22 | FK54: 18765 | FL54: 2019-01-22 | FM54: -13513 | FN54: 2019-01-22 | FO54: -5252
AM55: 55 | AN55: 2019-01-15 | AO55: 134858 | AP55: 2019-01-15 | AQ55: -122149 | AR55: 2019-01-15 | AS55: -12709 | AT55: 55 | AU55: 2019-01-15 | AV55: -4107 | AW55: 2019-01-15 | AX55: 39592 | AY55: 2019-01-15 | AZ55: -35485 | BA55: 55 | BB55: 2019-01-15 | BC55: 17047 | BD55: 2019-01-15 | BE55: -5978 | BF55: 2019-01-15 | BG55: -11069 | BH55: 55 | BI55: 2019-01-15 | BJ55: 486 | BK55: 2019-01-15 | BL55: -6278 | BM55: 2019-01-15 | BN55: 5792 | BO55: 55 | BP55: 2019-01-15 | BQ55: 46272 | BR55: 2019-01-15 | BS55: -59265 | BT55: 2019-01-15 | BU55: 12993 | BV55: 55 | BW55: 2019-01-15 | BX55: 338 | BY55: 2019-01-15 | BZ55: -9149 | CA55: 2019-01-15 | CB55: 8811 | CC55: 55 | CD55: 2019-01-15 | CE55: -2634 | CF55: 2019-01-15 | CG55: 2709 | CH55: 2019-01-15 | CI55: -75 | CJ55: 55 | CK55: 2019-01-15 | CL55: 1782 | CM55: 2019-01-15 | CN55: -2973 | CO55: 2019-01-15 | CP55: 1191 | CQ55: 55 | CR55: 2019-01-15 | CS55: -4466 | CT55: 2019-01-15 | CU55: 3901 | CV55: 2019-01-15 | CW55: 565 | CX55: 55 | CY55: 2019-01-15 | CZ55: -111442 | DA55: 2019-01-15 | DB55: 123707 | DC55: 2019-01-15 | DD55: -12265 | DE55: 55 | DF55: 2019-01-15 | DG55: -267209 | DH55: 2019-01-15 | DI55: 239366 | DJ55: 2019-01-15 | DK55: 27843 | DL55: 55 | DM55: 2019-01-15 | DN55: -299593 | DO55: 2019-01-15 | DP55: 328867 | DQ55: 2019-01-15 | DR55: -29274 | DS55: 55 | DT55: 2019-01-15 | DV55: 2019-01-15 | DX55: 2019-01-15 | DZ55: 55 | EA55: 2019-01-15 | EB55: -200184 | EC55: 2019-01-15 | ED55: 156598 | EE55: 2019-01-15 | EF55: 43586 | EG55: 55 | EH55: 2019-01-15 | EI55: -45453 | EJ55: 2019-01-15 | EK55: 98602 | EL55: 2019-01-15 | EM55: -53149 | EN55: 55 | EO55: 2019-01-15 | EQ55: 2019-01-15 | ES55: 2019-01-15 | EU55: 55 | EV55: 2019-01-15 | EW55: -25473 | EX55: 2019-01-15 | EY55: 21524 | EZ55: 2019-01-15 | FA55: 3949 | FB55: 55 | FC55: 2019-01-15 | FD55: -281932 | FE55: 2019-01-15 | FF55: 214559 | FG55: 2019-01-15 | FH55: 67373 | FI55: 55 | FJ55: 2019-01-15 | FK55: 22203 | FL55: 2019-01-15 | FM55: -16574 | FN55: 2019-01-15 | FO55: -5629
AM56: 56 | AN56: 2019-01-08 | AO56: 174337 | AP56: 2019-01-08 | AQ56: -163644 | AR56: 2019-01-08 | AS56: -10693 | AT56: 56 | AU56: 2019-01-08 | AV56: 10774 | AW56: 2019-01-08 | AX56: 25128 | AY56: 2019-01-08 | AZ56: -35902 | BA56: 56 | BB56: 2019-01-08 | BC56: 11015 | BD56: 2019-01-08 | BE56: -1222 | BF56: 2019-01-08 | BG56: -9793 | BH56: 56 | BI56: 2019-01-08 | BJ56: -1890 | BK56: 2019-01-08 | BL56: -4211 | BM56: 2019-01-08 | BN56: 6101 | BO56: 56 | BP56: 2019-01-08 | BQ56: 55102 | BR56: 2019-01-08 | BS56: -77229 | BT56: 2019-01-08 | BU56: 22127 | BV56: 56 | BW56: 2019-01-08 | BX56: 7015 | BY56: 2019-01-08 | BZ56: -15319 | CA56: 2019-01-08 | CB56: 8304 | CC56: 56 | CD56: 2019-01-08 | CE56: -2614 | CF56: 2019-01-08 | CG56: 2827 | CH56: 2019-01-08 | CI56: -213 | CJ56: 56 | CK56: 2019-01-08 | CL56: 1369 | CM56: 2019-01-08 | CN56: -2499 | CO56: 2019-01-08 | CP56: 1130 | CQ56: 56 | CR56: 2019-01-08 | CS56: -3524 | CT56: 2019-01-08 | CU56: 3302 | CV56: 2019-01-08 | CW56: 222 | CX56: 56 | CY56: 2019-01-08 | CZ56: -116284 | DA56: 2019-01-08 | DB56: 128925 | DC56: 2019-01-08 | DD56: -12641 | DE56: 56 | DF56: 2019-01-08 | DG56: -308933 | DH56: 2019-01-08 | DI56: 284329 | DJ56: 2019-01-08 | DK56: 24604 | DL56: 56 | DM56: 2019-01-08 | DN56: -290354 | DO56: 2019-01-08 | DP56: 313583 | DQ56: 2019-01-08 | DR56: -23229 | DS56: 56 | DT56: 2019-01-08 | DV56: 2019-01-08 | DX56: 2019-01-08 | DZ56: 56 | EA56: 2019-01-08 | EB56: -188068 | EC56: 2019-01-08 | ED56: 177746 | EE56: 2019-01-08 | EF56: 10322 | EG56: 56 | EH56: 2019-01-08 | EI56: -52639 | EJ56: 2019-01-08 | EK56: 96291 | EL56: 2019-01-08 | EM56: -43652 | EN56: 56 | EO56: 2019-01-08 | EQ56: 2019-01-08 | ES56: 2019-01-08 | EU56: 56 | EV56: 2019-01-08 | EW56: -30652 | EX56: 2019-01-08 | EY56: 22644 | EZ56: 2019-01-08 | FA56: 8008 | FB56: 56 | FC56: 2019-01-08 | FD56: -262705 | FE56: 2019-01-08 | FF56: 204617 | FG56: 2019-01-08 | FH56: 58088 | FI56: 56 | FJ56: 2019-01-08 | FK56: 25067 | FL56: 2019-01-08 | FM56: -20008 | FN56: 2019-01-08 | FO56: -5059
AM57: 57 | AN57: 2018-12-31 | AO57: 159953 | AP57: 2018-12-31 | AQ57: -146875 | AR57: 2018-12-31 | AS57: -13078 | AT57: 57 | AU57: 2018-12-31 | AV57: -2094 | AW57: 2018-12-31 | AX57: 37425 | AY57: 2018-12-31 | AZ57: -35331 | BA57: 57 | BB57: 2018-12-31 | BC57: -1154 | BD57: 2018-12-31 | BE57: 9118 | BF57: 2018-12-31 | BG57: -7964 | BH57: 57 | BI57: 2018-12-31 | BJ57: -12935 | BK57: 2018-12-31 | BL57: 6664 | BM57: 2018-12-31 | BN57: 6271 | BO57: 57 | BP57: 2018-12-31 | BQ57: 34986 | BR57: 2018-12-31 | BS57: -49407 | BT57: 2018-12-31 | BU57: 14421 | BV57: 57 | BW57: 2018-12-31 | BX57: 8016 | BY57: 2018-12-31 | BZ57: -15519 | CA57: 2018-12-31 | CB57: 7503 | CC57: 57 | CD57: 2018-12-31 | CE57: -2169 | CF57: 2018-12-31 | CG57: 2240 | CH57: 2018-12-31 | CI57: -71 | CJ57: 57 | CK57: 2018-12-31 | CL57: 1450 | CM57: 2018-12-31 | CN57: -2430 | CO57: 2018-12-31 | CP57: 980 | CQ57: 57 | CR57: 2018-12-31 | CS57: -2211 | CT57: 2018-12-31 | CU57: 2083 | CV57: 2018-12-31 | CW57: 128 | CX57: 57 | CY57: 2018-12-31 | CZ57: -56524 | DA57: 2018-12-31 | DB57: 67070 | DC57: 2018-12-31 | DD57: -10546 | DE57: 57 | DF57: 2018-12-31 | DG57: -235851 | DH57: 2018-12-31 | DI57: 215639 | DJ57: 2018-12-31 | DK57: 20212 | DL57: 57 | DM57: 2018-12-31 | DN57: -331230 | DO57: 2018-12-31 | DP57: 379861 | DQ57: 2018-12-31 | DR57: -48631 | DS57: 57 | DT57: 2018-12-31 | DV57: 2018-12-31 | DX57: 2018-12-31 | DZ57: 57 | EA57: 2018-12-31 | EB57: -308287 | EC57: 2018-12-31 | ED57: 321916 | EE57: 2018-12-31 | EF57: -13629 | EG57: 57 | EH57: 2018-12-31 | EI57: -50270 | EJ57: 2018-12-31 | EK57: 80177 | EL57: 2018-12-31 | EM57: -29907 | EN57: 57 | EO57: 2018-12-31 | EQ57: 2018-12-31 | ES57: 2018-12-31 | EU57: 57 | EV57: 2018-12-31 | EW57: -26513 | EX57: 2018-12-31 | EY57: 38845 | EZ57: 2018-12-31 | FA57: -12332 | FB57: 57 | FC57: 2018-12-31 | FD57: -260371 | FE57: 2018-12-31 | FF57: 196832 | FG57: 2018-12-31 | FH57: 63539 | FI57: 57 | FJ57: 2018-12-31 | FK57: 27414 | FL57: 2018-12-31 | FM57: -24388 | FN57: 2018-12-31 | FO57: -3026
AM58: 58 | AN58: 2018-12-24 | AO58: 183789 | AP58: 2018-12-24 | AQ58: -164145 | AR58: 2018-12-24 | AS58: -19644 | AT58: 58 | AU58: 2018-12-24 | AV58: 4110 | AW58: 2018-12-24 | AX58: 30752 | AY58: 2018-12-24 | AZ58: -34862 | BA58: 58 | BB58: 2018-12-24 | BC58: 10068 | BD58: 2018-12-24 | BE58: 1893 | BF58: 2018-12-24 | BG58: -11961 | BH58: 58 | BI58: 2018-12-24 | BJ58: -12510 | BK58: 2018-12-24 | BL58: 5980 | BM58: 2018-12-24 | BN58: 6530 | BO58: 58 | BP58: 2018-12-24 | BQ58: 27966 | BR58: 2018-12-24 | BS58: -43231 | BT58: 2018-12-24 | BU58: 15265 | BV58: 58 | BW58: 2018-12-24 | BX58: 13071 | BY58: 2018-12-24 | BZ58: -19696 | CA58: 2018-12-24 | CB58: 6625 | CC58: 58 | CD58: 2018-12-24 | CE58: -1680 | CF58: 2018-12-24 | CG58: 1698 | CH58: 2018-12-24 | CI58: -18 | CJ58: 58 | CK58: 2018-12-24 | CL58: 1779 | CM58: 2018-12-24 | CN58: -2678 | CO58: 2018-12-24 | CP58: 899 | CQ58: 58 | CR58: 2018-12-24 | CS58: -3931 | CT58: 2018-12-24 | CU58: 3758 | CV58: 2018-12-24 | CW58: 173 | CX58: 58 | CY58: 2018-12-24 | CZ58: -68770 | DA58: 2018-12-24 | DB58: 80789 | DC58: 2018-12-24 | DD58: -12019 | DE58: 58 | DF58: 2018-12-24 | DG58: -272290 | DH58: 2018-12-24 | DI58: 267949 | DJ58: 2018-12-24 | DK58: 4341 | DL58: 58 | DM58: 2018-12-24 | DN58: -321069 | DO58: 2018-12-24 | DP58: 359859 | DQ58: 2018-12-24 | DR58: -38790 | DS58: 58 | DT58: 2018-12-24 | DV58: 2018-12-24 | DX58: 2018-12-24 | DZ58: 58 | EA58: 2018-12-24 | EB58: -317632 | EC58: 2018-12-24 | ED58: 319719 | EE58: 2018-12-24 | EF58: -2087 | EG58: 58 | EH58: 2018-12-24 | EI58: -50794 | EJ58: 2018-12-24 | EK58: 86870 | EL58: 2018-12-24 | EM58: -36076 | EN58: 58 | EO58: 2018-12-24 | EQ58: 2018-12-24 | ES58: 2018-12-24 | EU58: 58 | EV58: 2018-12-24 | EW58: -25660 | EX58: 2018-12-24 | EY58: 46844 | EZ58: 2018-12-24 | FA58: -21184 | FB58: 58 | FC58: 2018-12-24 | FD58: -270871 | FE58: 2018-12-24 | FF58: 219888 | FG58: 2018-12-24 | FH58: 50983 | FI58: 58 | FJ58: 2018-12-24 | FK58: 34771 | FL58: 2018-12-24 | FM58: -39911 | FN58: 2018-12-24 | FO58: 5140
AM59: 59 | AN59: 2018-12-18 | AO59: 203128 | AP59: 2018-12-18 | AQ59: -183290 | AR59: 2018-12-18 | AS59: -19838 | AT59: 59 | AU59: 2018-12-18 | AV59: 14531 | AW59: 2018-12-18 | AX59: 18910 | AY59: 2018-12-18 | AZ59: -33441 | BA59: 59 | BB59: 2018-12-18 | BC59: 17594 | BD59: 2018-12-18 | BE59: -7219 | BF59: 2018-12-18 | BG59: -10375 | BH59: 59 | BI59: 2018-12-18 | BJ59: -10158 | BK59: 2018-12-18 | BL59: 2210 | BM59: 2018-12-18 | BN59: 7948 | BO59: 59 | BP59: 2018-12-18 | BQ59: 27699 | BR59: 2018-12-18 | BS59: -43419 | BT59: 2018-12-18 | BU59: 15720 | BV59: 59 | BW59: 2018-12-18 | BX59: 18086 | BY59: 2018-12-18 | BZ59: -24269 | CA59: 2018-12-18 | CB59: 6183 | CC59: 59 | CD59: 2018-12-18 | CE59: -1334 | CF59: 2018-12-18 | CG59: 1428 | CH59: 2018-12-18 | CI59: -94 | CJ59: 59 | CK59: 2018-12-18 | CL59: 1899 | CM59: 2018-12-18 | CN59: -2865 | CO59: 2018-12-18 | CP59: 966 | CQ59: 59 | CR59: 2018-12-18 | CS59: -5854 | CT59: 2018-12-18 | CU59: 5663 | CV59: 2018-12-18 | CW59: 191 | CX59: 59 | CY59: 2018-12-18 | CZ59: 934 | DA59: 2018-12-18 | DB59: 25547 | DC59: 2018-12-18 | DD59: -26481 | DE59: 59 | DF59: 2018-12-18 | DG59: -321015 | DH59: 2018-12-18 | DI59: 316534 | DJ59: 2018-12-18 | DK59: 4481 | DL59: 59 | DM59: 2018-12-18 | DN59: -249292 | DO59: 2018-12-18 | DP59: 301166 | DQ59: 2018-12-18 | DR59: -51874 | DS59: 59 | DT59: 2018-12-18 | DU59: 6760 | DV59: 2018-12-18 | DW59: -4571 | DX59: 2018-12-18 | DY59: -2189 | DZ59: 59 | EA59: 2018-12-18 | EB59: -380779 | EC59: 2018-12-18 | ED59: 397340 | EE59: 2018-12-18 | EF59: -16561 | EG59: 59 | EH59: 2018-12-18 | EI59: -34525 | EJ59: 2018-12-18 | EK59: 69056 | EL59: 2018-12-18 | EM59: -34531 | EN59: 59 | EO59: 2018-12-18 | EP59: 4528 | EQ59: 2018-12-18 | ER59: -1522 | ES59: 2018-12-18 | ET59: -3006 | EU59: 59 | EV59: 2018-12-18 | EW59: -52286 | EX59: 2018-12-18 | EY59: 71353 | EZ59: 2018-12-18 | FA59: -19067 | FB59: 59 | FC59: 2018-12-18 | FD59: -275376 | FE59: 2018-12-18 | FF59: 228132 | FG59: 2018-12-18 | FH59: 47244 | FI59: 59 | FJ59: 2018-12-18 | FK59: 23377 | FL59: 2018-12-18 | FM59: -28038 | FN59: 2018-12-18 | FO59: 4661
AM60: 60 | AN60: 2018-12-11 | AO60: 171710 | AP60: 2018-12-11 | AQ60: -158683 | AR60: 2018-12-11 | AS60: -13027 | AT60: 60 | AU60: 2018-12-11 | AV60: 5931 | AW60: 2018-12-11 | AX60: 30558 | AY60: 2018-12-11 | AZ60: -36489 | BA60: 60 | BB60: 2018-12-11 | BC60: 1660 | BD60: 2018-12-11 | BE60: 11649 | BF60: 2018-12-11 | BG60: -13309 | BH60: 60 | BI60: 2018-12-11 | BJ60: -6654 | BK60: 2018-12-11 | BL60: -567 | BM60: 2018-12-11 | BN60: 7221 | BO60: 60 | BP60: 2018-12-11 | BQ60: 22759 | BR60: 2018-12-11 | BS60: -38805 | BT60: 2018-12-11 | BU60: 16046 | BV60: 60 | BW60: 2018-12-11 | BX60: 13476 | BY60: 2018-12-11 | BZ60: -18936 | CA60: 2018-12-11 | CB60: 5460 | CC60: 60 | CD60: 2018-12-11 | CE60: -773 | CF60: 2018-12-11 | CG60: 1093 | CH60: 2018-12-11 | CI60: -320 | CJ60: 60 | CK60: 2018-12-11 | CL60: 1701 | CM60: 2018-12-11 | CN60: -2684 | CO60: 2018-12-11 | CP60: 983 | CQ60: 60 | CR60: 2018-12-11 | CS60: -5654 | CT60: 2018-12-11 | CU60: 5500 | CV60: 2018-12-11 | CW60: 154 | CX60: 60 | CY60: 2018-12-11 | CZ60: -48193 | DA60: 2018-12-11 | DB60: 78284 | DC60: 2018-12-11 | DD60: -30091 | DE60: 60 | DF60: 2018-12-11 | DG60: -417237 | DH60: 2018-12-11 | DI60: 429391 | DJ60: 2018-12-11 | DK60: -12154 | DL60: 60 | DM60: 2018-12-11 | DN60: -286093 | DO60: 2018-12-11 | DP60: 327080 | DQ60: 2018-12-11 | DR60: -40987 | DS60: 60 | DT60: 2018-12-11 | DU60: 7970 | DV60: 2018-12-11 | DW60: -6036 | DX60: 2018-12-11 | DY60: -1934 | DZ60: 60 | EA60: 2018-12-11 | EB60: -393802 | EC60: 2018-12-11 | ED60: 414180 | EE60: 2018-12-11 | EF60: -20378 | EG60: 60 | EH60: 2018-12-11 | EI60: -19994 | EJ60: 2018-12-11 | EK60: 55233 | EL60: 2018-12-11 | EM60: -35239 | EN60: 60 | EO60: 2018-12-11 | EP60: 7516 | EQ60: 2018-12-11 | ER60: -4507 | ES60: 2018-12-11 | ET60: -3009 | EU60: 60 | EV60: 2018-12-11 | EW60: -62194 | EX60: 2018-12-11 | EY60: 92696 | EZ60: 2018-12-11 | FA60: -30502 | FB60: 60 | FC60: 2018-12-11 | FD60: -283133 | FE60: 2018-12-11 | FF60: 235218 | FG60: 2018-12-11 | FH60: 47915 | FI60: 60 | FJ60: 2018-12-11 | FK60: 22171 | FL60: 2018-12-11 | FM60: -23383 | FN60: 2018-12-11 | FO60: 1212
AM61: 61 | AN61: 2018-12-04 | AO61: 123729 | AP61: 2018-12-04 | AQ61: -117635 | AR61: 2018-12-04 | AS61: -6094 | AT61: 61 | AU61: 2018-12-04 | AV61: 8951 | AW61: 2018-12-04 | AX61: 22179 | AY61: 2018-12-04 | AZ61: -31130 | BA61: 61 | BB61: 2018-12-04 | BC61: -2092 | BD61: 2018-12-04 | BE61: 12812 | BF61: 2018-12-04 | BG61: -10720 | BH61: 61 | BI61: 2018-12-04 | BJ61: -19154 | BK61: 2018-12-04 | BL61: 13162 | BM61: 2018-12-04 | BN61: 5992 | BO61: 61 | BP61: 2018-12-04 | BQ61: 29038 | BR61: 2018-12-04 | BS61: -46500 | BT61: 2018-12-04 | BU61: 17462 | BV61: 61 | BW61: 2018-12-04 | BX61: 9888 | BY61: 2018-12-04 | BZ61: -14082 | CA61: 2018-12-04 | CB61: 4194 | CC61: 61 | CD61: 2018-12-04 | CE61: -859 | CF61: 2018-12-04 | CG61: 789 | CH61: 2018-12-04 | CI61: 70 | CJ61: 61 | CK61: 2018-12-04 | CL61: 1926 | CM61: 2018-12-04 | CN61: -2834 | CO61: 2018-12-04 | CP61: 908 | CQ61: 61 | CR61: 2018-12-04 | CS61: 7107 | CT61: 2018-12-04 | CU61: -7258 | CV61: 2018-12-04 | CW61: 151 | CX61: 61 | CY61: 2018-12-04 | CZ61: -94787 | DA61: 2018-12-04 | DB61: 123238 | DC61: 2018-12-04 | DD61: -28451 | DE61: 61 | DF61: 2018-12-04 | DG61: -361560 | DH61: 2018-12-04 | DI61: 387512 | DJ61: 2018-12-04 | DK61: -25952 | DL61: 61 | DM61: 2018-12-04 | DN61: -347941 | DO61: 2018-12-04 | DP61: 395732 | DQ61: 2018-12-04 | DR61: -47791 | DS61: 61 | DT61: 2018-12-04 | DU61: 6910 | DV61: 2018-12-04 | DW61: -5264 | DX61: 2018-12-04 | DY61: -1646 | DZ61: 61 | EA61: 2018-12-04 | EB61: -293186 | EC61: 2018-12-04 | ED61: 377307 | EE61: 2018-12-04 | EF61: -84121 | EG61: 61 | EH61: 2018-12-04 | EI61: -14692 | EJ61: 2018-12-04 | EK61: 60178 | EL61: 2018-12-04 | EM61: -45486 | EN61: 61 | EO61: 2018-12-04 | EP61: 7433 | EQ61: 2018-12-04 | ER61: -4296 | ES61: 2018-12-04 | ET61: -3137 | EU61: 61 | EV61: 2018-12-04 | EW61: -72585 | EX61: 2018-12-04 | EY61: 126005 | EZ61: 2018-12-04 | FA61: -53420 | FB61: 61 | FC61: 2018-12-04 | FD61: -294701 | FE61: 2018-12-04 | FF61: 254484 | FG61: 2018-12-04 | FH61: 40217 | FI61: 61 | FJ61: 2018-12-04 | FK61: 24311 | FL61: 2018-12-04 | FM61: -24610 | FN61: 2018-12-04 | FO61: 299
AM62: 62 | AN62: 2018-11-27 | AO62: 42022 | AP62: 2018-11-27 | AQ62: -37371 | AR62: 2018-11-27 | AS62: -4651 | AT62: 62 | AU62: 2018-11-27 | AV62: -39846 | AW62: 2018-11-27 | AX62: 72003 | AY62: 2018-11-27 | AZ62: -32157 | BA62: 62 | BB62: 2018-11-27 | BC62: -15569 | BD62: 2018-11-27 | BE62: 25854 | BF62: 2018-11-27 | BG62: -10285 | BH62: 62 | BI62: 2018-11-27 | BJ62: -44181 | BK62: 2018-11-27 | BL62: 36918 | BM62: 2018-11-27 | BN62: 7263 | BO62: 62 | BP62: 2018-11-27 | BQ62: 26760 | BR62: 2018-11-27 | BS62: -43791 | BT62: 2018-11-27 | BU62: 17031 | BV62: 62 | BW62: 2018-11-27 | BX62: 4665 | BY62: 2018-11-27 | BZ62: -8091 | CA62: 2018-11-27 | CB62: 3426 | CC62: 62 | CD62: 2018-11-27 | CE62: -1145 | CF62: 2018-11-27 | CG62: 909 | CH62: 2018-11-27 | CI62: 236 | CJ62: 62 | CK62: 2018-11-27 | CL62: 1893 | CM62: 2018-11-27 | CN62: -3031 | CO62: 2018-11-27 | CP62: 1138 | CQ62: 62 | CR62: 2018-11-27 | CS62: 12005 | CT62: 2018-11-27 | CU62: -12128 | CV62: 2018-11-27 | CW62: 123 | CX62: 62 | CY62: 2018-11-27 | CZ62: -82966 | DA62: 2018-11-27 | DB62: 99941 | DC62: 2018-11-27 | DD62: -16975 | DE62: 62 | DF62: 2018-11-27 | DG62: -291386 | DH62: 2018-11-27 | DI62: 334755 | DJ62: 2018-11-27 | DK62: -43369 | DL62: 62 | DM62: 2018-11-27 | DN62: -325541 | DO62: 2018-11-27 | DP62: 348652 | DQ62: 2018-11-27 | DR62: -23111 | DS62: 62 | DT62: 2018-11-27 | DU62: 7507 | DV62: 2018-11-27 | DW62: -5962 | DX62: 2018-11-27 | DY62: -1545 | DZ62: 62 | EA62: 2018-11-27 | EB62: -284223 | EC62: 2018-11-27 | ED62: 420922 | EE62: 2018-11-27 | EF62: -136699 | EG62: 62 | EH62: 2018-11-27 | EI62: -20288 | EJ62: 2018-11-27 | EK62: 74073 | EL62: 2018-11-27 | EM62: -53785 | EN62: 62 | EO62: 2018-11-27 | EP62: 8730 | EQ62: 2018-11-27 | ER62: -5923 | ES62: 2018-11-27 | ET62: -2807 | EU62: 62 | EV62: 2018-11-27 | EW62: -92797 | EX62: 2018-11-27 | EY62: 150789 | EZ62: 2018-11-27 | FA62: -57992 | FB62: 62 | FC62: 2018-11-27 | FD62: -280779 | FE62: 2018-11-27 | FF62: 242382 | FG62: 2018-11-27 | FH62: 38397 | FI62: 62 | FJ62: 2018-11-27 | FK62: 20061 | FL62: 2018-11-27 | FM62: -23689 | FN62: 2018-11-27 | FO62: 3628
AM63: 63 | AN63: 2018-11-20 | AO63: 99095 | AP63: 2018-11-20 | AQ63: -84365 | AR63: 2018-11-20 | AS63: -14730 | AT63: 63 | AU63: 2018-11-20 | AV63: -42347 | AW63: 2018-11-20 | AX63: 73478 | AY63: 2018-11-20 | AZ63: -31131 | BA63: 63 | BB63: 2018-11-20 | BC63: 9839 | BD63: 2018-11-20 | BE63: -2111 | BF63: 2018-11-20 | BG63: -7728 | BH63: 63 | BI63: 2018-11-20 | BJ63: -31909 | BK63: 2018-11-20 | BL63: 25418 | BM63: 2018-11-20 | BN63: 6491 | BO63: 63 | BP63: 2018-11-20 | BQ63: 39141 | BR63: 2018-11-20 | BS63: -58104 | BT63: 2018-11-20 | BU63: 18963 | BV63: 63 | BW63: 2018-11-20 | BX63: 14260 | BY63: 2018-11-20 | BZ63: -16454 | CA63: 2018-11-20 | CB63: 2194 | CC63: 63 | CD63: 2018-11-20 | CE63: -914 | CF63: 2018-11-20 | CG63: 782 | CH63: 2018-11-20 | CI63: 132 | CJ63: 63 | CK63: 2018-11-20 | CL63: 2133 | CM63: 2018-11-20 | CN63: -3177 | CO63: 2018-11-20 | CP63: 1044 | CQ63: 63 | CR63: 2018-11-20 | CS63: 586 | CT63: 2018-11-20 | CU63: -760 | CV63: 2018-11-20 | CW63: 174 | CX63: 63 | CY63: 2018-11-20 | CZ63: -91131 | DA63: 2018-11-20 | DB63: 107325 | DC63: 2018-11-20 | DD63: -16194 | DE63: 63 | DF63: 2018-11-20 | DG63: -361057 | DH63: 2018-11-20 | DI63: 400864 | DJ63: 2018-11-20 | DK63: -39807 | DL63: 63 | DM63: 2018-11-20 | DN63: -446186 | DO63: 2018-11-20 | DP63: 502460 | DQ63: 2018-11-20 | DR63: -56274 | DS63: 63 | DT63: 2018-11-20 | DU63: 7188 | DV63: 2018-11-20 | DW63: -6048 | DX63: 2018-11-20 | DY63: -1140 | DZ63: 63 | EA63: 2018-11-20 | EB63: -367265 | EC63: 2018-11-20 | ED63: 460615 | EE63: 2018-11-20 | EF63: -93350 | EG63: 63 | EH63: 2018-11-20 | EI63: -18808 | EJ63: 2018-11-20 | EK63: 87121 | EL63: 2018-11-20 | EM63: -68313 | EN63: 63 | EO63: 2018-11-20 | EP63: 8933 | EQ63: 2018-11-20 | ER63: -6210 | ES63: 2018-11-20 | ET63: -2723 | EU63: 63 | EV63: 2018-11-20 | EW63: -84963 | EX63: 2018-11-20 | EY63: 142537 | EZ63: 2018-11-20 | FA63: -57574 | FB63: 63 | FC63: 2018-11-20 | FD63: -274782 | FE63: 2018-11-20 | FF63: 240758 | FG63: 2018-11-20 | FH63: 34024 | FI63: 63 | FJ63: 2018-11-20 | FK63: 18700 | FL63: 2018-11-20 | FM63: -22241 | FN63: 2018-11-20 | FO63: 3541
AM64: 64 | AN64: 2018-11-13 | AO64: 116992 | AP64: 2018-11-13 | AQ64: -88310 | AR64: 2018-11-13 | AS64: -28682 | AT64: 64 | AU64: 2018-11-13 | AV64: -41958 | AW64: 2018-11-13 | AX64: 76986 | AY64: 2018-11-13 | AZ64: -35028 | BA64: 64 | BB64: 2018-11-13 | BC64: 21381 | BD64: 2018-11-13 | BE64: -11563 | BF64: 2018-11-13 | BG64: -9818 | BH64: 64 | BI64: 2018-11-13 | BJ64: -22134 | BK64: 2018-11-13 | BL64: 16431 | BM64: 2018-11-13 | BN64: 5703 | BO64: 64 | BP64: 2018-11-13 | BQ64: 42506 | BR64: 2018-11-13 | BS64: -58443 | BT64: 2018-11-13 | BU64: 15937 | BV64: 64 | BW64: 2018-11-13 | BX64: 17655 | BY64: 2018-11-13 | BZ64: -19700 | CA64: 2018-11-13 | CB64: 2045 | CC64: 64 | CD64: 2018-11-13 | CE64: -1235 | CF64: 2018-11-13 | CG64: 1021 | CH64: 2018-11-13 | CI64: 214 | CJ64: 64 | CK64: 2018-11-13 | CL64: 1400 | CM64: 2018-11-13 | CN64: -2274 | CO64: 2018-11-13 | CP64: 874 | CQ64: 64 | CR64: 2018-11-13 | CS64: 19671 | CT64: 2018-11-13 | CU64: -19844 | CV64: 2018-11-13 | CW64: 173 | CX64: 64 | CY64: 2018-11-13 | CZ64: -32490 | DA64: 2018-11-13 | DB64: 48452 | DC64: 2018-11-13 | DD64: -15962 | DE64: 64 | DF64: 2018-11-13 | DG64: -362374 | DH64: 2018-11-13 | DI64: 395884 | DJ64: 2018-11-13 | DK64: -33510 | DL64: 64 | DM64: 2018-11-13 | DN64: -570542 | DO64: 2018-11-13 | DP64: 650833 | DQ64: 2018-11-13 | DR64: -80291 | DS64: 64 | DT64: 2018-11-13 | DU64: 7731 | DV64: 2018-11-13 | DW64: -6278 | DX64: 2018-11-13 | DY64: -1453 | DZ64: 64 | EA64: 2018-11-13 | EB64: -333195 | EC64: 2018-11-13 | ED64: 442166 | EE64: 2018-11-13 | EF64: -108971 | EG64: 64 | EH64: 2018-11-13 | EI64: -15848 | EJ64: 2018-11-13 | EK64: 77993 | EL64: 2018-11-13 | EM64: -62145 | EN64: 64 | EO64: 2018-11-13 | EP64: 10107 | EQ64: 2018-11-13 | ER64: -7084 | ES64: 2018-11-13 | ET64: -3023 | EU64: 64 | EV64: 2018-11-13 | EW64: -73265 | EX64: 2018-11-13 | EY64: 128305 | EZ64: 2018-11-13 | FA64: -55040 | FB64: 64 | FC64: 2018-11-13 | FD64: -280858 | FE64: 2018-11-13 | FF64: 242087 | FG64: 2018-11-13 | FH64: 38771 | FI64: 64 | FJ64: 2018-11-13 | FK64: 29805 | FL64: 2018-11-13 | FM64: -31171 | FN64: 2018-11-13 | FO64: 1366
AM65: 65 | AN65: 2018-11-06 | AO65: 130340 | AP65: 2018-11-06 | AQ65: -103297 | AR65: 2018-11-06 | AS65: -27043 | AT65: 65 | AU65: 2018-11-06 | AV65: -34013 | AW65: 2018-11-06 | AX65: 68197 | AY65: 2018-11-06 | AZ65: -34184 | BA65: 65 | BB65: 2018-11-06 | BC65: 9859 | BD65: 2018-11-06 | BE65: -2264 | BF65: 2018-11-06 | BG65: -7595 | BH65: 65 | BI65: 2018-11-06 | BJ65: -10864 | BK65: 2018-11-06 | BL65: 5326 | BM65: 2018-11-06 | BN65: 5538 | BO65: 65 | BP65: 2018-11-06 | BQ65: 62999 | BR65: 2018-11-06 | BS65: -77189 | BT65: 2018-11-06 | BU65: 14190 | BV65: 65 | BW65: 2018-11-06 | BX65: 28245 | BY65: 2018-11-06 | BZ65: -28330 | CA65: 2018-11-06 | CB65: 85 | CC65: 65 | CD65: 2018-11-06 | CE65: -1180 | CF65: 2018-11-06 | CG65: 913 | CH65: 2018-11-06 | CI65: 267 | CJ65: 65 | CK65: 2018-11-06 | CL65: 1278 | CM65: 2018-11-06 | CN65: -2120 | CO65: 2018-11-06 | CP65: 842 | CQ65: 65 | CR65: 2018-11-06 | CS65: 16977 | CT65: 2018-11-06 | CU65: -17192 | CV65: 2018-11-06 | CW65: 215 | CX65: 65 | CY65: 2018-11-06 | CZ65: -62953 | DA65: 2018-11-06 | DB65: 81210 | DC65: 2018-11-06 | DD65: -18257 | DE65: 65 | DF65: 2018-11-06 | DG65: -333480 | DH65: 2018-11-06 | DI65: 368257 | DJ65: 2018-11-06 | DK65: -34777 | DL65: 65 | DM65: 2018-11-06 | DN65: -556379 | DO65: 2018-11-06 | DP65: 641695 | DQ65: 2018-11-06 | DR65: -85316 | DS65: 65 | DT65: 2018-11-06 | DU65: 7780 | DV65: 2018-11-06 | DW65: -6376 | DX65: 2018-11-06 | DY65: -1404 | DZ65: 65 | EA65: 2018-11-06 | EB65: -539186 | EC65: 2018-11-06 | ED65: 650680 | EE65: 2018-11-06 | EF65: -111494 | EG65: 65 | EH65: 2018-11-06 | EI65: -5371 | EJ65: 2018-11-06 | EK65: 68883 | EL65: 2018-11-06 | EM65: -63512 | EN65: 65 | EO65: 2018-11-06 | EP65: 9735 | EQ65: 2018-11-06 | ER65: -6925 | ES65: 2018-11-06 | ET65: -2810 | EU65: 65 | EV65: 2018-11-06 | EW65: -71231 | EX65: 2018-11-06 | EY65: 125520 | EZ65: 2018-11-06 | FA65: -54289 | FB65: 65 | FC65: 2018-11-06 | FD65: -259949 | FE65: 2018-11-06 | FF65: 232224 | FG65: 2018-11-06 | FH65: 27725 | FI65: 65 | FJ65: 2018-11-06 | FK65: 22035 | FL65: 2018-11-06 | FM65: -21179 | FN65: 2018-11-06 | FO65: -856
AM66: 66 | AN66: =INDIRECT("Corn!H"&AM66) -> 2018-10-30 | AO66: =INDIRECT("Corn!I"&AM66) -> 122464 | AP66: =INDIRECT("Corn!J"&AM66) -> 2018-10-30 | AQ66: =INDIRECT("Corn!K"&AM66) -> -84364 | AR66: =INDIRECT("Corn!L"&AM66) -> 2018-10-30 | AS66: =INDIRECT("Corn!M"&AM66) -> -38100 | AT66: 66 | AU66: =INDIRECT("Soybeans!H"&AT66) -> 2018-10-30 | AV66: =INDIRECT("Soybeans!I"&AT66) -> -64215 | AW66: =INDIRECT("Soybeans!J"&AT66) -> 2018-10-30 | AX66: =INDIRECT("Soybeans!K"&AT66) -> 98621 | AY66: =INDIRECT("Soybeans!L"&AT66) -> 2018-10-30 | AZ66: =INDIRECT("Soybeans!M"&AT66) -> -34406 | BA66: 66 | BB66: =INDIRECT("Wheat_SRW!H"&BA66) -> 2018-10-30 | BC66: =INDIRECT("Wheat_SRW!I"&BA66) -> 7769 | BD66: =INDIRECT("Wheat_SRW!J"&BA66) -> 2018-10-30 | BE66: =INDIRECT("Wheat_SRW!K"&BA66) -> 1393 | BF66: =INDIRECT("Wheat_SRW!L"&BA66) -> 2018-10-30 | BG66: =INDIRECT("Wheat_SRW!M"&BA66) -> -9162 | BH66: 66 | BI66: =INDIRECT("Soybean_Oil!H"&BH66) -> 2018-10-30 | BJ66: =INDIRECT("Soybean_Oil!I"&BH66) -> -12069 | BK66: =INDIRECT("Soybean_Oil!J"&BH66) -> 2018-10-30 | BL66: =INDIRECT("Soybean_Oil!K"&BH66) -> 6623 | BM66: =INDIRECT("Soybean_Oil!L"&BH66) -> 2018-10-30 | BN66: =INDIRECT("Soybean_Oil!M"&BH66) -> 5446 | BO66: 66 | BP66: =INDIRECT("Soybean_Meal!H"&BO66) -> 2018-10-30 | BQ66: =INDIRECT("Soybean_Meal!I"&BO66) -> 64247 | BR66: =INDIRECT("Soybean_Meal!J"&BO66) -> 2018-10-30 | BS66: =INDIRECT("Soybean_Meal!K"&BO66) -> -75398 | BT66: =INDIRECT("Soybean_Meal!L"&BO66) -> 2018-10-30 | BU66: =INDIRECT("Soybean_Meal!M"&BO66) -> 11151 | BV66: 66 | BW66: =INDIRECT("Wheat_HRW!H"&BV66) -> 2018-10-30 | BX66: =INDIRECT("Wheat_HRW!I"&BV66) -> 25759 | BY66: =INDIRECT("Wheat_HRW!J"&BV66) -> 2018-10-30 | BZ66: =INDIRECT("Wheat_HRW!K"&BV66) -> -26808 | CA66: =INDIRECT("Wheat_HRW!L"&BV66) -> 2018-10-30 | CB66: =INDIRECT("Wheat_HRW!M"&BV66) -> 1049 | CC66: 66 | CD66: =INDIRECT("Rough_Rice!H"&CC66) -> 2018-10-30 | CE66: =INDIRECT("Rough_Rice!I"&CC66) -> -924 | CF66: =INDIRECT("Rough_Rice!J"&CC66) -> 2018-10-30 | CG66: =INDIRECT("Rough_Rice!K"&CC66) -> 984 | CH66: =INDIRECT("Rough_Rice!L"&CC66) -> 2018-10-30 | CI66: =INDIRECT("Rough_Rice!M"&CC66) -> -60 | CJ66: 66 | CK66: =INDIRECT("Oats!H"&CJ66) -> 2018-10-30 | CL66: =INDIRECT("Oats!I"&CJ66) -> 1279 | CM66: =INDIRECT("Oats!J"&CJ66) -> 2018-10-30 | CN66: =INDIRECT("Oats!K"&CJ66) -> -2196 | CO66: =INDIRECT("Oats!L"&CJ66) -> 2018-10-30 | CP66: =INDIRECT("Oats!M"&CJ66) -> 917 | CQ66: 66 | CR66: =INDIRECT("Bloomberg_Cmdy_Index!H"&CQ66) -> 2018-10-30 | CS66: =INDIRECT("Bloomberg_Cmdy_Index!I"&CQ66) -> 4349 | CT66: =INDIRECT("Bloomberg_Cmdy_Index!J"&CQ66) -> 2018-10-30 | CU66: =INDIRECT("Bloomberg_Cmdy_Index!K"&CQ66) -> -4528 | CV66: =INDIRECT("Bloomberg_Cmdy_Index!L"&CQ66) -> 2018-10-30 | CW66: =INDIRECT("Bloomberg_Cmdy_Index!M"&CQ66) -> 179 | CX66: 66 | CY66: =INDIRECT("'30_Day_Fed_Funds'!H"&CX66) -> 2018-10-30 | CZ66: =INDIRECT("'30_Day_Fed_Funds'!I"&CX66) -> -69668 | DA66: =INDIRECT("'30_Day_Fed_Funds'!J"&CX66) -> 2018-10-30 | DB66: =INDIRECT("'30_Day_Fed_Funds'!K"&CX66) -> 94107 | DC66: =INDIRECT("'30_Day_Fed_Funds'!L"&CX66) -> 2018-10-30 | DD66: =INDIRECT("'30_Day_Fed_Funds'!M"&CX66) -> -24439 | DE66: 66 | DF66: =INDIRECT("'2_Yr_TNotes'!H"&DE66) -> 2018-10-30 | DG66: =INDIRECT("'2_Yr_TNotes'!I"&DE66) -> -322503 | DH66: =INDIRECT("'2_Yr_TNotes'!J"&DE66) -> 2018-10-30 | DI66: =INDIRECT("'2_Yr_TNotes'!K"&DE66) -> 358581 | DJ66: =INDIRECT("'2_Yr_TNotes'!L"&DE66) -> 2018-10-30 | DK66: =INDIRECT("'2_Yr_TNotes'!M"&DE66) -> -36078 | DL66: 66 | DM66: =INDIRECT("'5_Yr_TNotes'!H"&DL66) -> 2018-10-30 | DN66: =INDIRECT("'5_Yr_TNotes'!I"&DL66) -> -538251 | DO66: =INDIRECT("'5_Yr_TNotes'!J"&DL66) -> 2018-10-30 | DP66: =INDIRECT("'5_Yr_TNotes'!K"&DL66) -> 629482 | DQ66: =INDIRECT("'5_Yr_TNotes'!L"&DL66) -> 2018-10-30 | DR66: =INDIRECT("'5_Yr_TNotes'!M"&DL66) -> -91231 | DS66: 66 | DT66: =INDIRECT("'5_Yr_IR_Swaps'!H"&DS66) -> 2018-10-30 | DU66: =INDIRECT("'5_Yr_IR_Swaps'!I"&DS66) -> 7533 | DV66: =INDIRECT("'5_Yr_IR_Swaps'!J"&DS66) -> 2018-10-30 | DW66: =INDIRECT("'5_Yr_IR_Swaps'!K"&DS66) -> -6037 | DX66: =INDIRECT("'5_Yr_IR_Swaps'!L"&DS66) -> 2018-10-30 | DY66: =INDIRECT("'5_Yr_IR_Swaps'!M"&DS66) -> -1496 | DZ66: 66 | EA66: =INDIRECT("'10_Yr_TNotes'!H"&DZ66) -> 2018-10-30 | EB66: =INDIRECT("'10_Yr_TNotes'!I"&DZ66) -> -502839 | EC66: =INDIRECT("'10_Yr_TNotes'!J"&DZ66) -> 2018-10-30 | ED66: =INDIRECT("'10_Yr_TNotes'!K"&DZ66) -> 584835 | EE66: =INDIRECT("'10_Yr_TNotes'!L"&DZ66) -> 2018-10-30 | EF66: =INDIRECT("'10_Yr_TNotes'!M"&DZ66) -> -81996 | EG66: 66 | EH66: =INDIRECT("Ultra_10_Yr_TNotes!H"&EG66) -> 2018-10-30 | EI66: =INDIRECT("Ultra_10_Yr_TNotes!I"&EG66) -> -8802 | EJ66: =INDIRECT("Ultra_10_Yr_TNotes!J"&EG66) -> 2018-10-30 | EK66: =INDIRECT("Ultra_10_Yr_TNotes!K"&EG66) -> 74546 | EL66: =INDIRECT("Ultra_10_Yr_TNotes!L"&EG66) -> 2018-10-30 | EM66: =INDIRECT("Ultra_10_Yr_TNotes!M"&EG66) -> -65744 | EN66: 66 | EO66: =INDIRECT("'10_Yr_IR_Swaps'!H"&EN66) -> 2018-10-30 | EP66: =INDIRECT("'10_Yr_IR_Swaps'!I"&EN66) -> 7727 | EQ66: =INDIRECT("'10_Yr_IR_Swaps'!J"&EN66) -> 2018-10-30 | ER66: =INDIRECT("'10_Yr_IR_Swaps'!K"&EN66) -> -5020 | ES66: =INDIRECT("'10_Yr_IR_Swaps'!L"&EN66) -> 2018-10-30 | ET66: =INDIRECT("'10_Yr_IR_Swaps'!M"&EN66) -> -2707 | EU66: 66 | EV66: =INDIRECT("US_Treasury_Bonds!H"&EU66) -> 2018-10-30 | EW66: =INDIRECT("US_Treasury_Bonds!I"&EU66) -> -82011 | EX66: =INDIRECT("US_Treasury_Bonds!J"&EU66) -> 2018-10-30 | EY66: =INDIRECT("US_Treasury_Bonds!K"&EU66) -> 126960 | EZ66: =INDIRECT("US_Treasury_Bonds!L"&EU66) -> 2018-10-30 | FA66: =INDIRECT("US_Treasury_Bonds!M"&EU66) -> -44949 | FB66: 66 | FC66: =INDIRECT("Ultra_Treasury_Bonds!H"&FB66) -> 2018-10-30 | FD66: =INDIRECT("Ultra_Treasury_Bonds!I"&FB66) -> -250125 | FE66: =INDIRECT("Ultra_Treasury_Bonds!J"&FB66) -> 2018-10-30 | FF66: =INDIRECT("Ultra_Treasury_Bonds!K"&FB66) -> 226645 | FG66: =INDIRECT("Ultra_Treasury_Bonds!L"&FB66) -> 2018-10-30 | FH66: =INDIRECT("Ultra_Treasury_Bonds!M"&FB66) -> 23480 | FI66: 66 | FJ66: =INDIRECT("DJI_5!H"&FI66) -> 2018-10-30 | FK66: =INDIRECT("DJI_5!I"&FI66) -> 18550 | FL66: =INDIRECT("DJI_5!J"&FI66) -> 2018-10-30 | FM66: =INDIRECT("DJI_5!K"&FI66) -> -21946 | FN66: =INDIRECT("DJI_5!L"&FI66) -> 2018-10-30 | FO66: =INDIRECT("DJI_5!M"&FI66) -> 3396
AM67: =AM66+1 -> 67 | AN67: 2018-10-23 | AO67: 123280 | AP67: 2018-10-23 | AQ67: -89786 | AR67: 2018-10-23 | AS67: -33494 | AT67: =AT66+1 -> 67 | AU67: 2018-10-23 | AV67: -31539 | AW67: 2018-10-23 | AX67: 67953 | AY67: 2018-10-23 | AZ67: -36414 | BA67: =BA66+1 -> 67 | BB67: 2018-10-23 | BC67: 20328 | BD67: 2018-10-23 | BE67: -14004 | BF67: 2018-10-23 | BG67: -6324 | BH67: =BH66+1 -> 67 | BI67: 2018-10-23 | BJ67: -513 | BK67: 2018-10-23 | BL67: -5049 | BM67: 2018-10-23 | BN67: 5562 | BO67: =BO66+1 -> 67 | BP67: 2018-10-23 | BQ67: 76289 | BR67: 2018-10-23 | BS67: -90154 | BT67: 2018-10-23 | BU67: 13865 | BV67: =BV66+1 -> 67 | BW67: 2018-10-23 | BX67: 36879 | BY67: 2018-10-23 | BZ67: -37043 | CA67: 2018-10-23 | CB67: 164 | CC67: =CC66+1 -> 67 | CD67: 2018-10-23 | CE67: -796 | CF67: 2018-10-23 | CG67: 763 | CH67: 2018-10-23 | CI67: 33 | CJ67: =CJ66+1 -> 67 | CK67: 2018-10-23 | CL67: 1060 | CM67: 2018-10-23 | CN67: -1910 | CO67: 2018-10-23 | CP67: 850 | CQ67: =CQ66+1 -> 67 | CR67: 2018-10-23 | CS67: -9610 | CT67: 2018-10-23 | CU67: 9419 | CV67: 2018-10-23 | CW67: 191 | CX67: =CX66+1 -> 67 | CY67: 2018-10-23 | CZ67: -56662 | DA67: 2018-10-23 | DB67: 77953 | DC67: 2018-10-23 | DD67: -21291 | DE67: =DE66+1 -> 67 | DF67: 2018-10-23 | DG67: -316754 | DH67: 2018-10-23 | DI67: 355267 | DJ67: 2018-10-23 | DK67: -38513 | DL67: =DL66+1 -> 67 | DM67: 2018-10-23 | DN67: -773639 | DO67: 2018-10-23 | DP67: 888136 | DQ67: 2018-10-23 | DR67: -114497 | DS67: =DS66+1 -> 67 | DT67: 2018-10-23 | DU67: 6697 | DV67: 2018-10-23 | DW67: -5431 | DX67: 2018-10-23 | DY67: -1266 | DZ67: =DZ66+1 -> 67 | EA67: 2018-10-23 | EB67: -544033 | EC67: 2018-10-23 | ED67: 635029 | EE67: 2018-10-23 | EF67: -90996 | EG67: =EG66+1 -> 67 | EH67: 2018-10-23 | EI67: -19266 | EJ67: 2018-10-23 | EK67: 82977 | EL67: 2018-10-23 | EM67: -63711 | EN67: =EN66+1 -> 67 | EO67: 2018-10-23 | EP67: 6848 | EQ67: 2018-10-23 | ER67: -4964 | ES67: 2018-10-23 | ET67: -1884 | EU67: =EU66+1 -> 67 | EV67: 2018-10-23 | EW67: -87815 | EX67: 2018-10-23 | EY67: 138021 | EZ67: 2018-10-23 | FA67: -50206 | FB67: =FB66+1 -> 67 | FC67: 2018-10-23 | FD67: -239485 | FE67: 2018-10-23 | FF67: 218870 | FG67: 2018-10-23 | FH67: 20615 | FI67: =FI66+1 -> 67 | FJ67: 2018-10-23 | FK67: 24344 | FL67: 2018-10-23 | FM67: -28979 | FN67: 2018-10-23 | FO67: 4635
AM68: 68 | AN68: 2018-10-16 | AO68: 109611 | AP68: 2018-10-16 | AQ68: -86691 | AR68: 2018-10-16 | AS68: -22920 | AT68: 68 | AU68: 2018-10-16 | AV68: -29774 | AW68: 2018-10-16 | AX68: 62978 | AY68: 2018-10-16 | AZ68: -33204 | BA68: 68 | BB68: 2018-10-16 | BC68: 32885 | BD68: 2018-10-16 | BE68: -26287 | BF68: 2018-10-16 | BG68: -6598 | BH68: 68 | BI68: 2018-10-16 | BJ68: 2620 | BK68: 2018-10-16 | BL68: -8288 | BM68: 2018-10-16 | BN68: 5668 | BO68: 68 | BP68: 2018-10-16 | BQ68: 82342 | BR68: 2018-10-16 | BS68: -99721 | BT68: 2018-10-16 | BU68: 17379 | BV68: 68 | BW68: 2018-10-16 | BX68: 41157 | BY68: 2018-10-16 | BZ68: -42039 | CA68: 2018-10-16 | CB68: 882 | CC68: 68 | CD68: 2018-10-16 | CE68: -1151 | CF68: 2018-10-16 | CG68: 1164 | CH68: 2018-10-16 | CI68: -13 | CJ68: 68 | CK68: 2018-10-16 | CL68: 734 | CM68: 2018-10-16 | CN68: -1684 | CO68: 2018-10-16 | CP68: 950 | CQ68: 68 | CR68: 2018-10-16 | CS68: -9905 | CT68: 2018-10-16 | CU68: 9750 | CV68: 2018-10-16 | CW68: 155 | CX68: 68 | CY68: 2018-10-16 | CZ68: -29983 | DA68: 2018-10-16 | DB68: 52103 | DC68: 2018-10-16 | DD68: -22120 | DE68: 68 | DF68: 2018-10-16 | DG68: -259716 | DH68: 2018-10-16 | DI68: 299943 | DJ68: 2018-10-16 | DK68: -40227 | DL68: 68 | DM68: 2018-10-16 | DN68: -819841 | DO68: 2018-10-16 | DP68: 954210 | DQ68: 2018-10-16 | DR68: -134369 | DS68: 68 | DT68: 2018-10-16 | DU68: 6020 | DV68: 2018-10-16 | DW68: -4583 | DX68: 2018-10-16 | DY68: -1437 | DZ68: 68 | EA68: 2018-10-16 | EB68: -615970 | EC68: 2018-10-16 | ED68: 701660 | EE68: 2018-10-16 | EF68: -85690 | EG68: 68 | EH68: 2018-10-16 | EI68: -23108 | EJ68: 2018-10-16 | EK68: 81192 | EL68: 2018-10-16 | EM68: -58084 | EN68: 68 | EO68: 2018-10-16 | EP68: 6710 | EQ68: 2018-10-16 | ER68: -4985 | ES68: 2018-10-16 | ET68: -1725 | EU68: 68 | EV68: 2018-10-16 | EW68: -103937 | EX68: 2018-10-16 | EY68: 156249 | EZ68: 2018-10-16 | FA68: -52312 | FB68: 68 | FC68: 2018-10-16 | FD68: -244975 | FE68: 2018-10-16 | FF68: 233187 | FG68: 2018-10-16 | FH68: 11788 | FI68: 68 | FJ68: 2018-10-16 | FK68: 26356 | FL68: 2018-10-16 | FM68: -29343 | FN68: 2018-10-16 | FO68: 2987
AM69: 69 | AN69: 2018-10-09 | AO69: 65935 | AP69: 2018-10-09 | AQ69: -46643 | AR69: 2018-10-09 | AS69: -19292 | AT69: 69 | AU69: 2018-10-09 | AV69: -41294 | AW69: 2018-10-09 | AX69: 71183 | AY69: 2018-10-09 | AZ69: -29889 | BA69: 69 | BB69: 2018-10-09 | BC69: 32929 | BD69: 2018-10-09 | BE69: -24611 | BF69: 2018-10-09 | BG69: -8318 | BH69: 69 | BI69: 2018-10-09 | BJ69: -5044 | BK69: 2018-10-09 | BL69: -3747 | BM69: 2018-10-09 | BN69: 8791 | BO69: 69 | BP69: 2018-10-09 | BQ69: 78963 | BR69: 2018-10-09 | BS69: -94234 | BT69: 2018-10-09 | BU69: 15271 | BV69: 69 | BW69: 2018-10-09 | BX69: 40234 | BY69: 2018-10-09 | BZ69: -40943 | CA69: 2018-10-09 | CB69: 709 | CC69: 69 | CD69: 2018-10-09 | CE69: -2283 | CF69: 2018-10-09 | CG69: 2261 | CH69: 2018-10-09 | CI69: 22 | CJ69: 69 | CK69: 2018-10-09 | CL69: 537 | CM69: 2018-10-09 | CN69: -1238 | CO69: 2018-10-09 | CP69: 701 | CQ69: 69 | CR69: 2018-10-09 | CS69: -11836 | CT69: 2018-10-09 | CU69: 11749 | CV69: 2018-10-09 | CW69: 87 | CX69: 69 | CY69: 2018-10-09 | CZ69: -12775 | DA69: 2018-10-09 | DB69: 30201 | DC69: 2018-10-09 | DD69: -17426 | DE69: 69 | DF69: 2018-10-09 | DG69: -243564 | DH69: 2018-10-09 | DI69: 291010 | DJ69: 2018-10-09 | DK69: -47446 | DL69: 69 | DM69: 2018-10-09 | DN69: -859940 | DO69: 2018-10-09 | DP69: 1018147 | DQ69: 2018-10-09 | DR69: -158207 | DS69: 69 | DT69: 2018-10-09 | DU69: 5929 | DV69: 2018-10-09 | DW69: -4340 | DX69: 2018-10-09 | DY69: -1589 | DZ69: 69 | EA69: 2018-10-09 | EB69: -622422 | EC69: 2018-10-09 | ED69: 727351 | EE69: 2018-10-09 | EF69: -104929 | EG69: 69 | EH69: 2018-10-09 | EI69: -20921 | EJ69: 2018-10-09 | EK69: 79476 | EL69: 2018-10-09 | EM69: -58555 | EN69: 69 | EO69: 2018-10-09 | EP69: 6694 | EQ69: 2018-10-09 | ER69: -4734 | ES69: 2018-10-09 | ET69: -1960 | EU69: 69 | EV69: 2018-10-09 | EW69: -138382 | EX69: 2018-10-09 | EY69: 187940 | EZ69: 2018-10-09 | FA69: -49558 | FB69: 69 | FC69: 2018-10-09 | FD69: -226155 | FE69: 2018-10-09 | FF69: 216990 | FG69: 2018-10-09 | FH69: 9165 | FI69: 69 | FJ69: 2018-10-09 | FK69: 45101 | FL69: 2018-10-09 | FM69: -49161 | FN69: 2018-10-09 | FO69: 4060
AM70: 70 | AN70: 2018-10-02 | AO70: 56165 | AP70: 2018-10-02 | AQ70: -42888 | AR70: 2018-10-02 | AS70: -13277 | AT70: 70 | AU70: 2018-10-02 | AV70: -39027 | AW70: 2018-10-02 | AX70: 69311 | AY70: 2018-10-02 | AZ70: -30284 | BA70: 70 | BB70: 2018-10-02 | BC70: 35145 | BD70: 2018-10-02 | BE70: -27645 | BF70: 2018-10-02 | BG70: -7500 | BH70: 70 | BI70: 2018-10-02 | BJ70: -12249 | BK70: 2018-10-02 | BL70: 5455 | BM70: 2018-10-02 | BN70: 6794 | BO70: 70 | BP70: 2018-10-02 | BQ70: 65128 | BR70: 2018-10-02 | BS70: -77648 | BT70: 2018-10-02 | BU70: 12520 | BV70: 70 | BW70: 2018-10-02 | BX70: 42471 | BY70: 2018-10-02 | BZ70: -42126 | CA70: 2018-10-02 | CB70: -345 | CC70: 70 | CD70: 2018-10-02 | CE70: -3015 | CF70: 2018-10-02 | CG70: 2859 | CH70: 2018-10-02 | CI70: 156 | CJ70: 70 | CK70: 2018-10-02 | CL70: 200 | CM70: 2018-10-02 | CN70: -829 | CO70: 2018-10-02 | CP70: 629 | CQ70: 70 | CR70: 2018-10-02 | CS70: -184 | CT70: 2018-10-02 | CU70: 83 | CV70: 2018-10-02 | CW70: 101 | CX70: 70 | CY70: 2018-10-02 | CZ70: -32527 | DA70: 2018-10-02 | DB70: 51673 | DC70: 2018-10-02 | DD70: -19146 | DE70: 70 | DF70: 2018-10-02 | DG70: -293018 | DH70: 2018-10-02 | DI70: 338210 | DJ70: 2018-10-02 | DK70: -45192 | DL70: 70 | DM70: 2018-10-02 | DN70: -825959 | DO70: 2018-10-02 | DP70: 969462 | DQ70: 2018-10-02 | DR70: -143503 | DS70: 70 | DT70: 2018-10-02 | DU70: 6388 | DV70: 2018-10-02 | DW70: -4770 | DX70: 2018-10-02 | DY70: -1618 | DZ70: 70 | EA70: 2018-10-02 | EB70: -740192 | EC70: 2018-10-02 | ED70: 812324 | EE70: 2018-10-02 | EF70: -72132 | EG70: 70 | EH70: 2018-10-02 | EI70: -22034 | EJ70: 2018-10-02 | EK70: 83245 | EL70: 2018-10-02 | EM70: -61211 | EN70: 70 | EO70: 2018-10-02 | EP70: 7107 | EQ70: 2018-10-02 | ER70: -5017 | ES70: 2018-10-02 | ET70: -2090 | EU70: 70 | EV70: 2018-10-02 | EW70: -119808 | EX70: 2018-10-02 | EY70: 146105 | EZ70: 2018-10-02 | FA70: -26297 | FB70: 70 | FC70: 2018-10-02 | FD70: -240737 | FE70: 2018-10-02 | FF70: 220526 | FG70: 2018-10-02 | FH70: 20211 | FI70: 70 | FJ70: 2018-10-02 | FK70: 54770 | FL70: 2018-10-02 | FM70: -56931 | FN70: 2018-10-02 | FO70: 2161
AM71: 71 | AN71: 2018-09-25 | AO71: 9497 | AP71: 2018-09-25 | AQ71: 394 | AR71: 2018-09-25 | AS71: -9891 | AT71: 71 | AU71: 2018-09-25 | AV71: -54861 | AW71: 2018-09-25 | AX71: 82866 | AY71: 2018-09-25 | AZ71: -28005 | BA71: 71 | BB71: 2018-09-25 | BC71: 36560 | BD71: 2018-09-25 | BE71: -25562 | BF71: 2018-09-25 | BG71: -10998 | BH71: 71 | BI71: 2018-09-25 | BJ71: -43227 | BK71: 2018-09-25 | BL71: 36555 | BM71: 2018-09-25 | BN71: 6672 | BO71: 71 | BP71: 2018-09-25 | BQ71: 61002 | BR71: 2018-09-25 | BS71: -70070 | BT71: 2018-09-25 | BU71: 9068 | BV71: 71 | BW71: 2018-09-25 | BX71: 46085 | BY71: 2018-09-25 | BZ71: -44271 | CA71: 2018-09-25 | CB71: -1814 | CC71: 71 | CD71: 2018-09-25 | CE71: -2659 | CF71: 2018-09-25 | CG71: 2268 | CH71: 2018-09-25 | CI71: 391 | CJ71: 71 | CK71: 2018-09-25 | CL71: 247 | CM71: 2018-09-25 | CN71: -599 | CO71: 2018-09-25 | CP71: 352 | CQ71: 71 | CR71: 2018-09-25 | CS71: 7624 | CT71: 2018-09-25 | CU71: -7730 | CV71: 2018-09-25 | CW71: 106 | CX71: 71 | CY71: 2018-09-25 | CZ71: -38334 | DA71: 2018-09-25 | DB71: 54295 | DC71: 2018-09-25 | DD71: -15961 | DE71: 71 | DF71: 2018-09-25 | DG71: -289832 | DH71: 2018-09-25 | DI71: 325574 | DJ71: 2018-09-25 | DK71: -35742 | DL71: 71 | DM71: 2018-09-25 | DN71: -826567 | DO71: 2018-09-25 | DP71: 955527 | DQ71: 2018-09-25 | DR71: -128960 | DS71: 71 | DT71: 2018-09-25 | DU71: 7141 | DV71: 2018-09-25 | DW71: -5371 | DX71: 2018-09-25 | DY71: -1770 | DZ71: 71 | EA71: 2018-09-25 | EB71: -756316 | EC71: 2018-09-25 | ED71: 846693 | EE71: 2018-09-25 | EF71: -90377 | EG71: 71 | EH71: 2018-09-25 | EI71: -16723 | EJ71: 2018-09-25 | EK71: 79665 | EL71: 2018-09-25 | EM71: -62942 | EN71: 71 | EO71: 2018-09-25 | EP71: 7921 | EQ71: 2018-09-25 | ER71: -5696 | ES71: 2018-09-25 | ET71: -2225 | EU71: 71 | EV71: 2018-09-25 | EW71: -102974 | EX71: 2018-09-25 | EY71: 142667 | EZ71: 2018-09-25 | FA71: -39693 | FB71: 71 | FC71: 2018-09-25 | FD71: -234334 | FE71: 2018-09-25 | FF71: 204489 | FG71: 2018-09-25 | FH71: 29845 | FI71: 71 | FJ71: 2018-09-25 | FK71: 50060 | FL71: 2018-09-25 | FM71: -55100 | FN71: 2018-09-25 | FO71: 5040
AM72: 72 | AN72: 2018-09-18 | AO72: -14515 | AP72: 2018-09-18 | AQ72: 23289 | AR72: 2018-09-18 | AS72: -8774 | AT72: 72 | AU72: 2018-09-18 | AV72: -69526 | AW72: 2018-09-18 | AX72: 99087 | AY72: 2018-09-18 | AZ72: -29561 | BA72: 72 | BB72: 2018-09-18 | BC72: 36629 | BD72: 2018-09-18 | BE72: -27308 | BF72: 2018-09-18 | BG72: -9321 | BH72: 72 | BI72: 2018-09-18 | BJ72: -69818 | BK72: 2018-09-18 | BL72: 65346 | BM72: 2018-09-18 | BN72: 4472 | BO72: 72 | BP72: 2018-09-18 | BQ72: 58126 | BR72: 2018-09-18 | BS72: -66075 | BT72: 2018-09-18 | BU72: 7949 | BV72: 72 | BW72: 2018-09-18 | BX72: 48208 | BY72: 2018-09-18 | BZ72: -46558 | CA72: 2018-09-18 | CB72: -1650 | CC72: 72 | CD72: 2018-09-18 | CE72: -1728 | CF72: 2018-09-18 | CG72: 1702 | CH72: 2018-09-18 | CI72: 26 | CJ72: 72 | CK72: 2018-09-18 | CL72: -36 | CM72: 2018-09-18 | CN72: -331 | CO72: 2018-09-18 | CP72: 367 | CQ72: 72 | CR72: 2018-09-18 | CS72: 9612 | CT72: 2018-09-18 | CU72: -9732 | CV72: 2018-09-18 | CW72: 120 | CX72: 72 | CY72: 2018-09-18 | CZ72: -75361 | DA72: 2018-09-18 | DB72: 91666 | DC72: 2018-09-18 | DD72: -16305 | DE72: 72 | DF72: 2018-09-18 | DG72: -209367 | DH72: 2018-09-18 | DI72: 258886 | DJ72: 2018-09-18 | DK72: -49519 | DL72: 72 | DM72: 2018-09-18 | DN72: -809654 | DO72: 2018-09-18 | DP72: 933842 | DQ72: 2018-09-18 | DR72: -124188 | DS72: 72 | DT72: 2018-09-18 | DU72: 6982 | DV72: 2018-09-18 | DW72: -5077 | DX72: 2018-09-18 | DY72: -1905 | DZ72: 72 | EA72: 2018-09-18 | EB72: -684712 | EC72: 2018-09-18 | ED72: 730767 | EE72: 2018-09-18 | EF72: -46055 | EG72: 72 | EH72: 2018-09-18 | EI72: -13370 | EJ72: 2018-09-18 | EK72: 80840 | EL72: 2018-09-18 | EM72: -67470 | EN72: 72 | EO72: 2018-09-18 | EP72: 7814 | EQ72: 2018-09-18 | ER72: -5525 | ES72: 2018-09-18 | ET72: -2289 | EU72: 72 | EV72: 2018-09-18 | EW72: -66925 | EX72: 2018-09-18 | EY72: 102647 | EZ72: 2018-09-18 | FA72: -35722 | FB72: 72 | FC72: 2018-09-18 | FD72: -229975 | FE72: 2018-09-18 | FF72: 199061 | FG72: 2018-09-18 | FH72: 30914 | FI72: 72 | FJ72: 2018-09-18 | FK72: 41250 | FL72: 2018-09-18 | FM72: -43990 | FN72: 2018-09-18 | FO72: 2740
AM73: 73 | AN73: 2018-09-11 | AO73: 69208 | AP73: 2018-09-11 | AQ73: -50726 | AR73: 2018-09-11 | AS73: -18482 | AT73: 73 | AU73: 2018-09-11 | AV73: -66552 | AW73: 2018-09-11 | AX73: 96525 | AY73: 2018-09-11 | AZ73: -29973 | BA73: 73 | BB73: 2018-09-11 | BC73: 45523 | BD73: 2018-09-11 | BE73: -35280 | BF73: 2018-09-11 | BG73: -10243 | BH73: 73 | BI73: 2018-09-11 | BJ73: -60178 | BK73: 2018-09-11 | BL73: 55744 | BM73: 2018-09-11 | BN73: 4434 | BO73: 73 | BP73: 2018-09-11 | BQ73: 70502 | BR73: 2018-09-11 | BS73: -80882 | BT73: 2018-09-11 | BU73: 10380 | BV73: 73 | BW73: 2018-09-11 | BX73: 54226 | BY73: 2018-09-11 | BZ73: -52613 | CA73: 2018-09-11 | CB73: -1613 | CC73: 73 | CD73: 2018-09-11 | CE73: -1537 | CF73: 2018-09-11 | CG73: 1421 | CH73: 2018-09-11 | CI73: 116 | CJ73: 73 | CK73: 2018-09-11 | CL73: 0 | CM73: 2018-09-11 | CN73: 0 | CO73: 2018-09-11 | CP73: 0 | CQ73: 73 | CR73: 2018-09-11 | CS73: 9918 | CT73: 2018-09-11 | CU73: -10007 | CV73: 2018-09-11 | CW73: 89 | CX73: 73 | CY73: 2018-09-11 | CZ73: -61151 | DA73: 2018-09-11 | DB73: 74450 | DC73: 2018-09-11 | DD73: -13299 | DE73: 73 | DF73: 2018-09-11 | DG73: -197128 | DH73: 2018-09-11 | DI73: 237051 | DJ73: 2018-09-11 | DK73: -39923 | DL73: 73 | DM73: 2018-09-11 | DN73: -852568 | DO73: 2018-09-11 | DP73: 948771 | DQ73: 2018-09-11 | DR73: -96203 | DS73: 73 | DT73: 2018-09-11 | DU73: 9277 | DV73: 2018-09-11 | DW73: -7310 | DX73: 2018-09-11 | DY73: -1967 | DZ73: 73 | EA73: 2018-09-11 | EB73: -682684 | EC73: 2018-09-11 | ED73: 736595 | EE73: 2018-09-11 | EF73: -53911 | EG73: 73 | EH73: 2018-09-11 | EI73: 365 | EJ73: 2018-09-11 | EK73: 70948 | EL73: 2018-09-11 | EM73: -71313 | EN73: 73 | EO73: 2018-09-11 | EP73: 5911 | EQ73: 2018-09-11 | ER73: -3467 | ES73: 2018-09-11 | ET73: -2444 | EU73: 73 | EV73: 2018-09-11 | EW73: -47090 | EX73: 2018-09-11 | EY73: 83628 | EZ73: 2018-09-11 | FA73: -36538 | FB73: 73 | FC73: 2018-09-11 | FD73: -223679 | FE73: 2018-09-11 | FF73: 186673 | FG73: 2018-09-11 | FH73: 37006 | FI73: 73 | FJ73: 2018-09-11 | FK73: 38606 | FL73: 2018-09-11 | FM73: -39684 | FN73: 2018-09-11 | FO73: 1078
AM74: 74 | AN74: 2018-09-04 | AO74: 71885 | AP74: 2018-09-04 | AQ74: -52300 | AR74: 2018-09-04 | AS74: -19585 | AT74: 74 | AU74: 2018-09-04 | AV74: -55657 | AW74: 2018-09-04 | AX74: 86599 | AY74: 2018-09-04 | AZ74: -30942 | BA74: 74 | BB74: 2018-09-04 | BC74: 60599 | BD74: 2018-09-04 | BE74: -50758 | BF74: 2018-09-04 | BG74: -9841 | BH74: 74 | BI74: 2018-09-04 | BJ74: -48744 | BK74: 2018-09-04 | BL74: 43038 | BM74: 2018-09-04 | BN74: 5706 | BO74: 74 | BP74: 2018-09-04 | BQ74: 58841 | BR74: 2018-09-04 | BS74: -68835 | BT74: 2018-09-04 | BU74: 9994 | BV74: 74 | BW74: 2018-09-04 | BX74: 64526 | BY74: 2018-09-04 | BZ74: -63173 | CA74: 2018-09-04 | CB74: -1353 | CC74: 74 | CD74: 2018-09-04 | CE74: -1335 | CF74: 2018-09-04 | CG74: 1162 | CH74: 2018-09-04 | CI74: 173 | CJ74: 74 | CK74: 2018-09-04 | CL74: 200 | CM74: 2018-09-04 | CN74: -1102 | CO74: 2018-09-04 | CP74: 902 | CQ74: 74 | CR74: 2018-09-04 | CS74: 3453 | CT74: 2018-09-04 | CU74: -4229 | CV74: 2018-09-04 | CW74: 776 | CX74: 74 | CY74: 2018-09-04 | CZ74: -32802 | DA74: 2018-09-04 | DB74: 71824 | DC74: 2018-09-04 | DD74: -39022 | DE74: 74 | DF74: 2018-09-04 | DG74: -148064 | DH74: 2018-09-04 | DI74: 198817 | DJ74: 2018-09-04 | DK74: -50753 | DL74: 74 | DM74: 2018-09-04 | DN74: -855686 | DO74: 2018-09-04 | DP74: 936222 | DQ74: 2018-09-04 | DR74: -80536 | DS74: 74 | DT74: 2018-09-04 | DU74: 9044 | DV74: 2018-09-04 | DW74: -7307 | DX74: 2018-09-04 | DY74: -1737 | DZ74: 74 | EA74: 2018-09-04 | EB74: -682757 | EC74: 2018-09-04 | ED74: 738907 | EE74: 2018-09-04 | EF74: -56150 | EG74: 74 | EH74: 2018-09-04 | EI74: -12194 | EJ74: 2018-09-04 | EK74: 64884 | EL74: 2018-09-04 | EM74: -52690 | EN74: 74 | EO74: 2018-09-04 | EP74: 6255 | EQ74: 2018-09-04 | ER74: -3701 | ES74: 2018-09-04 | ET74: -2554 | EU74: 74 | EV74: 2018-09-04 | EW74: -40377 | EX74: 2018-09-04 | EY74: 70824 | EZ74: 2018-09-04 | FA74: -30447 | FB74: 74 | FC74: 2018-09-04 | FD74: -221816 | FE74: 2018-09-04 | FF74: 179015 | FG74: 2018-09-04 | FH74: 42801 | FI74: 74 | FJ74: 2018-09-04 | FK74: 36082 | FL74: 2018-09-04 | FM74: -38937 | FN74: 2018-09-04 | FO74: 2855
AM75: 75 | AN75: 2018-08-28 | AO75: 65370 | AP75: 2018-08-28 | AQ75: -41787 | AR75: 2018-08-28 | AS75: -23583 | AT75: 75 | AU75: 2018-08-28 | AV75: -40565 | AW75: 2018-08-28 | AX75: 73013 | AY75: 2018-08-28 | AZ75: -32448 | BA75: 75 | BB75: 2018-08-28 | BC75: 63900 | BD75: 2018-08-28 | BE75: -56255 | BF75: 2018-08-28 | BG75: -7645 | BH75: 75 | BI75: 2018-08-28 | BJ75: -49196 | BK75: 2018-08-28 | BL75: 44639 | BM75: 2018-08-28 | BN75: 4557 | BO75: 75 | BP75: 2018-08-28 | BQ75: 66270 | BR75: 2018-08-28 | BS75: -74636 | BT75: 2018-08-28 | BU75: 8366 | BV75: 75 | BW75: 2018-08-28 | BX75: 68715 | BY75: 2018-08-28 | BZ75: -66990 | CA75: 2018-08-28 | CB75: -1725 | CC75: 75 | CD75: 2018-08-28 | CE75: -1430 | CF75: 2018-08-28 | CG75: 1076 | CH75: 2018-08-28 | CI75: 354 | CJ75: 75 | CK75: 2018-08-28 | CL75: 496 | CM75: 2018-08-28 | CN75: -1280 | CO75: 2018-08-28 | CP75: 784 | CQ75: 75 | CR75: 2018-08-28 | CS75: 1242 | CT75: 2018-08-28 | CU75: -1351 | CV75: 2018-08-28 | CW75: 109 | CX75: 75 | CY75: 2018-08-28 | CZ75: 9727 | DA75: 2018-08-28 | DB75: 19016 | DC75: 2018-08-28 | DD75: -28743 | DE75: 75 | DF75: 2018-08-28 | DG75: -142738 | DH75: 2018-08-28 | DI75: 197550 | DJ75: 2018-08-28 | DK75: -54812 | DL75: 75 | DM75: 2018-08-28 | DN75: -768466 | DO75: 2018-08-28 | DP75: 788849 | DQ75: 2018-08-28 | DR75: -20383 | DS75: 75 | DT75: 2018-08-28 | DU75: 6669 | DV75: 2018-08-28 | DW75: -6596 | DX75: 2018-08-28 | DY75: -73 | DZ75: 75 | EA75: 2018-08-28 | EB75: -529820 | EC75: 2018-08-28 | ED75: 667882 | EE75: 2018-08-28 | EF75: -138062 | EG75: 75 | EH75: 2018-08-28 | EI75: -23541 | EJ75: 2018-08-28 | EK75: 94892 | EL75: 2018-08-28 | EM75: -71351 | EN75: 75 | EO75: 2018-08-28 | EP75: 3330 | EQ75: 2018-08-28 | ER75: -3311 | ES75: 2018-08-28 | ET75: -19 | EU75: 75 | EV75: 2018-08-28 | EW75: -5686 | EX75: 2018-08-28 | EY75: 19428 | EZ75: 2018-08-28 | FA75: -13742 | FB75: 75 | FC75: 2018-08-28 | FD75: -211531 | FE75: 2018-08-28 | FF75: 153224 | FG75: 2018-08-28 | FH75: 58307 | FI75: 75 | FJ75: 2018-08-28 | FK75: 31813 | FL75: 2018-08-28 | FM75: -33261 | FN75: 2018-08-28 | FO75: 1448
AM76: 76 | AN76: 2018-08-21 | AO76: 133944 | AP76: 2018-08-21 | AQ76: -103533 | AR76: 2018-08-21 | AS76: -30411 | AT76: 76 | AU76: 2018-08-21 | AV76: -17804 | AW76: 2018-08-21 | AX76: 48053 | AY76: 2018-08-21 | AZ76: -30249 | BA76: 76 | BB76: 2018-08-21 | BC76: 79361 | BD76: 2018-08-21 | BE76: -74863 | BF76: 2018-08-21 | BG76: -4498 | BH76: 76 | BI76: 2018-08-21 | BJ76: -56140 | BK76: 2018-08-21 | BL76: 51476 | BM76: 2018-08-21 | BN76: 4664 | BO76: 76 | BP76: 2018-08-21 | BQ76: 98713 | BR76: 2018-08-21 | BS76: -112241 | BT76: 2018-08-21 | BU76: 13528 | BV76: 76 | BW76: 2018-08-21 | BX76: 69331 | BY76: 2018-08-21 | BZ76: -69098 | CA76: 2018-08-21 | CB76: -233 | CC76: 76 | CD76: 2018-08-21 | CE76: -293 | CF76: 2018-08-21 | CG76: -17 | CH76: 2018-08-21 | CI76: 310 | CJ76: 76 | CK76: 2018-08-21 | CL76: 989 | CM76: 2018-08-21 | CN76: -1620 | CO76: 2018-08-21 | CP76: 631 | CQ76: 76 | CR76: 2018-08-21 | CS76: -188 | CT76: 2018-08-21 | CU76: 81 | CV76: 2018-08-21 | CW76: 107 | CX76: 76 | CY76: 2018-08-21 | CZ76: 21286 | DA76: 2018-08-21 | DB76: 5327 | DC76: 2018-08-21 | DD76: -26613 | DE76: 76 | DF76: 2018-08-21 | DG76: -97333 | DH76: 2018-08-21 | DI76: 148271 | DJ76: 2018-08-21 | DK76: -50938 | DL76: 76 | DM76: 2018-08-21 | DN76: -755338 | DO76: 2018-08-21 | DP76: 869704 | DQ76: 2018-08-21 | DR76: -114366 | DS76: 76 | DT76: 2018-08-21 | DU76: 6105 | DV76: 2018-08-21 | DW76: -6017 | DX76: 2018-08-21 | DY76: -88 | DZ76: 76 | EA76: 2018-08-21 | EB76: -700514 | EC76: 2018-08-21 | ED76: 852899 | EE76: 2018-08-21 | EF76: -152385 | EG76: 76 | EH76: 2018-08-21 | EI76: -28372 | EJ76: 2018-08-21 | EK76: 92280 | EL76: 2018-08-21 | EM76: -63908 | EN76: 76 | EO76: 2018-08-21 | EP76: 2858 | EQ76: 2018-08-21 | ER76: -2845 | ES76: 2018-08-21 | ET76: -13 | EU76: 76 | EV76: 2018-08-21 | EW76: -8501 | EX76: 2018-08-21 | EY76: 23533 | EZ76: 2018-08-21 | FA76: -15032 | FB76: 76 | FC76: 2018-08-21 | FD76: -224395 | FE76: 2018-08-21 | FF76: 183193 | FG76: 2018-08-21 | FH76: 41202 | FI76: 76 | FJ76: 2018-08-21 | FK76: 28173 | FL76: 2018-08-21 | FM76: -30424 | FN76: 2018-08-21 | FO76: 2251
AM77: 77 | AN77: 2018-08-14 | AO77: 122706 | AP77: 2018-08-14 | AQ77: -94678 | AR77: 2018-08-14 | AS77: -28028 | AT77: 77 | AU77: 2018-08-14 | AV77: -35761 | AW77: 2018-08-14 | AX77: 62366 | AY77: 2018-08-14 | AZ77: -26605 | BA77: 77 | BB77: 2018-08-14 | BC77: 82811 | BD77: 2018-08-14 | BE77: -76275 | BF77: 2018-08-14 | BG77: -6536 | BH77: 77 | BI77: 2018-08-14 | BJ77: -54250 | BK77: 2018-08-14 | BL77: 51628 | BM77: 2018-08-14 | BN77: 2622 | BO77: 77 | BP77: 2018-08-14 | BQ77: 100076 | BR77: 2018-08-14 | BS77: -115723 | BT77: 2018-08-14 | BU77: 15647 | BV77: 77 | BW77: 2018-08-14 | BX77: 67630 | BY77: 2018-08-14 | BZ77: -66131 | CA77: 2018-08-14 | CB77: -1499 | CC77: 77 | CD77: 2018-08-14 | CE77: 234 | CF77: 2018-08-14 | CG77: -620 | CH77: 2018-08-14 | CI77: 386 | CJ77: 77 | CK77: 2018-08-14 | CL77: 985 | CM77: 2018-08-14 | CN77: -1595 | CO77: 2018-08-14 | CP77: 610 | CQ77: 77 | CR77: 2018-08-14 | CS77: 961 | CT77: 2018-08-14 | CU77: -1145 | CV77: 2018-08-14 | CW77: 184 | CX77: 77 | CY77: 2018-08-14 | CZ77: 58951 | DA77: 2018-08-14 | DB77: -29677 | DC77: 2018-08-14 | DD77: -29274 | DE77: 77 | DF77: 2018-08-14 | DG77: -86846 | DH77: 2018-08-14 | DI77: 152856 | DJ77: 2018-08-14 | DK77: -66010 | DL77: 77 | DM77: 2018-08-14 | DN77: -802550 | DO77: 2018-08-14 | DP77: 903213 | DQ77: 2018-08-14 | DR77: -100663 | DS77: 77 | DT77: 2018-08-14 | DU77: 4739 | DV77: 2018-08-14 | DW77: -4662 | DX77: 2018-08-14 | DY77: -77 | DZ77: 77 | EA77: 2018-08-14 | EB77: -698194 | EC77: 2018-08-14 | ED77: 843257 | EE77: 2018-08-14 | EF77: -145063 | EG77: 77 | EH77: 2018-08-14 | EI77: -15918 | EJ77: 2018-08-14 | EK77: 77081 | EL77: 2018-08-14 | EM77: -61163 | EN77: 77 | EO77: 2018-08-14 | EP77: 2875 | EQ77: 2018-08-14 | ER77: -2861 | ES77: 2018-08-14 | ET77: -14 | EU77: 77 | EV77: 2018-08-14 | EW77: -26495 | EX77: 2018-08-14 | EY77: 52708 | EZ77: 2018-08-14 | FA77: -26213 | FB77: 77 | FC77: 2018-08-14 | FD77: -240483 | FE77: 2018-08-14 | FF77: 199594 | FG77: 2018-08-14 | FH77: 40889 | FI77: 77 | FJ77: 2018-08-14 | FK77: 26226 | FL77: 2018-08-14 | FM77: -31241 | FN77: 2018-08-14 | FO77: 5015
AM78: 78 | AN78: 2018-08-07 | AO78: 121315 | AP78: 2018-08-07 | AQ78: -96345 | AR78: 2018-08-07 | AS78: -24970 | AT78: 78 | AU78: 2018-08-07 | AV78: -18678 | AW78: 2018-08-07 | AX78: 44016 | AY78: 2018-08-07 | AZ78: -25338 | BA78: 78 | BB78: 2018-08-07 | BC78: 86528 | BD78: 2018-08-07 | BE78: -77177 | BF78: 2018-08-07 | BG78: -9351 | BH78: 78 | BI78: 2018-08-07 | BJ78: -53875 | BK78: 2018-08-07 | BL78: 48378 | BM78: 2018-08-07 | BN78: 5497 | BO78: 78 | BP78: 2018-08-07 | BQ78: 90191 | BR78: 2018-08-07 | BS78: -103914 | BT78: 2018-08-07 | BU78: 13723 | BV78: 78 | BW78: 2018-08-07 | BX78: 59773 | BY78: 2018-08-07 | BZ78: -60094 | CA78: 2018-08-07 | CB78: 321 | CC78: 78 | CD78: 2018-08-07 | CE78: 1117 | CF78: 2018-08-07 | CG78: -1574 | CH78: 2018-08-07 | CI78: 457 | CJ78: 78 | CK78: 2018-08-07 | CL78: 833 | CM78: 2018-08-07 | CN78: -1071 | CO78: 2018-08-07 | CP78: 238 | CQ78: 78 | CR78: 2018-08-07 | CS78: -1593 | CT78: 2018-08-07 | CU78: 1423 | CV78: 2018-08-07 | CW78: 170 | CX78: 78 | CY78: 2018-08-07 | CZ78: 81263 | DA78: 2018-08-07 | DB78: -54855 | DC78: 2018-08-07 | DD78: -26408 | DE78: 78 | DF78: 2018-08-07 | DG78: -93582 | DH78: 2018-08-07 | DI78: 152655 | DJ78: 2018-08-07 | DK78: -59073 | DL78: 78 | DM78: 2018-08-07 | DN78: -867556 | DO78: 2018-08-07 | DP78: 1003991 | DQ78: 2018-08-07 | DR78: -136435 | DS78: 78 | DT78: 2018-08-07 | DU78: 4549 | DV78: 2018-08-07 | DW78: -4560 | DX78: 2018-08-07 | DY78: 11 | DZ78: 78 | EA78: 2018-08-07 | EB78: -586299 | EC78: 2018-08-07 | ED78: 774028 | EE78: 2018-08-07 | EF78: -187729 | EG78: 78 | EH78: 2018-08-07 | EI78: -7127 | EJ78: 2018-08-07 | EK78: 73722 | EL78: 2018-08-07 | EM78: -66595 | EN78: 78 | EO78: 2018-08-07 | EP78: 3656 | EQ78: 2018-08-07 | ER78: -3620 | ES78: 2018-08-07 | ET78: -36 | EU78: 78 | EV78: 2018-08-07 | EW78: -31943 | EX78: 2018-08-07 | EY78: 69313 | EZ78: 2018-08-07 | FA78: -37370 | FB78: 78 | FC78: 2018-08-07 | FD78: -220107 | FE78: 2018-08-07 | FF78: 186204 | FG78: 2018-08-07 | FH78: 33903 | FI78: 78 | FJ78: 2018-08-07 | FK78: 29776 | FL78: 2018-08-07 | FM78: -33325 | FN78: 2018-08-07 | FO78: 3549
AM79: 79 | AN79: 2018-07-31 | AO79: 110573 | AP79: 2018-07-31 | AQ79: -92912 | AR79: 2018-07-31 | AS79: -17661 | AT79: 79 | AU79: 2018-07-31 | AV79: -14083 | AW79: 2018-07-31 | AX79: 33024 | AY79: 2018-07-31 | AZ79: -18941 | BA79: 79 | BB79: 2018-07-31 | BC79: 75028 | BD79: 2018-07-31 | BE79: -59929 | BF79: 2018-07-31 | BG79: -15099 | BH79: 79 | BI79: 2018-07-31 | BJ79: -53303 | BK79: 2018-07-31 | BL79: 47084 | BM79: 2018-07-31 | BN79: 6219 | BO79: 79 | BP79: 2018-07-31 | BQ79: 97575 | BR79: 2018-07-31 | BS79: -112186 | BT79: 2018-07-31 | BU79: 14611 | BV79: 79 | BW79: 2018-07-31 | BX79: 49538 | BY79: 2018-07-31 | BZ79: -47975 | CA79: 2018-07-31 | CB79: -1563 | CC79: 79 | CD79: 2018-07-31 | CE79: 875 | CF79: 2018-07-31 | CG79: -1495 | CH79: 2018-07-31 | CI79: 620 | CJ79: 79 | CK79: 2018-07-31 | CL79: 171 | CM79: 2018-07-31 | CN79: -593 | CO79: 2018-07-31 | CP79: 422 | CQ79: 79 | CR79: 2018-07-31 | CS79: -2675 | CT79: 2018-07-31 | CU79: 2519 | CV79: 2018-07-31 | CW79: 156 | CX79: 79 | CY79: 2018-07-31 | CZ79: 159088 | DA79: 2018-07-31 | DB79: -128286 | DC79: 2018-07-31 | DD79: -30802 | DE79: 79 | DF79: 2018-07-31 | DG79: -99059 | DH79: 2018-07-31 | DI79: 162554 | DJ79: 2018-07-31 | DK79: -63495 | DL79: 79 | DM79: 2018-07-31 | DN79: -841043 | DO79: 2018-07-31 | DP79: 999294 | DQ79: 2018-07-31 | DR79: -158251 | DS79: 79 | DT79: 2018-07-31 | DU79: 5117 | DV79: 2018-07-31 | DW79: -5058 | DX79: 2018-07-31 | DY79: -59 | DZ79: 79 | EA79: 2018-07-31 | EB79: -590128 | EC79: 2018-07-31 | ED79: 783016 | EE79: 2018-07-31 | EF79: -192888 | EG79: 79 | EH79: 2018-07-31 | EI79: 7426 | EJ79: 2018-07-31 | EK79: 71009 | EL79: 2018-07-31 | EM79: -78435 | EN79: 79 | EO79: 2018-07-31 | EP79: 4157 | EQ79: 2018-07-31 | ER79: -4196 | ES79: 2018-07-31 | ET79: 39 | EU79: 79 | EV79: 2018-07-31 | EW79: -20623 | EX79: 2018-07-31 | EY79: 61599 | EZ79: 2018-07-31 | FA79: -40976 | FB79: 79 | FC79: 2018-07-31 | FD79: -222536 | FE79: 2018-07-31 | FF79: 183830 | FG79: 2018-07-31 | FH79: 38706 | FI79: 79 | FJ79: 2018-07-31 | FK79: 25367 | FL79: 2018-07-31 | FM79: -28384 | FN79: 2018-07-31 | FO79: 3017
AM80: 80 | AN80: 2018-07-24 | AO80: 71375 | AP80: 2018-07-24 | AQ80: -54864 | AR80: 2018-07-24 | AS80: -16511 | AT80: 80 | AU80: 2018-07-24 | AV80: -10814 | AW80: 2018-07-24 | AX80: 34505 | AY80: 2018-07-24 | AZ80: -23691 | BA80: 80 | BB80: 2018-07-24 | BC80: 49477 | BD80: 2018-07-24 | BE80: -33873 | BF80: 2018-07-24 | BG80: -15604 | BH80: 80 | BI80: 2018-07-24 | BJ80: -49797 | BK80: 2018-07-24 | BL80: 45131 | BM80: 2018-07-24 | BN80: 4666 | BO80: 80 | BP80: 2018-07-24 | BQ80: 96717 | BR80: 2018-07-24 | BS80: -108414 | BT80: 2018-07-24 | BU80: 11697 | BV80: 80 | BW80: 2018-07-24 | BX80: 35722 | BY80: 2018-07-24 | BZ80: -31572 | CA80: 2018-07-24 | CB80: -4150 | CC80: 80 | CD80: 2018-07-24 | CE80: 701 | CF80: 2018-07-24 | CG80: -1221 | CH80: 2018-07-24 | CI80: 520 | CJ80: 80 | CK80: 2018-07-24 | CL80: 238 | CM80: 2018-07-24 | CN80: -715 | CO80: 2018-07-24 | CP80: 477 | CQ80: 80 | CR80: 2018-07-24 | CS80: -2503 | CT80: 2018-07-24 | CU80: 2324 | CV80: 2018-07-24 | CW80: 179 | CX80: 80 | CY80: 2018-07-24 | CZ80: 155147 | DA80: 2018-07-24 | DB80: -127489 | DC80: 2018-07-24 | DD80: -27658 | DE80: 80 | DF80: 2018-07-24 | DG80: -49057 | DH80: 2018-07-24 | DI80: 111411 | DJ80: 2018-07-24 | DK80: -62354 | DL80: 80 | DM80: 2018-07-24 | DN80: -715965 | DO80: 2018-07-24 | DP80: 865856 | DQ80: 2018-07-24 | DR80: -149891 | DS80: 80 | DT80: 2018-07-24 | DU80: 4801 | DV80: 2018-07-24 | DW80: -4788 | DX80: 2018-07-24 | DY80: -13 | DZ80: 80 | EA80: 2018-07-24 | EB80: -509498 | EC80: 2018-07-24 | ED80: 698504 | EE80: 2018-07-24 | EF80: -189006 | EG80: 80 | EH80: 2018-07-24 | EI80: 15513 | EJ80: 2018-07-24 | EK80: 51504 | EL80: 2018-07-24 | EM80: -67017 | EN80: 80 | EO80: 2018-07-24 | EP80: 2929 | EQ80: 2018-07-24 | ER80: -2917 | ES80: 2018-07-24 | ET80: -12 | EU80: 80 | EV80: 2018-07-24 | EW80: 2405 | EX80: 2018-07-24 | EY80: 34582 | EZ80: 2018-07-24 | FA80: -36987 | FB80: 80 | FC80: 2018-07-24 | FD80: -212674 | FE80: 2018-07-24 | FF80: 174328 | FG80: 2018-07-24 | FH80: 38346 | FI80: 80 | FJ80: 2018-07-24 | FK80: 21378 | FL80: 2018-07-24 | FM80: -24909 | FN80: 2018-07-24 | FO80: 3531
AM81: 81 | AN81: 2018-07-17 | AO81: 90805 | AP81: 2018-07-17 | AQ81: -72967 | AR81: 2018-07-17 | AS81: -17838 | AT81: 81 | AU81: 2018-07-17 | AV81: 1150 | AW81: 2018-07-17 | AX81: 25186 | AY81: 2018-07-17 | AZ81: -26336 | BA81: 81 | BB81: 2018-07-17 | BC81: 38559 | BD81: 2018-07-17 | BE81: -22505 | BF81: 2018-07-17 | BG81: -16054 | BH81: 81 | BI81: 2018-07-17 | BJ81: -53911 | BK81: 2018-07-17 | BL81: 48537 | BM81: 2018-07-17 | BN81: 5374 | BO81: 81 | BP81: 2018-07-17 | BQ81: 100300 | BR81: 2018-07-17 | BS81: -112964 | BT81: 2018-07-17 | BU81: 12664 | BV81: 81 | BW81: 2018-07-17 | BX81: 32346 | BY81: 2018-07-17 | BZ81: -28305 | CA81: 2018-07-17 | CB81: -4041 | CC81: 81 | CD81: 2018-07-17 | CE81: 124 | CF81: 2018-07-17 | CG81: -825 | CH81: 2018-07-17 | CI81: 701 | CJ81: 81 | CK81: 2018-07-17 | CL81: 324 | CM81: 2018-07-17 | CN81: -681 | CO81: 2018-07-17 | CP81: 357 | CQ81: 81 | CR81: 2018-07-17 | CS81: -6063 | CT81: 2018-07-17 | CU81: 5924 | CV81: 2018-07-17 | CW81: 139 | CX81: 81 | CY81: 2018-07-17 | CZ81: 127236 | DA81: 2018-07-17 | DB81: -102652 | DC81: 2018-07-17 | DD81: -24584 | DE81: 81 | DF81: 2018-07-17 | DG81: -19143 | DH81: 2018-07-17 | DI81: 77330 | DJ81: 2018-07-17 | DK81: -58187 | DL81: 81 | DM81: 2018-07-17 | DN81: -698955 | DO81: 2018-07-17 | DP81: 838304 | DQ81: 2018-07-17 | DR81: -139349 | DS81: 81 | DT81: 2018-07-17 | DU81: 4004 | DV81: 2018-07-17 | DW81: -3987 | DX81: 2018-07-17 | DY81: -17 | DZ81: 81 | EA81: 2018-07-17 | EB81: -469138 | EC81: 2018-07-17 | ED81: 647675 | EE81: 2018-07-17 | EF81: -178537 | EG81: 81 | EH81: 2018-07-17 | EI81: 9776 | EJ81: 2018-07-17 | EK81: 56675 | EL81: 2018-07-17 | EM81: -66451 | EN81: 81 | EO81: 2018-07-17 | EP81: 2323 | EQ81: 2018-07-17 | ER81: -2320 | ES81: 2018-07-17 | ET81: -3 | EU81: 81 | EV81: 2018-07-17 | EW81: 16978 | EX81: 2018-07-17 | EY81: 11798 | EZ81: 2018-07-17 | FA81: -28776 | FB81: 81 | FC81: 2018-07-17 | FD81: -209909 | FE81: 2018-07-17 | FF81: 157717 | FG81: 2018-07-17 | FH81: 52192 | FI81: 81 | FJ81: 2018-07-17 | FK81: 20327 | FL81: 2018-07-17 | FM81: -24419 | FN81: 2018-07-17 | FO81: 4092
AM82: 82 | AN82: 2018-07-10 | AO82: 109320 | AP82: 2018-07-10 | AQ82: -81275 | AR82: 2018-07-10 | AS82: -28045 | AT82: 82 | AU82: 2018-07-10 | AV82: 5147 | AW82: 2018-07-10 | AX82: 22577 | AY82: 2018-07-10 | AZ82: -27724 | BA82: 82 | BB82: 2018-07-10 | BC82: 31079 | BD82: 2018-07-10 | BE82: -12206 | BF82: 2018-07-10 | BG82: -18873 | BH82: 82 | BI82: 2018-07-10 | BJ82: -38487 | BK82: 2018-07-10 | BL82: 35529 | BM82: 2018-07-10 | BN82: 2958 | BO82: 82 | BP82: 2018-07-10 | BQ82: 97659 | BR82: 2018-07-10 | BS82: -107887 | BT82: 2018-07-10 | BU82: 10228 | BV82: 82 | BW82: 2018-07-10 | BX82: 34250 | BY82: 2018-07-10 | BZ82: -28509 | CA82: 2018-07-10 | CB82: -5741 | CC82: 82 | CD82: 2018-07-10 | CE82: -219 | CF82: 2018-07-10 | CG82: -425 | CH82: 2018-07-10 | CI82: 644 | CJ82: 82 | CK82: 2018-07-10 | CL82: 28 | CM82: 2018-07-10 | CN82: -505 | CO82: 2018-07-10 | CP82: 477 | CQ82: 82 | CR82: 2018-07-10 | CS82: -11676 | CT82: 2018-07-10 | CU82: 11545 | CV82: 2018-07-10 | CW82: 131 | CX82: 82 | CY82: 2018-07-10 | CZ82: 128538 | DA82: 2018-07-10 | DB82: -101101 | DC82: 2018-07-10 | DD82: -27437 | DE82: 82 | DF82: 2018-07-10 | DG82: -59 | DH82: 2018-07-10 | DI82: 51580 | DJ82: 2018-07-10 | DK82: -51521 | DL82: 82 | DM82: 2018-07-10 | DN82: -601191 | DO82: 2018-07-10 | DP82: 747429 | DQ82: 2018-07-10 | DR82: -146238 | DS82: 82 | DT82: 2018-07-10 | DU82: 3990 | DV82: 2018-07-10 | DW82: -3954 | DX82: 2018-07-10 | DY82: -36 | DZ82: 82 | EA82: 2018-07-10 | EB82: -439148 | EC82: 2018-07-10 | ED82: 614541 | EE82: 2018-07-10 | EF82: -175393 | EG82: 82 | EH82: 2018-07-10 | EI82: 8115 | EJ82: 2018-07-10 | EK82: 69911 | EL82: 2018-07-10 | EM82: -78026 | EN82: 82 | EO82: 2018-07-10 | EP82: 2845 | EQ82: 2018-07-10 | ER82: -2760 | ES82: 2018-07-10 | ET82: -85 | EU82: 82 | EV82: 2018-07-10 | EW82: 8375 | EX82: 2018-07-10 | EY82: 21526 | EZ82: 2018-07-10 | FA82: -29901 | FB82: 82 | FC82: 2018-07-10 | FD82: -190794 | FE82: 2018-07-10 | FF82: 149882 | FG82: 2018-07-10 | FH82: 40912 | FI82: 82 | FJ82: 2018-07-10 | FK82: 15910 | FL82: 2018-07-10 | FM82: -18983 | FN82: 2018-07-10 | FO82: 3073
AM83: 83 | AN83: 2018-07-03 | AO83: 148352 | AP83: 2018-07-03 | AQ83: -116180 | AR83: 2018-07-03 | AS83: -32172 | AT83: 83 | AU83: 2018-07-03 | AV83: -4729 | AW83: 2018-07-03 | AX83: 34663 | AY83: 2018-07-03 | AZ83: -29934 | BA83: 83 | BB83: 2018-07-03 | BC83: 30788 | BD83: 2018-07-03 | BE83: -12258 | BF83: 2018-07-03 | BG83: -18530 | BH83: 83 | BI83: 2018-07-03 | BJ83: -45869 | BK83: 2018-07-03 | BL83: 42201 | BM83: 2018-07-03 | BN83: 3668 | BO83: 83 | BP83: 2018-07-03 | BQ83: 101815 | BR83: 2018-07-03 | BS83: -110378 | BT83: 2018-07-03 | BU83: 8563 | BV83: 83 | BW83: 2018-07-03 | BX83: 32124 | BY83: 2018-07-03 | BZ83: -27897 | CA83: 2018-07-03 | CB83: -4227 | CC83: 83 | CD83: 2018-07-03 | CE83: -1197 | CF83: 2018-07-03 | CG83: 684 | CH83: 2018-07-03 | CI83: 513 | CJ83: 83 | CK83: 2018-07-03 | CL83: -76 | CM83: 2018-07-03 | CN83: -366 | CO83: 2018-07-03 | CP83: 442 | CQ83: 83 | CR83: 2018-07-03 | CS83: -11639 | CT83: 2018-07-03 | CU83: 11504 | CV83: 2018-07-03 | CW83: 135 | CX83: 83 | CY83: 2018-07-03 | CZ83: 133370 | DA83: 2018-07-03 | DB83: -107265 | DC83: 2018-07-03 | DD83: -26105 | DE83: 83 | DF83: 2018-07-03 | DG83: -11043 | DH83: 2018-07-03 | DI83: 57137 | DJ83: 2018-07-03 | DK83: -46094 | DL83: 83 | DM83: 2018-07-03 | DN83: -548119 | DO83: 2018-07-03 | DP83: 698612 | DQ83: 2018-07-03 | DR83: -150493 | DS83: 83 | DT83: 2018-07-03 | DU83: 4986 | DV83: 2018-07-03 | DW83: -4907 | DX83: 2018-07-03 | DY83: -79 | DZ83: 83 | EA83: 2018-07-03 | EB83: -500076 | EC83: 2018-07-03 | ED83: 668468 | EE83: 2018-07-03 | EF83: -168392 | EG83: 83 | EH83: 2018-07-03 | EI83: 16529 | EJ83: 2018-07-03 | EK83: 64241 | EL83: 2018-07-03 | EM83: -80770 | EN83: 83 | EO83: 2018-07-03 | EP83: 3896 | EQ83: 2018-07-03 | ER83: -3837 | ES83: 2018-07-03 | ET83: -59 | EU83: 83 | EV83: 2018-07-03 | EW83: -15776 | EX83: 2018-07-03 | EY83: 48544 | EZ83: 2018-07-03 | FA83: -32768 | FB83: 83 | FC83: 2018-07-03 | FD83: -194199 | FE83: 2018-07-03 | FF83: 158627 | FG83: 2018-07-03 | FH83: 35572 | FI83: 83 | FJ83: 2018-07-03 | FK83: 11698 | FL83: 2018-07-03 | FM83: -17641 | FN83: 2018-07-03 | FO83: 5943
AM84: 84 | AN84: 2018-06-26 | AO84: 181349 | AP84: 2018-06-26 | AQ84: -136709 | AR84: 2018-06-26 | AS84: -44640 | AT84: 84 | AU84: 2018-06-26 | AV84: 1285 | AW84: 2018-06-26 | AX84: 28998 | AY84: 2018-06-26 | AZ84: -30283 | BA84: 84 | BB84: 2018-06-26 | BC84: 15625 | BD84: 2018-06-26 | BE84: 2263 | BF84: 2018-06-26 | BG84: -17888 | BH84: 84 | BI84: 2018-06-26 | BJ84: -37190 | BK84: 2018-06-26 | BL84: 34052 | BM84: 2018-06-26 | BN84: 3138 | BO84: 84 | BP84: 2018-06-26 | BQ84: 105739 | BR84: 2018-06-26 | BS84: -115428 | BT84: 2018-06-26 | BU84: 9689 | BV84: 84 | BW84: 2018-06-26 | BX84: 44664 | BY84: 2018-06-26 | BZ84: -38036 | CA84: 2018-06-26 | CB84: -6628 | CC84: 84 | CD84: 2018-06-26 | CE84: -1517 | CF84: 2018-06-26 | CG84: 984 | CH84: 2018-06-26 | CI84: 533 | CJ84: 84 | CK84: 2018-06-26 | CL84: -141 | CM84: 2018-06-26 | CN84: -359 | CO84: 2018-06-26 | CP84: 500 | CQ84: 84 | CR84: 2018-06-26 | CS84: -6562 | CT84: 2018-06-26 | CU84: 6376 | CV84: 2018-06-26 | CW84: 186 | CX84: 84 | CY84: 2018-06-26 | CZ84: 220563 | DA84: 2018-06-26 | DB84: -196797 | DC84: 2018-06-26 | DD84: -23766 | DE84: 84 | DF84: 2018-06-26 | DG84: 23451 | DH84: 2018-06-26 | DI84: 27562 | DJ84: 2018-06-26 | DK84: -51013 | DL84: 84 | DM84: 2018-06-26 | DN84: -546226 | DO84: 2018-06-26 | DP84: 694239 | DQ84: 2018-06-26 | DR84: -148013 | DS84: 84 | DT84: 2018-06-26 | DU84: 4744 | DV84: 2018-06-26 | DW84: -4704 | DX84: 2018-06-26 | DY84: -40 | DZ84: 84 | EA84: 2018-06-26 | EB84: -355324 | EC84: 2018-06-26 | ED84: 523352 | EE84: 2018-06-26 | EF84: -168028 | EG84: 84 | EH84: 2018-06-26 | EI84: 17531 | EJ84: 2018-06-26 | EK84: 55748 | EL84: 2018-06-26 | EM84: -73279 | EN84: 84 | EO84: 2018-06-26 | EP84: 5158 | EQ84: 2018-06-26 | ER84: -5139 | ES84: 2018-06-26 | ET84: -19 | EU84: 84 | EV84: 2018-06-26 | EW84: -9977 | EX84: 2018-06-26 | EY84: 49390 | EZ84: 2018-06-26 | FA84: -39413 | FB84: 84 | FC84: 2018-06-26 | FD84: -185717 | FE84: 2018-06-26 | FF84: 154320 | FG84: 2018-06-26 | FH84: 31397 | FI84: 84 | FJ84: 2018-06-26 | FK84: 7201 | FL84: 2018-06-26 | FM84: -16193 | FN84: 2018-06-26 | FO84: 8992
AM85: 85 | AN85: 2018-06-19 | AO85: 264922 | AP85: 2018-06-19 | AQ85: -214606 | AR85: 2018-06-19 | AS85: -50316 | AT85: 85 | AU85: 2018-06-19 | AV85: 58179 | AW85: 2018-06-19 | AX85: -22692 | AY85: 2018-06-19 | AZ85: -35487 | BA85: 85 | BB85: 2018-06-19 | BC85: 18401 | BD85: 2018-06-19 | BE85: -991 | BF85: 2018-06-19 | BG85: -17410 | BH85: 85 | BI85: 2018-06-19 | BJ85: -36192 | BK85: 2018-06-19 | BL85: 33710 | BM85: 2018-06-19 | BN85: 2482 | BO85: 85 | BP85: 2018-06-19 | BQ85: 121902 | BR85: 2018-06-19 | BS85: -133918 | BT85: 2018-06-19 | BU85: 12016 | BV85: 85 | BW85: 2018-06-19 | BX85: 62165 | BY85: 2018-06-19 | BZ85: -55898 | CA85: 2018-06-19 | CB85: -6267 | CC85: 85 | CD85: 2018-06-19 | CE85: -1630 | CF85: 2018-06-19 | CG85: 1323 | CH85: 2018-06-19 | CI85: 307 | CJ85: 85 | CK85: 2018-06-19 | CL85: -230 | CM85: 2018-06-19 | CN85: -209 | CO85: 2018-06-19 | CP85: 439 | CQ85: 85 | CR85: 2018-06-19 | CS85: -6656 | CT85: 2018-06-19 | CU85: 6500 | CV85: 2018-06-19 | CW85: 156 | CX85: 85 | CY85: 2018-06-19 | CZ85: 212612 | DA85: 2018-06-19 | DB85: -187870 | DC85: 2018-06-19 | DD85: -24742 | DE85: 85 | DF85: 2018-06-19 | DG85: 4404 | DH85: 2018-06-19 | DI85: 54000 | DJ85: 2018-06-19 | DK85: -58404 | DL85: 85 | DM85: 2018-06-19 | DN85: -514106 | DO85: 2018-06-19 | DP85: 662449 | DQ85: 2018-06-19 | DR85: -148343 | DS85: 85 | DT85: 2018-06-19 | DU85: 4372 | DV85: 2018-06-19 | DW85: -4320 | DX85: 2018-06-19 | DY85: -52 | DZ85: 85 | EA85: 2018-06-19 | EB85: -359463 | EC85: 2018-06-19 | ED85: 563167 | EE85: 2018-06-19 | EF85: -203704 | EG85: 85 | EH85: 2018-06-19 | EI85: 19076 | EJ85: 2018-06-19 | EK85: 58539 | EL85: 2018-06-19 | EM85: -77615 | EN85: 85 | EO85: 2018-06-19 | EP85: 4939 | EQ85: 2018-06-19 | ER85: -4944 | ES85: 2018-06-19 | ET85: 5 | EU85: 85 | EV85: 2018-06-19 | EW85: -8735 | EX85: 2018-06-19 | EY85: 55856 | EZ85: 2018-06-19 | FA85: -47121 | FB85: 85 | FC85: 2018-06-19 | FD85: -189281 | FE85: 2018-06-19 | FF85: 163244 | FG85: 2018-06-19 | FH85: 26037 | FI85: 85 | FJ85: 2018-06-19 | FK85: 13364 | FL85: 2018-06-19 | FM85: -19645 | FN85: 2018-06-19 | FO85: 6281
AM86: 86 | AN86: 2018-06-12 | AO86: 286650 | AP86: 2018-06-12 | AQ86: -230963 | AR86: 2018-06-12 | AS86: -55687 | AT86: 86 | AU86: 2018-06-12 | AV86: 91656 | AW86: 2018-06-12 | AX86: -49748 | AY86: 2018-06-12 | AZ86: -41908 | BA86: 86 | BB86: 2018-06-12 | BC86: 49716 | BD86: 2018-06-12 | BE86: -35949 | BF86: 2018-06-12 | BG86: -13767 | BH86: 86 | BI86: 2018-06-12 | BJ86: -17797 | BK86: 2018-06-12 | BL86: 9620 | BM86: 2018-06-12 | BN86: 8177 | BO86: 86 | BP86: 2018-06-12 | BQ86: 124112 | BR86: 2018-06-12 | BS86: -134563 | BT86: 2018-06-12 | BU86: 10451 | BV86: 86 | BW86: 2018-06-12 | BX86: 76471 | BY86: 2018-06-12 | BZ86: -74236 | CA86: 2018-06-12 | CB86: -2235 | CC86: 86 | CD86: 2018-06-12 | CE86: -1973 | CF86: 2018-06-12 | CG86: 1772 | CH86: 2018-06-12 | CI86: 201 | CJ86: 86 | CK86: 2018-06-12 | CL86: -97 | CM86: 2018-06-12 | CN86: -605 | CO86: 2018-06-12 | CP86: 702 | CQ86: 86 | CR86: 2018-06-12 | CS86: -8245 | CT86: 2018-06-12 | CU86: 8027 | CV86: 2018-06-12 | CW86: 218 | CX86: 86 | CY86: 2018-06-12 | CZ86: 103890 | DA86: 2018-06-12 | DB86: -73314 | DC86: 2018-06-12 | DD86: -30576 | DE86: 86 | DF86: 2018-06-12 | DG86: -17571 | DH86: 2018-06-12 | DI86: 60084 | DJ86: 2018-06-12 | DK86: -42513 | DL86: 86 | DM86: 2018-06-12 | DN86: -542181 | DO86: 2018-06-12 | DP86: 699895 | DQ86: 2018-06-12 | DR86: -157714 | DS86: 86 | DT86: 2018-06-12 | DU86: 9003 | DV86: 2018-06-12 | DW86: -8989 | DX86: 2018-06-12 | DY86: -14 | DZ86: 86 | EA86: 2018-06-12 | EB86: -335994 | EC86: 2018-06-12 | ED86: 546268 | EE86: 2018-06-12 | EF86: -210274 | EG86: 86 | EH86: 2018-06-12 | EI86: 13408 | EJ86: 2018-06-12 | EK86: 64157 | EL86: 2018-06-12 | EM86: -77565 | EN86: 86 | EO86: 2018-06-12 | EP86: -9496 | EQ86: 2018-06-12 | ER86: 9480 | ES86: 2018-06-12 | ET86: 16 | EU86: 86 | EV86: 2018-06-12 | EW86: 4187 | EX86: 2018-06-12 | EY86: 46117 | EZ86: 2018-06-12 | FA86: -50304 | FB86: 86 | FC86: 2018-06-12 | FD86: -192631 | FE86: 2018-06-12 | FF86: 164585 | FG86: 2018-06-12 | FH86: 28046 | FI86: 86 | FJ86: 2018-06-12 | FK86: 24076 | FL86: 2018-06-12 | FM86: -25257 | FN86: 2018-06-12 | FO86: 1181
AM87: 87 | AN87: 2018-06-05 | AO87: 330039 | AP87: 2018-06-05 | AQ87: -262585 | AR87: 2018-06-05 | AS87: -67454 | AT87: 87 | AU87: 2018-06-05 | AV87: 126949 | AW87: 2018-06-05 | AX87: -78736 | AY87: 2018-06-05 | AZ87: -48213 | BA87: 87 | BB87: 2018-06-05 | BC87: 40196 | BD87: 2018-06-05 | BE87: -27977 | BF87: 2018-06-05 | BG87: -12219 | BH87: 87 | BI87: 2018-06-05 | BJ87: -6294 | BK87: 2018-06-05 | BL87: -2591 | BM87: 2018-06-05 | BN87: 8885 | BO87: 87 | BP87: 2018-06-05 | BQ87: 134998 | BR87: 2018-06-05 | BS87: -146851 | BT87: 2018-06-05 | BU87: 11853 | BV87: 87 | BW87: 2018-06-05 | BX87: 73195 | BY87: 2018-06-05 | BZ87: -69257 | CA87: 2018-06-05 | CB87: -3938 | CC87: 87 | CD87: 2018-06-05 | CE87: -1149 | CF87: 2018-06-05 | CG87: 1189 | CH87: 2018-06-05 | CI87: -40 | CJ87: 87 | CK87: 2018-06-05 | CL87: 229 | CM87: 2018-06-05 | CN87: -1211 | CO87: 2018-06-05 | CP87: 982 | CQ87: 87 | CR87: 2018-06-05 | CS87: -9808 | CT87: 2018-06-05 | CU87: 9620 | CV87: 2018-06-05 | CW87: 188 | CX87: 87 | CY87: 2018-06-05 | CZ87: 45863 | DA87: 2018-06-05 | DB87: -20762 | DC87: 2018-06-05 | DD87: -25101 | DE87: 87 | DF87: 2018-06-05 | DG87: 3490 | DH87: 2018-06-05 | DI87: 34783 | DJ87: 2018-06-05 | DK87: -38273 | DL87: 87 | DM87: 2018-06-05 | DN87: -570005 | DO87: 2018-06-05 | DP87: 709439 | DQ87: 2018-06-05 | DR87: -139434 | DS87: 87 | DT87: 2018-06-05 | DU87: 9365 | DV87: 2018-06-05 | DW87: -9295 | DX87: 2018-06-05 | DY87: -70 | DZ87: 87 | EA87: 2018-06-05 | EB87: -397546 | EC87: 2018-06-05 | ED87: 580450 | EE87: 2018-06-05 | EF87: -182904 | EG87: 87 | EH87: 2018-06-05 | EI87: 9064 | EJ87: 2018-06-05 | EK87: 67362 | EL87: 2018-06-05 | EM87: -76426 | EN87: 87 | EO87: 2018-06-05 | EP87: -9031 | EQ87: 2018-06-05 | ER87: 9074 | ES87: 2018-06-05 | ET87: -43 | EU87: 87 | EV87: 2018-06-05 | EW87: -18169 | EX87: 2018-06-05 | EY87: 53288 | EZ87: 2018-06-05 | FA87: -35119 | FB87: 87 | FC87: 2018-06-05 | FD87: -184425 | FE87: 2018-06-05 | FF87: 162852 | FG87: 2018-06-05 | FH87: 21573 | FI87: 87 | FJ87: 2018-06-05 | FK87: 17644 | FL87: 2018-06-05 | FM87: -20440 | FN87: 2018-06-05 | FO87: 2796
AM88: 88 | AN88: 2018-05-29 | AO88: 392609 | AP88: 2018-05-29 | AQ88: -311338 | AR88: 2018-05-29 | AS88: -81271 | AT88: 88 | AU88: 2018-05-29 | AV88: 150233 | AW88: 2018-05-29 | AX88: -97560 | AY88: 2018-05-29 | AZ88: -52673 | BA88: 88 | BB88: 2018-05-29 | BC88: 45129 | BD88: 2018-05-29 | BE88: -31875 | BF88: 2018-05-29 | BG88: -13254 | BH88: 88 | BI88: 2018-05-29 | BJ88: -1301 | BK88: 2018-05-29 | BL88: -7613 | BM88: 2018-05-29 | BN88: 8914 | BO88: 88 | BP88: 2018-05-29 | BQ88: 147649 | BR88: 2018-05-29 | BS88: -166211 | BT88: 2018-05-29 | BU88: 18562 | BV88: 88 | BW88: 2018-05-29 | BX88: 65981 | BY88: 2018-05-29 | BZ88: -62344 | CA88: 2018-05-29 | CB88: -3637 | CC88: 88 | CD88: 2018-05-29 | CE88: -47 | CF88: 2018-05-29 | CG88: 125 | CH88: 2018-05-29 | CI88: -78 | CJ88: 88 | CK88: 2018-05-29 | CL88: 75 | CM88: 2018-05-29 | CN88: -1096 | CO88: 2018-05-29 | CP88: 1021 | CQ88: 88 | CR88: 2018-05-29 | CS88: -9847 | CT88: 2018-05-29 | CU88: 9663 | CV88: 2018-05-29 | CW88: 184 | CX88: 88 | CY88: 2018-05-29 | CZ88: 183283 | DA88: 2018-05-29 | DB88: -152764 | DC88: 2018-05-29 | DD88: -30519 | DE88: 88 | DF88: 2018-05-29 | DG88: 62892 | DH88: 2018-05-29 | DI88: -22453 | DJ88: 2018-05-29 | DK88: -40439 | DL88: 88 | DM88: 2018-05-29 | DN88: -472857 | DO88: 2018-05-29 | DP88: 648715 | DQ88: 2018-05-29 | DR88: -175858 | DS88: 88 | DT88: 2018-05-29 | DU88: 8997 | DV88: 2018-05-29 | DW88: -8999 | DX88: 2018-05-29 | DY88: 2 | DZ88: 88 | EA88: 2018-05-29 | EB88: -471067 | EC88: 2018-05-29 | ED88: 699183 | EE88: 2018-05-29 | EF88: -228116 | EG88: 88 | EH88: 2018-05-29 | EI88: 1193 | EJ88: 2018-05-29 | EK88: 72738 | EL88: 2018-05-29 | EM88: -73931 | EN88: 88 | EO88: 2018-05-29 | EP88: -8645 | EQ88: 2018-05-29 | ER88: 8680 | ES88: 2018-05-29 | ET88: -35 | EU88: 88 | EV88: 2018-05-29 | EW88: -33714 | EX88: 2018-05-29 | EY88: 85158 | EZ88: 2018-05-29 | FA88: -51444 | FB88: 88 | FC88: 2018-05-29 | FD88: -189766 | FE88: 2018-05-29 | FF88: 172350 | FG88: 2018-05-29 | FH88: 17416 | FI88: 88 | FJ88: 2018-05-29 | FK88: 13046 | FL88: 2018-05-29 | FM88: -17884 | FN88: 2018-05-29 | FO88: 4838
AM89: 89 | AN89: 2018-05-22 | AO89: 400338 | AP89: 2018-05-22 | AQ89: -320310 | AR89: 2018-05-22 | AS89: -80028 | AT89: 89 | AU89: 2018-05-22 | AV89: 143470 | AW89: 2018-05-22 | AX89: -93936 | AY89: 2018-05-22 | AZ89: -49534 | BA89: 89 | BB89: 2018-05-22 | BC89: 41849 | BD89: 2018-05-22 | BE89: -31619 | BF89: 2018-05-22 | BG89: -10230 | BH89: 89 | BI89: 2018-05-22 | BJ89: 1810 | BK89: 2018-05-22 | BL89: -12091 | BM89: 2018-05-22 | BN89: 10281 | BO89: 89 | BP89: 2018-05-22 | BQ89: 145467 | BR89: 2018-05-22 | BS89: -163131 | BT89: 2018-05-22 | BU89: 17664 | BV89: 89 | BW89: 2018-05-22 | BX89: 58996 | BY89: 2018-05-22 | BZ89: -56597 | CA89: 2018-05-22 | CB89: -2399 | CC89: 89 | CD89: 2018-05-22 | CE89: 520 | CF89: 2018-05-22 | CG89: -1367 | CH89: 2018-05-22 | CI89: 847 | CJ89: 89 | CK89: 2018-05-22 | CL89: -32 | CM89: 2018-05-22 | CN89: -699 | CO89: 2018-05-22 | CP89: 731 | CQ89: 89 | CR89: 2018-05-22 | CS89: -8313 | CT89: 2018-05-22 | CU89: 8094 | CV89: 2018-05-22 | CW89: 219 | CX89: 89 | CY89: 2018-05-22 | CZ89: 79805 | DA89: 2018-05-22 | DB89: -54318 | DC89: 2018-05-22 | DD89: -25487 | DE89: 89 | DF89: 2018-05-22 | DG89: 4524 | DH89: 2018-05-22 | DI89: 46426 | DJ89: 2018-05-22 | DK89: -50950 | DL89: 89 | DM89: 2018-05-22 | DN89: -629829 | DO89: 2018-05-22 | DP89: 796596 | DQ89: 2018-05-22 | DR89: -166767 | DS89: 89 | DT89: 2018-05-22 | DU89: 9180 | DV89: 2018-05-22 | DW89: -9203 | DX89: 2018-05-22 | DY89: 23 | DZ89: 89 | EA89: 2018-05-22 | EB89: -358627 | EC89: 2018-05-22 | ED89: 630213 | EE89: 2018-05-22 | EF89: -271586 | EG89: 89 | EH89: 2018-05-22 | EI89: 4519 | EJ89: 2018-05-22 | EK89: 70999 | EL89: 2018-05-22 | EM89: -75518 | EN89: 89 | EO89: 2018-05-22 | EP89: -6656 | EQ89: 2018-05-22 | ER89: 6721 | ES89: 2018-05-22 | ET89: -65 | EU89: 89 | EV89: 2018-05-22 | EW89: -5291 | EX89: 2018-05-22 | EY89: 76159 | EZ89: 2018-05-22 | FA89: -70868 | FB89: 89 | FC89: 2018-05-22 | FD89: -194423 | FE89: 2018-05-22 | FF89: 197442 | FG89: 2018-05-22 | FH89: -3019 | FI89: 89 | FJ89: 2018-05-22 | FK89: 14238 | FL89: 2018-05-22 | FM89: -19160 | FN89: 2018-05-22 | FO89: 4922
AM90: 90 | AN90: 2018-05-15 | AO90: 394310 | AP90: 2018-05-15 | AQ90: -311414 | AR90: 2018-05-15 | AS90: -82896 | AT90: 90 | AU90: 2018-05-15 | AV90: 155648 | AW90: 2018-05-15 | AX90: -103362 | AY90: 2018-05-15 | AZ90: -52286 | BA90: 90 | BB90: 2018-05-15 | BC90: 22644 | BD90: 2018-05-15 | BE90: -11528 | BF90: 2018-05-15 | BG90: -11116 | BH90: 90 | BI90: 2018-05-15 | BJ90: -9840 | BK90: 2018-05-15 | BL90: 2213 | BM90: 2018-05-15 | BN90: 7627 | BO90: 90 | BP90: 2018-05-15 | BQ90: 154263 | BR90: 2018-05-15 | BS90: -169814 | BT90: 2018-05-15 | BU90: 15551 | BV90: 90 | BW90: 2018-05-15 | BX90: 56359 | BY90: 2018-05-15 | BZ90: -53270 | CA90: 2018-05-15 | CB90: -3089 | CC90: 90 | CD90: 2018-05-15 | CE90: 994 | CF90: 2018-05-15 | CG90: -2134 | CH90: 2018-05-15 | CI90: 1140 | CJ90: 90 | CK90: 2018-05-15 | CL90: -214 | CM90: 2018-05-15 | CN90: -533 | CO90: 2018-05-15 | CP90: 747 | CQ90: 90 | CR90: 2018-05-15 | CS90: -8303 | CT90: 2018-05-15 | CU90: 8101 | CV90: 2018-05-15 | CW90: 202 | CX90: 90 | CY90: 2018-05-15 | CZ90: 67115 | DA90: 2018-05-15 | DB90: -44620 | DC90: 2018-05-15 | DD90: -22495 | DE90: 90 | DF90: 2018-05-15 | DG90: -31029 | DH90: 2018-05-15 | DI90: 79232 | DJ90: 2018-05-15 | DK90: -48203 | DL90: 90 | DM90: 2018-05-15 | DN90: -643081 | DO90: 2018-05-15 | DP90: 802878 | DQ90: 2018-05-15 | DR90: -159797 | DS90: 90 | DT90: 2018-05-15 | DU90: 10987 | DV90: 2018-05-15 | DW90: -10938 | DX90: 2018-05-15 | DY90: -49 | DZ90: 90 | EA90: 2018-05-15 | EB90: -381922 | EC90: 2018-05-15 | ED90: 616983 | EE90: 2018-05-15 | EF90: -235061 | EG90: 90 | EH90: 2018-05-15 | EI90: -7600 | EJ90: 2018-05-15 | EK90: 79519 | EL90: 2018-05-15 | EM90: -71919 | EN90: 90 | EO90: 2018-05-15 | EP90: -6197 | EQ90: 2018-05-15 | ER90: 6280 | ES90: 2018-05-15 | ET90: -83 | EU90: 90 | EV90: 2018-05-15 | EW90: 11854 | EX90: 2018-05-15 | EY90: 51940 | EZ90: 2018-05-15 | FA90: -63794 | FB90: 90 | FC90: 2018-05-15 | FD90: -187904 | FE90: 2018-05-15 | FF90: 178333 | FG90: 2018-05-15 | FH90: 9571 | FI90: 90 | FJ90: 2018-05-15 | FK90: 10124 | FL90: 2018-05-15 | FM90: -13807 | FN90: 2018-05-15 | FO90: 3683
AM91: 91 | AN91: 2018-05-08 | AO91: 412153 | AP91: 2018-05-08 | AQ91: -325736 | AR91: 2018-05-08 | AS91: -86417 | AT91: 91 | AU91: 2018-05-08 | AV91: 172647 | AW91: 2018-05-08 | AX91: -116968 | AY91: 2018-05-08 | AZ91: -55679 | BA91: 91 | BB91: 2018-05-08 | BC91: 31503 | BD91: 2018-05-08 | BE91: -20089 | BF91: 2018-05-08 | BG91: -11414 | BH91: 91 | BI91: 2018-05-08 | BJ91: -20057 | BK91: 2018-05-08 | BL91: 13210 | BM91: 2018-05-08 | BN91: 6847 | BO91: 91 | BP91: 2018-05-08 | BQ91: 161701 | BR91: 2018-05-08 | BS91: -179736 | BT91: 2018-05-08 | BU91: 18035 | BV91: 91 | BW91: 2018-05-08 | BX91: 59880 | BY91: 2018-05-08 | BZ91: -57062 | CA91: 2018-05-08 | CB91: -2818 | CC91: 91 | CD91: 2018-05-08 | CE91: 1337 | CF91: 2018-05-08 | CG91: -2883 | CH91: 2018-05-08 | CI91: 1546 | CJ91: 91 | CK91: 2018-05-08 | CL91: -58 | CM91: 2018-05-08 | CN91: -948 | CO91: 2018-05-08 | CP91: 1006 | CQ91: 91 | CR91: 2018-05-08 | CS91: -8222 | CT91: 2018-05-08 | CU91: 8001 | CV91: 2018-05-08 | CW91: 221 | CX91: 91 | CY91: 2018-05-08 | CZ91: 46688 | DA91: 2018-05-08 | DB91: -22199 | DC91: 2018-05-08 | DD91: -24489 | DE91: 91 | DF91: 2018-05-08 | DG91: -54256 | DH91: 2018-05-08 | DI91: 103089 | DJ91: 2018-05-08 | DK91: -48833 | DL91: 91 | DM91: 2018-05-08 | DN91: -656908 | DO91: 2018-05-08 | DP91: 805185 | DQ91: 2018-05-08 | DR91: -148277 | DS91: 91 | DT91: 2018-05-08 | DU91: 10765 | DV91: 2018-05-08 | DW91: -10712 | DX91: 2018-05-08 | DY91: -53 | DZ91: 91 | EA91: 2018-05-08 | EB91: -408629 | EC91: 2018-05-08 | ED91: 639852 | EE91: 2018-05-08 | EF91: -231223 | EG91: 91 | EH91: 2018-05-08 | EI91: -13328 | EJ91: 2018-05-08 | EK91: 76402 | EL91: 2018-05-08 | EM91: -63074 | EN91: 91 | EO91: 2018-05-08 | EP91: -6636 | EQ91: 2018-05-08 | ER91: 6656 | ES91: 2018-05-08 | ET91: -20 | EU91: 91 | EV91: 2018-05-08 | EW91: 6235 | EX91: 2018-05-08 | EY91: 50050 | EZ91: 2018-05-08 | FA91: -56285 | FB91: 91 | FC91: 2018-05-08 | FD91: -177437 | FE91: 2018-05-08 | FF91: 159687 | FG91: 2018-05-08 | FH91: 17750 | FI91: 91 | FJ91: 2018-05-08 | FK91: 2669 | FL91: 2018-05-08 | FM91: -4963 | FN91: 2018-05-08 | FO91: 2294
AM92: 92 | AN92: 2018-05-01 | AO92: 393707 | AP92: 2018-05-01 | AQ92: -319843 | AR92: 2018-05-01 | AS92: -73864 | AT92: 92 | AU92: 2018-05-01 | AV92: 203160 | AW92: 2018-05-01 | AX92: -147384 | AY92: 2018-05-01 | AZ92: -55776 | BA92: 92 | BB92: 2018-05-01 | BC92: 23316 | BD92: 2018-05-01 | BE92: -11643 | BF92: 2018-05-01 | BG92: -11673 | BH92: 92 | BI92: 2018-05-01 | BJ92: -21475 | BK92: 2018-05-01 | BL92: 16200 | BM92: 2018-05-01 | BN92: 5275 | BO92: 92 | BP92: 2018-05-01 | BQ92: 167456 | BR92: 2018-05-01 | BS92: -185173 | BT92: 2018-05-01 | BU92: 17717 | BV92: 92 | BW92: 2018-05-01 | BX92: 51658 | BY92: 2018-05-01 | BZ92: -49338 | CA92: 2018-05-01 | CB92: -2320 | CC92: 92 | CD92: 2018-05-01 | CE92: 1194 | CF92: 2018-05-01 | CG92: -2686 | CH92: 2018-05-01 | CI92: 1492 | CJ92: 92 | CK92: 2018-05-01 | CL92: 172 | CM92: 2018-05-01 | CN92: -1220 | CO92: 2018-05-01 | CP92: 1048 | CQ92: 92 | CR92: 2018-05-01 | CS92: -8385 | CT92: 2018-05-01 | CU92: 8143 | CV92: 2018-05-01 | CW92: 242 | CX92: 92 | CY92: 2018-05-01 | CZ92: 109042 | DA92: 2018-05-01 | DB92: -80704 | DC92: 2018-05-01 | DD92: -28338 | DE92: 92 | DF92: 2018-05-01 | DG92: -61236 | DH92: 2018-05-01 | DI92: 104366 | DJ92: 2018-05-01 | DK92: -43130 | DL92: 92 | DM92: 2018-05-01 | DN92: -601526 | DO92: 2018-05-01 | DP92: 785923 | DQ92: 2018-05-01 | DR92: -184397 | DS92: 92 | DT92: 2018-05-01 | DU92: 10609 | DV92: 2018-05-01 | DW92: -10517 | DX92: 2018-05-01 | DY92: -92 | DZ92: 92 | EA92: 2018-05-01 | EB92: -445678 | EC92: 2018-05-01 | ED92: 659408 | EE92: 2018-05-01 | EF92: -213730 | EG92: 92 | EH92: 2018-05-01 | EI92: 7806 | EJ92: 2018-05-01 | EK92: 60915 | EL92: 2018-05-01 | EM92: -68721 | EN92: 92 | EO92: 2018-05-01 | EP92: -6527 | EQ92: 2018-05-01 | ER92: 6577 | ES92: 2018-05-01 | ET92: -50 | EU92: 92 | EV92: 2018-05-01 | EW92: -6709 | EX92: 2018-05-01 | EY92: 74237 | EZ92: 2018-05-01 | FA92: -67528 | FB92: 92 | FC92: 2018-05-01 | FD92: -171600 | FE92: 2018-05-01 | FF92: 158740 | FG92: 2018-05-01 | FH92: 12860 | FI92: 92 | FJ92: 2018-05-01 | FK92: 2363 | FL92: 2018-05-01 | FM92: -6167 | FN92: 2018-05-01 | FO92: 3804
AM93: 93 | AN93: 2018-04-24 | AO93: 333416 | AP93: 2018-04-24 | AQ93: -261527 | AR93: 2018-04-24 | AS93: -71889 | AT93: 93 | AU93: 2018-04-24 | AV93: 193022 | AW93: 2018-04-24 | AX93: -129747 | AY93: 2018-04-24 | AZ93: -63275 | BA93: 93 | BB93: 2018-04-24 | BC93: -3591 | BD93: 2018-04-24 | BE93: 14769 | BF93: 2018-04-24 | BG93: -11178 | BH93: 93 | BI93: 2018-04-24 | BJ93: -90 | BK93: 2018-04-24 | BL93: -4156 | BM93: 2018-04-24 | BN93: 4246 | BO93: 93 | BP93: 2018-04-24 | BQ93: 136051 | BR93: 2018-04-24 | BS93: -152144 | BT93: 2018-04-24 | BU93: 16093 | BV93: 93 | BW93: 2018-04-24 | BX93: 54253 | BY93: 2018-04-24 | BZ93: -49565 | CA93: 2018-04-24 | CB93: -4688 | CC93: 93 | CD93: 2018-04-24 | CE93: 1093 | CF93: 2018-04-24 | CG93: -2637 | CH93: 2018-04-24 | CI93: 1544 | CJ93: 93 | CK93: 2018-04-24 | CL93: 345 | CM93: 2018-04-24 | CN93: -1585 | CO93: 2018-04-24 | CP93: 1240 | CQ93: 93 | CR93: 2018-04-24 | CS93: -8362 | CT93: 2018-04-24 | CU93: 8101 | CV93: 2018-04-24 | CW93: 261 | CX93: 93 | CY93: 2018-04-24 | CZ93: 216504 | DA93: 2018-04-24 | DB93: -196822 | DC93: 2018-04-24 | DD93: -19682 | DE93: 93 | DF93: 2018-04-24 | DG93: -69264 | DH93: 2018-04-24 | DI93: 123072 | DJ93: 2018-04-24 | DK93: -53808 | DL93: 93 | DM93: 2018-04-24 | DN93: -591849 | DO93: 2018-04-24 | DP93: 781215 | DQ93: 2018-04-24 | DR93: -189366 | DS93: 93 | DT93: 2018-04-24 | DU93: 10153 | DV93: 2018-04-24 | DW93: -10147 | DX93: 2018-04-24 | DY93: -6 | DZ93: 93 | EA93: 2018-04-24 | EB93: -462133 | EC93: 2018-04-24 | ED93: 666213 | EE93: 2018-04-24 | EF93: -204080 | EG93: 93 | EH93: 2018-04-24 | EI93: 12618 | EJ93: 2018-04-24 | EK93: 55362 | EL93: 2018-04-24 | EM93: -67980 | EN93: 93 | EO93: 2018-04-24 | EP93: -7327 | EQ93: 2018-04-24 | ER93: 7368 | ES93: 2018-04-24 | ET93: -41 | EU93: 93 | EV93: 2018-04-24 | EW93: 18321 | EX93: 2018-04-24 | EY93: 31234 | EZ93: 2018-04-24 | FA93: -49555 | FB93: 93 | FC93: 2018-04-24 | FD93: -159975 | FE93: 2018-04-24 | FF93: 147931 | FG93: 2018-04-24 | FH93: 12044 | FI93: 93 | FJ93: 2018-04-24 | FK93: -238 | FL93: 2018-04-24 | FM93: -3455 | FN93: 2018-04-24 | FO93: 3693
AM94: 94 | AN94: 2018-04-17 | AO94: 340060 | AP94: 2018-04-17 | AQ94: -261220 | AR94: 2018-04-17 | AS94: -78840 | AT94: 94 | AU94: 2018-04-17 | AV94: 224357 | AW94: 2018-04-17 | AX94: -157680 | AY94: 2018-04-17 | AZ94: -66677 | BA94: 94 | BB94: 2018-04-17 | BC94: 1911 | BD94: 2018-04-17 | BE94: 9959 | BF94: 2018-04-17 | BG94: -11870 | BH94: 94 | BI94: 2018-04-17 | BJ94: 14208 | BK94: 2018-04-17 | BL94: -20940 | BM94: 2018-04-17 | BN94: 6732 | BO94: 94 | BP94: 2018-04-17 | BQ94: 143407 | BR94: 2018-04-17 | BS94: -161380 | BT94: 2018-04-17 | BU94: 17973 | BV94: 94 | BW94: 2018-04-17 | BX94: 48887 | BY94: 2018-04-17 | BZ94: -45977 | CA94: 2018-04-17 | CB94: -2910 | CC94: 94 | CD94: 2018-04-17 | CE94: 556 | CF94: 2018-04-17 | CG94: -1877 | CH94: 2018-04-17 | CI94: 1321 | CJ94: 94 | CK94: 2018-04-17 | CL94: 336 | CM94: 2018-04-17 | CN94: -1909 | CO94: 2018-04-17 | CP94: 1573 | CQ94: 94 | CR94: 2018-04-17 | CS94: -8546 | CT94: 2018-04-17 | CU94: 8274 | CV94: 2018-04-17 | CW94: 272 | CX94: 94 | CY94: 2018-04-17 | CZ94: 192552 | DA94: 2018-04-17 | DB94: -166206 | DC94: 2018-04-17 | DD94: -26346 | DE94: 94 | DF94: 2018-04-17 | DG94: -86748 | DH94: 2018-04-17 | DI94: 137271 | DJ94: 2018-04-17 | DK94: -50523 | DL94: 94 | DM94: 2018-04-17 | DN94: -573499 | DO94: 2018-04-17 | DP94: 758987 | DQ94: 2018-04-17 | DR94: -185488 | DS94: 94 | DT94: 2018-04-17 | DU94: 9567 | DV94: 2018-04-17 | DW94: -9532 | DX94: 2018-04-17 | DY94: -35 | DZ94: 94 | EA94: 2018-04-17 | EB94: -371689 | EC94: 2018-04-17 | ED94: 543822 | EE94: 2018-04-17 | EF94: -172133 | EG94: 94 | EH94: 2018-04-17 | EI94: -1992 | EJ94: 2018-04-17 | EK94: 63947 | EL94: 2018-04-17 | EM94: -61955 | EN94: 94 | EO94: 2018-04-17 | EP94: -6157 | EQ94: 2018-04-17 | ER94: 6224 | ES94: 2018-04-17 | ET94: -67 | EU94: 94 | EV94: 2018-04-17 | EW94: 45297 | EX94: 2018-04-17 | EY94: -11212 | EZ94: 2018-04-17 | FA94: -34085 | FB94: 94 | FC94: 2018-04-17 | FD94: -156681 | FE94: 2018-04-17 | FF94: 131324 | FG94: 2018-04-17 | FH94: 25357 | FI94: 94 | FJ94: 2018-04-17 | FK94: 17257 | FL94: 2018-04-17 | FM94: -18109 | FN94: 2018-04-17 | FO94: 852
AM95: 95 | AN95: 2018-04-10 | AO95: 382304 | AP95: 2018-04-10 | AQ95: -301594 | AR95: 2018-04-10 | AS95: -80710 | AT95: 95 | AU95: 2018-04-10 | AV95: 210265 | AW95: 2018-04-10 | AX95: -145836 | AY95: 2018-04-10 | AZ95: -64429 | BA95: 95 | BB95: 2018-04-10 | BC95: 5359 | BD95: 2018-04-10 | BE95: 5331 | BF95: 2018-04-10 | BG95: -10690 | BH95: 95 | BI95: 2018-04-10 | BJ95: 25669 | BK95: 2018-04-10 | BL95: -31744 | BM95: 2018-04-10 | BN95: 6075 | BO95: 95 | BP95: 2018-04-10 | BQ95: 146277 | BR95: 2018-04-10 | BS95: -165152 | BT95: 2018-04-10 | BU95: 18875 | BV95: 95 | BW95: 2018-04-10 | BX95: 47753 | BY95: 2018-04-10 | BZ95: -45918 | CA95: 2018-04-10 | CB95: -1835 | CC95: 95 | CD95: 2018-04-10 | CE95: -128 | CF95: 2018-04-10 | CG95: -822 | CH95: 2018-04-10 | CI95: 950 | CJ95: 95 | CK95: 2018-04-10 | CL95: 432 | CM95: 2018-04-10 | CN95: -1917 | CO95: 2018-04-10 | CP95: 1485 | CQ95: 95 | CR95: 2018-04-10 | CS95: -10204 | CT95: 2018-04-10 | CU95: 9960 | CV95: 2018-04-10 | CW95: 244 | CX95: 95 | CY95: 2018-04-10 | CZ95: 153855 | DA95: 2018-04-10 | DB95: -123427 | DC95: 2018-04-10 | DD95: -30428 | DE95: 95 | DF95: 2018-04-10 | DG95: -81805 | DH95: 2018-04-10 | DI95: 130210 | DJ95: 2018-04-10 | DK95: -48405 | DL95: 95 | DM95: 2018-04-10 | DN95: -520483 | DO95: 2018-04-10 | DP95: 703593 | DQ95: 2018-04-10 | DR95: -183110 | DS95: 95 | DT95: 2018-04-10 | DU95: 9882 | DV95: 2018-04-10 | DW95: -9868 | DX95: 2018-04-10 | DY95: -14 | DZ95: 95 | EA95: 2018-04-10 | EB95: -330635 | EC95: 2018-04-10 | ED95: 535978 | EE95: 2018-04-10 | EF95: -205343 | EG95: 95 | EH95: 2018-04-10 | EI95: -24820 | EJ95: 2018-04-10 | EK95: 81618 | EL95: 2018-04-10 | EM95: -56798 | EN95: 95 | EO95: 2018-04-10 | EP95: -6152 | EQ95: 2018-04-10 | ER95: 6213 | ES95: 2018-04-10 | ET95: -61 | EU95: 95 | EV95: 2018-04-10 | EW95: 34850 | EX95: 2018-04-10 | EY95: 13534 | EZ95: 2018-04-10 | FA95: -48384 | FB95: 95 | FC95: 2018-04-10 | FD95: -153666 | FE95: 2018-04-10 | FF95: 141164 | FG95: 2018-04-10 | FH95: 12502 | FI95: 95 | FJ95: 2018-04-10 | FK95: 17435 | FL95: 2018-04-10 | FM95: -18460 | FN95: 2018-04-10 | FO95: 1025
AM96: 96 | AN96: 2018-04-03 | AO96: 367317 | AP96: 2018-04-03 | AQ96: -290009 | AR96: 2018-04-03 | AS96: -77308 | AT96: 96 | AU96: 2018-04-03 | AV96: 210461 | AW96: 2018-04-03 | AX96: -140694 | AY96: 2018-04-03 | AZ96: -69767 | BA96: 96 | BB96: 2018-04-03 | BC96: -16590 | BD96: 2018-04-03 | BE96: 24859 | BF96: 2018-04-03 | BG96: -8269 | BH96: 96 | BI96: 2018-04-03 | BJ96: 32881 | BK96: 2018-04-03 | BL96: -40649 | BM96: 2018-04-03 | BN96: 7768 | BO96: 96 | BP96: 2018-04-03 | BQ96: 138870 | BR96: 2018-04-03 | BS96: -154750 | BT96: 2018-04-03 | BU96: 15880 | BV96: 96 | BW96: 2018-04-03 | BX96: 39828 | BY96: 2018-04-03 | BZ96: -37971 | CA96: 2018-04-03 | CB96: -1857 | CC96: 96 | CD96: 2018-04-03 | CE96: -623 | CF96: 2018-04-03 | CG96: -64 | CH96: 2018-04-03 | CI96: 687 | CJ96: 96 | CK96: 2018-04-03 | CL96: 396 | CM96: 2018-04-03 | CN96: -2010 | CO96: 2018-04-03 | CP96: 1614 | CQ96: 96 | CR96: 2018-04-03 | CS96: -10209 | CT96: 2018-04-03 | CU96: 10006 | CV96: 2018-04-03 | CW96: 203 | CX96: 96 | CY96: 2018-04-03 | CZ96: 73533 | DA96: 2018-04-03 | DB96: -46414 | DC96: 2018-04-03 | DD96: -27119 | DE96: 96 | DF96: 2018-04-03 | DG96: -132636 | DH96: 2018-04-03 | DI96: 170581 | DJ96: 2018-04-03 | DK96: -37945 | DL96: 96 | DM96: 2018-04-03 | DN96: -579306 | DO96: 2018-04-03 | DP96: 778459 | DQ96: 2018-04-03 | DR96: -199153 | DS96: 96 | DT96: 2018-04-03 | DU96: 10645 | DV96: 2018-04-03 | DW96: -10592 | DX96: 2018-04-03 | DY96: -53 | DZ96: 96 | EA96: 2018-04-03 | EB96: -375365 | EC96: 2018-04-03 | ED96: 566052 | EE96: 2018-04-03 | EF96: -190687 | EG96: 96 | EH96: 2018-04-03 | EI96: -14956 | EJ96: 2018-04-03 | EK96: 84183 | EL96: 2018-04-03 | EM96: -69227 | EN96: 96 | EO96: 2018-04-03 | EP96: -5750 | EQ96: 2018-04-03 | ER96: 5825 | ES96: 2018-04-03 | ET96: -75 | EU96: 96 | EV96: 2018-04-03 | EW96: 9677 | EX96: 2018-04-03 | EY96: 31928 | EZ96: 2018-04-03 | FA96: -41605 | FB96: 96 | FC96: 2018-04-03 | FD96: -149956 | FE96: 2018-04-03 | FF96: 136467 | FG96: 2018-04-03 | FH96: 13489 | FI96: 96 | FJ96: 2018-04-03 | FK96: 19562 | FL96: 2018-04-03 | FM96: -21691 | FN96: 2018-04-03 | FO96: 2129
AM97: 97 | AN97: 2018-03-27 | AO97: 301735 | AP97: 2018-03-27 | AQ97: -229315 | AR97: 2018-03-27 | AS97: -72420 | AT97: 97 | AU97: 2018-03-27 | AV97: 192800 | AW97: 2018-03-27 | AX97: -122494 | AY97: 2018-03-27 | AZ97: -70306 | BA97: 97 | BB97: 2018-03-27 | BC97: -15216 | BD97: 2018-03-27 | BE97: 26227 | BF97: 2018-03-27 | BG97: -11011 | BH97: 97 | BI97: 2018-03-27 | BJ97: 22552 | BK97: 2018-03-27 | BL97: -31511 | BM97: 2018-03-27 | BN97: 8959 | BO97: 97 | BP97: 2018-03-27 | BQ97: 136460 | BR97: 2018-03-27 | BS97: -153964 | BT97: 2018-03-27 | BU97: 17504 | BV97: 97 | BW97: 2018-03-27 | BX97: 43139 | BY97: 2018-03-27 | BZ97: -40163 | CA97: 2018-03-27 | CB97: -2976 | CC97: 97 | CD97: 2018-03-27 | CE97: -754 | CF97: 2018-03-27 | CG97: 31 | CH97: 2018-03-27 | CI97: 723 | CJ97: 97 | CK97: 2018-03-27 | CL97: 405 | CM97: 2018-03-27 | CN97: -2198 | CO97: 2018-03-27 | CP97: 1793 | CQ97: 97 | CR97: 2018-03-27 | CS97: -16144 | CT97: 2018-03-27 | CU97: 15941 | CV97: 2018-03-27 | CW97: 203 | CX97: 97 | CY97: 2018-03-27 | CZ97: 115405 | DA97: 2018-03-27 | DB97: -89748 | DC97: 2018-03-27 | DD97: -25657 | DE97: 97 | DF97: 2018-03-27 | DG97: -113227 | DH97: 2018-03-27 | DI97: 157453 | DJ97: 2018-03-27 | DK97: -44226 | DL97: 97 | DM97: 2018-03-27 | DN97: -434605 | DO97: 2018-03-27 | DP97: 607016 | DQ97: 2018-03-27 | DR97: -172411 | DS97: 97 | DT97: 2018-03-27 | DU97: 10640 | DV97: 2018-03-27 | DW97: -10603 | DX97: 2018-03-27 | DY97: -37 | DZ97: 97 | EA97: 2018-03-27 | EB97: -305212 | EC97: 2018-03-27 | ED97: 535439 | EE97: 2018-03-27 | EF97: -230227 | EG97: 97 | EH97: 2018-03-27 | EI97: -1548 | EJ97: 2018-03-27 | EK97: 76331 | EL97: 2018-03-27 | EM97: -74783 | EN97: 97 | EO97: 2018-03-27 | EP97: -3815 | EQ97: 2018-03-27 | ER97: 3926 | ES97: 2018-03-27 | ET97: -111 | EU97: 97 | EV97: 2018-03-27 | EW97: 44752 | EX97: 2018-03-27 | EY97: -1255 | EZ97: 2018-03-27 | FA97: -43497 | FB97: 97 | FC97: 2018-03-27 | FD97: -152612 | FE97: 2018-03-27 | FF97: 139035 | FG97: 2018-03-27 | FH97: 13577 | FI97: 97 | FJ97: 2018-03-27 | FK97: 27131 | FL97: 2018-03-27 | FM97: -30545 | FN97: 2018-03-27 | FO97: 3414
AM98: 98 | AN98: 2018-03-20 | AO98: 378601 | AP98: 2018-03-20 | AQ98: -293533 | AR98: 2018-03-20 | AS98: -85068 | AT98: 98 | AU98: 2018-03-20 | AV98: 197820 | AW98: 2018-03-20 | AX98: -130168 | AY98: 2018-03-20 | AZ98: -67652 | BA98: 98 | BB98: 2018-03-20 | BC98: -4401 | BD98: 2018-03-20 | BE98: 12687 | BF98: 2018-03-20 | BG98: -8286 | BH98: 98 | BI98: 2018-03-20 | BJ98: 29582 | BK98: 2018-03-20 | BL98: -36937 | BM98: 2018-03-20 | BN98: 7355 | BO98: 98 | BP98: 2018-03-20 | BQ98: 132011 | BR98: 2018-03-20 | BS98: -147277 | BT98: 2018-03-20 | BU98: 15266 | BV98: 98 | BW98: 2018-03-20 | BX98: 49497 | BY98: 2018-03-20 | BZ98: -44677 | CA98: 2018-03-20 | CB98: -4820 | CC98: 98 | CD98: 2018-03-20 | CE98: -632 | CF98: 2018-03-20 | CG98: -102 | CH98: 2018-03-20 | CI98: 734 | CJ98: 98 | CK98: 2018-03-20 | CL98: 1347 | CM98: 2018-03-20 | CN98: -2555 | CO98: 2018-03-20 | CP98: 1208 | CQ98: 98 | CR98: 2018-03-20 | CS98: -17414 | CT98: 2018-03-20 | CU98: 17198 | CV98: 2018-03-20 | CW98: 216 | CX98: 98 | CY98: 2018-03-20 | CZ98: 104573 | DA98: 2018-03-20 | DB98: -78556 | DC98: 2018-03-20 | DD98: -26017 | DE98: 98 | DF98: 2018-03-20 | DG98: -184036 | DH98: 2018-03-20 | DI98: 232425 | DJ98: 2018-03-20 | DK98: -48389 | DL98: 98 | DM98: 2018-03-20 | DN98: -464725 | DO98: 2018-03-20 | DP98: 644574 | DQ98: 2018-03-20 | DR98: -179849 | DS98: 98 | DT98: 2018-03-20 | DU98: 11017 | DV98: 2018-03-20 | DW98: -11013 | DX98: 2018-03-20 | DY98: -4 | DZ98: 98 | EA98: 2018-03-20 | EB98: -313304 | EC98: 2018-03-20 | ED98: 551119 | EE98: 2018-03-20 | EF98: -237815 | EG98: 98 | EH98: 2018-03-20 | EI98: 3490 | EJ98: 2018-03-20 | EK98: 67363 | EL98: 2018-03-20 | EM98: -70853 | EN98: 98 | EO98: 2018-03-20 | EP98: -3065 | EQ98: 2018-03-20 | ER98: 3175 | ES98: 2018-03-20 | ET98: -110 | EU98: 98 | EV98: 2018-03-20 | EW98: 52426 | EX98: 2018-03-20 | EY98: -2514 | EZ98: 2018-03-20 | FA98: -49912 | FB98: 98 | FC98: 2018-03-20 | FD98: -147388 | FE98: 2018-03-20 | FF98: 145715 | FG98: 2018-03-20 | FH98: 1673 | FI98: 98 | FJ98: 2018-03-20 | FK98: 27268 | FL98: 2018-03-20 | FM98: -30751 | FN98: 2018-03-20 | FO98: 3483
AM99: 99 | AN99: 2018-03-13 | AO99: 415450 | AP99: 2018-03-13 | AQ99: -335205 | AR99: 2018-03-13 | AS99: -80245 | AT99: 99 | AU99: 2018-03-13 | AV99: 201382 | AW99: 2018-03-13 | AX99: -137472 | AY99: 2018-03-13 | AZ99: -63910 | BA99: 99 | BB99: 2018-03-13 | BC99: 1628 | BD99: 2018-03-13 | BE99: 4356 | BF99: 2018-03-13 | BG99: -5984 | BH99: 99 | BI99: 2018-03-13 | BJ99: 33641 | BK99: 2018-03-13 | BL99: -40018 | BM99: 2018-03-13 | BN99: 6377 | BO99: 99 | BP99: 2018-03-13 | BQ99: 146845 | BR99: 2018-03-13 | BS99: -161107 | BT99: 2018-03-13 | BU99: 14262 | BV99: 99 | BW99: 2018-03-13 | BX99: 49548 | BY99: 2018-03-13 | BZ99: -45561 | CA99: 2018-03-13 | CB99: -3987 | CC99: 99 | CD99: 2018-03-13 | CE99: -611 | CF99: 2018-03-13 | CG99: -38 | CH99: 2018-03-13 | CI99: 649 | CJ99: 99 | CK99: 2018-03-13 | CL99: 2319 | CM99: 2018-03-13 | CN99: -3441 | CO99: 2018-03-13 | CP99: 1122 | CQ99: 99 | CR99: 2018-03-13 | CS99: -17237 | CT99: 2018-03-13 | CU99: 17003 | CV99: 2018-03-13 | CW99: 234 | CX99: 99 | CY99: 2018-03-13 | CZ99: 25208 | DA99: 2018-03-13 | DB99: -253 | DC99: 2018-03-13 | DD99: -24955 | DE99: 99 | DF99: 2018-03-13 | DG99: -119263 | DH99: 2018-03-13 | DI99: 180637 | DJ99: 2018-03-13 | DK99: -61374 | DL99: 99 | DM99: 2018-03-13 | DN99: -454466 | DO99: 2018-03-13 | DP99: 637212 | DQ99: 2018-03-13 | DR99: -182746 | DS99: 99 | DT99: 2018-03-13 | DU99: 20162 | DV99: 2018-03-13 | DW99: -20150 | DX99: 2018-03-13 | DY99: -12 | DZ99: 99 | EA99: 2018-03-13 | EB99: -271369 | EC99: 2018-03-13 | ED99: 511659 | EE99: 2018-03-13 | EF99: -240290 | EG99: 99 | EH99: 2018-03-13 | EI99: -403 | EJ99: 2018-03-13 | EK99: 75047 | EL99: 2018-03-13 | EM99: -74644 | EN99: 99 | EO99: 2018-03-13 | EP99: 1131 | EQ99: 2018-03-13 | ER99: -1050 | ES99: 2018-03-13 | ET99: -81 | EU99: 99 | EV99: 2018-03-13 | EW99: 83557 | EX99: 2018-03-13 | EY99: -14491 | EZ99: 2018-03-13 | FA99: -69066 | FB99: 99 | FC99: 2018-03-13 | FD99: -148420 | FE99: 2018-03-13 | FF99: 132490 | FG99: 2018-03-13 | FH99: 15930 | FI99: 99 | FJ99: 2018-03-13 | FK99: 22543 | FL99: 2018-03-13 | FM99: -27944 | FN99: 2018-03-13 | FO99: 5401
AM100: 100 | AN100: 2018-03-06 | AO100: 320384 | AP100: 2018-03-06 | AQ100: -261995 | AR100: 2018-03-06 | AS100: -58389 | AT100: 100 | AU100: 2018-03-06 | AV100: 194877 | AW100: 2018-03-06 | AX100: -132450 | AY100: 2018-03-06 | AZ100: -62427 | BA100: 100 | BB100: 2018-03-06 | BC100: 8807 | BD100: 2018-03-06 | BE100: -3869 | BF100: 2018-03-06 | BG100: -4938 | BH100: 100 | BI100: 2018-03-06 | BJ100: 46783 | BK100: 2018-03-06 | BL100: -55217 | BM100: 2018-03-06 | BN100: 8434 | BO100: 100 | BP100: 2018-03-06 | BQ100: 152702 | BR100: 2018-03-06 | BS100: -167897 | BT100: 2018-03-06 | BU100: 15195 | BV100: 100 | BW100: 2018-03-06 | BX100: 43796 | BY100: 2018-03-06 | BZ100: -41430 | CA100: 2018-03-06 | CB100: -2366 | CC100: 100 | CD100: 2018-03-06 | CE100: -660 | CF100: 2018-03-06 | CG100: -166 | CH100: 2018-03-06 | CI100: 826 | CJ100: 100 | CK100: 2018-03-06 | CL100: 2175 | CM100: 2018-03-06 | CN100: -3506 | CO100: 2018-03-06 | CP100: 1331 | CQ100: 100 | CR100: 2018-03-06 | CS100: -17023 | CT100: 2018-03-06 | CU100: 16735 | CV100: 2018-03-06 | CW100: 288 | CX100: 100 | CY100: 2018-03-06 | CZ100: 41604 | DA100: 2018-03-06 | DB100: -15544 | DC100: 2018-03-06 | DD100: -26060 | DE100: 100 | DF100: 2018-03-06 | DG100: -92794 | DH100: 2018-03-06 | DI100: 155209 | DJ100: 2018-03-06 | DK100: -62415 | DL100: 100 | DM100: 2018-03-06 | DN100: -489630 | DO100: 2018-03-06 | DP100: 675922 | DQ100: 2018-03-06 | DR100: -186292 | DS100: 100 | DT100: 2018-03-06 | DU100: 19195 | DV100: 2018-03-06 | DW100: -19143 | DX100: 2018-03-06 | DY100: -52 | DZ100: 100 | EA100: 2018-03-06 | EB100: -362150 | EC100: 2018-03-06 | ED100: 612841 | EE100: 2018-03-06 | EF100: -250691 | EG100: 100 | EH100: 2018-03-06 | EI100: -15184 | EJ100: 2018-03-06 | EK100: 90063 | EL100: 2018-03-06 | EM100: -74879 | EN100: 100 | EO100: 2018-03-06 | EP100: 1332 | EQ100: 2018-03-06 | ER100: -1166 | ES100: 2018-03-06 | ET100: -166 | EU100: 100 | EV100: 2018-03-06 | EW100: 14286 | EX100: 2018-03-06 | EY100: 38377 | EZ100: 2018-03-06 | FA100: -52663 | FB100: 100 | FC100: 2018-03-06 | FD100: -170410 | FE100: 2018-03-06 | FF100: 146631 | FG100: 2018-03-06 | FH100: 23779 | FI100: 100 | FJ100: 2018-03-06 | FK100: 25414 | FL100: 2018-03-06 | FM100: -30319 | FN100: 2018-03-06 | FO100: 4905
AM101: 101 | AN101: 2018-02-27 | AO101: 214492 | AP101: 2018-02-27 | AQ101: -176246 | AR101: 2018-02-27 | AS101: -38246 | AT101: 101 | AU101: 2018-02-27 | AV101: 155357 | AW101: 2018-02-27 | AX101: -100575 | AY101: 2018-02-27 | AZ101: -54782 | BA101: 101 | BB101: 2018-02-27 | BC101: -15940 | BD101: 2018-02-27 | BE101: 23386 | BF101: 2018-02-27 | BG101: -7446 | BH101: 101 | BI101: 2018-02-27 | BJ101: 41574 | BK101: 2018-02-27 | BL101: -50102 | BM101: 2018-02-27 | BN101: 8528 | BO101: 101 | BP101: 2018-02-27 | BQ101: 152069 | BR101: 2018-02-27 | BS101: -169049 | BT101: 2018-02-27 | BU101: 16980 | BV101: 101 | BW101: 2018-02-27 | BX101: 31324 | BY101: 2018-02-27 | BZ101: -30132 | CA101: 2018-02-27 | CB101: -1192 | CC101: 101 | CD101: 2018-02-27 | CE101: -1623 | CF101: 2018-02-27 | CG101: 1131 | CH101: 2018-02-27 | CI101: 492 | CJ101: 101 | CK101: 2018-02-27 | CL101: 2314 | CM101: 2018-02-27 | CN101: -3561 | CO101: 2018-02-27 | CP101: 1247 | CQ101: 101 | CR101: 2018-02-27 | CS101: -17134 | CT101: 2018-02-27 | CU101: 16851 | CV101: 2018-02-27 | CW101: 283 | CX101: 101 | CY101: 2018-02-27 | CZ101: 14473 | DA101: 2018-02-27 | DB101: 7834 | DC101: 2018-02-27 | DD101: -22307 | DE101: 101 | DF101: 2018-02-27 | DG101: -104947 | DH101: 2018-02-27 | DI101: 167337 | DJ101: 2018-02-27 | DK101: -62390 | DL101: 101 | DM101: 2018-02-27 | DN101: -451877 | DO101: 2018-02-27 | DP101: 598813 | DQ101: 2018-02-27 | DR101: -146936 | DS101: 101 | DT101: 2018-02-27 | DU101: 18616 | DV101: 2018-02-27 | DW101: -18572 | DX101: 2018-02-27 | DY101: -44 | DZ101: 101 | EA101: 2018-02-27 | EB101: -342889 | EC101: 2018-02-27 | ED101: 631797 | EE101: 2018-02-27 | EF101: -288908 | EG101: 101 | EH101: 2018-02-27 | EI101: -3481 | EJ101: 2018-02-27 | EK101: 78037 | EL101: 2018-02-27 | EM101: -74556 | EN101: 101 | EO101: 2018-02-27 | EP101: 2054 | EQ101: 2018-02-27 | ER101: -1907 | ES101: 2018-02-27 | ET101: -147 | EU101: 101 | EV101: 2018-02-27 | EW101: 27484 | EX101: 2018-02-27 | EY101: 23840 | EZ101: 2018-02-27 | FA101: -51324 | FB101: 101 | FC101: 2018-02-27 | FD101: -158552 | FE101: 2018-02-27 | FF101: 126357 | FG101: 2018-02-27 | FH101: 32195 | FI101: 101 | FJ101: 2018-02-27 | FK101: 22271 | FL101: 2018-02-27 | FM101: -27641 | FN101: 2018-02-27 | FO101: 5370
AM102: 102 | AN102: 2018-02-20 | AO102: 165932 | AP102: 2018-02-20 | AQ102: -132087 | AR102: 2018-02-20 | AS102: -33845 | AT102: 102 | AU102: 2018-02-20 | AV102: 106866 | AW102: 2018-02-20 | AX102: -50023 | AY102: 2018-02-20 | AZ102: -56843 | BA102: 102 | BB102: 2018-02-20 | BC102: -27458 | BD102: 2018-02-20 | BE102: 35415 | BF102: 2018-02-20 | BG102: -7957 | BH102: 102 | BI102: 2018-02-20 | BJ102: 26930 | BK102: 2018-02-20 | BL102: -33507 | BM102: 2018-02-20 | BN102: 6577 | BO102: 102 | BP102: 2018-02-20 | BQ102: 128219 | BR102: 2018-02-20 | BS102: -147591 | BT102: 2018-02-20 | BU102: 19372 | BV102: 102 | BW102: 2018-02-20 | BX102: 33495 | BY102: 2018-02-20 | BZ102: -32860 | CA102: 2018-02-20 | CB102: -635 | CC102: 102 | CD102: 2018-02-20 | CE102: -936 | CF102: 2018-02-20 | CG102: 596 | CH102: 2018-02-20 | CI102: 340 | CJ102: 102 | CK102: 2018-02-20 | CL102: 2213 | CM102: 2018-02-20 | CN102: -3279 | CO102: 2018-02-20 | CP102: 1066 | CQ102: 102 | CR102: 2018-02-20 | CS102: -16863 | CT102: 2018-02-20 | CU102: 16593 | CV102: 2018-02-20 | CW102: 270 | CX102: 102 | CY102: 2018-02-20 | CZ102: -19225 | DA102: 2018-02-20 | DB102: 39670 | DC102: 2018-02-20 | DD102: -20445 | DE102: 102 | DF102: 2018-02-20 | DG102: -156952 | DH102: 2018-02-20 | DI102: 198669 | DJ102: 2018-02-20 | DK102: -41717 | DL102: 102 | DM102: 2018-02-20 | DN102: -427583 | DO102: 2018-02-20 | DP102: 577105 | DQ102: 2018-02-20 | DR102: -149522 | DS102: 102 | DT102: 2018-02-20 | DU102: 17847 | DV102: 2018-02-20 | DW102: -17829 | DX102: 2018-02-20 | DY102: -18 | DZ102: 102 | EA102: 2018-02-20 | EB102: -214480 | EC102: 2018-02-20 | ED102: 485506 | EE102: 2018-02-20 | EF102: -271026 | EG102: 102 | EH102: 2018-02-20 | EI102: 2918 | EJ102: 2018-02-20 | EK102: 57342 | EL102: 2018-02-20 | EM102: -60260 | EN102: 102 | EO102: 2018-02-20 | EP102: 3081 | EQ102: 2018-02-20 | ER102: -2969 | ES102: 2018-02-20 | ET102: -112 | EU102: 102 | EV102: 2018-02-20 | EW102: 17391 | EX102: 2018-02-20 | EY102: 43420 | EZ102: 2018-02-20 | FA102: -60811 | FB102: 102 | FC102: 2018-02-20 | FD102: -161038 | FE102: 2018-02-20 | FF102: 157743 | FG102: 2018-02-20 | FH102: 3295 | FI102: 102 | FJ102: 2018-02-20 | FK102: 19146 | FL102: 2018-02-20 | FM102: -22438 | FN102: 2018-02-20 | FO102: 3292
AM103: 103 | AN103: 2018-02-13 | AO103: 133972 | AP103: 2018-02-13 | AQ103: -112773 | AR103: 2018-02-13 | AS103: -21199 | AT103: 103 | AU103: 2018-02-13 | AV103: 51163 | AW103: 2018-02-13 | AX103: 1026 | AY103: 2018-02-13 | AZ103: -52189 | BA103: 103 | BB103: 2018-02-13 | BC103: -16435 | BD103: 2018-02-13 | BE103: 22564 | BF103: 2018-02-13 | BG103: -6129 | BH103: 103 | BI103: 2018-02-13 | BJ103: 34709 | BK103: 2018-02-13 | BL103: -40038 | BM103: 2018-02-13 | BN103: 5329 | BO103: 103 | BP103: 2018-02-13 | BQ103: 112013 | BR103: 2018-02-13 | BS103: -129765 | BT103: 2018-02-13 | BU103: 17752 | BV103: 103 | BW103: 2018-02-13 | BX103: 35380 | BY103: 2018-02-13 | BZ103: -36448 | CA103: 2018-02-13 | CB103: 1068 | CC103: 103 | CD103: 2018-02-13 | CE103: -501 | CF103: 2018-02-13 | CG103: 62 | CH103: 2018-02-13 | CI103: 439 | CJ103: 103 | CK103: 2018-02-13 | CL103: 2196 | CM103: 2018-02-13 | CN103: -3321 | CO103: 2018-02-13 | CP103: 1125 | CQ103: 103 | CR103: 2018-02-13 | CS103: -16568 | CT103: 2018-02-13 | CU103: 16353 | CV103: 2018-02-13 | CW103: 215 | CX103: 103 | CY103: 2018-02-13 | CZ103: -79769 | DA103: 2018-02-13 | DB103: 108691 | DC103: 2018-02-13 | DD103: -28922 | DE103: 103 | DF103: 2018-02-13 | DG103: -133986 | DH103: 2018-02-13 | DI103: 192350 | DJ103: 2018-02-13 | DK103: -58364 | DL103: 103 | DM103: 2018-02-13 | DN103: -352507 | DO103: 2018-02-13 | DP103: 490451 | DQ103: 2018-02-13 | DR103: -137944 | DS103: 103 | DT103: 2018-02-13 | DU103: 17022 | DV103: 2018-02-13 | DW103: -17035 | DX103: 2018-02-13 | DY103: 13 | DZ103: 103 | EA103: 2018-02-13 | EB103: -296935 | EC103: 2018-02-13 | ED103: 544599 | EE103: 2018-02-13 | EF103: -247664 | EG103: 103 | EH103: 2018-02-13 | EI103: 13294 | EJ103: 2018-02-13 | EK103: 59673 | EL103: 2018-02-13 | EM103: -72967 | EN103: 103 | EO103: 2018-02-13 | EP103: 3615 | EQ103: 2018-02-13 | ER103: -3556 | ES103: 2018-02-13 | ET103: -59 | EU103: 103 | EV103: 2018-02-13 | EW103: 3849 | EX103: 2018-02-13 | EY103: 57204 | EZ103: 2018-02-13 | FA103: -61053 | FB103: 103 | FC103: 2018-02-13 | FD103: -164519 | FE103: 2018-02-13 | FF103: 159976 | FG103: 2018-02-13 | FH103: 4543 | FI103: 103 | FJ103: 2018-02-13 | FK103: 21313 | FL103: 2018-02-13 | FM103: -25272 | FN103: 2018-02-13 | FO103: 3959
AM104: 104 | AN104: 2018-02-06 | AO104: 48070 | AP104: 2018-02-06 | AQ104: -46705 | AR104: 2018-02-06 | AS104: -1365 | AT104: 104 | AU104: 2018-02-06 | AV104: 1893 | AW104: 2018-02-06 | AX104: 42036 | AY104: 2018-02-06 | AZ104: -43929 | BA104: 104 | BB104: 2018-02-06 | BC104: -48708 | BD104: 2018-02-06 | BE104: 48300 | BF104: 2018-02-06 | BG104: 408 | BH104: 104 | BI104: 2018-02-06 | BJ104: 33793 | BK104: 2018-02-06 | BL104: -42867 | BM104: 2018-02-06 | BN104: 9074 | BO104: 104 | BP104: 2018-02-06 | BQ104: 85330 | BR104: 2018-02-06 | BS104: -100087 | BT104: 2018-02-06 | BU104: 14757 | BV104: 104 | BW104: 2018-02-06 | BX104: 37252 | BY104: 2018-02-06 | BZ104: -36748 | CA104: 2018-02-06 | CB104: -504 | CC104: 104 | CD104: 2018-02-06 | CE104: -675 | CF104: 2018-02-06 | CG104: 85 | CH104: 2018-02-06 | CI104: 590 | CJ104: 104 | CK104: 2018-02-06 | CL104: 1842 | CM104: 2018-02-06 | CN104: -3217 | CO104: 2018-02-06 | CP104: 1375 | CQ104: 104 | CR104: 2018-02-06 | CS104: -16433 | CT104: 2018-02-06 | CU104: 16178 | CV104: 2018-02-06 | CW104: 255 | CX104: 104 | CY104: 2018-02-06 | CZ104: -118635 | DA104: 2018-02-06 | DB104: 159350 | DC104: 2018-02-06 | DD104: -40715 | DE104: 104 | DF104: 2018-02-06 | DG104: -210758 | DH104: 2018-02-06 | DI104: 256192 | DJ104: 2018-02-06 | DK104: -45434 | DL104: 104 | DM104: 2018-02-06 | DN104: -453605 | DO104: 2018-02-06 | DP104: 595855 | DQ104: 2018-02-06 | DR104: -142250 | DS104: 104 | DT104: 2018-02-06 | DU104: 15174 | DV104: 2018-02-06 | DW104: -15108 | DX104: 2018-02-06 | DY104: -66 | DZ104: 104 | EA104: 2018-02-06 | EB104: -327540 | EC104: 2018-02-06 | ED104: 578177 | EE104: 2018-02-06 | EF104: -250637 | EG104: 104 | EH104: 2018-02-06 | EI104: 44266 | EJ104: 2018-02-06 | EK104: 28399 | EL104: 2018-02-06 | EM104: -72665 | EN104: 104 | EO104: 2018-02-06 | EP104: 3822 | EQ104: 2018-02-06 | ER104: -3695 | ES104: 2018-02-06 | ET104: -127 | EU104: 104 | EV104: 2018-02-06 | EW104: 23148 | EX104: 2018-02-06 | EY104: 14299 | EZ104: 2018-02-06 | FA104: -37447 | FB104: 104 | FC104: 2018-02-06 | FD104: -145544 | FE104: 2018-02-06 | FF104: 135638 | FG104: 2018-02-06 | FH104: 9906 | FI104: 104 | FJ104: 2018-02-06 | FK104: 44205 | FL104: 2018-02-06 | FM104: -52763 | FN104: 2018-02-06 | FO104: 8558
AM105: 105 | AN105: 2018-01-30 | AO105: 13754 | AP105: 2018-01-30 | AQ105: -21012 | AR105: 2018-01-30 | AS105: 7258 | AT105: 105 | AU105: 2018-01-30 | AV105: -12799 | AW105: 2018-01-30 | AX105: 59188 | AY105: 2018-01-30 | AZ105: -46389 | BA105: 105 | BB105: 2018-01-30 | BC105: -47294 | BD105: 2018-01-30 | BE105: 49548 | BF105: 2018-01-30 | BG105: -2254 | BH105: 105 | BI105: 2018-01-30 | BJ105: 22667 | BK105: 2018-01-30 | BL105: -28261 | BM105: 2018-01-30 | BN105: 5594 | BO105: 105 | BP105: 2018-01-30 | BQ105: 83084 | BR105: 2018-01-30 | BS105: -98869 | BT105: 2018-01-30 | BU105: 15785 | BV105: 105 | BW105: 2018-01-30 | BX105: 15933 | BY105: 2018-01-30 | BZ105: -18037 | CA105: 2018-01-30 | CB105: 2104 | CC105: 105 | CD105: 2018-01-30 | CE105: -1129 | CF105: 2018-01-30 | CG105: 400 | CH105: 2018-01-30 | CI105: 729 | CJ105: 105 | CK105: 2018-01-30 | CL105: 1903 | CM105: 2018-01-30 | CN105: -3152 | CO105: 2018-01-30 | CP105: 1249 | CQ105: 105 | CR105: 2018-01-30 | CS105: -16473 | CT105: 2018-01-30 | CU105: 16199 | CV105: 2018-01-30 | CW105: 274 | CX105: 105 | CY105: 2018-01-30 | CZ105: 19795 | DA105: 2018-01-30 | DB105: 2154 | DC105: 2018-01-30 | DD105: -21949 | DE105: 105 | DF105: 2018-01-30 | DG105: -329066 | DH105: 2018-01-30 | DI105: 392849 | DJ105: 2018-01-30 | DK105: -63783 | DL105: 105 | DM105: 2018-01-30 | DN105: -393447 | DO105: 2018-01-30 | DP105: 576488 | DQ105: 2018-01-30 | DR105: -183041 | DS105: 105 | DT105: 2018-01-30 | DU105: 13969 | DV105: 2018-01-30 | DW105: -13914 | DX105: 2018-01-30 | DY105: -55 | DZ105: 105 | EA105: 2018-01-30 | EB105: -215600 | EC105: 2018-01-30 | ED105: 499265 | EE105: 2018-01-30 | EF105: -283665 | EG105: 105 | EH105: 2018-01-30 | EI105: 50317 | EJ105: 2018-01-30 | EK105: 20759 | EL105: 2018-01-30 | EM105: -71076 | EN105: 105 | EO105: 2018-01-30 | EP105: 2957 | EQ105: 2018-01-30 | ER105: -2845 | ES105: 2018-01-30 | ET105: -112 | EU105: 105 | EV105: 2018-01-30 | EW105: 53399 | EX105: 2018-01-30 | EY105: -48296 | EZ105: 2018-01-30 | FA105: -5103 | FB105: 105 | FC105: 2018-01-30 | FD105: -138051 | FE105: 2018-01-30 | FF105: 121375 | FG105: 2018-01-30 | FH105: 16676 | FI105: 105 | FJ105: 2018-01-30 | FK105: 66129 | FL105: 2018-01-30 | FM105: -81088 | FN105: 2018-01-30 | FO105: 14959
AM106: 106 | AN106: 2018-01-23 | AO106: -77025 | AP106: 2018-01-23 | AQ106: 58168 | AR106: 2018-01-23 | AS106: 18857 | AT106: 106 | AU106: 2018-01-23 | AV106: -67090 | AW106: 2018-01-23 | AX106: 105646 | AY106: 2018-01-23 | AZ106: -38556 | BA106: 106 | BB106: 2018-01-23 | BC106: -95971 | BD106: 2018-01-23 | BE106: 97584 | BF106: 2018-01-23 | BG106: -1613 | BH106: 106 | BI106: 2018-01-23 | BJ106: 13838 | BK106: 2018-01-23 | BL106: -18916 | BM106: 2018-01-23 | BN106: 5078 | BO106: 106 | BP106: 2018-01-23 | BQ106: 69308 | BR106: 2018-01-23 | BS106: -82380 | BT106: 2018-01-23 | BU106: 13072 | BV106: 106 | BW106: 2018-01-23 | BX106: 1038 | BY106: 2018-01-23 | BZ106: -4800 | CA106: 2018-01-23 | CB106: 3762 | CC106: 106 | CD106: 2018-01-23 | CE106: -1163 | CF106: 2018-01-23 | CG106: 698 | CH106: 2018-01-23 | CI106: 465 | CJ106: 106 | CK106: 2018-01-23 | CL106: 2082 | CM106: 2018-01-23 | CN106: -2828 | CO106: 2018-01-23 | CP106: 746 | CQ106: 106 | CR106: 2018-01-23 | CS106: -13854 | CT106: 2018-01-23 | CU106: 13595 | CV106: 2018-01-23 | CW106: 259 | CX106: 106 | CY106: 2018-01-23 | CZ106: -7521 | DA106: 2018-01-23 | DB106: 31600 | DC106: 2018-01-23 | DD106: -24079 | DE106: 106 | DF106: 2018-01-23 | DG106: -301086 | DH106: 2018-01-23 | DI106: 359598 | DJ106: 2018-01-23 | DK106: -58512 | DL106: 106 | DM106: 2018-01-23 | DN106: -435007 | DO106: 2018-01-23 | DP106: 629754 | DQ106: 2018-01-23 | DR106: -194747 | DS106: 106 | DT106: 2018-01-23 | DU106: 13647 | DV106: 2018-01-23 | DW106: -13621 | DX106: 2018-01-23 | DY106: -26 | DZ106: 106 | EA106: 2018-01-23 | EB106: -117877 | EC106: 2018-01-23 | ED106: 397481 | EE106: 2018-01-23 | EF106: -279604 | EG106: 106 | EH106: 2018-01-23 | EI106: 54696 | EJ106: 2018-01-23 | EK106: -6229 | EL106: 2018-01-23 | EM106: -48467 | EN106: 106 | EO106: 2018-01-23 | EP106: 1236 | EQ106: 2018-01-23 | ER106: -1117 | ES106: 2018-01-23 | ET106: -119 | EU106: 106 | EV106: 2018-01-23 | EW106: 55731 | EX106: 2018-01-23 | EY106: -32194 | EZ106: 2018-01-23 | FA106: -23537 | FB106: 106 | FC106: 2018-01-23 | FD106: -139247 | FE106: 2018-01-23 | FF106: 108536 | FG106: 2018-01-23 | FH106: 30711 | FI106: 106 | FJ106: 2018-01-23 | FK106: 62311 | FL106: 2018-01-23 | FM106: -77091 | FN106: 2018-01-23 | FO106: 14780
AM107: 107 | AN107: 2018-01-16 | AO107: -92247 | AP107: 2018-01-16 | AQ107: 70407 | AR107: 2018-01-16 | AS107: 21840 | AT107: 107 | AU107: 2018-01-16 | AV107: -78648 | AW107: 2018-01-16 | AX107: 111976 | AY107: 2018-01-16 | AZ107: -33328 | BA107: 107 | BB107: 2018-01-16 | BC107: -95164 | BD107: 2018-01-16 | BE107: 96221 | BF107: 2018-01-16 | BG107: -1057 | BH107: 107 | BI107: 2018-01-16 | BJ107: 21441 | BK107: 2018-01-16 | BL107: -25968 | BM107: 2018-01-16 | BN107: 4527 | BO107: 107 | BP107: 2018-01-16 | BQ107: 43556 | BR107: 2018-01-16 | BS107: -54037 | BT107: 2018-01-16 | BU107: 10481 | BV107: 107 | BW107: 2018-01-16 | BX107: 6130 | BY107: 2018-01-16 | BZ107: -9506 | CA107: 2018-01-16 | CB107: 3376 | CC107: 107 | CD107: 2018-01-16 | CE107: -1455 | CF107: 2018-01-16 | CG107: 1022 | CH107: 2018-01-16 | CI107: 433 | CJ107: 107 | CK107: 2018-01-16 | CL107: 1860 | CM107: 2018-01-16 | CN107: -2643 | CO107: 2018-01-16 | CP107: 783 | CQ107: 107 | CR107: 2018-01-16 | CS107: -13311 | CT107: 2018-01-16 | CU107: 13078 | CV107: 2018-01-16 | CW107: 233 | CX107: 107 | CY107: 2018-01-16 | CZ107: -9322 | DA107: 2018-01-16 | DB107: 35001 | DC107: 2018-01-16 | DD107: -25679 | DE107: 107 | DF107: 2018-01-16 | DG107: -290642 | DH107: 2018-01-16 | DI107: 345706 | DJ107: 2018-01-16 | DK107: -55064 | DL107: 107 | DM107: 2018-01-16 | DN107: -486260 | DO107: 2018-01-16 | DP107: 692935 | DQ107: 2018-01-16 | DR107: -206675 | DS107: 107 | DT107: 2018-01-16 | DU107: 13759 | DV107: 2018-01-16 | DW107: -13718 | DX107: 2018-01-16 | DY107: -41 | DZ107: 107 | EA107: 2018-01-16 | EB107: -89259 | EC107: 2018-01-16 | ED107: 323916 | EE107: 2018-01-16 | EF107: -234657 | EG107: 107 | EH107: 2018-01-16 | EI107: 40266 | EJ107: 2018-01-16 | EK107: 11522 | EL107: 2018-01-16 | EM107: -51788 | EN107: 107 | EO107: 2018-01-16 | EP107: 2572 | EQ107: 2018-01-16 | ER107: -2449 | ES107: 2018-01-16 | ET107: -123 | EU107: 107 | EV107: 2018-01-16 | EW107: 67101 | EX107: 2018-01-16 | EY107: -54654 | EZ107: 2018-01-16 | FA107: -12447 | FB107: 107 | FC107: 2018-01-16 | FD107: -123915 | FE107: 2018-01-16 | FF107: 98969 | FG107: 2018-01-16 | FH107: 24946 | FI107: 107 | FJ107: 2018-01-16 | FK107: 69716 | FL107: 2018-01-16 | FM107: -79216 | FN107: 2018-01-16 | FO107: 9500
AM108: 108 | AN108: 2018-01-09 | AO108: -86714 | AP108: 2018-01-09 | AQ108: 68662 | AR108: 2018-01-09 | AS108: 18052 | AT108: 108 | AU108: 2018-01-09 | AV108: -65433 | AW108: 2018-01-09 | AX108: 97040 | AY108: 2018-01-09 | AZ108: -31607 | BA108: 108 | BB108: 2018-01-09 | BC108: -78378 | BD108: 2018-01-09 | BE108: 80285 | BF108: 2018-01-09 | BG108: -1907 | BH108: 108 | BI108: 2018-01-09 | BJ108: 33026 | BK108: 2018-01-09 | BL108: -38060 | BM108: 2018-01-09 | BN108: 5034 | BO108: 108 | BP108: 2018-01-09 | BQ108: 55666 | BR108: 2018-01-09 | BS108: -69167 | BT108: 2018-01-09 | BU108: 13501 | BV108: 108 | BW108: 2018-01-09 | BX108: 1647 | BY108: 2018-01-09 | BZ108: -4536 | CA108: 2018-01-09 | CB108: 2889 | CC108: 108 | CD108: 2018-01-09 | CE108: -1488 | CF108: 2018-01-09 | CG108: 1294 | CH108: 2018-01-09 | CI108: 194 | CJ108: 108 | CK108: 2018-01-09 | CL108: 1839 | CM108: 2018-01-09 | CN108: -2539 | CO108: 2018-01-09 | CP108: 700 | CQ108: 108 | CR108: 2018-01-09 | CS108: -12976 | CT108: 2018-01-09 | CU108: 12814 | CV108: 2018-01-09 | CW108: 162 | CX108: 108 | CY108: 2018-01-09 | CZ108: -72568 | DA108: 2018-01-09 | DB108: 97613 | DC108: 2018-01-09 | DD108: -25045 | DE108: 108 | DF108: 2018-01-09 | DG108: -267622 | DH108: 2018-01-09 | DI108: 324733 | DJ108: 2018-01-09 | DK108: -57111 | DL108: 108 | DM108: 2018-01-09 | DN108: -443765 | DO108: 2018-01-09 | DP108: 633996 | DQ108: 2018-01-09 | DR108: -190231 | DS108: 108 | DT108: 2018-01-09 | DU108: 12951 | DV108: 2018-01-09 | DW108: -12952 | DX108: 2018-01-09 | DY108: 1 | DZ108: 108 | EA108: 2018-01-09 | EB108: -196853 | EC108: 2018-01-09 | ED108: 437758 | EE108: 2018-01-09 | EF108: -240905 | EG108: 108 | EH108: 2018-01-09 | EI108: 24790 | EJ108: 2018-01-09 | EK108: 29034 | EL108: 2018-01-09 | EM108: -53824 | EN108: 108 | EO108: 2018-01-09 | EP108: 3104 | EQ108: 2018-01-09 | ER108: -2977 | ES108: 2018-01-09 | ET108: -127 | EU108: 108 | EV108: 2018-01-09 | EW108: 66737 | EX108: 2018-01-09 | EY108: -58219 | EZ108: 2018-01-09 | FA108: -8518 | FB108: 108 | FC108: 2018-01-09 | FD108: -106787 | FE108: 2018-01-09 | FF108: 81178 | FG108: 2018-01-09 | FH108: 25609 | FI108: 108 | FJ108: 2018-01-09 | FK108: 66785 | FL108: 2018-01-09 | FM108: -80350 | FN108: 2018-01-09 | FO108: 13565
AM109: 109 | AN109: 2018-01-02 | AO109: -69731 | AP109: 2018-01-02 | AQ109: 51199 | AR109: 2018-01-02 | AS109: 18532 | AT109: 109 | AU109: 2018-01-02 | AV109: -44754 | AW109: 2018-01-02 | AX109: 77954 | AY109: 2018-01-02 | AZ109: -33200 | BA109: 109 | BB109: 2018-01-02 | BC109: -83238 | BD109: 2018-01-02 | BE109: 84887 | BF109: 2018-01-02 | BG109: -1649 | BH109: 109 | BI109: 2018-01-02 | BJ109: 29295 | BK109: 2018-01-02 | BL109: -32244 | BM109: 2018-01-02 | BN109: 2949 | BO109: 109 | BP109: 2018-01-02 | BQ109: 54469 | BR109: 2018-01-02 | BS109: -66851 | BT109: 2018-01-02 | BU109: 12382 | BV109: 109 | BW109: 2018-01-02 | BX109: -5362 | BY109: 2018-01-02 | BZ109: -71 | CA109: 2018-01-02 | CB109: 5433 | CC109: 109 | CD109: 2018-01-02 | CE109: -1079 | CF109: 2018-01-02 | CG109: 905 | CH109: 2018-01-02 | CI109: 174 | CJ109: 109 | CK109: 2018-01-02 | CL109: 1963 | CM109: 2018-01-02 | CN109: -2723 | CO109: 2018-01-02 | CP109: 760 | CQ109: 109 | CR109: 2018-01-02 | CS109: -10895 | CT109: 2018-01-02 | CU109: 10784 | CV109: 2018-01-02 | CW109: 111 | CX109: 109 | CY109: 2018-01-02 | CZ109: -92507 | DA109: 2018-01-02 | DB109: 117371 | DC109: 2018-01-02 | DD109: -24864 | DE109: 109 | DF109: 2018-01-02 | DG109: -237925 | DH109: 2018-01-02 | DI109: 277486 | DJ109: 2018-01-02 | DK109: -39561 | DL109: 109 | DM109: 2018-01-02 | DN109: -439222 | DO109: 2018-01-02 | DP109: 614812 | DQ109: 2018-01-02 | DR109: -175590 | DS109: 109 | DT109: 2018-01-02 | DU109: 12267 | DV109: 2018-01-02 | DW109: -12159 | DX109: 2018-01-02 | DY109: -108 | DZ109: 109 | EA109: 2018-01-02 | EB109: -75840 | EC109: 2018-01-02 | ED109: 292210 | EE109: 2018-01-02 | EF109: -216370 | EG109: 109 | EH109: 2018-01-02 | EI109: 20940 | EJ109: 2018-01-02 | EK109: 21107 | EL109: 2018-01-02 | EM109: -42047 | EN109: 109 | EO109: 2018-01-02 | EP109: 3534 | EQ109: 2018-01-02 | ER109: -3391 | ES109: 2018-01-02 | ET109: -143 | EU109: 109 | EV109: 2018-01-02 | EW109: 83760 | EX109: 2018-01-02 | EY109: -84194 | EZ109: 2018-01-02 | FA109: 434 | FB109: 109 | FC109: 2018-01-02 | FD109: -106207 | FE109: 2018-01-02 | FF109: 81398 | FG109: 2018-01-02 | FH109: 24809 | FI109: 109 | FJ109: 2018-01-02 | FK109: 75522 | FL109: 2018-01-02 | FM109: -87934 | FN109: 2018-01-02 | FO109: 12412
AM110: 110 | AN110: 2017-12-26 | AO110: -74657 | AP110: 2017-12-26 | AQ110: 57446 | AR110: 2017-12-26 | AS110: 17211 | AT110: 110 | AU110: 2017-12-26 | AV110: -23331 | AW110: 2017-12-26 | AX110: 59953 | AY110: 2017-12-26 | AZ110: -36622 | BA110: 110 | BB110: 2017-12-26 | BC110: -94767 | BD110: 2017-12-26 | BE110: 96335 | BF110: 2017-12-26 | BG110: -1568 | BH110: 110 | BI110: 2017-12-26 | BJ110: 26561 | BK110: 2017-12-26 | BL110: -32311 | BM110: 2017-12-26 | BN110: 5750 | BO110: 110 | BP110: 2017-12-26 | BQ110: 64406 | BR110: 2017-12-26 | BS110: -77427 | BT110: 2017-12-26 | BU110: 13021 | BV110: 110 | BW110: 2017-12-26 | BX110: -9976 | BY110: 2017-12-26 | BZ110: 5973 | CA110: 2017-12-26 | CB110: 4003 | CC110: 110 | CD110: 2017-12-26 | CE110: -871 | CF110: 2017-12-26 | CG110: 544 | CH110: 2017-12-26 | CI110: 327 | CJ110: 110 | CK110: 2017-12-26 | CL110: 2440 | CM110: 2017-12-26 | CN110: -2950 | CO110: 2017-12-26 | CP110: 510 | CQ110: 110 | CR110: 2017-12-26 | CS110: -10753 | CT110: 2017-12-26 | CU110: 10684 | CV110: 2017-12-26 | CW110: 69 | CX110: 110 | CY110: 2017-12-26 | CZ110: -60124 | DA110: 2017-12-26 | DB110: 83581 | DC110: 2017-12-26 | DD110: -23457 | DE110: 110 | DF110: 2017-12-26 | DG110: -191429 | DH110: 2017-12-26 | DI110: 236259 | DJ110: 2017-12-26 | DK110: -44830 | DL110: 110 | DM110: 2017-12-26 | DN110: -424315 | DO110: 2017-12-26 | DP110: 604233 | DQ110: 2017-12-26 | DR110: -179918 | DS110: 110 | DT110: 2017-12-26 | DU110: 12768 | DV110: 2017-12-26 | DW110: -12680 | DX110: 2017-12-26 | DY110: -88 | DZ110: 110 | EA110: 2017-12-26 | EB110: -83666 | EC110: 2017-12-26 | ED110: 274926 | EE110: 2017-12-26 | EF110: -191260 | EG110: 110 | EH110: 2017-12-26 | EI110: 4321 | EJ110: 2017-12-26 | EK110: 42421 | EL110: 2017-12-26 | EM110: -46742 | EN110: 110 | EO110: 2017-12-26 | EP110: 2820 | EQ110: 2017-12-26 | ER110: -2736 | ES110: 2017-12-26 | ET110: -84 | EU110: 110 | EV110: 2017-12-26 | EW110: 84751 | EX110: 2017-12-26 | EY110: -71535 | EZ110: 2017-12-26 | FA110: -13216 | FB110: 110 | FC110: 2017-12-26 | FD110: -111310 | FE110: 2017-12-26 | FF110: 78062 | FG110: 2017-12-26 | FH110: 33248 | FI110: 110 | FJ110: 2017-12-26 | FK110: 72172 | FL110: 2017-12-26 | FM110: -82056 | FN110: 2017-12-26 | FO110: 9884
AM111: 111 | AN111: 2017-12-19 | AO111: -92972 | AP111: 2017-12-19 | AQ111: 72774 | AR111: 2017-12-19 | AS111: 20198 | AT111: 111 | AU111: 2017-12-19 | AV111: 10282 | AW111: 2017-12-19 | AX111: 29127 | AY111: 2017-12-19 | AZ111: -39409 | BA111: 111 | BB111: 2017-12-19 | BC111: -98684 | BD111: 2017-12-19 | BE111: 99085 | BF111: 2017-12-19 | BG111: -401 | BH111: 111 | BI111: 2017-12-19 | BJ111: 38485 | BK111: 2017-12-19 | BL111: -43094 | BM111: 2017-12-19 | BN111: 4609 | BO111: 111 | BP111: 2017-12-19 | BQ111: 79356 | BR111: 2017-12-19 | BS111: -94796 | BT111: 2017-12-19 | BU111: 15440 | BV111: 111 | BW111: 2017-12-19 | BX111: -10092 | BY111: 2017-12-19 | BZ111: 7207 | CA111: 2017-12-19 | CB111: 2885 | CC111: 111 | CD111: 2017-12-19 | CE111: -465 | CF111: 2017-12-19 | CG111: 155 | CH111: 2017-12-19 | CI111: 310 | CJ111: 111 | CK111: 2017-12-19 | CL111: 2316 | CM111: 2017-12-19 | CN111: -2945 | CO111: 2017-12-19 | CP111: 629 | CQ111: 111 | CR111: 2017-12-19 | CS111: -10867 | CT111: 2017-12-19 | CU111: 10779 | CV111: 2017-12-19 | CW111: 88 | CX111: 111 | CY111: 2017-12-19 | CZ111: -74962 | DA111: 2017-12-19 | DB111: 101076 | DC111: 2017-12-19 | DD111: -26114 | DE111: 111 | DF111: 2017-12-19 | DG111: -178628 | DH111: 2017-12-19 | DI111: 231597 | DJ111: 2017-12-19 | DK111: -52969 | DL111: 111 | DM111: 2017-12-19 | DN111: -377947 | DO111: 2017-12-19 | DP111: 574966 | DQ111: 2017-12-19 | DR111: -197019 | DS111: 111 | DT111: 2017-12-19 | DU111: 13413 | DV111: 2017-12-19 | DW111: -13352 | DX111: 2017-12-19 | DY111: -61 | DZ111: 111 | EA111: 2017-12-19 | EB111: -44230 | EC111: 2017-12-19 | ED111: 242045 | EE111: 2017-12-19 | EF111: -197815 | EG111: 111 | EH111: 2017-12-19 | EI111: 7445 | EJ111: 2017-12-19 | EK111: 52558 | EL111: 2017-12-19 | EM111: -60003 | EN111: 111 | EO111: 2017-12-19 | EP111: 3954 | EQ111: 2017-12-19 | ER111: -3864 | ES111: 2017-12-19 | ET111: -90 | EU111: 111 | EV111: 2017-12-19 | EW111: 104347 | EX111: 2017-12-19 | EY111: -90448 | EZ111: 2017-12-19 | FA111: -13899 | FB111: 111 | FC111: 2017-12-19 | FD111: -106373 | FE111: 2017-12-19 | FF111: 74882 | FG111: 2017-12-19 | FH111: 31491 | FI111: 111 | FJ111: 2017-12-19 | FK111: 69397 | FL111: 2017-12-19 | FM111: -80641 | FN111: 2017-12-19 | FO111: 11244
AM112: 112 | AN112: 2017-12-12 | AO112: -75849 | AP112: 2017-12-12 | AQ112: 63163 | AR112: 2017-12-12 | AS112: 12686 | AT112: 112 | AU112: 2017-12-12 | AV112: 55245 | AW112: 2017-12-12 | AX112: -14955 | AY112: 2017-12-12 | AZ112: -40290 | BA112: 112 | BB112: 2017-12-12 | BC112: -99863 | BD112: 2017-12-12 | BE112: 100376 | BF112: 2017-12-12 | BG112: -513 | BH112: 112 | BI112: 2017-12-12 | BJ112: 44009 | BK112: 2017-12-12 | BL112: -48342 | BM112: 2017-12-12 | BN112: 4333 | BO112: 112 | BP112: 2017-12-12 | BQ112: 98460 | BR112: 2017-12-12 | BS112: -117506 | BT112: 2017-12-12 | BU112: 19046 | BV112: 112 | BW112: 2017-12-12 | BX112: -13185 | BY112: 2017-12-12 | BZ112: 10601 | CA112: 2017-12-12 | CB112: 2584 | CC112: 112 | CD112: 2017-12-12 | CE112: -230 | CF112: 2017-12-12 | CG112: -106 | CH112: 2017-12-12 | CI112: 336 | CJ112: 112 | CK112: 2017-12-12 | CL112: 2400 | CM112: 2017-12-12 | CN112: -3256 | CO112: 2017-12-12 | CP112: 856 | CQ112: 112 | CR112: 2017-12-12 | CS112: -12169 | CT112: 2017-12-12 | CU112: 12118 | CV112: 2017-12-12 | CW112: 51 | CX112: 112 | CY112: 2017-12-12 | CZ112: -86768 | DA112: 2017-12-12 | DB112: 111022 | DC112: 2017-12-12 | DD112: -24254 | DE112: 112 | DF112: 2017-12-12 | DG112: -170440 | DH112: 2017-12-12 | DI112: 231165 | DJ112: 2017-12-12 | DK112: -60725 | DL112: 112 | DM112: 2017-12-12 | DN112: -324997 | DO112: 2017-12-12 | DP112: 518604 | DQ112: 2017-12-12 | DR112: -193607 | DS112: 112 | DT112: 2017-12-12 | DU112: 16063 | DV112: 2017-12-12 | DW112: -16019 | DX112: 2017-12-12 | DY112: -44 | DZ112: 112 | EA112: 2017-12-12 | EB112: 44741 | EC112: 2017-12-12 | ED112: 160931 | EE112: 2017-12-12 | EF112: -205672 | EG112: 112 | EH112: 2017-12-12 | EI112: 9887 | EJ112: 2017-12-12 | EK112: 53452 | EL112: 2017-12-12 | EM112: -63339 | EN112: 112 | EO112: 2017-12-12 | EP112: 5323 | EQ112: 2017-12-12 | ER112: -5223 | ES112: 2017-12-12 | ET112: -100 | EU112: 112 | EV112: 2017-12-12 | EW112: 100910 | EX112: 2017-12-12 | EY112: -96674 | EZ112: 2017-12-12 | FA112: -4236 | FB112: 112 | FC112: 2017-12-12 | FD112: -106526 | FE112: 2017-12-12 | FF112: 60484 | FG112: 2017-12-12 | FH112: 46042 | FI112: 112 | FJ112: 2017-12-12 | FK112: 72711 | FL112: 2017-12-12 | FM112: -79828 | FN112: 2017-12-12 | FO112: 7117
AM113: 113 | AN113: 2017-12-05 | AO113: -53708 | AP113: 2017-12-05 | AQ113: 48055 | AR113: 2017-12-05 | AS113: 5653 | AT113: 113 | AU113: 2017-12-05 | AV113: 92585 | AW113: 2017-12-05 | AX113: -54772 | AY113: 2017-12-05 | AZ113: -37813 | BA113: 113 | BB113: 2017-12-05 | BC113: -74071 | BD113: 2017-12-05 | BE113: 77044 | BF113: 2017-12-05 | BG113: -2973 | BH113: 113 | BI113: 2017-12-05 | BJ113: 46843 | BK113: 2017-12-05 | BL113: -50874 | BM113: 2017-12-05 | BN113: 4031 | BO113: 113 | BP113: 2017-12-05 | BQ113: 99349 | BR113: 2017-12-05 | BS113: -116478 | BT113: 2017-12-05 | BU113: 17129 | BV113: 113 | BW113: 2017-12-05 | BX113: -5388 | BY113: 2017-12-05 | BZ113: 3132 | CA113: 2017-12-05 | CB113: 2256 | CC113: 113 | CD113: 2017-12-05 | CE113: -322 | CF113: 2017-12-05 | CG113: -48 | CH113: 2017-12-05 | CI113: 370 | CJ113: 113 | CK113: 2017-12-05 | CL113: 2711 | CM113: 2017-12-05 | CN113: -3916 | CO113: 2017-12-05 | CP113: 1205 | CQ113: 113 | CR113: 2017-12-05 | CS113: -12817 | CT113: 2017-12-05 | CU113: 12718 | CV113: 2017-12-05 | CW113: 99 | CX113: 113 | CY113: 2017-12-05 | CZ113: -92386 | DA113: 2017-12-05 | DB113: 120975 | DC113: 2017-12-05 | DD113: -28589 | DE113: 113 | DF113: 2017-12-05 | DG113: -189128 | DH113: 2017-12-05 | DI113: 237119 | DJ113: 2017-12-05 | DK113: -47991 | DL113: 113 | DM113: 2017-12-05 | DN113: -371488 | DO113: 2017-12-05 | DP113: 551341 | DQ113: 2017-12-05 | DR113: -179853 | DS113: 113 | DT113: 2017-12-05 | DU113: 15447 | DV113: 2017-12-05 | DW113: -15376 | DX113: 2017-12-05 | DY113: -71 | DZ113: 113 | EA113: 2017-12-05 | EB113: 14345 | EC113: 2017-12-05 | ED113: 197975 | EE113: 2017-12-05 | EF113: -212320 | EG113: 113 | EH113: 2017-12-05 | EI113: -6050 | EJ113: 2017-12-05 | EK113: 69682 | EL113: 2017-12-05 | EM113: -63632 | EN113: 113 | EO113: 2017-12-05 | EP113: 7327 | EQ113: 2017-12-05 | ER113: -7185 | ES113: 2017-12-05 | ET113: -142 | EU113: 113 | EV113: 2017-12-05 | EW113: 74542 | EX113: 2017-12-05 | EY113: -76297 | EZ113: 2017-12-05 | FA113: 1755 | FB113: 113 | FC113: 2017-12-05 | FD113: -101592 | FE113: 2017-12-05 | FF113: 66028 | FG113: 2017-12-05 | FH113: 35564 | FI113: 113 | FJ113: 2017-12-05 | FK113: 72151 | FL113: 2017-12-05 | FM113: -77419 | FN113: 2017-12-05 | FO113: 5268
AM114: 114 | AN114: 2017-11-28 | AO114: -91852 | AP114: 2017-11-28 | AQ114: 83304 | AR114: 2017-11-28 | AS114: 8548 | AT114: 114 | AU114: 2017-11-28 | AV114: 62873 | AW114: 2017-11-28 | AX114: -25518 | AY114: 2017-11-28 | AZ114: -37355 | BA114: 114 | BB114: 2017-11-28 | BC114: -82289 | BD114: 2017-11-28 | BE114: 83012 | BF114: 2017-11-28 | BG114: -723 | BH114: 114 | BI114: 2017-11-28 | BJ114: 52237 | BK114: 2017-11-28 | BL114: -55055 | BM114: 2017-11-28 | BN114: 2818 | BO114: 114 | BP114: 2017-11-28 | BQ114: 71255 | BR114: 2017-11-28 | BS114: -83591 | BT114: 2017-11-28 | BU114: 12336 | BV114: 114 | BW114: 2017-11-28 | BX114: -10116 | BY114: 2017-11-28 | BZ114: 8820 | CA114: 2017-11-28 | CB114: 1296 | CC114: 114 | CD114: 2017-11-28 | CE114: -736 | CF114: 2017-11-28 | CG114: 432 | CH114: 2017-11-28 | CI114: 304 | CJ114: 114 | CK114: 2017-11-28 | CL114: 2877 | CM114: 2017-11-28 | CN114: -4201 | CO114: 2017-11-28 | CP114: 1324 | CQ114: 114 | CR114: 2017-11-28 | CS114: -14428 | CT114: 2017-11-28 | CU114: 14305 | CV114: 2017-11-28 | CW114: 123 | CX114: 114 | CY114: 2017-11-28 | CZ114: -89888 | DA114: 2017-11-28 | DB114: 115161 | DC114: 2017-11-28 | DD114: -25273 | DE114: 114 | DF114: 2017-11-28 | DG114: -246433 | DH114: 2017-11-28 | DI114: 274288 | DJ114: 2017-11-28 | DK114: -27855 | DL114: 114 | DM114: 2017-11-28 | DN114: -261753 | DO114: 2017-11-28 | DP114: 426470 | DQ114: 2017-11-28 | DR114: -164717 | DS114: 114 | DT114: 2017-11-28 | DU114: 15379 | DV114: 2017-11-28 | DW114: -15246 | DX114: 2017-11-28 | DY114: -133 | DZ114: 114 | EA114: 2017-11-28 | EB114: 123936 | EC114: 2017-11-28 | ED114: 86636 | EE114: 2017-11-28 | EF114: -210572 | EG114: 114 | EH114: 2017-11-28 | EI114: -21853 | EJ114: 2017-11-28 | EK114: 92098 | EL114: 2017-11-28 | EM114: -70245 | EN114: 114 | EO114: 2017-11-28 | EP114: 7059 | EQ114: 2017-11-28 | ER114: -6994 | ES114: 2017-11-28 | ET114: -65 | EU114: 114 | EV114: 2017-11-28 | EW114: 63968 | EX114: 2017-11-28 | EY114: -71202 | EZ114: 2017-11-28 | FA114: 7234 | FB114: 114 | FC114: 2017-11-28 | FD114: -96953 | FE114: 2017-11-28 | FF114: 51053 | FG114: 2017-11-28 | FH114: 45900 | FI114: 114 | FJ114: 2017-11-28 | FK114: 64944 | FL114: 2017-11-28 | FM114: -70504 | FN114: 2017-11-28 | FO114: 5560
AM115: 115 | AN115: 2017-11-21 | AO115: -92637 | AP115: 2017-11-21 | AQ115: 86238 | AR115: 2017-11-21 | AS115: 6399 | AT115: 115 | AU115: 2017-11-21 | AV115: 52243 | AW115: 2017-11-21 | AX115: -19452 | AY115: 2017-11-21 | AZ115: -32791 | BA115: 115 | BB115: 2017-11-21 | BC115: -66825 | BD115: 2017-11-21 | BE115: 69296 | BF115: 2017-11-21 | BG115: -2471 | BH115: 115 | BI115: 2017-11-21 | BJ115: 71711 | BK115: 2017-11-21 | BL115: -78061 | BM115: 2017-11-21 | BN115: 6350 | BO115: 115 | BP115: 2017-11-21 | BQ115: 48943 | BR115: 2017-11-21 | BS115: -60437 | BT115: 2017-11-21 | BU115: 11494 | BV115: 115 | BW115: 2017-11-21 | BX115: -4610 | BY115: 2017-11-21 | BZ115: 3221 | CA115: 2017-11-21 | CB115: 1389 | CC115: 115 | CD115: 2017-11-21 | CE115: -812 | CF115: 2017-11-21 | CG115: 622 | CH115: 2017-11-21 | CI115: 190 | CJ115: 115 | CK115: 2017-11-21 | CL115: 2638 | CM115: 2017-11-21 | CN115: -3826 | CO115: 2017-11-21 | CP115: 1188 | CQ115: 115 | CR115: 2017-11-21 | CS115: -14412 | CT115: 2017-11-21 | CU115: 14304 | CV115: 2017-11-21 | CW115: 108 | CX115: 115 | CY115: 2017-11-21 | CZ115: -100898 | DA115: 2017-11-21 | DB115: 126579 | DC115: 2017-11-21 | DD115: -25681 | DE115: 115 | DF115: 2017-11-21 | DG115: -227294 | DH115: 2017-11-21 | DI115: 277560 | DJ115: 2017-11-21 | DK115: -50266 | DL115: 115 | DM115: 2017-11-21 | DN115: -311268 | DO115: 2017-11-21 | DP115: 484509 | DQ115: 2017-11-21 | DR115: -173241 | DS115: 115 | DT115: 2017-11-21 | DU115: 15402 | DV115: 2017-11-21 | DW115: -15349 | DX115: 2017-11-21 | DY115: -53 | DZ115: 115 | EA115: 2017-11-21 | EB115: 111080 | EC115: 2017-11-21 | ED115: 117453 | EE115: 2017-11-21 | EF115: -228533 | EG115: 115 | EH115: 2017-11-21 | EI115: -5074 | EJ115: 2017-11-21 | EK115: 80343 | EL115: 2017-11-21 | EM115: -75269 | EN115: 115 | EO115: 2017-11-21 | EP115: 7575 | EQ115: 2017-11-21 | ER115: -7460 | ES115: 2017-11-21 | ET115: -115 | EU115: 115 | EV115: 2017-11-21 | EW115: 59705 | EX115: 2017-11-21 | EY115: -66574 | EZ115: 2017-11-21 | FA115: 6869 | FB115: 115 | FC115: 2017-11-21 | FD115: -101680 | FE115: 2017-11-21 | FF115: 75273 | FG115: 2017-11-21 | FH115: 26407 | FI115: 115 | FJ115: 2017-11-21 | FK115: 71749 | FL115: 2017-11-21 | FM115: -77761 | FN115: 2017-11-21 | FO115: 6012
AM116: 116 | AN116: 2017-11-14 | AO116: -125113 | AP116: 2017-11-14 | AQ116: 121614 | AR116: 2017-11-14 | AS116: 3499 | AT116: 116 | AU116: 2017-11-14 | AV116: 51887 | AW116: 2017-11-14 | AX116: -14696 | AY116: 2017-11-14 | AZ116: -37191 | BA116: 116 | BB116: 2017-11-14 | BC116: -66771 | BD116: 2017-11-14 | BE116: 69612 | BF116: 2017-11-14 | BG116: -2841 | BH116: 116 | BI116: 2017-11-14 | BJ116: 76034 | BK116: 2017-11-14 | BL116: -85184 | BM116: 2017-11-14 | BN116: 9150 | BO116: 116 | BP116: 2017-11-14 | BQ116: 41930 | BR116: 2017-11-14 | BS116: -49531 | BT116: 2017-11-14 | BU116: 7601 | BV116: 116 | BW116: 2017-11-14 | BX116: 4547 | BY116: 2017-11-14 | BZ116: -3946 | CA116: 2017-11-14 | CB116: -601 | CC116: 116 | CD116: 2017-11-14 | CE116: -1414 | CF116: 2017-11-14 | CG116: 1108 | CH116: 2017-11-14 | CI116: 306 | CJ116: 116 | CK116: 2017-11-14 | CL116: 2731 | CM116: 2017-11-14 | CN116: -3813 | CO116: 2017-11-14 | CP116: 1082 | CQ116: 116 | CR116: 2017-11-14 | CS116: -14228 | CT116: 2017-11-14 | CU116: 14267 | CV116: 2017-11-14 | CW116: -39 | CX116: 116 | CY116: 2017-11-14 | CZ116: -105076 | DA116: 2017-11-14 | DB116: 137284 | DC116: 2017-11-14 | DD116: -32208 | DE116: 116 | DF116: 2017-11-14 | DG116: -198648 | DH116: 2017-11-14 | DI116: 250086 | DJ116: 2017-11-14 | DK116: -51438 | DL116: 116 | DM116: 2017-11-14 | DN116: -235744 | DO116: 2017-11-14 | DP116: 396682 | DQ116: 2017-11-14 | DR116: -160938 | DS116: 116 | DT116: 2017-11-14 | DU116: 15797 | DV116: 2017-11-14 | DW116: -15743 | DX116: 2017-11-14 | DY116: -54 | DZ116: 116 | EA116: 2017-11-14 | EB116: 74836 | EC116: 2017-11-14 | ED116: 133459 | EE116: 2017-11-14 | EF116: -208295 | EG116: 116 | EH116: 2017-11-14 | EI116: -16924 | EJ116: 2017-11-14 | EK116: 73339 | EL116: 2017-11-14 | EM116: -56415 | EN116: 116 | EO116: 2017-11-14 | EP116: 8900 | EQ116: 2017-11-14 | ER116: -8835 | ES116: 2017-11-14 | ET116: -65 | EU116: 116 | EV116: 2017-11-14 | EW116: 45151 | EX116: 2017-11-14 | EY116: -31358 | EZ116: 2017-11-14 | FA116: -13793 | FB116: 116 | FC116: 2017-11-14 | FD116: -102330 | FE116: 2017-11-14 | FF116: 80563 | FG116: 2017-11-14 | FH116: 21767 | FI116: 116 | FJ116: 2017-11-14 | FK116: 80300 | FL116: 2017-11-14 | FM116: -86764 | FN116: 2017-11-14 | FO116: 6464
AM117: 117 | AN117: 2017-11-07 | AO117: -87000 | AP117: 2017-11-07 | AQ117: 74855 | AR117: 2017-11-07 | AS117: 12145 | AT117: 117 | AU117: 2017-11-07 | AV117: 70814 | AW117: 2017-11-07 | AX117: -37475 | AY117: 2017-11-07 | AZ117: -33339 | BA117: 117 | BB117: 2017-11-07 | BC117: -79046 | BD117: 2017-11-07 | BE117: 81604 | BF117: 2017-11-07 | BG117: -2558 | BH117: 117 | BI117: 2017-11-07 | BJ117: 73743 | BK117: 2017-11-07 | BL117: -81160 | BM117: 2017-11-07 | BN117: 7417 | BO117: 117 | BP117: 2017-11-07 | BQ117: 38725 | BR117: 2017-11-07 | BS117: -47194 | BT117: 2017-11-07 | BU117: 8469 | BV117: 117 | BW117: 2017-11-07 | BX117: -5648 | BY117: 2017-11-07 | BZ117: 7125 | CA117: 2017-11-07 | CB117: -1477 | CC117: 117 | CD117: 2017-11-07 | CE117: -1077 | CF117: 2017-11-07 | CG117: 658 | CH117: 2017-11-07 | CI117: 419 | CJ117: 117 | CK117: 2017-11-07 | CL117: 2447 | CM117: 2017-11-07 | CN117: -3838 | CO117: 2017-11-07 | CP117: 1391 | CQ117: 117 | CR117: 2017-11-07 | CS117: -14414 | CT117: 2017-11-07 | CU117: 14312 | CV117: 2017-11-07 | CW117: 102 | CX117: 117 | CY117: 2017-11-07 | CZ117: -94061 | DA117: 2017-11-07 | DB117: 132542 | DC117: 2017-11-07 | DD117: -38481 | DE117: 117 | DF117: 2017-11-07 | DG117: -174905 | DH117: 2017-11-07 | DI117: 225029 | DJ117: 2017-11-07 | DK117: -50124 | DL117: 117 | DM117: 2017-11-07 | DN117: -330205 | DO117: 2017-11-07 | DP117: 499693 | DQ117: 2017-11-07 | DR117: -169488 | DS117: 117 | DT117: 2017-11-07 | DU117: 15270 | DV117: 2017-11-07 | DW117: -15198 | DX117: 2017-11-07 | DY117: -72 | DZ117: 117 | EA117: 2017-11-07 | EB117: 50063 | EC117: 2017-11-07 | ED117: 195713 | EE117: 2017-11-07 | EF117: -245776 | EG117: 117 | EH117: 2017-11-07 | EI117: -4752 | EJ117: 2017-11-07 | EK117: 62411 | EL117: 2017-11-07 | EM117: -57659 | EN117: 117 | EO117: 2017-11-07 | EP117: 9198 | EQ117: 2017-11-07 | ER117: -9093 | ES117: 2017-11-07 | ET117: -105 | EU117: 117 | EV117: 2017-11-07 | EW117: 39365 | EX117: 2017-11-07 | EY117: -31516 | EZ117: 2017-11-07 | FA117: -7849 | FB117: 117 | FC117: 2017-11-07 | FD117: -110875 | FE117: 2017-11-07 | FF117: 87435 | FG117: 2017-11-07 | FH117: 23440 | FI117: 117 | FJ117: 2017-11-07 | FK117: 76088 | FL117: 2017-11-07 | FM117: -81786 | FN117: 2017-11-07 | FO117: 5698
AM118: 118 | AN118: 2017-10-31 | AO118: -91759 | AP118: 2017-10-31 | AQ118: 81210 | AR118: 2017-10-31 | AS118: 10549 | AT118: 118 | AU118: 2017-10-31 | AV118: 67872 | AW118: 2017-10-31 | AX118: -31638 | AY118: 2017-10-31 | AZ118: -36234 | BA118: 118 | BB118: 2017-10-31 | BC118: -71243 | BD118: 2017-10-31 | BE118: 70200 | BF118: 2017-10-31 | BG118: 1043 | BH118: 118 | BI118: 2017-10-31 | BJ118: 71663 | BK118: 2017-10-31 | BL118: -79949 | BM118: 2017-10-31 | BN118: 8286 | BO118: 118 | BP118: 2017-10-31 | BQ118: 37804 | BR118: 2017-10-31 | BS118: -46545 | BT118: 2017-10-31 | BU118: 8741 | BV118: 118 | BW118: 2017-10-31 | BX118: -4330 | BY118: 2017-10-31 | BZ118: 5851 | CA118: 2017-10-31 | CB118: -1521 | CC118: 118 | CD118: 2017-10-31 | CE118: -321 | CF118: 2017-10-31 | CG118: -6 | CH118: 2017-10-31 | CI118: 327 | CJ118: 118 | CK118: 2017-10-31 | CL118: 2003 | CM118: 2017-10-31 | CN118: -3561 | CO118: 2017-10-31 | CP118: 1558 | CQ118: 118 | CR118: 2017-10-31 | CS118: -14728 | CT118: 2017-10-31 | CU118: 14648 | CV118: 2017-10-31 | CW118: 80 | CX118: 118 | CY118: 2017-10-31 | CZ118: -29859 | DA118: 2017-10-31 | DB118: 68172 | DC118: 2017-10-31 | DD118: -38313 | DE118: 118 | DF118: 2017-10-31 | DG118: -239716 | DH118: 2017-10-31 | DI118: 284881 | DJ118: 2017-10-31 | DK118: -45165 | DL118: 118 | DM118: 2017-10-31 | DN118: -469845 | DO118: 2017-10-31 | DP118: 650346 | DQ118: 2017-10-31 | DR118: -180501 | DS118: 118 | DT118: 2017-10-31 | DU118: 15325 | DV118: 2017-10-31 | DW118: -15224 | DX118: 2017-10-31 | DY118: -101 | DZ118: 118 | EA118: 2017-10-31 | EB118: 2724 | EC118: 2017-10-31 | ED118: 255073 | EE118: 2017-10-31 | EF118: -257797 | EG118: 118 | EH118: 2017-10-31 | EI118: -5420 | EJ118: 2017-10-31 | EK118: 70868 | EL118: 2017-10-31 | EM118: -65448 | EN118: 118 | EO118: 2017-10-31 | EP118: 9051 | EQ118: 2017-10-31 | ER118: -8933 | ES118: 2017-10-31 | ET118: -118 | EU118: 118 | EV118: 2017-10-31 | EW118: 12673 | EX118: 2017-10-31 | EY118: 4495 | EZ118: 2017-10-31 | FA118: -17168 | FB118: 118 | FC118: 2017-10-31 | FD118: -104107 | FE118: 2017-10-31 | FF118: 98930 | FG118: 2017-10-31 | FH118: 5177 | FI118: 118 | FJ118: 2017-10-31 | FK118: 80902 | FL118: 2017-10-31 | FM118: -85776 | FN118: 2017-10-31 | FO118: 4874
AM119: 119 | AN119: 2017-10-24 | AO119: -70556 | AP119: 2017-10-24 | AQ119: 60139 | AR119: 2017-10-24 | AS119: 10417 | AT119: 119 | AU119: 2017-10-24 | AV119: 56493 | AW119: 2017-10-24 | AX119: -19533 | AY119: 2017-10-24 | AZ119: -36960 | BA119: 119 | BB119: 2017-10-24 | BC119: -32903 | BD119: 2017-10-24 | BE119: 39074 | BF119: 2017-10-24 | BG119: -6171 | BH119: 119 | BI119: 2017-10-24 | BJ119: 69865 | BK119: 2017-10-24 | BL119: -76293 | BM119: 2017-10-24 | BN119: 6428 | BO119: 119 | BP119: 2017-10-24 | BQ119: 44118 | BR119: 2017-10-24 | BS119: -53515 | BT119: 2017-10-24 | BU119: 9397 | BV119: 119 | BW119: 2017-10-24 | BX119: 4771 | BY119: 2017-10-24 | BZ119: -4821 | CA119: 2017-10-24 | CB119: 50 | CC119: 119 | CD119: 2017-10-24 | CE119: 554 | CF119: 2017-10-24 | CG119: -1358 | CH119: 2017-10-24 | CI119: 804 | CJ119: 119 | CK119: 2017-10-24 | CL119: 1748 | CM119: 2017-10-24 | CN119: -3217 | CO119: 2017-10-24 | CP119: 1469 | CQ119: 119 | CR119: 2017-10-24 | CS119: -14738 | CT119: 2017-10-24 | CU119: 14664 | CV119: 2017-10-24 | CW119: 74 | CX119: 119 | CY119: 2017-10-24 | CZ119: -34318 | DA119: 2017-10-24 | DB119: 72275 | DC119: 2017-10-24 | DD119: -37957 | DE119: 119 | DF119: 2017-10-24 | DG119: -295748 | DH119: 2017-10-24 | DI119: 339387 | DJ119: 2017-10-24 | DK119: -43639 | DL119: 119 | DM119: 2017-10-24 | DN119: -385959 | DO119: 2017-10-24 | DP119: 522335 | DQ119: 2017-10-24 | DR119: -136376 | DS119: 119 | DT119: 2017-10-24 | DU119: 13252 | DV119: 2017-10-24 | DW119: -13177 | DX119: 2017-10-24 | DY119: -75 | DZ119: 119 | EA119: 2017-10-24 | EB119: 153597 | EC119: 2017-10-24 | ED119: 85298 | EE119: 2017-10-24 | EF119: -238895 | EG119: 119 | EH119: 2017-10-24 | EI119: 179 | EJ119: 2017-10-24 | EK119: 51821 | EL119: 2017-10-24 | EM119: -52000 | EN119: 119 | EO119: 2017-10-24 | EP119: 9525 | EQ119: 2017-10-24 | ER119: -9437 | ES119: 2017-10-24 | ET119: -88 | EU119: 119 | EV119: 2017-10-24 | EW119: 38698 | EX119: 2017-10-24 | EY119: -13694 | EZ119: 2017-10-24 | FA119: -25004 | FB119: 119 | FC119: 2017-10-24 | FD119: -100611 | FE119: 2017-10-24 | FF119: 86735 | FG119: 2017-10-24 | FH119: 13876 | FI119: 119 | FJ119: 2017-10-24 | FK119: 80481 | FL119: 2017-10-24 | FM119: -80919 | FN119: 2017-10-24 | FO119: 438
AM120: 120 | AN120: 2017-10-17 | AO120: -64177 | AP120: 2017-10-17 | AQ120: 47983 | AR120: 2017-10-17 | AS120: 16194 | AT120: 120 | AU120: 2017-10-17 | AV120: 81884 | AW120: 2017-10-17 | AX120: -42145 | AY120: 2017-10-17 | AZ120: -39739 | BA120: 120 | BB120: 2017-10-17 | BC120: -31614 | BD120: 2017-10-17 | BE120: 37707 | BF120: 2017-10-17 | BG120: -6093 | BH120: 120 | BI120: 2017-10-17 | BJ120: 65498 | BK120: 2017-10-17 | BL120: -68139 | BM120: 2017-10-17 | BN120: 2641 | BO120: 120 | BP120: 2017-10-17 | BQ120: 43616 | BR120: 2017-10-17 | BS120: -58383 | BT120: 2017-10-17 | BU120: 14767 | BV120: 120 | BW120: 2017-10-17 | BX120: 10173 | BY120: 2017-10-17 | BZ120: -7932 | CA120: 2017-10-17 | CB120: -2241 | CC120: 120 | CD120: 2017-10-17 | CE120: 389 | CF120: 2017-10-17 | CG120: -1532 | CH120: 2017-10-17 | CI120: 1143 | CJ120: 120 | CK120: 2017-10-17 | CL120: 1670 | CM120: 2017-10-17 | CN120: -3087 | CO120: 2017-10-17 | CP120: 1417 | CQ120: 120 | CR120: 2017-10-17 | CS120: -14724 | CT120: 2017-10-17 | CU120: 14652 | CV120: 2017-10-17 | CW120: 72 | CX120: 120 | CY120: 2017-10-17 | CZ120: -61761 | DA120: 2017-10-17 | DB120: 92842 | DC120: 2017-10-17 | DD120: -31081 | DE120: 120 | DF120: 2017-10-17 | DG120: -312453 | DH120: 2017-10-17 | DI120: 352835 | DJ120: 2017-10-17 | DK120: -40382 | DL120: 120 | DM120: 2017-10-17 | DN120: -445579 | DO120: 2017-10-17 | DP120: 598923 | DQ120: 2017-10-17 | DR120: -153344 | DS120: 120 | DT120: 2017-10-17 | DU120: 11712 | DV120: 2017-10-17 | DW120: -11683 | DX120: 2017-10-17 | DY120: -29 | DZ120: 120 | EA120: 2017-10-17 | EB120: 106291 | EC120: 2017-10-17 | ED120: 104546 | EE120: 2017-10-17 | EF120: -210837 | EG120: 120 | EH120: 2017-10-17 | EI120: -11368 | EJ120: 2017-10-17 | EK120: 64402 | EL120: 2017-10-17 | EM120: -53034 | EN120: 120 | EO120: 2017-10-17 | EP120: 9977 | EQ120: 2017-10-17 | ER120: -9937 | ES120: 2017-10-17 | ET120: -40 | EU120: 120 | EV120: 2017-10-17 | EW120: 50975 | EX120: 2017-10-17 | EY120: -40188 | EZ120: 2017-10-17 | FA120: -10787 | FB120: 120 | FC120: 2017-10-17 | FD120: -92177 | FE120: 2017-10-17 | FF120: 72563 | FG120: 2017-10-17 | FH120: 19614 | FI120: 120 | FJ120: 2017-10-17 | FK120: 79768 | FL120: 2017-10-17 | FM120: -81754 | FN120: 2017-10-17 | FO120: 1986
AM121: 121 | AN121: 2017-10-10 | AO121: -61660 | AP121: 2017-10-10 | AQ121: 42145 | AR121: 2017-10-10 | AS121: 19515 | AT121: 121 | AU121: 2017-10-10 | AV121: 44243 | AW121: 2017-10-10 | AX121: -12328 | AY121: 2017-10-10 | AZ121: -31915 | BA121: 121 | BB121: 2017-10-10 | BC121: -24055 | BD121: 2017-10-10 | BE121: 31857 | BF121: 2017-10-10 | BG121: -7802 | BH121: 121 | BI121: 2017-10-10 | BJ121: 59091 | BK121: 2017-10-10 | BL121: -62872 | BM121: 2017-10-10 | BN121: 3781 | BO121: 121 | BP121: 2017-10-10 | BQ121: 33684 | BR121: 2017-10-10 | BS121: -46745 | BT121: 2017-10-10 | BU121: 13061 | BV121: 121 | BW121: 2017-10-10 | BX121: 15814 | BY121: 2017-10-10 | BZ121: -14212 | CA121: 2017-10-10 | CB121: -1602 | CC121: 121 | CD121: 2017-10-10 | CE121: 557 | CF121: 2017-10-10 | CG121: -1384 | CH121: 2017-10-10 | CI121: 827 | CJ121: 121 | CK121: 2017-10-10 | CL121: 1151 | CM121: 2017-10-10 | CN121: -2615 | CO121: 2017-10-10 | CP121: 1464 | CQ121: 121 | CR121: 2017-10-10 | CS121: -14769 | CT121: 2017-10-10 | CU121: 14748 | CV121: 2017-10-10 | CW121: 21 | CX121: 121 | CY121: 2017-10-10 | CZ121: -124958 | DA121: 2017-10-10 | DB121: 160284 | DC121: 2017-10-10 | DD121: -35326 | DE121: 121 | DF121: 2017-10-10 | DG121: -251044 | DH121: 2017-10-10 | DI121: 293921 | DJ121: 2017-10-10 | DK121: -42877 | DL121: 121 | DM121: 2017-10-10 | DN121: -301585 | DO121: 2017-10-10 | DP121: 428928 | DQ121: 2017-10-10 | DR121: -127343 | DS121: 121 | DT121: 2017-10-10 | DU121: 11257 | DV121: 2017-10-10 | DW121: -11255 | DX121: 2017-10-10 | DY121: -2 | DZ121: 121 | EA121: 2017-10-10 | EB121: 192606 | EC121: 2017-10-10 | ED121: 14705 | EE121: 2017-10-10 | EF121: -207311 | EG121: 121 | EH121: 2017-10-10 | EI121: 15407 | EJ121: 2017-10-10 | EK121: 41052 | EL121: 2017-10-10 | EM121: -56459 | EN121: 121 | EO121: 2017-10-10 | EP121: 8513 | EQ121: 2017-10-10 | ER121: -8502 | ES121: 2017-10-10 | ET121: -11 | EU121: 121 | EV121: 2017-10-10 | EW121: 27573 | EX121: 2017-10-10 | EY121: -14730 | EZ121: 2017-10-10 | FA121: -12843 | FB121: 121 | FC121: 2017-10-10 | FD121: -92429 | FE121: 2017-10-10 | FF121: 82414 | FG121: 2017-10-10 | FH121: 10015 | FI121: 121 | FJ121: 2017-10-10 | FK121: 81653 | FL121: 2017-10-10 | FM121: -84606 | FN121: 2017-10-10 | FO121: 2953
AM122: 122 | AN122: 2017-10-03 | AO122: -47103 | AP122: 2017-10-03 | AQ122: 29074 | AR122: 2017-10-03 | AS122: 18029 | AT122: 122 | AU122: 2017-10-03 | AV122: 38134 | AW122: 2017-10-03 | AX122: -5040 | AY122: 2017-10-03 | AZ122: -33094 | BA122: 122 | BB122: 2017-10-03 | BC122: -19142 | BD122: 2017-10-03 | BE122: 27314 | BF122: 2017-10-03 | BG122: -8172 | BH122: 122 | BI122: 2017-10-03 | BJ122: 61598 | BK122: 2017-10-03 | BL122: -65336 | BM122: 2017-10-03 | BN122: 3738 | BO122: 122 | BP122: 2017-10-03 | BQ122: 24855 | BR122: 2017-10-03 | BS122: -36693 | BT122: 2017-10-03 | BU122: 11838 | BV122: 122 | BW122: 2017-10-03 | BX122: 24488 | BY122: 2017-10-03 | BZ122: -23120 | CA122: 2017-10-03 | CB122: -1368 | CC122: 122 | CD122: 2017-10-03 | CE122: 672 | CF122: 2017-10-03 | CG122: -1643 | CH122: 2017-10-03 | CI122: 971 | CJ122: 122 | CK122: 2017-10-03 | CL122: 1151 | CM122: 2017-10-03 | CN122: -2577 | CO122: 2017-10-03 | CP122: 1426 | CQ122: 122 | CR122: 2017-10-03 | CS122: -15494 | CT122: 2017-10-03 | CU122: 15492 | CV122: 2017-10-03 | CW122: 2 | CX122: 122 | CY122: 2017-10-03 | CZ122: -145686 | DA122: 2017-10-03 | DB122: 180794 | DC122: 2017-10-03 | DD122: -35108 | DE122: 122 | DF122: 2017-10-03 | DG122: -226840 | DH122: 2017-10-03 | DI122: 268939 | DJ122: 2017-10-03 | DK122: -42099 | DL122: 122 | DM122: 2017-10-03 | DN122: -283799 | DO122: 2017-10-03 | DP122: 390061 | DQ122: 2017-10-03 | DR122: -106262 | DS122: 122 | DT122: 2017-10-03 | DU122: 10284 | DV122: 2017-10-03 | DW122: -10297 | DX122: 2017-10-03 | DY122: 13 | DZ122: 122 | EA122: 2017-10-03 | EB122: 232156 | EC122: 2017-10-03 | ED122: -48466 | EE122: 2017-10-03 | EF122: -183690 | EG122: 122 | EH122: 2017-10-03 | EI122: 21796 | EJ122: 2017-10-03 | EK122: 27058 | EL122: 2017-10-03 | EM122: -48854 | EN122: 122 | EO122: 2017-10-03 | EP122: 8042 | EQ122: 2017-10-03 | ER122: -8061 | ES122: 2017-10-03 | ET122: 19 | EU122: 122 | EV122: 2017-10-03 | EW122: 14771 | EX122: 2017-10-03 | EY122: -2405 | EZ122: 2017-10-03 | FA122: -12366 | FB122: 122 | FC122: 2017-10-03 | FD122: -83838 | FE122: 2017-10-03 | FF122: 71675 | FG122: 2017-10-03 | FH122: 12163 | FI122: 122 | FJ122: 2017-10-03 | FK122: 85884 | FL122: 2017-10-03 | FM122: -86854 | FN122: 2017-10-03 | FO122: 970
AM123: 123 | AN123: 2017-09-26 | AO123: -32927 | AP123: 2017-09-26 | AQ123: 10379 | AR123: 2017-09-26 | AS123: 22548 | AT123: 123 | AU123: 2017-09-26 | AV123: 34028 | AW123: 2017-09-26 | AX123: -69 | AY123: 2017-09-26 | AZ123: -33959 | BA123: 123 | BB123: 2017-09-26 | BC123: -23377 | BD123: 2017-09-26 | BE123: 29706 | BF123: 2017-09-26 | BG123: -6329 | BH123: 123 | BI123: 2017-09-26 | BJ123: 98372 | BK123: 2017-09-26 | BL123: -105939 | BM123: 2017-09-26 | BN123: 7567 | BO123: 123 | BP123: 2017-09-26 | BQ123: 21503 | BR123: 2017-09-26 | BS123: -32392 | BT123: 2017-09-26 | BU123: 10889 | BV123: 123 | BW123: 2017-09-26 | BX123: 27295 | BY123: 2017-09-26 | BZ123: -27548 | CA123: 2017-09-26 | CB123: 253 | CC123: 123 | CD123: 2017-09-26 | CE123: 1220 | CF123: 2017-09-26 | CG123: -2169 | CH123: 2017-09-26 | CI123: 949 | CJ123: 123 | CK123: 2017-09-26 | CL123: 1119 | CM123: 2017-09-26 | CN123: -2552 | CO123: 2017-09-26 | CP123: 1433 | CQ123: 123 | CR123: 2017-09-26 | CS123: -14922 | CT123: 2017-09-26 | CU123: 14875 | CV123: 2017-09-26 | CW123: 47 | CX123: 123 | CY123: 2017-09-26 | CZ123: -141411 | DA123: 2017-09-26 | DB123: 178962 | DC123: 2017-09-26 | DD123: -37551 | DE123: 123 | DF123: 2017-09-26 | DG123: -182897 | DH123: 2017-09-26 | DI123: 214401 | DJ123: 2017-09-26 | DK123: -31504 | DL123: 123 | DM123: 2017-09-26 | DN123: -228274 | DO123: 2017-09-26 | DP123: 332534 | DQ123: 2017-09-26 | DR123: -104260 | DS123: 123 | DT123: 2017-09-26 | DU123: 10103 | DV123: 2017-09-26 | DW123: -10149 | DX123: 2017-09-26 | DY123: 46 | DZ123: 123 | EA123: 2017-09-26 | EB123: 256626 | EC123: 2017-09-26 | ED123: -121033 | EE123: 2017-09-26 | EF123: -135593 | EG123: 123 | EH123: 2017-09-26 | EI123: 20596 | EJ123: 2017-09-26 | EK123: 25349 | EL123: 2017-09-26 | EM123: -45945 | EN123: 123 | EO123: 2017-09-26 | EP123: 7905 | EQ123: 2017-09-26 | ER123: -7882 | ES123: 2017-09-26 | ET123: -23 | EU123: 123 | EV123: 2017-09-26 | EW123: 52910 | EX123: 2017-09-26 | EY123: -53148 | EZ123: 2017-09-26 | FA123: 238 | FB123: 123 | FC123: 2017-09-26 | FD123: -98728 | FE123: 2017-09-26 | FF123: 74229 | FG123: 2017-09-26 | FH123: 24499 | FI123: 123 | FJ123: 2017-09-26 | FK123: 95721 | FL123: 2017-09-26 | FM123: -94974 | FN123: 2017-09-26 | FO123: -747
AM124: 124 | AN124: 2017-09-19 | AO124: -38025 | AP124: 2017-09-19 | AQ124: 18850 | AR124: 2017-09-19 | AS124: 19175 | AT124: 124 | AU124: 2017-09-19 | AV124: 20124 | AW124: 2017-09-19 | AX124: 14987 | AY124: 2017-09-19 | AZ124: -35111 | BA124: 124 | BB124: 2017-09-19 | BC124: -30379 | BD124: 2017-09-19 | BE124: 34341 | BF124: 2017-09-19 | BG124: -3962 | BH124: 124 | BI124: 2017-09-19 | BJ124: 105883 | BK124: 2017-09-19 | BL124: -115633 | BM124: 2017-09-19 | BN124: 9750 | BO124: 124 | BP124: 2017-09-19 | BQ124: 9088 | BR124: 2017-09-19 | BS124: -20440 | BT124: 2017-09-19 | BU124: 11352 | BV124: 124 | BW124: 2017-09-19 | BX124: 28882 | BY124: 2017-09-19 | BZ124: -28864 | CA124: 2017-09-19 | CB124: -18 | CC124: 124 | CD124: 2017-09-19 | CE124: 1664 | CF124: 2017-09-19 | CG124: -2802 | CH124: 2017-09-19 | CI124: 1138 | CJ124: 124 | CK124: 2017-09-19 | CL124: 1043 | CM124: 2017-09-19 | CN124: -2588 | CO124: 2017-09-19 | CP124: 1545 | CQ124: 124 | CR124: 2017-09-19 | CS124: -15415 | CT124: 2017-09-19 | CU124: 15374 | CV124: 2017-09-19 | CW124: 41 | CX124: 124 | CY124: 2017-09-19 | CZ124: -172683 | DA124: 2017-09-19 | DB124: 201838 | DC124: 2017-09-19 | DD124: -29155 | DE124: 124 | DF124: 2017-09-19 | DG124: -99387 | DH124: 2017-09-19 | DI124: 124351 | DJ124: 2017-09-19 | DK124: -24964 | DL124: 124 | DM124: 2017-09-19 | DN124: -210863 | DO124: 2017-09-19 | DP124: 291072 | DQ124: 2017-09-19 | DR124: -80209 | DS124: 124 | DT124: 2017-09-19 | DU124: 11690 | DV124: 2017-09-19 | DW124: -11733 | DX124: 2017-09-19 | DY124: 43 | DZ124: 124 | EA124: 2017-09-19 | EB124: 270120 | EC124: 2017-09-19 | ED124: -144751 | EE124: 2017-09-19 | EF124: -125369 | EG124: 124 | EH124: 2017-09-19 | EI124: 39986 | EJ124: 2017-09-19 | EK124: 8077 | EL124: 2017-09-19 | EM124: -48063 | EN124: 124 | EO124: 2017-09-19 | EP124: 7526 | EQ124: 2017-09-19 | ER124: -7509 | ES124: 2017-09-19 | ET124: -17 | EU124: 124 | EV124: 2017-09-19 | EW124: 58123 | EX124: 2017-09-19 | EY124: -61411 | EZ124: 2017-09-19 | FA124: 3288 | FB124: 124 | FC124: 2017-09-19 | FD124: -87839 | FE124: 2017-09-19 | FF124: 67553 | FG124: 2017-09-19 | FH124: 20286 | FI124: 124 | FJ124: 2017-09-19 | FK124: 86739 | FL124: 2017-09-19 | FM124: -86550 | FN124: 2017-09-19 | FO124: -189
AM125: 125 | AN125: 2017-09-12 | AO125: -24614 | AP125: 2017-09-12 | AQ125: 4831 | AR125: 2017-09-12 | AS125: 19783 | AT125: 125 | AU125: 2017-09-12 | AV125: 3592 | AW125: 2017-09-12 | AX125: 32292 | AY125: 2017-09-12 | AZ125: -35884 | BA125: 125 | BB125: 2017-09-12 | BC125: -31142 | BD125: 2017-09-12 | BE125: 33995 | BF125: 2017-09-12 | BG125: -2853 | BH125: 125 | BI125: 2017-09-12 | BJ125: 109532 | BK125: 2017-09-12 | BL125: -121318 | BM125: 2017-09-12 | BN125: 11786 | BO125: 125 | BP125: 2017-09-12 | BQ125: -5299 | BR125: 2017-09-12 | BS125: -4975 | BT125: 2017-09-12 | BU125: 10274 | BV125: 125 | BW125: 2017-09-12 | BX125: 30041 | BY125: 2017-09-12 | BZ125: -30193 | CA125: 2017-09-12 | CB125: 152 | CC125: 125 | CD125: 2017-09-12 | CE125: 1877 | CF125: 2017-09-12 | CG125: -3068 | CH125: 2017-09-12 | CI125: 1191 | CJ125: 125 | CK125: 2017-09-12 | CL125: 753 | CM125: 2017-09-12 | CN125: -2580 | CO125: 2017-09-12 | CP125: 1827 | CQ125: 125 | CR125: 2017-09-12 | CS125: -15528 | CT125: 2017-09-12 | CU125: 15462 | CV125: 2017-09-12 | CW125: 66 | CX125: 125 | CY125: 2017-09-12 | CZ125: -197507 | DA125: 2017-09-12 | DB125: 228259 | DC125: 2017-09-12 | DD125: -30752 | DE125: 125 | DF125: 2017-09-12 | DG125: -102806 | DH125: 2017-09-12 | DI125: 123033 | DJ125: 2017-09-12 | DK125: -20227 | DL125: 125 | DM125: 2017-09-12 | DN125: -120160 | DO125: 2017-09-12 | DP125: 170831 | DQ125: 2017-09-12 | DR125: -50671 | DS125: 125 | DT125: 2017-09-12 | DU125: 6402 | DV125: 2017-09-12 | DW125: -6385 | DX125: 2017-09-12 | DY125: -17 | DZ125: 125 | EA125: 2017-09-12 | EB125: 251679 | EC125: 2017-09-12 | ED125: -108347 | EE125: 2017-09-12 | EF125: -143332 | EG125: 125 | EH125: 2017-09-12 | EI125: 37522 | EJ125: 2017-09-12 | EK125: 15410 | EL125: 2017-09-12 | EM125: -52932 | EN125: 125 | EO125: 2017-09-12 | EP125: 16867 | EQ125: 2017-09-12 | ER125: -16886 | ES125: 2017-09-12 | ET125: 19 | EU125: 125 | EV125: 2017-09-12 | EW125: 50496 | EX125: 2017-09-12 | EY125: -61245 | EZ125: 2017-09-12 | FA125: 10749 | FB125: 125 | FC125: 2017-09-12 | FD125: -88060 | FE125: 2017-09-12 | FF125: 60909 | FG125: 2017-09-12 | FH125: 27151 | FI125: 125 | FJ125: 2017-09-12 | FK125: 82900 | FL125: 2017-09-12 | FM125: -81737 | FN125: 2017-09-12 | FO125: -1163
AM126: 126 | AN126: 2017-09-05 | AO126: -14000 | AP126: 2017-09-05 | AQ126: -5432 | AR126: 2017-09-05 | AS126: 19432 | AT126: 126 | AU126: 2017-09-05 | AV126: -2044 | AW126: 2017-09-05 | AX126: 32300 | AY126: 2017-09-05 | AZ126: -30256 | BA126: 126 | BB126: 2017-09-05 | BC126: -36031 | BD126: 2017-09-05 | BE126: 39611 | BF126: 2017-09-05 | BG126: -3580 | BH126: 126 | BI126: 2017-09-05 | BJ126: 98514 | BK126: 2017-09-05 | BL126: -112536 | BM126: 2017-09-05 | BN126: 14022 | BO126: 126 | BP126: 2017-09-05 | BQ126: -8869 | BR126: 2017-09-05 | BS126: -1734 | BT126: 2017-09-05 | BU126: 10603 | BV126: 126 | BW126: 2017-09-05 | BX126: 32406 | BY126: 2017-09-05 | BZ126: -32415 | CA126: 2017-09-05 | CB126: 9 | CC126: 126 | CD126: 2017-09-05 | CE126: 2194 | CF126: 2017-09-05 | CG126: -3352 | CH126: 2017-09-05 | CI126: 1158 | CJ126: 126 | CK126: 2017-09-05 | CL126: 1031 | CM126: 2017-09-05 | CN126: -2754 | CO126: 2017-09-05 | CP126: 1723 | CQ126: 126 | CR126: 2017-09-05 | CS126: -15446 | CT126: 2017-09-05 | CU126: 15462 | CV126: 2017-09-05 | CW126: -16 | CX126: 126 | CY126: 2017-09-05 | CZ126: -244038 | DA126: 2017-09-05 | DB126: 276020 | DC126: 2017-09-05 | DD126: -31982 | DE126: 126 | DF126: 2017-09-05 | DG126: -171602 | DH126: 2017-09-05 | DI126: 176139 | DJ126: 2017-09-05 | DK126: -4537 | DL126: 126 | DM126: 2017-09-05 | DN126: -76540 | DO126: 2017-09-05 | DP126: 126462 | DQ126: 2017-09-05 | DR126: -49922 | DS126: 126 | DT126: 2017-09-05 | DU126: 5545 | DV126: 2017-09-05 | DW126: -5510 | DX126: 2017-09-05 | DY126: -35 | DZ126: 126 | EA126: 2017-09-05 | EB126: 221806 | EC126: 2017-09-05 | ED126: -62634 | EE126: 2017-09-05 | EF126: -159172 | EG126: 126 | EH126: 2017-09-05 | EI126: 27534 | EJ126: 2017-09-05 | EK126: 14733 | EL126: 2017-09-05 | EM126: -42267 | EN126: 126 | EO126: 2017-09-05 | EP126: 16517 | EQ126: 2017-09-05 | ER126: -16485 | ES126: 2017-09-05 | ET126: -32 | EU126: 126 | EV126: 2017-09-05 | EW126: 52281 | EX126: 2017-09-05 | EY126: -46330 | EZ126: 2017-09-05 | FA126: -5951 | FB126: 126 | FC126: 2017-09-05 | FD126: -98446 | FE126: 2017-09-05 | FF126: 67244 | FG126: 2017-09-05 | FH126: 31202 | FI126: 126 | FJ126: 2017-09-05 | FK126: 78971 | FL126: 2017-09-05 | FM126: -79012 | FN126: 2017-09-05 | FO126: 41
AM127: 127 | AN127: 2017-08-29 | AO127: 2376 | AP127: 2017-08-29 | AQ127: -10527 | AR127: 2017-08-29 | AS127: 8151 | AT127: 127 | AU127: 2017-08-29 | AV127: -14707 | AW127: 2017-08-29 | AX127: 49981 | AY127: 2017-08-29 | AZ127: -35274 | BA127: 127 | BB127: 2017-08-29 | BC127: -33233 | BD127: 2017-08-29 | BE127: 36210 | BF127: 2017-08-29 | BG127: -2977 | BH127: 127 | BI127: 2017-08-29 | BJ127: 77987 | BK127: 2017-08-29 | BL127: -87832 | BM127: 2017-08-29 | BN127: 9845 | BO127: 127 | BP127: 2017-08-29 | BQ127: -8896 | BR127: 2017-08-29 | BS127: 865 | BT127: 2017-08-29 | BU127: 8031 | BV127: 127 | BW127: 2017-08-29 | BX127: 35031 | BY127: 2017-08-29 | BZ127: -34585 | CA127: 2017-08-29 | CB127: -446 | CC127: 127 | CD127: 2017-08-29 | CE127: 1525 | CF127: 2017-08-29 | CG127: -2698 | CH127: 2017-08-29 | CI127: 1173 | CJ127: 127 | CK127: 2017-08-29 | CL127: 1237 | CM127: 2017-08-29 | CN127: -2908 | CO127: 2017-08-29 | CP127: 1671 | CQ127: 127 | CR127: 2017-08-29 | CS127: -15396 | CT127: 2017-08-29 | CU127: 15430 | CV127: 2017-08-29 | CW127: -34 | CX127: 127 | CY127: 2017-08-29 | CZ127: -238916 | DA127: 2017-08-29 | DB127: 272556 | DC127: 2017-08-29 | DD127: -33640 | DE127: 127 | DF127: 2017-08-29 | DG127: -130449 | DH127: 2017-08-29 | DI127: 141091 | DJ127: 2017-08-29 | DK127: -10642 | DL127: 127 | DM127: 2017-08-29 | DN127: -48490 | DO127: 2017-08-29 | DP127: 109705 | DQ127: 2017-08-29 | DR127: -61215 | DS127: 127 | DT127: 2017-08-29 | DU127: 5340 | DV127: 2017-08-29 | DW127: -5266 | DX127: 2017-08-29 | DY127: -74 | DZ127: 127 | EA127: 2017-08-29 | EB127: 283719 | EC127: 2017-08-29 | ED127: -123701 | EE127: 2017-08-29 | EF127: -160018 | EG127: 127 | EH127: 2017-08-29 | EI127: 22605 | EJ127: 2017-08-29 | EK127: 22318 | EL127: 2017-08-29 | EM127: -44923 | EN127: 127 | EO127: 2017-08-29 | EP127: 16575 | EQ127: 2017-08-29 | ER127: -16513 | ES127: 2017-08-29 | ET127: -62 | EU127: 127 | EV127: 2017-08-29 | EW127: 56504 | EX127: 2017-08-29 | EY127: -58301 | EZ127: 2017-08-29 | FA127: 1797 | FB127: 127 | FC127: 2017-08-29 | FD127: -89174 | FE127: 2017-08-29 | FF127: 67896 | FG127: 2017-08-29 | FH127: 21278 | FI127: 127 | FJ127: 2017-08-29 | FK127: 87290 | FL127: 2017-08-29 | FM127: -86893 | FN127: 2017-08-29 | FO127: -397
AM128: 128 | AN128: 2017-08-22 | AO128: 70508 | AP128: 2017-08-22 | AQ128: -68609 | AR128: 2017-08-22 | AS128: -1899 | AT128: 128 | AU128: 2017-08-22 | AV128: 18038 | AW128: 2017-08-22 | AX128: 17567 | AY128: 2017-08-22 | AZ128: -35605 | BA128: 128 | BB128: 2017-08-22 | BC128: -27600 | BD128: 2017-08-22 | BE128: 32158 | BF128: 2017-08-22 | BG128: -4558 | BH128: 128 | BI128: 2017-08-22 | BJ128: 64449 | BK128: 2017-08-22 | BL128: -70001 | BM128: 2017-08-22 | BN128: 5552 | BO128: 128 | BP128: 2017-08-22 | BQ128: -9098 | BR128: 2017-08-22 | BS128: 1460 | BT128: 2017-08-22 | BU128: 7638 | BV128: 128 | BW128: 2017-08-22 | BX128: 48171 | BY128: 2017-08-22 | BZ128: -46026 | CA128: 2017-08-22 | CB128: -2145 | CC128: 128 | CD128: 2017-08-22 | CE128: 1411 | CF128: 2017-08-22 | CG128: -2568 | CH128: 2017-08-22 | CI128: 1157 | CJ128: 128 | CK128: 2017-08-22 | CL128: 1573 | CM128: 2017-08-22 | CN128: -3156 | CO128: 2017-08-22 | CP128: 1583 | CQ128: 128 | CR128: 2017-08-22 | CS128: -15362 | CT128: 2017-08-22 | CU128: 15407 | CV128: 2017-08-22 | CW128: -45 | CX128: 128 | CY128: 2017-08-22 | CZ128: -259210 | DA128: 2017-08-22 | DB128: 292439 | DC128: 2017-08-22 | DD128: -33229 | DE128: 128 | DF128: 2017-08-22 | DG128: -116639 | DH128: 2017-08-22 | DI128: 137166 | DJ128: 2017-08-22 | DK128: -20527 | DL128: 128 | DM128: 2017-08-22 | DN128: -140963 | DO128: 2017-08-22 | DP128: 214319 | DQ128: 2017-08-22 | DR128: -73356 | DS128: 128 | DT128: 2017-08-22 | DU128: 5676 | DV128: 2017-08-22 | DW128: -5588 | DX128: 2017-08-22 | DY128: -88 | DZ128: 128 | EA128: 2017-08-22 | EB128: 261245 | EC128: 2017-08-22 | ED128: -80303 | EE128: 2017-08-22 | EF128: -180942 | EG128: 128 | EH128: 2017-08-22 | EI128: 12540 | EJ128: 2017-08-22 | EK128: 23600 | EL128: 2017-08-22 | EM128: -36140 | EN128: 128 | EO128: 2017-08-22 | EP128: 16473 | EQ128: 2017-08-22 | ER128: -16433 | ES128: 2017-08-22 | ET128: -40 | EU128: 128 | EV128: 2017-08-22 | EW128: 76691 | EX128: 2017-08-22 | EY128: -80140 | EZ128: 2017-08-22 | FA128: 3449 | FB128: 128 | FC128: 2017-08-22 | FD128: -79196 | FE128: 2017-08-22 | FF128: 46913 | FG128: 2017-08-22 | FH128: 32283 | FI128: 128 | FJ128: 2017-08-22 | FK128: 92158 | FL128: 2017-08-22 | FM128: -91911 | FN128: 2017-08-22 | FO128: -247
